Workbook

Sheet Intro
F2: Exploratory Software for Confidence Intervals
F3: ESCI Chapters 5-6 | M3: www.thenewstatistics.com
G5: Geoff Cumming | N5: Copyright © Geoff Cumming 2011
H6: School of Psychological Science | N6: ESCI is free software: you can redistribute it and/or modify it under the terms of the GNU General Public License
H7: La Trobe University, Melbourne | N7: as published by the Free Software Foundation, either version 3 of the License, or (at your option) any later version.
H8: Australia 3086 | N8: This program is distributed in the hope that it will be useful, but WITHOUT ANY WARRANTY; without even the implied warranty of
H9: esci@latrobe.edu.au | N9: MERCHANTABILITY or FITNESS FOR A PARTICULAR PURPOSE. Scroll down to see the GNU General Public License for more details.
B12: ► ESCI Chapters 5-6 accompanies the book Understanding The New Statistics: Effect Sizes, Confidence Intervals, and Meta-analysis (Routledge, 2012)
B13: ► For help, see the book's Appendix A.
B14: ► Use the tabs below to go to your page of choice.
B15: ► At any page, explore--with guidance from the relevant chapters of the book.
B19: Click the tabs at the bottom of the screen to go to these pages:
C21: CIs and replication See Chapter 5. Take an initial sample, see what percentage of replication means it would capture. See distribution of capture percentages.
C23: p intervals See Chapter 5. Calculate p intervals, with chosen %, for a chosen value of two-tailed pobt.
C25: Dance p See Chapter 5. See how the p value changes with replication. Visit the p value casino. See the dance of the p values.
C27: Random See Chapter 5. Compare a square filled with a random scatter of points, and a square filled with points that are random, but with a minimum spacing between points.
C29: Compare A B See Chapter 6. See figures that compare A and B, for the two independent groups design, and for the paired design.
C31: Data two See Chapter 6. Type (or paste) in your own data, for the two independent groups design. See one or two figures, with CIs.
C33: Simulate two See Chapter 6. Set population parameters, then simulate running many experiments, for the two independent groups design. See the extent of sampling variability.
C35: Data paired See Chapter 6. Type (or paste) in your own data, for the paired design. See a figure with floating Difference axis.
C37: Simulate paired See Chapter 6. Simulate running many experiments, for the paired design. See the pattern of sampling variability in means, and differences.
B42: Please scroll down to see the GNU General Public License below
B66: GNU GENERAL PUBLIC LICENSE
B67: Version 3, 29 June 2007
B69: Copyright (C) 2007 Free Software Foundation, Inc. <http://fsf.org/>
B70: Everyone is permitted to copy and distribute verbatim copies
B71: of this license document, but changing it is not allowed.
B73: Preamble
B75: The GNU General Public License is a free, copyleft license for
B76: software and other kinds of works.
B78: The licenses for most software and other practical works are designed
B79: to take away your freedom to share and change the works. By contrast,
B80: the GNU General Public License is intended to guarantee your freedom to
B81: share and change all versions of a program--to make sure it remains free
B82: software for all its users. We, the Free Software Foundation, use the
B83: GNU General Public License for most of our software; it applies also to
B84: any other work released this way by its authors. You can apply it to
B85: your programs, too.
B87: When we speak of free software, we are referring to freedom, not
B88: price. Our General Public Licenses are designed to make sure that you
B89: have the freedom to distribute copies of free software (and charge for
B90: them if you wish), that you receive source code or can get it if you
B91: want it, that you can change the software or use pieces of it in new
B92: free programs, and that you know you can do these things.
B94: To protect your rights, we need to prevent others from denying you
B95: these rights or asking you to surrender the rights. Therefore, you have
B96: certain responsibilities if you distribute copies of the software, or if
B97: you modify it: responsibilities to respect the freedom of others.
B99: For example, if you distribute copies of such a program, whether
B100: gratis or for a fee, you must pass on to the recipients the same
B101: freedoms that you received. You must make sure that they, too, receive
B102: or can get the source code. And you must show them these terms so they
B103: know their rights.
B105: Developers that use the GNU GPL protect your rights with two steps:
B106: (1) assert copyright on the software, and (2) offer you this License
B107: giving you legal permission to copy, distribute and/or modify it.
B109: For the developers' and authors' protection, the GPL clearly explains
B110: that there is no warranty for this free software. For both users' and
B111: authors' sake, the GPL requires that modified versions be marked as
B112: changed, so that their problems will not be attributed erroneously to
B113: authors of previous versions.
B115: Some devices are designed to deny users access to install or run
B116: modified versions of the software inside them, although the manufacturer
B117: can do so. This is fundamentally incompatible with the aim of
B118: protecting users' freedom to change the software. The systematic
B119: pattern of such abuse occurs in the area of products for individuals to
B120: use, which is precisely where it is most unacceptable. Therefore, we
B121: have designed this version of the GPL to prohibit the practice for those
B122: products. If such problems arise substantially in other domains, we
B123: stand ready to extend this provision to those domains in future versions
B124: of the GPL, as needed to protect the freedom of users.
B126: Finally, every program is threatened constantly by software patents.
B127: States should not allow patents to restrict development and use of
B128: software on general-purpose computers, but in those that do, we wish to
B129: avoid the special danger that patents applied to a free program could
B130: make it effectively proprietary. To prevent this, the GPL assures that
B131: patents cannot be used to render the program non-free.
B133: The precise terms and conditions for copying, distribution and
B134: modification follow.
B136: TERMS AND CONDITIONS
B138: 0. Definitions.
B140: "This License" refers to version 3 of the GNU General Public License.
B142: "Copyright" also means copyright-like laws that apply to other kinds of
B143: works, such as semiconductor masks.
B145: "The Program" refers to any copyrightable work licensed under this
B146: License. Each licensee is addressed as "you". "Licensees" and
B147: "recipients" may be individuals or organizations.
B149: To "modify" a work means to copy from or adapt all or part of the work
B150: in a fashion requiring copyright permission, other than the making of an
B151: exact copy. The resulting work is called a "modified version" of the
B152: earlier work or a work "based on" the earlier work.
B154: A "covered work" means either the unmodified Program or a work based
B155: on the Program.
B157: To "propagate" a work means to do anything with it that, without
B158: permission, would make you directly or secondarily liable for
B159: infringement under applicable copyright law, except executing it on a
B160: computer or modifying a private copy. Propagation includes copying,
B161: distribution (with or without modification), making available to the
B162: public, and in some countries other activities as well.
B164: To "convey" a work means any kind of propagation that enables other
B165: parties to make or receive copies. Mere interaction with a user through
B166: a computer network, with no transfer of a copy, is not conveying.
B168: An interactive user interface displays "Appropriate Legal Notices"
B169: to the extent that it includes a convenient and prominently visible
B170: feature that (1) displays an appropriate copyright notice, and (2)
B171: tells the user that there is no warranty for the work (except to the
B172: extent that warranties are provided), that licensees may convey the
B173: work under this License, and how to view a copy of this License. If
B174: the interface presents a list of user commands or options, such as a
B175: menu, a prominent item in the list meets this criterion.
B177: 1. Source Code.
B179: The "source code" for a work means the preferred form of the work
B180: for making modifications to it. "Object code" means any non-source
B181: form of a work.
B183: A "Standard Interface" means an interface that either is an official
B184: standard defined by a recognized standards body, or, in the case of
B185: interfaces specified for a particular programming language, one that
B186: is widely used among developers working in that language.
B188: The "System Libraries" of an executable work include anything, other
B189: than the work as a whole, that (a) is included in the normal form of
B190: packaging a Major Component, but which is not part of that Major
B191: Component, and (b) serves only to enable use of the work with that
B192: Major Component, or to implement a Standard Interface for which an
B193: implementation is available to the public in source code form. A
B194: "Major Component", in this context, means a major essential component
B195: (kernel, window system, and so on) of the specific operating system
B196: (if any) on which the executable work runs, or a compiler used to
B197: produce the work, or an object code interpreter used to run it.
B199: The "Corresponding Source" for a work in object code form means all
B200: the source code needed to generate, install, and (for an executable
B201: work) run the object code and to modify the work, including scripts to
B202: control those activities. However, it does not include the work's
B203: System Libraries, or general-purpose tools or generally available free
B204: programs which are used unmodified in performing those activities but
B205: which are not part of the work. For example, Corresponding Source
B206: includes interface definition files associated with source files for
B207: the work, and the source code for shared libraries and dynamically
B208: linked subprograms that the work is specifically designed to require,
B209: such as by intimate data communication or control flow between those
B210: subprograms and other parts of the work.
B212: The Corresponding Source need not include anything that users
B213: can regenerate automatically from other parts of the Corresponding
B214: Source.
B216: The Corresponding Source for a work in source code form is that
B217: same work.
B219: 2. Basic Permissions.
B221: All rights granted under this License are granted for the term of
B222: copyright on the Program, and are irrevocable provided the stated
B223: conditions are met. This License explicitly affirms your unlimited
B224: permission to run the unmodified Program. The output from running a
B225: covered work is covered by this License only if the output, given its
B226: content, constitutes a covered work. This License acknowledges your
B227: rights of fair use or other equivalent, as provided by copyright law.
B229: You may make, run and propagate covered works that you do not
B230: convey, without conditions so long as your license otherwise remains
B231: in force. You may convey covered works to others for the sole purpose
B232: of having them make modifications exclusively for you, or provide you
B233: with facilities for running those works, provided that you comply with
B234: the terms of this License in conveying all material for which you do
B235: not control copyright. Those thus making or running the covered works
B236: for you must do so exclusively on your behalf, under your direction
B237: and control, on terms that prohibit them from making any copies of
B238: your copyrighted material outside their relationship with you.
B240: Conveying under any other circumstances is permitted solely under
B241: the conditions stated below. Sublicensing is not allowed; section 10
B242: makes it unnecessary.
B244: 3. Protecting Users' Legal Rights From Anti-Circumvention Law.
B246: No covered work shall be deemed part of an effective technological
B247: measure under any applicable law fulfilling obligations under article
B248: 11 of the WIPO copyright treaty adopted on 20 December 1996, or
B249: similar laws prohibiting or restricting circumvention of such
B250: measures.
B252: When you convey a covered work, you waive any legal power to forbid
B253: circumvention of technological measures to the extent such circumvention
B254: is effected by exercising rights under this License with respect to
B255: the covered work, and you disclaim any intention to limit operation or
B256: modification of the work as a means of enforcing, against the work's
B257: users, your or third parties' legal rights to forbid circumvention of
B258: technological measures.
B260: 4. Conveying Verbatim Copies.
B262: You may convey verbatim copies of the Program's source code as you
B263: receive it, in any medium, provided that you conspicuously and
B264: appropriately publish on each copy an appropriate copyright notice;
B265: keep intact all notices stating that this License and any
B266: non-permissive terms added in accord with section 7 apply to the code;
B267: keep intact all notices of the absence of any warranty; and give all
B268: recipients a copy of this License along with the Program.
B270: You may charge any price or no price for each copy that you convey,
B271: and you may offer support or warranty protection for a fee.
B273: 5. Conveying Modified Source Versions.
B275: You may convey a work based on the Program, or the modifications to
B276: produce it from the Program, in the form of source code under the
B277: terms of section 4, provided that you also meet all of these conditions:
B279: a) The work must carry prominent notices stating that you modified
B280: it, and giving a relevant date.
B282: b) The work must carry prominent notices stating that it is
B283: released under this License and any conditions added under section
B284: 7. This requirement modifies the requirement in section 4 to
B285: "keep intact all notices".
B287: c) You must license the entire work, as a whole, under this
... 375 more rows

Sheet CIs and replication
A1: randseed | B1: forseed | C1: 15 | D1: =AS7 -> 15 | H1: CIs and replication | S1: =($I$13+$AS$7+$AU$8+$AU$9+$AS$3+$AS$5)/100000000 -> 2.95e-06 | T1: =$S$1 -> 2.95e-06 | U1: 2.95e-06 | V1: 2.95e-06 | W1: 2.95e-06 | X1: 2.95e-06 | Y1: 2.95e-06 | Z1: 2.95e-06 | AA1: 2.95e-06 | AB1: 2.95e-06 | AC1: 2.95e-06 | AD1: 2.95e-06 | AE1: 2.95e-06 | AF1: 2.95e-06 | AT1: Our single sample | AV1: Xstart | AW1: 3 | AX1: pop disp | AY1: 0.3 | AZ1: =IF(AU14,AS3,NA()) -> 47 | BA1: =AS5 -> 50
A2: 0.8370370418 | B2: =NOW()*1000-INT(NOW()*1000) -> 0.8710648119 | C2: 47 | D2: =AS3 -> 47 | H2: Given an initial mean and CI, where will | S2: =$S$1 -> 2.95e-06 | AF2: =$S$1 -> 2.95e-06 | AS2: mu | AT2: =MOD(C5*10000013,1) -> 0.08406846876 | AU2: =MOD(AT2*10000013,1) -> 0.7805360834 | AV2: xR | AW2: 2.8 | AX2: =AU20*AU21 -> 25.30302624 | AY2: 0.3 | AZ2: =$AZ$1 -> 47 | BA2: =NA() -> 
A3: Sswitch | B3: FALSE | C3: 50 | D3: =AS5 -> 50 | H3: replication means fall? | S3: 2.95e-06 | AF3: 2.95e-06 | AS3: 47 | AT3: Mean | AU3: SE | AV3: xL | AW3: 0.6 | AX3: 0.3 | AY3: =IF(AND(AU14,AU15,AU22),AS3+AX2,NA()) -> 72.30302624
A4: singswitch | B4: FALSE | H4: What % will fall within the CI? | S4: 2.95e-06 | AF4: 2.95e-06 | AS4: sigma | AT4: =$AS$3+$AU$21*NORMSINV(AT2) -> 29.2073217 | AU4: =$AS$5*SQRT(CHIINV(AU2,$AS$7-1)/(($AS$7-1)*$AS$7)) -> 10.77121674 | AV4: inc | AW4: =(AW2-AW3)/19 -> 0.1157894737 | AX4: 0.3 | AY4: =IF(AND(AU14,AU15,AU22),AS3-AX2,NA()) -> 21.69697376 | BA4: =IF(ISBLANK(B4),"",IF(AU17,AU20*AU21,AU19*AU4)) -> 25.30302624
C5: 0.00353620381 | D5: =RAND() -> 0.2442055248 | F5: 1 | G5: Population | S5: 2.95e-06 | AF5: 2.95e-06 | AS5: 50 | AT5: upper display | AV5: for baseline | AX5: labels | AY5: 0.2 | AZ5: =IF(AU14,AS3+AS5/2,NA()) -> 72
H6: Mean m | I6: =AS3 -> 47 | M6: SD s | N6: =AS5 -> 50 | S6: 2.95e-06 | AF6: 2.95e-06 | AS6: N | AT6: =AU8*0.05 -> 2.4 | AU6: y | AV6: =AW1 -> 3 | AW6: 0 | AY6: 0.18 | AZ6: =IF(AU14,AS3,NA()) -> 47
C7: orig M | D7: orig CI | S7: 2.95e-06 | AF7: 2.95e-06 | AS7: 15 | AT7: =AU9*0.0015 -> 0.06 | AU7: x
C8: =AT4 -> 29.2073217 | D8: =AU4 -> 10.77121674 | K8: Display m ± s | O8: SE | P8: =AS5/SQRT(AS7) -> 12.90994449 | S8: 2.95e-06 | AF8: 2.95e-06 | AS8: for C | AT8: y | AU8: 48 | BA8: disp CI | BB8: capt %
F9: 2 | G9: Experiment | S9: 2.95e-06 | AF9: 2.95e-06 | AS9: 95 | AT9: x | AU9: 40 | AV9: x | AW9: orig M | AX9: cap'd | AY9: notcap | BA9: =IF(ISBLANK(D9),"",IF($AU$17,$AU$20*$AU$21,D9*$AU$19)) ->  | BB9: =IF(ISBLANK(C9),"",(NORMDIST(C9+BA9,$AS$3,$AU$21,TRUE)-NORMDIST(C9-BA9,$AS$3,$AU$21,TRUE))*100) ->  | BC9: Lower display: Capture %ages | BH9: For curve | BI9: =AU13*AT6*AT7 -> 43.2 | BJ9: For area | BL9: Central shaded area
G10: N | H10: =AS7 -> 15 | K10: Sampling distribution of means | S10: 2.95e-06 | AF10: 2.95e-06 | AT10: lower display | AV10: =AW2 -> 2.8 | AW10: =IF(AND($AU$18,$B$4,NOT($AU$14),NOT(ISBLANK(C9))),C9,NA()) ->  | AX10: =IF(AND($AU$18,$B$4,$AU$14,NOT(ISBLANK(C9))),IF(AND(C9+BA9>=$AS$3,C9-BA9<=$AS$3),C9,NA()),NA()) ->  | AY10: =IF(AND($AU$18,$B$4,$AU$14,NOT(ISBLANK(C9))),IF(OR(C9+BA9<$AS$3,C9-BA9>$AS$3),C9,NA()),NA()) ->  | AZ10: top | BC10: xdisp | BD10: ydisp | BE10: xticks | BF10: yticks | BH10: x | BI10: y | BJ10: x | BK10: bars | BL10: x | BM10: bars
O11: Central C% area | S11: 2.95e-06 | AF11: 2.95e-06 | AT11: =AN25/1000 -> 0.128 | AU11: y | AV11: =AV10-$AW$4 -> 2.684210526 | AZ11: =IF(AND($AU$22,$AU$18,$AU$23,$B$4,$AU$14,NOT(ISBLANK(C10))),C10+BA10,NA()) ->  | BC11: =IF(OR(NOT(Repchange),BE11=""),NA(),BE11*$AT$12/100) ->  | BD11: =$AT$11*(BF11-0.5) ->  | BE11: =IF(BB9="","",ROUND(BB9/$AT$12,0)) ->  | BF11: =IF(BE11="",NA(),COUNTIF(BE11:$BE$510,BE11)) ->  | BG11: 1 | BH11: =IF(AND($AU$14,$AU$22),$AW$1+$BI$9*NORMDIST(BI11,$AS$3,$AU$21,FALSE),NA()) -> 3.000292193 | BI11: 100 | BJ11: =IF(AND($AU$18,$B$4,$AU$23),$AW$1,NA()) ->  | BK11: =IF(AND($AU$25>=BI11,$AU$26<=BI11),BH11-$AW$1,NA()) ->  | BL11: =IF(AND($AU$15,$AU$16),$AW$1,NA()) -> 3 | BM11: =IF(AND($AY$3>BI11,$AY$4<=BI11),BH11-$AW$1,NA()) -> 
I12: Confidence level | O12: Shading | S12: 2.95e-06 | AF12: 2.95e-06 | AT12: =AN26/1000 -> 0.322 | AU12: x | AV12: 2.568421053 | BF12: =IF(BE12="",NA(),COUNTIF(BE12:$BE$510,BE12)) ->  | BG12: 2 | BH12: 3.000342292 | BI12: 99.5 | BL12: 3
H13: C | I13: =IF(AS9<100,AS9,99+(AS9-99)/10) -> 95 | S13: 2.95e-06 | AF13: 2.95e-06 | AT13: Nmeans | AU13: 300 | AV13: 2.452631579 | BF13: =IF(BE13="",NA(),COUNTIF(BE13:$BE$510,BE13)) ->  | BG13: 3 | BH13: 3.00040038 | BI13: 99 | BL13: 3
P14: Assume s is known | S14: 2.95e-06 | AF14: 2.95e-06 | AT14: Popdisp? | AU14: TRUE | AV14: 2.336842105 | BF14: =IF(BE14="",NA(),COUNTIF(BE14:$BE$510,BE14)) ->  | BG14: 4 | BH14: 3.000467624 | BI14: 98.5 | BL14: 3
S15: 2.95e-06 | AF15: 2.95e-06 | AT15: PopInt? | AU15: TRUE | AV15: 2.221052632 | BF15: =IF(BE15="",NA(),COUNTIF(BE15:$BE$510,BE15)) ->  | BG15: 5 | BH15: 3.000545343 | BI15: 98 | BL15: 3
F16: 3 | Q16: Speed | S16: 2.95e-06 | AF16: 2.95e-06 | AT16: PinkShade? | AU16: TRUE | AV16: 2.105263158 | BF16: =IF(BE16="",NA(),COUNTIF(BE16:$BE$510,BE16)) ->  | BG16: 6 | BH16: 3.000635025 | BI16: 97.5 | BL16: 3
Q17: 20 | S17: 2.95e-06 | AF17: 2.95e-06 | AT17: sknown | AU17: TRUE | AV17: 1.989473684 | BF17: =IF(BE17="",NA(),COUNTIF(BE17:$BE$510,BE17)) ->  | BG17: 7 | BH17: 3.000738348 | BI17: 97 | BL17: 3
S18: 2.95e-06 | AF18: 2.95e-06 | AT18: same? | AU18: =AND(D1=C1,D2=C2,D3=C3) -> TRUE | AV18: 1.873684211 | BF18: =IF(BE18="",NA(),COUNTIF(BE18:$BE$510,BE18)) ->  | BG18: 8 | BH18: 3.000857194 | BI18: 96.5 | BL18: 3
F19: 4 | G19: Initial samples | S19: 2.95e-06 | AF19: 2.95e-06 | AT19: Current t | AU19: =TINV((1-$I$13/100),AS7-1) -> 2.144786688 | AV19: 1.757894737 | BF19: =IF(BE19="",NA(),COUNTIF(BE19:$BE$510,BE19)) ->  | BG19: 9 | BH19: 3.000993679 | BI19: 96 | BL19: 3
I20: % replication means within our CI | S20: 2.95e-06 | AF20: 2.95e-06 | AT20: Current z | AU20: =NORMSINV(1-(100-$I$13)/200) -> 1.959963985 | AV20: 1.642105263 | BF20: =IF(BE20="",NA(),COUNTIF(BE20:$BE$510,BE20)) ->  | BG20: 10 | BH20: 3.00115017 | BI20: 95.5 | BL20: 3
M21: Number of samples | N21: =COUNT(D9:D508) -> 0 | S21: 2.95e-06 | AF21: 2.95e-06 | AT21: SE | AU21: =AS5/SQRT(AS7) -> 12.90994449 | AV21: 1.526315789 | BF21: =IF(BE21="",NA(),COUNTIF(BE21:$BE$510,BE21)) ->  | BG21: 11 | BH21: 3.001329309 | BI21: 95 | BL21: 3
S22: 2.95e-06 | AF22: 2.95e-06 | AT22: curve? | AU22: TRUE | AV22: 1.410526316 | BF22: =IF(BE22="",NA(),COUNTIF(BE22:$BE$510,BE22)) ->  | BG22: 12 | BH22: 3.001534047 | BI22: 94.5 | BL22: 3
F23: 5 | G23: =$S$1 -> 2.95e-06 | AF23: 2.95e-06 | AT23: % means | AU23: FALSE | AV23: 1.294736842 | BF23: =IF(BE23="",NA(),COUNTIF(BE23:$BE$510,BE23)) ->  | BG23: 13 | BH23: 3.001767665 | BI23: 94 | BL23: 3
G24: 2.95e-06 | AF24: 2.95e-06 | AN24: y | AT24: Black lines | AV24: 1.178947368 | BF24: =IF(BE24="",NA(),COUNTIF(BE24:$BE$510,BE24)) ->  | BG24: 14 | BH24: 3.002033807 | BI24: 93.5 | BL24: 3
G25: 2.95e-06 | AF25: 2.95e-06 | AN25: 128 | AT25: =IF(AND(Repchange,$AU$22,$AU$23,$AU$14,$B$4),$AW$2,NA()) ->  | AU25: =AT4+BA4 -> 54.51034794 | AV25: 1.063157895 | BF25: =IF(BE25="",NA(),COUNTIF(BE25:$BE$510,BE25)) ->  | BG25: 15 | BH25: 3.002336512 | BI25: 93 | BL25: 3
G26: 2.95e-06 | AF26: 2.95e-06 | AN26: 322 | AT26: =IF(AND(Repchange,$AU$22,$AU$23,$AU$14,$B$4),$AW$2,NA()) ->  | AU26: =AT4-BA4 -> 3.904295463 | AV26: 0.9473684211 | BF26: =IF(BE26="",NA(),COUNTIF(BE26:$BE$510,BE26)) ->  | BG26: 16 | BH26: 3.002680248 | BI26: 92.5 | BL26: 3
G27: 2.95e-06 | AF27: 2.95e-06 | AN27: x | AU27: % means in CI | AV27: 0.8315789474 | BF27: =IF(BE27="",NA(),COUNTIF(BE27:$BE$510,BE27)) ->  | BG27: 17 | BH27: 3.003069944 | BI27: 92 | BL27: 3
G28: 2.95e-06 | AF28: 2.95e-06 | AU28: =IF(B4,NORMDIST(AU25,AS3,AU21,TRUE)-NORMDIST(AU26,AS3,AU21,TRUE),"") ->  | AV28: 0.7157894737 | BF28: =IF(BE28="",NA(),COUNTIF(BE28:$BE$510,BE28)) ->  | BG28: 18 | BH28: 3.00351103 | BI28: 91.5 | BL28: 3
G29: 2.95e-06 | AF29: 2.95e-06 | AV29: 0.6 | BF29: =IF(BE29="",NA(),COUNTIF(BE29:$BE$510,BE29)) ->  | BG29: 19 | BH29: 3.004009471 | BI29: 91 | BL29: 3
G30: 2.95e-06 | AF30: 2.95e-06 | BF30: =IF(BE30="",NA(),COUNTIF(BE30:$BE$510,BE30)) ->  | BG30: 20 | BH30: 3.004571811 | BI30: 90.5 | BL30: 3
G31: 2.95e-06 | AF31: 2.95e-06 | BF31: =IF(BE31="",NA(),COUNTIF(BE31:$BE$510,BE31)) ->  | BG31: 21 | BH31: 3.005205206 | BI31: 90 | BL31: 3
G32: 2.95e-06 | AF32: 2.95e-06 | BF32: =IF(BE32="",NA(),COUNTIF(BE32:$BE$510,BE32)) ->  | BG32: 22 | BH32: 3.005917472 | BI32: 89.5 | BL32: 3
G33: 2.95e-06 | AF33: 2.95e-06 | BF33: =IF(BE33="",NA(),COUNTIF(BE33:$BE$510,BE33)) ->  | BG33: 23 | BH33: 3.006717119 | BI33: 89 | BL33: 3
G34: 2.95e-06 | AF34: 2.95e-06 | BF34: =IF(BE34="",NA(),COUNTIF(BE34:$BE$510,BE34)) ->  | BG34: 24 | BH34: 3.007613396 | BI34: 88.5 | BL34: 3
G35: 2.95e-06 | AF35: 2.95e-06 | BF35: =IF(BE35="",NA(),COUNTIF(BE35:$BE$510,BE35)) ->  | BG35: 25 | BH35: 3.008616331 | BI35: 88 | BL35: 3
G36: 2.95e-06 | AF36: 2.95e-06 | BF36: =IF(BE36="",NA(),COUNTIF(BE36:$BE$510,BE36)) ->  | BG36: 26 | BH36: 3.009736769 | BI36: 87.5 | BL36: 3
G37: 2.95e-06 | AF37: 2.95e-06 | BF37: =IF(BE37="",NA(),COUNTIF(BE37:$BE$510,BE37)) ->  | BG37: 27 | BH37: 3.010986413 | BI37: 87 | BL37: 3
BF38: =IF(BE38="",NA(),COUNTIF(BE38:$BE$510,BE38)) ->  | BG38: 28 | BH38: 3.012377859 | BI38: 86.5 | BL38: 3
BF39: =IF(BE39="",NA(),COUNTIF(BE39:$BE$510,BE39)) ->  | BG39: 29 | BH39: 3.013924632 | BI39: 86 | BL39: 3
BF40: =IF(BE40="",NA(),COUNTIF(BE40:$BE$510,BE40)) ->  | BG40: 30 | BH40: 3.015641214 | BI40: 85.5 | BL40: 3
BF41: =IF(BE41="",NA(),COUNTIF(BE41:$BE$510,BE41)) ->  | BG41: 31 | BH41: 3.017543076 | BI41: 85 | BL41: 3
BF42: =IF(BE42="",NA(),COUNTIF(BE42:$BE$510,BE42)) ->  | BG42: 32 | BH42: 3.019646699 | BI42: 84.5 | BL42: 3
BF43: =IF(BE43="",NA(),COUNTIF(BE43:$BE$510,BE43)) ->  | BG43: 33 | BH43: 3.021969592 | BI43: 84 | BL43: 3
BF44: =IF(BE44="",NA(),COUNTIF(BE44:$BE$510,BE44)) ->  | BG44: 34 | BH44: 3.024530306 | BI44: 83.5 | BL44: 3
BF45: =IF(BE45="",NA(),COUNTIF(BE45:$BE$510,BE45)) ->  | BG45: 35 | BH45: 3.027348436 | BI45: 83 | BL45: 3
BF46: =IF(BE46="",NA(),COUNTIF(BE46:$BE$510,BE46)) ->  | BG46: 36 | BH46: 3.030444621 | BI46: 82.5 | BL46: 3
BF47: =IF(BE47="",NA(),COUNTIF(BE47:$BE$510,BE47)) ->  | BG47: 37 | BH47: 3.033840535 | BI47: 82 | BL47: 3
BF48: =IF(BE48="",NA(),COUNTIF(BE48:$BE$510,BE48)) ->  | BG48: 38 | BH48: 3.037558861 | BI48: 81.5 | BL48: 3
BF49: =IF(BE49="",NA(),COUNTIF(BE49:$BE$510,BE49)) ->  | BG49: 39 | BH49: 3.041623268 | BI49: 81 | BL49: 3
BF50: =IF(BE50="",NA(),COUNTIF(BE50:$BE$510,BE50)) ->  | BG50: 40 | BH50: 3.046058362 | BI50: 80.5 | BL50: 3
BF51: =IF(BE51="",NA(),COUNTIF(BE51:$BE$510,BE51)) ->  | BG51: 41 | BH51: 3.050889638 | BI51: 80 | BL51: 3
BF52: =IF(BE52="",NA(),COUNTIF(BE52:$BE$510,BE52)) ->  | BG52: 42 | BH52: 3.056143411 | BI52: 79.5 | BL52: 3
BF53: =IF(BE53="",NA(),COUNTIF(BE53:$BE$510,BE53)) ->  | BG53: 43 | BH53: 3.061846737 | BI53: 79 | BL53: 3
BF54: =IF(BE54="",NA(),COUNTIF(BE54:$BE$510,BE54)) ->  | BG54: 44 | BH54: 3.068027316 | BI54: 78.5 | BL54: 3
BF55: =IF(BE55="",NA(),COUNTIF(BE55:$BE$510,BE55)) ->  | BG55: 45 | BH55: 3.074713391 | BI55: 78 | BL55: 3
BF56: =IF(BE56="",NA(),COUNTIF(BE56:$BE$510,BE56)) ->  | BG56: 46 | BH56: 3.081933614 | BI56: 77.5 | BL56: 3
BF57: =IF(BE57="",NA(),COUNTIF(BE57:$BE$510,BE57)) ->  | BG57: 47 | BH57: 3.089716916 | BI57: 77 | BL57: 3
BF58: =IF(BE58="",NA(),COUNTIF(BE58:$BE$510,BE58)) ->  | BG58: 48 | BH58: 3.098092346 | BI58: 76.5 | BL58: 3
BF59: =IF(BE59="",NA(),COUNTIF(BE59:$BE$510,BE59)) ->  | BG59: 49 | BH59: 3.107088901 | BI59: 76 | BL59: 3
BF60: =IF(BE60="",NA(),COUNTIF(BE60:$BE$510,BE60)) ->  | BG60: 50 | BH60: 3.116735342 | BI60: 75.5 | BL60: 3
BF61: =IF(BE61="",NA(),COUNTIF(BE61:$BE$510,BE61)) ->  | BG61: 51 | BH61: 3.12705999 | BI61: 75 | BL61: 3
BF62: =IF(BE62="",NA(),COUNTIF(BE62:$BE$510,BE62)) ->  | BG62: 52 | BH62: 3.13809051 | BI62: 74.5 | BL62: 3
BF63: =IF(BE63="",NA(),COUNTIF(BE63:$BE$510,BE63)) ->  | BG63: 53 | BH63: 3.149853678 | BI63: 74 | BL63: 3
BF64: =IF(BE64="",NA(),COUNTIF(BE64:$BE$510,BE64)) ->  | BG64: 54 | BH64: 3.16237514 | BI64: 73.5 | BL64: 3
BF65: =IF(BE65="",NA(),COUNTIF(BE65:$BE$510,BE65)) ->  | BG65: 55 | BH65: 3.175679153 | BI65: 73 | BL65: 3
BF66: =IF(BE66="",NA(),COUNTIF(BE66:$BE$510,BE66)) ->  | BG66: 56 | BH66: 3.189788318 | BI66: 72.5 | BL66: 3
BF67: =IF(BE67="",NA(),COUNTIF(BE67:$BE$510,BE67)) ->  | BG67: 57 | BH67: 3.204723305 | BI67: 72 | BL67: 3 | BM67: 0.2047233051
BF68: =IF(BE68="",NA(),COUNTIF(BE68:$BE$510,BE68)) ->  | BG68: 58 | BH68: 3.220502567 | BI68: 71.5 | BL68: 3 | BM68: 0.2205025669
BF69: =IF(BE69="",NA(),COUNTIF(BE69:$BE$510,BE69)) ->  | BG69: 59 | BH69: 3.237142052 | BI69: 71 | BL69: 3 | BM69: 0.2371420518
BF70: =IF(BE70="",NA(),COUNTIF(BE70:$BE$510,BE70)) ->  | BG70: 60 | BH70: 3.25465491 | BI70: 70.5 | BL70: 3 | BM70: 0.2546549104
BF71: =IF(BE71="",NA(),COUNTIF(BE71:$BE$510,BE71)) ->  | BG71: 61 | BH71: 3.273051203 | BI71: 70 | BL71: 3 | BM71: 0.2730512035
BF72: =IF(BE72="",NA(),COUNTIF(BE72:$BE$510,BE72)) ->  | BG72: 62 | BH72: 3.292337611 | BI72: 69.5 | BL72: 3 | BM72: 0.2923376109
BA73: =IF(ISBLANK(D73),"",IF($AU$17,$AU$20*$AU$21,D73*$AU$19)) ->  | BB73: =IF(ISBLANK(C73),"",(NORMDIST(C73+BA73,$AS$3,$AU$21,TRUE)-NORMDIST(C73-BA73,$AS$3,$AU$21,TRUE))*100) ->  | BF73: =IF(BE73="",NA(),COUNTIF(BE73:$BE$510,BE73)) ->  | BG73: 63 | BH73: 3.312517146 | BI73: 69 | BL73: 3 | BM73: 0.3125171464
BF74: =IF(BE74="",NA(),COUNTIF(BE74:$BE$510,BE74)) ->  | BG74: 64 | BH74: 3.33358888 | BI74: 68.5 | BL74: 3 | BM74: 0.3335888799
BC75: =IF(OR(NOT(Repchange),BE75=""),NA(),BE75*$AT$12/100) ->  | BD75: =$AT$11*(BF75-0.5) ->  | BE75: =IF(BB73="","",ROUND(BB73/$AT$12,0)) ->  | BF75: =IF(BE75="",NA(),COUNTIF(BE75:$BE$510,BE75)) ->  | BG75: 65 | BH75: =IF(AND($AU$14,$AU$22),$AW$1+$BI$9*NORMDIST(BI75,$AS$3,$AU$21,FALSE),NA()) -> 3.355547671 | BI75: 68 | BJ75: =IF(AND($AU$18,$B$4,$AU$23),$AW$1,NA()) ->  | BK75: =IF(AND($AU$25>=BI75,$AU$26<=BI75),BH75-$AW$1,NA()) ->  | BL75: =IF(AND($AU$15,$AU$16),$AW$1,NA()) -> 3 | BM75: =IF(AND($AY$3>BI75,$AY$4<=BI75),BH75-$AW$1,NA()) -> 0.3555476711
BF76: =IF(BE76="",NA(),COUNTIF(BE76:$BE$510,BE76)) ->  | BG76: 66 | BH76: 3.378383918 | BI76: 67.5 | BL76: 3 | BM76: 0.378383918
BF77: =IF(BE77="",NA(),COUNTIF(BE77:$BE$510,BE77)) ->  | BG77: 67 | BH77: 3.402083322 | BI77: 67 | BL77: 3 | BM77: 0.4020833221
BF78: =IF(BE78="",NA(),COUNTIF(BE78:$BE$510,BE78)) ->  | BG78: 68 | BH78: 3.426626676 | BI78: 66.5 | BL78: 3 | BM78: 0.4266266762
BF79: =IF(BE79="",NA(),COUNTIF(BE79:$BE$510,BE79)) ->  | BG79: 69 | BH79: 3.451989675 | BI79: 66 | BL79: 3 | BM79: 0.4519896748
BF80: =IF(BE80="",NA(),COUNTIF(BE80:$BE$510,BE80)) ->  | BG80: 70 | BH80: 3.478142754 | BI80: 65.5 | BL80: 3 | BM80: 0.4781427539
BF81: =IF(BE81="",NA(),COUNTIF(BE81:$BE$510,BE81)) ->  | BG81: 71 | BH81: 3.505050961 | BI81: 65 | BL81: 3 | BM81: 0.5050509605
BF82: =IF(BE82="",NA(),COUNTIF(BE82:$BE$510,BE82)) ->  | BG82: 72 | BH82: 3.532673857 | BI82: 64.5 | BL82: 3 | BM82: 0.5326738569
BF83: =IF(BE83="",NA(),COUNTIF(BE83:$BE$510,BE83)) ->  | BG83: 73 | BH83: 3.560965461 | BI83: 64 | BL83: 3 | BM83: 0.5609654606
BF84: =IF(BE84="",NA(),COUNTIF(BE84:$BE$510,BE84)) ->  | BG84: 74 | BH84: 3.589874225 | BI84: 63.5 | BL84: 3 | BM84: 0.589874225
BF85: =IF(BE85="",NA(),COUNTIF(BE85:$BE$510,BE85)) ->  | BG85: 75 | BH85: 3.61934306 | BI85: 63 | BL85: 3 | BM85: 0.6193430603
BF86: =IF(BE86="",NA(),COUNTIF(BE86:$BE$510,BE86)) ->  | BG86: 76 | BH86: 3.6493094 | BI86: 62.5 | BL86: 3 | BM86: 0.6493093997
BF87: =IF(BE87="",NA(),COUNTIF(BE87:$BE$510,BE87)) ->  | BG87: 77 | BH87: 3.67970531 | BI87: 62 | BL87: 3 | BM87: 0.6797053097
BF88: =IF(BE88="",NA(),COUNTIF(BE88:$BE$510,BE88)) ->  | BG88: 78 | BH88: 3.710457647 | BI88: 61.5 | BL88: 3 | BM88: 0.7104576474
BF89: =IF(BE89="",NA(),COUNTIF(BE89:$BE$510,BE89)) ->  | BG89: 79 | BH89: 3.741488266 | BI89: 61 | BL89: 3 | BM89: 0.7414882655
BF90: =IF(BE90="",NA(),COUNTIF(BE90:$BE$510,BE90)) ->  | BG90: 80 | BH90: 3.772714265 | BI90: 60.5 | BL90: 3 | BM90: 0.7727142651
BF91: =IF(BE91="",NA(),COUNTIF(BE91:$BE$510,BE91)) ->  | BG91: 81 | BH91: 3.804048295 | BI91: 60 | BL91: 3 | BM91: 0.8040482953
BF92: =IF(BE92="",NA(),COUNTIF(BE92:$BE$510,BE92)) ->  | BG92: 82 | BH92: 3.835398901 | BI92: 59.5 | BL92: 3 | BM92: 0.8353989007
BF93: =IF(BE93="",NA(),COUNTIF(BE93:$BE$510,BE93)) ->  | BG93: 83 | BH93: 3.866670914 | BI93: 59 | BL93: 3 | BM93: 0.866670914
BF94: =IF(BE94="",NA(),COUNTIF(BE94:$BE$510,BE94)) ->  | BG94: 84 | BH94: 3.897765893 | BI94: 58.5 | BL94: 3 | BM94: 0.897765893
BF95: =IF(BE95="",NA(),COUNTIF(BE95:$BE$510,BE95)) ->  | BG95: 85 | BH95: 3.928582599 | BI95: 58 | BL95: 3 | BM95: 0.9285825987
BF96: =IF(BE96="",NA(),COUNTIF(BE96:$BE$510,BE96)) ->  | BG96: 86 | BH96: 3.959017513 | BI96: 57.5 | BL96: 3 | BM96: 0.9590175127
BF97: =IF(BE97="",NA(),COUNTIF(BE97:$BE$510,BE97)) ->  | BG97: 87 | BH97: 3.98896539 | BI97: 57 | BL97: 3 | BM97: 0.9889653901
BF98: =IF(BE98="",NA(),COUNTIF(BE98:$BE$510,BE98)) ->  | BG98: 88 | BH98: 4.018319844 | BI98: 56.5 | BL98: 3 | BM98: 1.018319844
BF99: =IF(BE99="",NA(),COUNTIF(BE99:$BE$510,BE99)) ->  | BG99: 89 | BH99: 4.046973956 | BI99: 56 | BL99: 3 | BM99: 1.046973956
BF100: =IF(BE100="",NA(),COUNTIF(BE100:$BE$510,BE100)) ->  | BG100: 90 | BH100: 4.074820915 | BI100: 55.5 | BL100: 3 | BM100: 1.074820915
BF101: =IF(BE101="",NA(),COUNTIF(BE101:$BE$510,BE101)) ->  | BG101: 91 | BH101: 4.101754663 | BI101: 55 | BL101: 3 | BM101: 1.101754663
BF102: =IF(BE102="",NA(),COUNTIF(BE102:$BE$510,BE102)) ->  | BG102: 92 | BH102: 4.127670564 | BI102: 54.5 | BK102: 1.127670564 | BL102: 3 | BM102: 1.127670564
BF103: =IF(BE103="",NA(),COUNTIF(BE103:$BE$510,BE103)) ->  | BG103: 93 | BH103: 4.152466072 | BI103: 54 | BK103: 1.152466072 | BL103: 3 | BM103: 1.152466072
BF104: =IF(BE104="",NA(),COUNTIF(BE104:$BE$510,BE104)) ->  | BG104: 94 | BH104: 4.176041405 | BI104: 53.5 | BK104: 1.176041405 | BL104: 3 | BM104: 1.176041405
BF105: =IF(BE105="",NA(),COUNTIF(BE105:$BE$510,BE105)) ->  | BG105: 95 | BH105: 4.198300205 | BI105: 53 | BK105: 1.198300205 | BL105: 3 | BM105: 1.198300205
BF106: =IF(BE106="",NA(),COUNTIF(BE106:$BE$510,BE106)) ->  | BG106: 96 | BH106: 4.219150198 | BI106: 52.5 | BK106: 1.219150198 | BL106: 3 | BM106: 1.219150198
BF107: =IF(BE107="",NA(),COUNTIF(BE107:$BE$510,BE107)) ->  | BG107: 97 | BH107: 4.238503824 | BI107: 52 | BK107: 1.238503824 | BL107: 3 | BM107: 1.238503824
BF108: =IF(BE108="",NA(),COUNTIF(BE108:$BE$510,BE108)) ->  | BG108: 98 | BH108: 4.256278849 | BI108: 51.5 | BK108: 1.256278849 | BL108: 3 | BM108: 1.256278849
BF109: =IF(BE109="",NA(),COUNTIF(BE109:$BE$510,BE109)) ->  | BG109: 99 | BH109: 4.272398952 | BI109: 51 | BK109: 1.272398952 | BL109: 3 | BM109: 1.272398952
BF110: =IF(BE110="",NA(),COUNTIF(BE110:$BE$510,BE110)) ->  | BG110: 100 | BH110: 4.286794262 | BI110: 50.5 | BK110: 1.286794262 | BL110: 3 | BM110: 1.286794262
BF111: =IF(BE111="",NA(),COUNTIF(BE111:$BE$510,BE111)) ->  | BG111: 101 | BH111: 4.299401868 | BI111: 50 | BK111: 1.299401868 | BL111: 3 | BM111: 1.299401868
BF112: =IF(BE112="",NA(),COUNTIF(BE112:$BE$510,BE112)) ->  | BG112: 102 | BH112: 4.310166276 | BI112: 49.5 | BK112: 1.310166276 | BL112: 3 | BM112: 1.310166276
BF113: =IF(BE113="",NA(),COUNTIF(BE113:$BE$510,BE113)) ->  | BG113: 103 | BH113: 4.319039813 | BI113: 49 | BK113: 1.319039813 | BL113: 3 | BM113: 1.319039813
BF114: =IF(BE114="",NA(),COUNTIF(BE114:$BE$510,BE114)) ->  | BG114: 104 | BH114: 4.325982981 | BI114: 48.5 | BK114: 1.325982981 | BL114: 3 | BM114: 1.325982981
BF115: =IF(BE115="",NA(),COUNTIF(BE115:$BE$510,BE115)) ->  | BG115: 105 | BH115: 4.330964753 | BI115: 48 | BK115: 1.330964753 | BL115: 3 | BM115: 1.330964753
BF116: =IF(BE116="",NA(),COUNTIF(BE116:$BE$510,BE116)) ->  | BG116: 106 | BH116: 4.333962795 | BI116: 47.5 | BK116: 1.333962795 | BL116: 3 | BM116: 1.333962795
BF117: =IF(BE117="",NA(),COUNTIF(BE117:$BE$510,BE117)) ->  | BG117: 107 | BH117: 4.334963642 | BI117: 47 | BK117: 1.334963642 | BL117: 3 | BM117: 1.334963642
BF118: =IF(BE118="",NA(),COUNTIF(BE118:$BE$510,BE118)) ->  | BG118: 108 | BH118: 4.333962795 | BI118: 46.5 | BK118: 1.333962795 | BL118: 3 | BM118: 1.333962795
BF119: =IF(BE119="",NA(),COUNTIF(BE119:$BE$510,BE119)) ->  | BG119: 109 | BH119: 4.330964753 | BI119: 46 | BK119: 1.330964753 | BL119: 3 | BM119: 1.330964753
BF120: =IF(BE120="",NA(),COUNTIF(BE120:$BE$510,BE120)) ->  | BG120: 110 | BH120: 4.325982981 | BI120: 45.5 | BK120: 1.325982981 | BL120: 3 | BM120: 1.325982981
BF121: =IF(BE121="",NA(),COUNTIF(BE121:$BE$510,BE121)) ->  | BG121: 111 | BH121: 4.319039813 | BI121: 45 | BK121: 1.319039813 | BL121: 3 | BM121: 1.319039813
BF122: =IF(BE122="",NA(),COUNTIF(BE122:$BE$510,BE122)) ->  | BG122: 112 | BH122: 4.310166276 | BI122: 44.5 | BK122: 1.310166276 | BL122: 3 | BM122: 1.310166276
BF123: =IF(BE123="",NA(),COUNTIF(BE123:$BE$510,BE123)) ->  | BG123: 113 | BH123: 4.299401868 | BI123: 44 | BK123: 1.299401868 | BL123: 3 | BM123: 1.299401868
BF124: =IF(BE124="",NA(),COUNTIF(BE124:$BE$510,BE124)) ->  | BG124: 114 | BH124: 4.286794262 | BI124: 43.5 | BK124: 1.286794262 | BL124: 3 | BM124: 1.286794262
BF125: =IF(BE125="",NA(),COUNTIF(BE125:$BE$510,BE125)) ->  | BG125: 115 | BH125: 4.272398952 | BI125: 43 | BK125: 1.272398952 | BL125: 3 | BM125: 1.272398952
BF126: =IF(BE126="",NA(),COUNTIF(BE126:$BE$510,BE126)) ->  | BG126: 116 | BH126: 4.256278849 | BI126: 42.5 | BK126: 1.256278849 | BL126: 3 | BM126: 1.256278849
BF127: =IF(BE127="",NA(),COUNTIF(BE127:$BE$510,BE127)) ->  | BG127: 117 | BH127: 4.238503824 | BI127: 42 | BK127: 1.238503824 | BL127: 3 | BM127: 1.238503824
BF128: =IF(BE128="",NA(),COUNTIF(BE128:$BE$510,BE128)) ->  | BG128: 118 | BH128: 4.219150198 | BI128: 41.5 | BK128: 1.219150198 | BL128: 3 | BM128: 1.219150198
BF129: =IF(BE129="",NA(),COUNTIF(BE129:$BE$510,BE129)) ->  | BG129: 119 | BH129: 4.198300205 | BI129: 41 | BK129: 1.198300205 | BL129: 3 | BM129: 1.198300205
BF130: =IF(BE130="",NA(),COUNTIF(BE130:$BE$510,BE130)) ->  | BG130: 120 | BH130: 4.176041405 | BI130: 40.5 | BK130: 1.176041405 | BL130: 3 | BM130: 1.176041405
BF131: =IF(BE131="",NA(),COUNTIF(BE131:$BE$510,BE131)) ->  | BG131: 121 | BH131: 4.152466072 | BI131: 40 | BK131: 1.152466072 | BL131: 3 | BM131: 1.152466072
BF132: =IF(BE132="",NA(),COUNTIF(BE132:$BE$510,BE132)) ->  | BG132: 122 | BH132: 4.127670564 | BI132: 39.5 | BK132: 1.127670564 | BL132: 3 | BM132: 1.127670564
BF133: =IF(BE133="",NA(),COUNTIF(BE133:$BE$510,BE133)) ->  | BG133: 123 | BH133: 4.101754663 | BI133: 39 | BK133: 1.101754663 | BL133: 3 | BM133: 1.101754663
BF134: =IF(BE134="",NA(),COUNTIF(BE134:$BE$510,BE134)) ->  | BG134: 124 | BH134: 4.074820915 | BI134: 38.5 | BK134: 1.074820915 | BL134: 3 | BM134: 1.074820915
BF135: =IF(BE135="",NA(),COUNTIF(BE135:$BE$510,BE135)) ->  | BG135: 125 | BH135: 4.046973956 | BI135: 38 | BK135: 1.046973956 | BL135: 3 | BM135: 1.046973956
BF136: =IF(BE136="",NA(),COUNTIF(BE136:$BE$510,BE136)) ->  | BG136: 126 | BH136: 4.018319844 | BI136: 37.5 | BK136: 1.018319844 | BL136: 3 | BM136: 1.018319844
BA137: =IF(ISBLANK(D137),"",IF($AU$17,$AU$20*$AU$21,D137*$AU$19)) ->  | BB137: =IF(ISBLANK(C137),"",(NORMDIST(C137+BA137,$AS$3,$AU$21,TRUE)-NORMDIST(C137-BA137,$AS$3,$AU$21,TRUE))*100) ->  | BF137: =IF(BE137="",NA(),COUNTIF(BE137:$BE$510,BE137)) ->  | BG137: 127 | BH137: 3.98896539 | BI137: 37 | BK137: 0.9889653901 | BL137: 3 | BM137: 0.9889653901
BF138: =IF(BE138="",NA(),COUNTIF(BE138:$BE$510,BE138)) ->  | BG138: 128 | BH138: 3.959017513 | BI138: 36.5 | BK138: 0.9590175127 | BL138: 3 | BM138: 0.9590175127
BC139: =IF(OR(NOT(Repchange),BE139=""),NA(),BE139*$AT$12/100) ->  | BD139: =$AT$11*(BF139-0.5) ->  | BE139: =IF(BB137="","",ROUND(BB137/$AT$12,0)) ->  | BF139: =IF(BE139="",NA(),COUNTIF(BE139:$BE$510,BE139)) ->  | BG139: 129 | BH139: =IF(AND($AU$14,$AU$22),$AW$1+$BI$9*NORMDIST(BI139,$AS$3,$AU$21,FALSE),NA()) -> 3.928582599 | BI139: 36 | BJ139: =IF(AND($AU$18,$B$4,$AU$23),$AW$1,NA()) ->  | BK139: =IF(AND($AU$25>=BI139,$AU$26<=BI139),BH139-$AW$1,NA()) -> 0.9285825987 | BL139: =IF(AND($AU$15,$AU$16),$AW$1,NA()) -> 3 | BM139: =IF(AND($AY$3>BI139,$AY$4<=BI139),BH139-$AW$1,NA()) -> 0.9285825987
BF140: =IF(BE140="",NA(),COUNTIF(BE140:$BE$510,BE140)) ->  | BG140: 130 | BH140: 3.897765893 | BI140: 35.5 | BK140: 0.897765893 | BL140: 3 | BM140: 0.897765893
BF141: =IF(BE141="",NA(),COUNTIF(BE141:$BE$510,BE141)) ->  | BG141: 131 | BH141: 3.866670914 | BI141: 35 | BK141: 0.866670914 | BL141: 3 | BM141: 0.866670914
BF142: =IF(BE142="",NA(),COUNTIF(BE142:$BE$510,BE142)) ->  | BG142: 132 | BH142: 3.835398901 | BI142: 34.5 | BK142: 0.8353989007 | BL142: 3 | BM142: 0.8353989007
BF143: =IF(BE143="",NA(),COUNTIF(BE143:$BE$510,BE143)) ->  | BG143: 133 | BH143: 3.804048295 | BI143: 34 | BK143: 0.8040482953 | BL143: 3 | BM143: 0.8040482953
BF144: =IF(BE144="",NA(),COUNTIF(BE144:$BE$510,BE144)) ->  | BG144: 134 | BH144: 3.772714265 | BI144: 33.5 | BK144: 0.7727142651 | BL144: 3 | BM144: 0.7727142651
BF145: =IF(BE145="",NA(),COUNTIF(BE145:$BE$510,BE145)) ->  | BG145: 135 | BH145: 3.741488266 | BI145: 33 | BK145: 0.7414882655 | BL145: 3 | BM145: 0.7414882655
BF146: =IF(BE146="",NA(),COUNTIF(BE146:$BE$510,BE146)) ->  | BG146: 136 | BH146: 3.710457647 | BI146: 32.5 | BK146: 0.7104576474 | BL146: 3 | BM146: 0.7104576474
BF147: =IF(BE147="",NA(),COUNTIF(BE147:$BE$510,BE147)) ->  | BG147: 137 | BH147: 3.67970531 | BI147: 32 | BK147: 0.6797053097 | BL147: 3 | BM147: 0.6797053097
BF148: =IF(BE148="",NA(),COUNTIF(BE148:$BE$510,BE148)) ->  | BG148: 138 | BH148: 3.6493094 | BI148: 31.5 | BK148: 0.6493093997 | BL148: 3 | BM148: 0.6493093997
BF149: =IF(BE149="",NA(),COUNTIF(BE149:$BE$510,BE149)) ->  | BG149: 139 | BH149: 3.61934306 | BI149: 31 | BK149: 0.6193430603 | BL149: 3 | BM149: 0.6193430603
BF150: =IF(BE150="",NA(),COUNTIF(BE150:$BE$510,BE150)) ->  | BG150: 140 | BH150: 3.589874225 | BI150: 30.5 | BK150: 0.589874225 | BL150: 3 | BM150: 0.589874225
BF151: =IF(BE151="",NA(),COUNTIF(BE151:$BE$510,BE151)) ->  | BG151: 141 | BH151: 3.560965461 | BI151: 30 | BK151: 0.5609654606 | BL151: 3 | BM151: 0.5609654606
BF152: =IF(BE152="",NA(),COUNTIF(BE152:$BE$510,BE152)) ->  | BG152: 142 | BH152: 3.532673857 | BI152: 29.5 | BK152: 0.5326738569 | BL152: 3 | BM152: 0.5326738569
BF153: =IF(BE153="",NA(),COUNTIF(BE153:$BE$510,BE153)) ->  | BG153: 143 | BH153: 3.505050961 | BI153: 29 | BK153: 0.5050509605 | BL153: 3 | BM153: 0.5050509605
BF154: =IF(BE154="",NA(),COUNTIF(BE154:$BE$510,BE154)) ->  | BG154: 144 | BH154: 3.478142754 | BI154: 28.5 | BK154: 0.4781427539 | BL154: 3 | BM154: 0.4781427539
BF155: =IF(BE155="",NA(),COUNTIF(BE155:$BE$510,BE155)) ->  | BG155: 145 | BH155: 3.451989675 | BI155: 28 | BK155: 0.4519896748 | BL155: 3 | BM155: 0.4519896748
BF156: =IF(BE156="",NA(),COUNTIF(BE156:$BE$510,BE156)) ->  | BG156: 146 | BH156: 3.426626676 | BI156: 27.5 | BK156: 0.4266266762 | BL156: 3 | BM156: 0.4266266762
BF157: =IF(BE157="",NA(),COUNTIF(BE157:$BE$510,BE157)) ->  | BG157: 147 | BH157: 3.402083322 | BI157: 27 | BK157: 0.4020833221 | BL157: 3 | BM157: 0.4020833221
BF158: =IF(BE158="",NA(),COUNTIF(BE158:$BE$510,BE158)) ->  | BG158: 148 | BH158: 3.378383918 | BI158: 26.5 | BK158: 0.378383918 | BL158: 3 | BM158: 0.378383918
BF159: =IF(BE159="",NA(),COUNTIF(BE159:$BE$510,BE159)) ->  | BG159: 149 | BH159: 3.355547671 | BI159: 26 | BK159: 0.3555476711 | BL159: 3 | BM159: 0.3555476711
BF160: =IF(BE160="",NA(),COUNTIF(BE160:$BE$510,BE160)) ->  | BG160: 150 | BH160: 3.33358888 | BI160: 25.5 | BK160: 0.3335888799 | BL160: 3 | BM160: 0.3335888799
BF161: =IF(BE161="",NA(),COUNTIF(BE161:$BE$510,BE161)) ->  | BG161: 151 | BH161: 3.312517146 | BI161: 25 | BK161: 0.3125171464 | BL161: 3 | BM161: 0.3125171464
BF162: =IF(BE162="",NA(),COUNTIF(BE162:$BE$510,BE162)) ->  | BG162: 152 | BH162: 3.292337611 | BI162: 24.5 | BK162: 0.2923376109 | BL162: 3 | BM162: 0.2923376109
BF163: =IF(BE163="",NA(),COUNTIF(BE163:$BE$510,BE163)) ->  | BG163: 153 | BH163: 3.273051203 | BI163: 24 | BK163: 0.2730512035 | BL163: 3 | BM163: 0.2730512035
BF164: =IF(BE164="",NA(),COUNTIF(BE164:$BE$510,BE164)) ->  | BG164: 154 | BH164: 3.25465491 | BI164: 23.5 | BK164: 0.2546549104 | BL164: 3 | BM164: 0.2546549104
BF165: =IF(BE165="",NA(),COUNTIF(BE165:$BE$510,BE165)) ->  | BG165: 155 | BH165: 3.237142052 | BI165: 23 | BK165: 0.2371420518 | BL165: 3 | BM165: 0.2371420518
BF166: =IF(BE166="",NA(),COUNTIF(BE166:$BE$510,BE166)) ->  | BG166: 156 | BH166: 3.220502567 | BI166: 22.5 | BK166: 0.2205025669 | BL166: 3 | BM166: 0.2205025669
BF167: =IF(BE167="",NA(),COUNTIF(BE167:$BE$510,BE167)) ->  | BG167: 157 | BH167: 3.204723305 | BI167: 22 | BK167: 0.2047233051 | BL167: 3 | BM167: 0.2047233051
BF168: =IF(BE168="",NA(),COUNTIF(BE168:$BE$510,BE168)) ->  | BG168: 158 | BH168: 3.189788318 | BI168: 21.5 | BK168: 0.1897883182 | BL168: 3
BF169: =IF(BE169="",NA(),COUNTIF(BE169:$BE$510,BE169)) ->  | BG169: 159 | BH169: 3.175679153 | BI169: 21 | BK169: 0.1756791528 | BL169: 3
BF170: =IF(BE170="",NA(),COUNTIF(BE170:$BE$510,BE170)) ->  | BG170: 160 | BH170: 3.16237514 | BI170: 20.5 | BK170: 0.1623751398 | BL170: 3
BF171: =IF(BE171="",NA(),COUNTIF(BE171:$BE$510,BE171)) ->  | BG171: 161 | BH171: 3.149853678 | BI171: 20 | BK171: 0.1498536777 | BL171: 3
BF172: =IF(BE172="",NA(),COUNTIF(BE172:$BE$510,BE172)) ->  | BG172: 162 | BH172: 3.13809051 | BI172: 19.5 | BK172: 0.1380905095 | BL172: 3
BF173: =IF(BE173="",NA(),COUNTIF(BE173:$BE$510,BE173)) ->  | BG173: 163 | BH173: 3.12705999 | BI173: 19 | BK173: 0.1270599899 | BL173: 3
BF174: =IF(BE174="",NA(),COUNTIF(BE174:$BE$510,BE174)) ->  | BG174: 164 | BH174: 3.116735342 | BI174: 18.5 | BK174: 0.1167353417 | BL174: 3
BF175: =IF(BE175="",NA(),COUNTIF(BE175:$BE$510,BE175)) ->  | BG175: 165 | BH175: 3.107088901 | BI175: 18 | BK175: 0.1070889006 | BL175: 3
BF176: =IF(BE176="",NA(),COUNTIF(BE176:$BE$510,BE176)) ->  | BG176: 166 | BH176: 3.098092346 | BI176: 17.5 | BK176: 0.09809234551 | BL176: 3
BF177: =IF(BE177="",NA(),COUNTIF(BE177:$BE$510,BE177)) ->  | BG177: 167 | BH177: 3.089716916 | BI177: 17 | BK177: 0.08971691606 | BL177: 3
BF178: =IF(BE178="",NA(),COUNTIF(BE178:$BE$510,BE178)) ->  | BG178: 168 | BH178: 3.081933614 | BI178: 16.5 | BK178: 0.08193361418 | BL178: 3
BF179: =IF(BE179="",NA(),COUNTIF(BE179:$BE$510,BE179)) ->  | BG179: 169 | BH179: 3.074713391 | BI179: 16 | BK179: 0.07471339073 | BL179: 3
BF180: =IF(BE180="",NA(),COUNTIF(BE180:$BE$510,BE180)) ->  | BG180: 170 | BH180: 3.068027316 | BI180: 15.5 | BK180: 0.06802731639 | BL180: 3
BF181: =IF(BE181="",NA(),COUNTIF(BE181:$BE$510,BE181)) ->  | BG181: 171 | BH181: 3.061846737 | BI181: 15 | BK181: 0.06184673671 | BL181: 3
BF182: =IF(BE182="",NA(),COUNTIF(BE182:$BE$510,BE182)) ->  | BG182: 172 | BH182: 3.056143411 | BI182: 14.5 | BK182: 0.05614341146 | BL182: 3
BF183: =IF(BE183="",NA(),COUNTIF(BE183:$BE$510,BE183)) ->  | BG183: 173 | BH183: 3.050889638 | BI183: 14 | BK183: 0.05088963846 | BL183: 3
BF184: =IF(BE184="",NA(),COUNTIF(BE184:$BE$510,BE184)) ->  | BG184: 174 | BH184: 3.046058362 | BI184: 13.5 | BK184: 0.04605836222 | BL184: 3
BF185: =IF(BE185="",NA(),COUNTIF(BE185:$BE$510,BE185)) ->  | BG185: 175 | BH185: 3.041623268 | BI185: 13 | BK185: 0.04162326793 | BL185: 3
BF186: =IF(BE186="",NA(),COUNTIF(BE186:$BE$510,BE186)) ->  | BG186: 176 | BH186: 3.037558861 | BI186: 12.5 | BK186: 0.03755886127 | BL186: 3
BF187: =IF(BE187="",NA(),COUNTIF(BE187:$BE$510,BE187)) ->  | BG187: 177 | BH187: 3.033840535 | BI187: 12 | BK187: 0.03384053472 | BL187: 3
BF188: =IF(BE188="",NA(),COUNTIF(BE188:$BE$510,BE188)) ->  | BG188: 178 | BH188: 3.030444621 | BI188: 11.5 | BK188: 0.03044462124 | BL188: 3
BF189: =IF(BE189="",NA(),COUNTIF(BE189:$BE$510,BE189)) ->  | BG189: 179 | BH189: 3.027348436 | BI189: 11 | BK189: 0.02734843582 | BL189: 3
BF190: =IF(BE190="",NA(),COUNTIF(BE190:$BE$510,BE190)) ->  | BG190: 180 | BH190: 3.024530306 | BI190: 10.5 | BK190: 0.02453030608 | BL190: 3
BF191: =IF(BE191="",NA(),COUNTIF(BE191:$BE$510,BE191)) ->  | BG191: 181 | BH191: 3.021969592 | BI191: 10 | BK191: 0.02196959245 | BL191: 3
BF192: =IF(BE192="",NA(),COUNTIF(BE192:$BE$510,BE192)) ->  | BG192: 182 | BH192: 3.019646699 | BI192: 9.5 | BK192: 0.01964669903 | BL192: 3
BF193: =IF(BE193="",NA(),COUNTIF(BE193:$BE$510,BE193)) ->  | BG193: 183 | BH193: 3.017543076 | BI193: 9 | BK193: 0.01754307589 | BL193: 3
BF194: =IF(BE194="",NA(),COUNTIF(BE194:$BE$510,BE194)) ->  | BG194: 184 | BH194: 3.015641214 | BI194: 8.5 | BK194: 0.01564121373 | BL194: 3
BF195: =IF(BE195="",NA(),COUNTIF(BE195:$BE$510,BE195)) ->  | BG195: 185 | BH195: 3.013924632 | BI195: 8 | BK195: 0.01392463169 | BL195: 3
BF196: =IF(BE196="",NA(),COUNTIF(BE196:$BE$510,BE196)) ->  | BG196: 186 | BH196: 3.012377859 | BI196: 7.5 | BK196: 0.0123778593 | BL196: 3
BF197: =IF(BE197="",NA(),COUNTIF(BE197:$BE$510,BE197)) ->  | BG197: 187 | BH197: 3.010986413 | BI197: 7 | BK197: 0.01098641309 | BL197: 3
BF198: =IF(BE198="",NA(),COUNTIF(BE198:$BE$510,BE198)) ->  | BG198: 188 | BH198: 3.009736769 | BI198: 6.5 | BK198: 0.009736768984 | BL198: 3
BF199: =IF(BE199="",NA(),COUNTIF(BE199:$BE$510,BE199)) ->  | BG199: 189 | BH199: 3.008616331 | BI199: 6 | BK199: 0.008616330829 | BL199: 3
BF200: =IF(BE200="",NA(),COUNTIF(BE200:$BE$510,BE200)) ->  | BG200: 190 | BH200: 3.007613396 | BI200: 5.5 | BK200: 0.007613396068 | BL200: 3
... 310 more rows

Sheet p intervals
B1: p interval calculations
B2: Given an initial two-tailed pobt value, set by the slider, find the p intervals.
B3: Find both one-sided and two-sided p intervals.
C4: ... for both one-tailed replication p, and two-tailed replication p.
B6: Select % for the intervals
G7: 80 | H7: %
B11: Set two-tailed pobt | AE11: slider
G12: SLIDER | AE12: 300
F13: pobt | G13: =AE12/1000 -> 0.3 | H13: two-tailed
AE14: Max abs zero error
AF15: =MAX(ABS(fninezathree),ABS(fninezafour),ABS(fninezbthree),ABS(fninezbfour),ABS(fninezaone),ABS(fninezatwo)) -> 0.0003385025593
B17: p intervals for one-tailed replication p | AE17: Target %ile | AG17: Target %ile | AI17: Target %ile
AE18: =G7 -> 80 | AG18: =(100-G7)/2 -> 10 | AI18: =100-AG18 -> 90
E19: ONE-Sided | J19: TWO-Sided | AE19: Obtained | AF19: forzero | AG19: Obtained | AH19: forzero | AI19: Obtained | AJ19: forzero
C20: ( | D20: 0 | E20: , | F20: 0.5611157995 | G20: ) | H20: ( | I20: 0.002194078105 | J20: , | K20: 0.7811119902 | M20: ) | AE20: =100*(NORMSDIST((NORMSINV(1-G13/2)-NORMSINV(1-F20))/SQRT(2))) -> 80 | AF20: =1000000*(AE20-$AE$18) -> 0 | AG20: =100*(NORMSDIST((NORMSINV(1-G13/2)-NORMSINV(1-I20))/SQRT(2))) -> 9.999999985 | AH20: =1000*($AG20-AG$18) -> -1.472300859e-05 | AI20: =100*(NORMSDIST((NORMSINV(1-G13/2)-NORMSINV(1-K20))/SQRT(2))) -> 90 | AJ20: =1000000*($AI20-AI$18) -> 0
B24: p intervals for two-tailed replication p
E26: ONE-Sided | J26: TWO-Sided | AE26: Obtained | AF26: forzero | AG26: Obtained | AH26: forzero | AI26: Obtained | AJ26: forzero
C27: ( | D27: 0 | E27: , | F27: 0.6400434587 | G27: ) | H27: ( | I27: 0.004077679192 | J27: , | K27: 0.8162801129 | M27: ) | AE27: =100*(1-NORMSDIST((NORMSINV(1-G13/2)+NORMSINV(1-F27/2))/SQRT(2))+NORMSDIST((NORMSINV(1-G13/2)-NORMSINV(1-F27/2))/SQRT(2))) -> 80 | AF27: =1000000*(AE27-$AE$18) -> -9.625011899e-05 | AG27: =100*(1-NORMSDIST((NORMSINV(1-G13/2)+NORMSINV(1-I27/2))/SQRT(2))+NORMSDIST((NORMSINV(1-G13/2)-NORMSINV(1-I27/2))/SQRT(2))) -> 9.999999941 | AH27: =1000*($AG27-AG$18) -> -5.942422554e-05 | AI27: =100*(1-NORMSDIST((NORMSINV(1-G13/2)+NORMSINV(1-K27/2))/SQRT(2))+NORMSDIST((NORMSINV(1-G13/2)-NORMSINV(1-K27/2))/SQRT(2))) -> 90 | AJ27: =1000000*($AI27-AI$18) -> -0.0003385025593
V53: 171

Sheet Dance p
P1: p values and replication | AH1: =$AG$1 -> 0 | AI1: 0 | AJ1: 0 | AK1: 0 | AL1: 0 | AM1: 0 | AN1: 0 | AO1: 0 | AP1: 0 | AQ1: 0 | AR1: 0 | AS1: 0 | AT1: 0 | AU1: 0 | AV1: 0 | AW1: 0 | BQ1: X step size | BR1: 0.5 | BS1: Display m line | BT1: FALSE | BU1: Disp populat'ns | BV1: TRUE
B2: *** | C2: ** | D2: * | E2: ? | F2: >.10 | G2: Diff | H2: p value | I2: n samp | J2: FALSE | K2: =AND(BT1,BT5) -> FALSE | P2: See how 95% CIs, and two-tailed p values vary with replication | AF2: 2 | AG2: =$AG$1 -> 0 | AW2: =$AG$1 -> 0 | BQ2: Max height | BR2: =NORMDIST(0,0,$AB$7,FALSE) -> 0.01994711402 | BS2: Disp data pts | BT2: TRUE | BU2: Disp flasher | BV2: FALSE
A3: =A4+IF(OR(F4-F6=2,E4-E6=2,D4-D6=2,C4-C6=2,B4-B6=2),1,0) -> 0 | B3: =B4+IF(H3<0.001,1,0) -> 0 | C3: =C4+IF(AND(H3>=0.001,H3<0.01),1,0) -> 0 | D3: =D4+IF(AND(H3>=0.01,H3<0.05),1,0) -> 0 | E3: =E4+IF(AND(H3>=0.05,H3<0.1),1,0) -> 0 | F3: =F4+IF(H3>=0.1,1,0) -> 1 | G3: =BT14 -> 6.805270083 | H3: =BU14 -> 0.1734966198 | I3: =I4+1 -> 1 | P3: 1 | U3: Control | X3: SLIDER | AA3: mC | AB3: =CA8/10 -> 50 | AG3: 0 | AW3: 0 | BQ3: C | BR3: 95 | BS3: Disp CE labels | BT3: =BT2 -> TRUE | BU3: Disp diff, CI | BV3: FALSE | BX3: Casino display
B4: 0 | C4: 0 | D4: 0 | E4: 0 | F4: 0 | I4: 0 | J4: 50 | K4: =AB3 -> 50 | L4: C m | P4: Populations | AG4: 0 | AW4: 0 | BQ4: Show p values | BR4: FALSE | BS4: Dance p vals | BT4: FALSE | BU4: Disp means CIs | BV4: TRUE | BX4: x | BY4: y
J5: 20 | K5: =AB7 -> 20 | L5: s | U5: Experimental | X5: SLIDER | AA5: mE | AB5: =CA9/10 -> 60 | AG5: 0 | AW5: 0 | BQ5: Moveable diff axis | BR5: =BT2 -> TRUE | BS5: Disp diff axis | BT5: =AND(BV5,BT7) -> FALSE | BU5: For dispdiffaxis | BV5: FALSE | BW5: *** | BX5: =IF(OR(NOT(BV2),ISNA(BZ15)),NA(),IF(CA15="*** ",1,NA())) ->  | BY5: 1
J6: 60 | K6: =AB5 -> 60 | L6: E m | P6: Display populations | AD6: Speed | AG6: 0 | AW6: 0 | BQ6: Show p val label | BR6: =AND(BV3,BR4,BT5) -> FALSE | BS6: Don'tClearDisp | BT6: =AND(J2=K2,J3=K3,J4=K4,J5=K5,J6=K6,J7=K7,J10=K10,J11=K11,J12=K12) -> TRUE | BW6: ** | BX6: =IF(OR(NOT(BV2),ISNA(BZ15)),NA(),IF(CA15="** ",1,NA())) ->  | BY6: =BY5 -> 1
J7: 32 | K7: =BP8 -> 32 | L7: n | X7: SLIDER | AA7: s | AB7: =CA10/10 -> 20 | AG7: 0 | AW7: 0 | BP7: N | BQ7: Display Ha | BR7: FALSE | BS7: KeepShowSmps | BT7: =AND(J4=K4,J5=K5,J6=K6,J7=K7) -> TRUE | BU7: dancespeed | BV7: =4*(20-BV8) -> 0 | BW7: * | BX7: =IF(OR(NOT(BV2),ISNA(BZ15)),NA(),IF(CA15="* ",1,NA())) ->  | BY7: =BY6 -> 1 | CA7: sliders
J8: 0.9816226861 | K8: =RAND() -> 0.1473610907 | L8: rand for C | S8: Cohen's d. | T8: =(AB5-AB3)/AB7 -> 0.5 | AD8: =BV8 -> 20 | AG8: 0 | AW8: 0 | BP8: 32 | BQ8: Display figures | BR8: FALSE | BT8: To calc power | BU8: SpinnerForSpeed | BV8: 20 | BW8: ? | BX8: =IF(OR(NOT(BV2),ISNA(BZ15)),NA(),IF(CA15="? ",1,NA())) ->  | BY8: =BY7 -> 1 | CA8: 500
J9: 0.5456115852 | K9: =RAND() -> 0.02640881389 | L9: rand for E | N9: 3 | O9: Latest experiment | AG9: 0 | AW9: 0 | BQ9: Disp expected | BR9: TRUE | BS9: a | BT9: 0.05 | BU9: Sound? | BV9: FALSE | BW9: >.10 | BX9: =IF(OR(NOT(BV2),ISNA(BZ15)),NA(),IF(CA15="",1,NA())) ->  | BY9: =BY8 -> 1 | CA9: 600
L10: s known | O10: Display | T10: N | U10: =BP8 -> 32 | AA10: Power | AB10: =1-NORMSDIST(BT11+BT10)+NORMSDIST(BT11-BT10) -> 0.516005274 | AG10: 0 | AW10: 0 | BQ10: Show data in histo | BR10: =AND($I$4>=0,BR11) -> FALSE | BS10: z for a | BT10: =NORMSINV(1-BT9/2) -> 1.959963985 | BU10: Soundflag | BV10: =IF(BV9,IF(ISNA(BZ15),"",IF(CB15<0.001,1,IF(CB15<0.01,2,IF(CB15<0.05,3,IF(CB15<0.1,4,5))))),0) -> 0 | CA10: 200
J11: Casino display | K11: =BX3 -> Casino display | O11: data points, CIs | Z11: Number of experiments | AA11: =IF(AND($BT$7,I4<>""),I4,"") -> 0 | AG11: 0 | AW11: 0 | BI11: Display means and 95% CIs | BQ11: Show data cols | BR11: FALSE | BS11: z for d | BT11: =T8*SQRT(K7/2) -> 2 | CA11: Flasher value | CM11: dance of the p values
J12: 0 | K12: =BY11 -> 0 | N12: 4 | O12: Differences and p | T12: Display p values | AE12: =IF(CA12="","",CA12) ->  | AG12: 0 | AW12: 0 | BI12: with data points of E and C samples | BQ12: Show expected cols | BR12: =NOT(BR10) -> TRUE | BS12: Diff axis zero | BT12: =IF(BR5,BW48,K4) -> 54.172324 | CA12: =IF(OR(NOT(BV2),ISNA(BZ15)),"",IF(CB15<0.001,"*** ",IF(CB15<0.01,"** ",IF(CB15<0.05,"* ",IF(CB15<0.1,"? ",">.10"))))) ->  | CG12: =CC13-7.2 -> 2.9 | CN12: 9
O13: Display difference axis | V13: Display mdiff line | AG13: 0 | AW13: 0 | BR13: For diff axis scale | BT13: Diff b'n means | BV13: 13 | BX13: Diff b'n means | CC13: 10.1 | CD13: 8 | CE13: 14.8 | CG13: patch display | CM13: 900 | CN13: 1.1 | CO13: 700 | CQ13: 500 | CS13: 300 | CU13: 100
J14: calcswitch | K14: FALSE | O14: Display CI on difference | Y14: Dance of the p values | AG14: 0 | AW14: 0 | BQ14: -100 | BR14: =IF($BT$5,$BT$12+BQ14,NA()) ->  | BS14: 4.5 | BT14: =IF($BT$7,BR48-BW48,-999) -> 6.805270083 | BU14: =2*(1-NORMSDIST(ABS(BT14/$BV$46))) -> 0.1734966198 | BV14: Display grey lines | BZ14: z | CA14: ? * ** *** | CB14: p val 2-tail | CC14: star display | CE14: p val display | CG14: *** | CH14: ** | CI14: * | CJ14: ? | CK14: >.10 | CM14: *** | CO14: ** | CQ14: * | CS14: ? | CU14: >.10
P15: =$AG$1 -> 0 | Q15: 0 | R15: 0 | S15: 0 | T15: 0 | U15: 0 | V15: 0 | W15: 0 | X15: 0 | Y15: 0 | Z15: 0 | AA15: 0 | AB15: 0 | AC15: 0 | AD15: 0 | AE15: 0 | AF15: 0 | AG15: 0 | AW15: 0 | BQ15: -90 | BS15: =$BS$14 -> 4.5 | BT15: =IF(AND($BT$5,$BT$7,$BV$3,G4<>""),G4+$BT$12,NA()) ->  | BV15: =BV13 -> 13 | BW15: =CD15 -> 8 | BX15: =IF(AND($BT$7,G4<>""),G4+$BT$12,NA()) ->  | BY15: 1 | BZ15: =IF(ISNA(BX15),NA(),G4/$BV$46) ->  | CA15: =IF(ISNA(BZ15),"",IF(CB15<0.001,"*** ",IF(CB15<0.01,"** ",IF(CB15<0.05,"* ",IF(CB15<0.1,"? ",""))))) ->  | CB15: =IF(ISNA(BZ15),"",2*(1-NORMSDIST(ABS(BZ15)))) ->  | CC15: =IF($BR$4,CC13,NA()) ->  | CD15: =CD13 -> 8 | CE15: =IF($BR$4,CE13,NA()) ->  | CF15: =CD15 -> 8 | CG15: =IF(ISNA(BZ15),NA(),IF($BR$4,IF(CA15="*** ",$CG$12,NA()),NA())) ->  | CH15: =IF(ISNA(BZ15),NA(),IF($BR$4,IF(CA15="** ",$CG$12,NA()),NA())) ->  | CI15: =IF(ISNA(BZ15),NA(),IF($BR$4,IF(CA15="* ",$CG$12,NA()),NA())) ->  | CJ15: =IF(ISNA(BZ15),NA(),IF($BR$4,IF(CA15="? ",$CG$12,NA()),NA())) ->  | CK15: =IF(ISNA(BZ15),NA(),IF($BR$4,IF(CA15="",$CG$12,NA()),NA())) ->  | CL15: =CF15 -> 8 | CM15: =IF(ISNA(BZ15),NA(),IF(AND($BT$4,$BT$7,CA15="*** "),$CM$13,NA())) ->  | CN15: =$CN$12-$CN$13 -> 7.9 | CO15: =IF(ISNA(BZ15),NA(),IF(AND($BT$4,$BT$7,CA15="** "),$CO$13,NA())) ->  | CP15: =$CN$12-$CN$13 -> 7.9 | CQ15: =IF(ISNA(BZ15),NA(),IF(AND($BT$4,$BT$7,CA15="* "),$CQ$13,NA())) ->  | CR15: =$CN$12-$CN$13 -> 7.9 | CS15: =IF(ISNA(BZ15),NA(),IF(AND($BT$4,$BT$7,CA15="? "),$CS$13,NA())) ->  | CT15: =$CN$12-$CN$13 -> 7.9 | CU15: =IF(ISNA(BZ15),NA(),IF(AND($BT$4,$BT$7,CA15=""),$CU$13,NA())) ->  | CV15: =$CN$12-$CN$13 -> 7.9
K16: For V axis | L16: 3000 | P16: =$AG$1 -> 0 | AG16: 0 | AW16: 0 | BQ16: -80 | BS16: 4.5 | BV16: =$BV$15 -> 13 | BW16: 9 | BY16: 2 | CC16: =$CC$15 ->  | CD16: =CD15+1 -> 9 | CE16: =$CE$15 ->  | CF16: 9 | CL16: 9 | CN16: =$CN$12 -> 9 | CP16: =$CN$12 -> 9 | CR16: =$CN$12 -> 9 | CT16: =$CN$12 -> 9 | CV16: =$CN$12 -> 9
K17: For V axis | L17: =3000-I4 -> 3000 | O17: Frequency: | P17: 0 | AG17: 0 | AW17: 0 | BQ17: -70 | BS17: 4.5 | BV17: 13 | BW17: 10 | BY17: 3 | CD17: 10 | CF17: 10 | CL17: 10 | CN17: =CN16+1 -> 10 | CP17: =CP16+1 -> 10 | CR17: =CR16+1 -> 10 | CT17: =CT16+1 -> 10 | CV17: =CV16+1 -> 10
K18: For V axis | L18: =3000-L16 -> 0 | O18: Data %: | P18: 0 | AG18: 0 | AW18: 0 | BQ18: -60 | BS18: 4.5 | BV18: 13 | BW18: 11 | BY18: 4 | CD18: 11 | CF18: 11 | CL18: 11 | CN18: 11 | CP18: 11 | CR18: 11 | CT18: 11 | CV18: 11
O19: Theory %: | P19: 0 | AG19: 0 | AW19: 0 | BQ19: -50 | BS19: 4.5 | BV19: 13 | BW19: 12 | BY19: 5 | CD19: 12 | CF19: 12 | CL19: 12 | CN19: 12 | CP19: 12 | CR19: 12 | CT19: 12 | CV19: 12
L20: =3000-L16 -> 0 | P20: 0 | AG20: 0 | AW20: 0 | BQ20: -40 | BS20: 4.5 | BV20: 13 | BW20: 13 | BY20: 6 | CD20: 13 | CF20: 13 | CL20: 13 | CN20: 13 | CP20: 13 | CR20: 13 | CT20: 13 | CV20: 13
P21: 0 | AG21: 0 | AW21: 0 | BQ21: -30 | BS21: 4.5 | BV21: 13 | BW21: 14 | BY21: 7 | CD21: 14 | CF21: 14 | CL21: 14 | CN21: 14 | CP21: 14 | CR21: 14 | CT21: 14 | CV21: 14
K22: for AG1 | L22: =($AB$3+$AB$5+$AB$7+$BP$8+$AA$86+$AA$89+$AA$92+$L$16)/10000 -> 0.4185 | N22: 5 | P22: 0 | AG22: 0 | AW22: 0 | BQ22: -20 | BS22: 4.5 | BV22: 13 | BW22: 15 | BY22: 8 | CD22: 15 | CF22: 15 | CL22: 15 | CN22: 15 | CP22: 15 | CR22: 15 | CT22: 15 | CV22: 15
O23: Sound | P23: 0 | AG23: 0 | AW23: 0 | BQ23: -10 | BS23: 4.5 | BV23: 13 | BW23: 16 | BY23: 9 | CD23: 16 | CF23: 16 | CL23: 16 | CN23: 16 | CP23: 16 | CR23: 16 | CT23: 16 | CV23: 16
P24: 0 | AG24: 0 | AW24: 0 | BQ24: 0 | BS24: 4.5 | BV24: 13 | BW24: 17 | BY24: 10 | CD24: 17 | CF24: 17 | CL24: 17 | CN24: 17 | CP24: 17 | CR24: 17 | CT24: 17 | CV24: 17
P25: 0 | AG25: 0 | AW25: 0 | BQ25: 10 | BS25: 4.5 | BV25: 13 | BW25: 18 | BY25: 11 | CD25: 18 | CF25: 18 | CL25: 18 | CN25: 18 | CP25: 18 | CR25: 18 | CT25: 18 | CV25: 18
N26: 6 | P26: 0 | AG26: 0 | AW26: 0 | BQ26: 20 | BS26: 4.5 | BV26: 13 | BW26: 19 | BY26: 12 | CD26: 19 | CF26: 19 | CL26: 19 | CN26: 19 | CP26: 19 | CR26: 19 | CT26: 19 | CV26: 19
N27: p values | P27: 0 | AG27: 0 | AW27: 0 | BQ27: 30 | BS27: 4.5 | BV27: 13 | BW27: 20 | BY27: 13 | CD27: 20 | CF27: 20 | CL27: 20 | CN27: 20 | CP27: 20 | CR27: 20 | CT27: 20 | CV27: 20
N28: histogram | P28: 0 | AG28: 0 | AW28: 0 | BQ28: 40 | BS28: 4.5 | BV28: 13 | BW28: 21 | BY28: 14 | CD28: 21 | CF28: 21 | CL28: 21 | CN28: 21 | CP28: 21 | CR28: 21 | CT28: 21 | CV28: 21
P29: 0 | AG29: 0 | AW29: 0 | BQ29: 50 | BS29: 4.5 | BV29: 13 | BW29: 22 | BY29: 15 | CD29: 22 | CF29: 22 | CL29: 22 | CN29: 22 | CP29: 22 | CR29: 22 | CT29: 22 | CV29: 22
N30: 7 | P30: 0 | AG30: 0 | AW30: 0 | BQ30: 60 | BS30: 4.5 | BV30: 13 | BW30: 23 | BY30: 16 | CD30: 23 | CF30: 23 | CL30: 23 | CN30: 23 | CP30: 23 | CR30: 23 | CT30: 23 | CV30: 23
P31: 0 | AG31: 0 | AW31: 0 | BQ31: 70 | BS31: 4.5 | BV31: 13 | BW31: 24 | BY31: 17 | CD31: 24 | CF31: 24 | CL31: 24 | CN31: 24 | CP31: 24 | CR31: 24 | CT31: 24 | CV31: 24
P32: 0 | AG32: 0 | AW32: 0 | BQ32: 80 | BS32: 4.5 | BV32: 13 | BW32: 25 | BY32: 18 | CD32: 25 | CF32: 25 | CL32: 25 | CN32: 25 | CP32: 25 | CR32: 25 | CT32: 25 | CV32: 25
P33: 0 | AG33: 0 | AW33: 0 | BQ33: 90 | BS33: 4.5 | BV33: 13 | BW33: 26 | BY33: 19 | CD33: 26 | CF33: 26 | CL33: 26 | CN33: 26 | CP33: 26 | CR33: 26 | CT33: 26 | CV33: 26
P34: 0 | AG34: 0 | AW34: 0 | BQ34: 100 | BS34: 4.5 | BV34: 13 | BW34: 27 | BY34: 20 | CD34: 27 | CF34: 27 | CL34: 27 | CN34: 27 | CP34: 27 | CR34: 27 | CT34: 27 | CV34: 27
P35: 0 | AG35: 0 | AW35: 0 | BQ35: H0 label | BR35: =IF($BT$5,BT12+2,NA()) ->  | BS35: 33 | BV35: 13 | BW35: 28 | BY35: 21 | CD35: 28 | CF35: 28 | CL35: 28 | CN35: 28 | CP35: 28 | CR35: 28 | CT35: 28 | CV35: 28
P36: 0 | AG36: 0 | AW36: 0 | BQ36: Vertical line at 0 | BR36: =IF($BT$5,BT12,NA()) ->  | BS36: =BS14 -> 4.5 | BV36: 13 | BW36: 29 | BY36: 22 | CD36: 29 | CF36: 29 | CL36: 29 | CN36: 29 | CP36: 29 | CR36: 29 | CT36: 29 | CV36: 29
P37: 0 | AG37: 0 | AW37: 0 | BQ37: For pop labels | BR37: 15 | BV37: 13 | BW37: 30 | BY37: 23 | CD37: 30 | CF37: 30 | CL37: 30 | CN37: 30 | CP37: 30 | CR37: 30 | CT37: 30 | CV37: 30
P38: 0 | AG38: 0 | AW38: 0 | BQ38: =IF(BV1,AB3-BR37,NA()) -> 35 | BR38: 1 | BV38: 13 | BW38: 31 | BY38: 24 | CD38: 31 | CF38: 31 | CL38: 31 | CN38: 31 | CP38: 31 | CR38: 31 | CT38: 31 | CV38: 31
P39: 0 | AG39: 0 | AW39: 0 | BQ39: =IF(BV1,AB5+BR37+2,NA()) -> 77 | BR39: 1 | BV39: 13 | BW39: 32 | CD39: 32 | CF39: 32 | CL39: 32 | CN39: 32 | CP39: 32 | CR39: 32 | CT39: 32 | CV39: 32
O40: 8 | P40: 0 | AG40: 0 | AW40: 0 | BQ40: Disp pop means | BS40: bars | BT40: Disp d | BV40: Disp Ha | CB40: Control | CC40: Exptal
P41: 0 | BQ41: =IF(BV1,AB3,NA()) -> 50 | BR41: 0 | BS41: 1.1 | BT41: =BQ41 -> 50 | BU41: =BR38/2 -> 0.5 | BV41: =IF(AND(BT5,BR7),BT12+AB5-AB3,NA()) ->  | BW41: 4.5 | CA41: x | CB41: Population | CC41: Population
N42: 9 | BQ42: =IF(BV1,AB5,NA()) -> 60 | BR42: 0 | BT42: =BQ42 -> 60 | BU42: =BU41 -> 0.5 | BV42: =IF(AND(BT5,BR7),BT12+AB5-AB3+3.5,NA()) ->  | BW42: =BS35 -> 33 | CA42: 0 | CB42: =IF($BV$1,NORMDIST(CA42,$AB$3,$AB$7,FALSE)/$BR$2,NA()) -> 0.04393693362 | CC42: =IF($BV$1,NORMDIST(CA42,$AB$5,$AB$7,FALSE)/$BR$2,NA()) -> 0.01110899654
O43: Display | BT43: =AVERAGE(BT41:BT42)-BW43 -> 53.5 | BU43: 0.31 | BV43: d = | BW43: 1.5 | CA43: =CA42+$BR$1 -> 0.5 | CB43: 0.04675600885 | CC43: 0.01197046994
O44: figures | BQ44: Display diff | BR44: =IF(AND($BT$5,$BV$5,$BT$7,$G$4<>""),BT12,NA()) ->  | BS44: 7 | BT44: =BT43 -> 53.5 | BU44: =0.3 -> 0.3 | BV44: value | CA44: 1 | CB44: 0.04972487341 | CC44: 0.01289068914
BR45: =IF(AND($BT$5,$BV$5,$BT$7,$G$4<>""),G4+$BT$12,NA()) ->  | BS45: =BS44 -> 7 | CA45: 1.5 | CB45: 0.05284921078 | CC45: 0.01387297605
BQ46: moe known | BR46: =NORMSINV(0.5+$BR$3/200)*$J$5/SQRT($J$7) -> 6.929519122 | BS46: moe for diff | BT46: =BR46*SQRT(2) -> 9.799819923 | BU46: SE diff | BV46: =SQRT(2)*$J$5/SQRT($J$7) -> 5 | CA46: 2 | CB46: 0.05613476283 | CC46: 0.01492078607
BQ47: E SD | BR47: =IF(AND($BT$7,$BP$8>1),STDEV(BR50:BR249),-999) -> 21.93996744 | BS47: =NORMSINV(0.5+$BR$3/200)*BR47/SQRT($J$7) -> 7.601671195 | BT47: moe | BV47: C SD | BW47: =IF(AND($BT$7,$BP$8>1),STDEV(BW50:BW249),-999) -> 22.1553603 | BX47: =NORMSINV(0.5+$BR$3/200)*BW47/SQRT($J$7) -> 7.676299642 | BY47: moe | CA47: 2.5 | CB47: 0.05958731876 | CC47: 0.01603770928
BQ48: Disp E mean | BR48: =IF($BT$7,AVERAGE(BR50:BR249),-999) -> 60.97759408 | BS48: =IF(AND($BT$2,$BT$7,$G$4<>"",BV4),AVERAGE(BR50:BR249),-999) -> -999 | BT48: 2.8 | BV48: Disp C mean | BW48: =IF($BT$7,AVERAGE(BW50:BW249),-999) -> 54.172324 | BX48: =IF(AND($BT$2,$BT$7,$G$4<>"",BV4),AVERAGE(BW50:BW249),-999) -> -999 | BY48: 0.8 | CA48: 3 | CB48: 0.06321270308 | CC48: 0.01722747131
BQ49: rand no. | BR49: data point | BT49: New E Sample, for disp | BV49: rand no. | BW49: data point | BY49: New C Sample, for disp | CA49: 3.5 | CB49: 0.06701676279 | CC49: 0.01849393386
BQ50: =$J$9 -> 0.5456115852 | BR50: =IF(AND($BT$7,$BU50<=$BP$8),$J$6+$J$5*NORMSINV(BQ50),"") -> 62.29163036 | BS50: =IF(AND($BT$2,BR50<>"",$G$4<>""),BR50,-999) -> -999 | BT50: =IF(BS50=-999,-999,2) -> -999 | BU50: 1 | BV50: =$J$8 -> 0.9816226861 | BW50: =IF(AND($BT$7,$BU50<=$BP$8),$J$4+$J$5*NORMSINV(BV50),"") -> 91.76958445 | BX50: =IF(AND($BT$2,BW50<>"",$G$4<>""),BW50,-999) -> -999 | BY50: =IF(BX50=-999,-999,0) -> -999 | CA50: 4 | CB50: 0.07100535374 | CC50: 0.01984109474
BQ51: =MOD(BQ50*10000013,1) -> 0.9452051483 | BR51: 92.0008006 | BS51: -999 | BT51: -999 | BU51: 2 | BV51: =MOD(BV50*10000013,1) -> 0.6223335657 | BW51: 56.23230696 | BX51: -999 | BY51: -999 | CA51: 4.5 | CB51: 0.07518432605 | CC51: 0.02127308756
BQ52: 0.7707616203 | BR52: 74.82714824 | BS52: -999 | BT52: -999 | BU52: 3 | BV52: 0.747605117 | BW52: 63.33944791 | BX52: -999 | BY52: -999 | CA52: 5 | CB52: 0.07955950872 | CC52: 0.02279418088
BQ53: 0.2224343084 | BR53: 44.72004612 | BS53: -999 | BT53: -999 | BU53: 4 | BV53: 0.8892454449 | BW53: 74.45050241 | BX53: -999 | BY53: -999 | CA53: 5.5 | CB53: 0.08413669343 | CC53: 0.02440877696
BQ54: 0.9754448943 | BR54: 99.35267189 | BS54: -999 | BT54: -999 | BU54: 5 | BV54: 0.009278165177 | BW54: 2.913480535 | BX54: -999 | BY54: -999 | CA54: 6 | CB54: 0.08892161746 | CC54: 0.02612140985
BQ55: 0.623623725 | BR55: 66.30023981 | BS55: -999 | BT55: -999 | BU55: 6 | BV55: 0.7723812554 | BW55: 64.93423786 | BX55: -999 | BY55: -999 | CA55: 6.5 | CB55: 0.0939199458 | CC55: 0.02793674309
BQ56: 0.3573768847 | BR56: 52.69041704 | BS56: -999 | BT56: -999 | BU56: 7 | BV56: 0.5949879307 | BW56: 54.80789782 | BX56: -999 | BY56: -999 | CA56: 7 | CB56: 0.09913725251 | CC56: 0.02985956664
BQ57: 0.4925901555 | BR57: 59.62850412 | BS57: -999 | BT57: -999 | BU57: 8 | BV57: 0.04214295186 | BW57: 15.47316002 | BX57: -999 | BY57: -999 | CA57: 7.5 | CB57: 0.1045790013 | CC57: 0.03189479336
BQ58: 0.9581969194 | BR58: 94.60269967 | BS58: -999 | BT58: -999 | BU58: 9 | BV58: 0.06646861322 | BW58: 19.94761267 | BX58: -999 | BY58: -999 | CA58: 8 | CB58: 0.1102505253 | CC58: 0.03404745473
BQ59: 0.6506741606 | BR59: 67.74282398 | BS59: -999 | BT59: -999 | BU59: 10 | BV59: 0.9963143859 | BW59: 103.5918093 | BX59: -999 | BY59: -999 | CA59: 8.5 | CB59: 0.1161570064 | CC59: 0.03632269596
BQ60: 0.06446314976 | BR60: 29.63300876 | BS60: -999 | BT60: -999 | BU60: 11 | BV60: 0.8111456353 | BW60: 67.64251793 | BX60: -999 | BY60: -999 | CA60: 9 | CB60: 0.1223034533 | CC60: 0.03872577035
BQ61: 0.3355828784 | BR61: 51.50902765 | BS61: -999 | BT61: -999 | BU61: 12 | BV61: 0.8981106225 | BW61: 75.41718336 | BX61: -999 | BY61: -999 | CA61: 9.5 | CB61: 0.1286946802 | CC61: 0.04126203299
BQ62: 0.1469836049 | BR62: 39.01083278 | BS62: -999 | BT62: -999 | BU62: 13 | BV62: 0.9008392561 | BW62: 75.72696859 | BX62: -999 | BY62: -999 | CA62: 10 | CB62: 0.1353352832 | CC62: 0.04393693362
BQ63: 0.9595687352 | BR63: 94.91406506 | BS63: -999 | BT63: -999 | BU63: 14 | BV63: 0.2721374128 | BW63: 37.87277293 | BX63: -999 | BY63: -999 | CA63: 10.5 | CB63: 0.1422296179 | CC63: 0.04675600885
BQ64: 0.8265144341 | BR64: 78.80961061 | BS64: -999 | BT64: -999 | BU64: 15 | BV64: 0.6658002157 | BW64: 58.56691078 | BX64: -999 | BY64: -999 | CA64: 11 | CB64: 0.1493817753 | CC64: 0.04972487341
BQ65: 0.08538159356 | BR65: 32.60488678 | BS65: -999 | BT65: -999 | BU65: 16 | BV65: 0.8121670727 | BW65: 67.7182064 | BX65: -999 | BY65: -999 | CA65: 11.5 | CB65: 0.1567955581 | CC65: 0.05284921078
BQ66: 0.04551283643 | BR66: 26.19976146 | BS66: -999 | BT66: -999 | BU66: 17 | BV66: 0.2848586608 | BW66: 38.63064274 | BX66: -999 | BY66: -999 | CA66: 12 | CB66: 0.1644744566 | CC66: 0.05613476283
BQ67: 0.9559318386 | BR67: 94.10623227 | BS67: -999 | BT67: -999 | BU67: 18 | BV67: 0.3108870182 | BW67: 40.13324719 | BX67: -999 | BY67: -999 | CA67: 12.5 | CB67: 0.1724216239 | CC67: 0.05958731876
BQ68: 0.813132178 | BR68: 77.78995455 | BS68: -999 | BT68: -999 | BU68: 19 | BV68: 0.223717602 | BW68: 34.80604266 | BX68: -999 | BY68: -999 | CA68: 13 | CB68: 0.1806398516 | CC68: 0.06321270308
BQ69: 0.3511019014 | BR69: 52.35305476 | BS69: -999 | BT69: -999 | BU69: 20 | BV69: 0.928027207 | BW69: 79.22509186 | BX69: -999 | BY69: -999 | CA69: 13.5 | CB69: 0.1891315451 | CC69: 0.06701676279
BQ70: 0.5781467967 | BR70: 63.94309585 | BS70: -999 | BT70: -999 | BU70: 21 | BV70: 0.1346721519 | BW70: 27.90852376 | BX70: -999 | BY70: -999 | CA70: 14 | CB70: 0.1978986991 | CC70: 0.07100535374
BQ71: 0.4826437198 | BR71: 59.12961048 | BS71: -999 | BT71: -999 | BU71: 22 | BV71: 0.2695227358 | BW71: 37.71485876 | BX71: -999 | BY71: -999 | CA71: 14.5 | CB71: 0.2069428729 | CC71: 0.07518432605
BQ72: 0.471993994 | BR72: 58.59483188 | BS72: -999 | BT72: -999 | BU72: 23 | BV72: 0.8622857947 | BW72: 71.81293225 | BX72: -999 | BY72: -999 | CA72: 15 | CB72: 0.2162651668 | CC72: 0.07955950872
BQ73: 0.07559963688 | BR73: 31.29383471 | BS73: -999 | BT73: -999 | BU73: 24 | BV73: 0.1566178445 | BW73: 29.83088368 | BX73: -999 | BY73: -999 | CA73: 15.5 | CB73: 0.2258661978 | CC73: 0.08413669343
BQ74: 0.3516207151 | BR74: 52.38102911 | BS74: -999 | BT74: -999 | BU74: 25 | BV74: 0.480804937 | BW74: 49.03733065 | BX74: -999 | BY74: -999 | CA74: 16 | CB74: 0.2357460766 | CC74: 0.08892161746
BQ75: 0.7221842371 | BR75: 71.78685043 | BS75: -999 | BT75: -999 | BU75: 26 | BV75: 0.6200675759 | BW75: 56.11316543 | BX75: -999 | BY75: -999 | CA75: =CA74+$BR$1 -> 16.5 | CB75: 0.2459043844 | CC75: 0.0939199458
BQ76: 0.759322416 | BR76: 74.08249244 | BS76: -999 | BT76: -999 | BU76: 27 | BV76: 0.8203429896 | BW76: 68.33345992 | BX76: -999 | BY76: -999 | CA76: 17 | CB76: 0.2563401514 | CC76: 0.09913725251
BQ77: 0.03156461939 | BR77: 22.83439666 | BS77: -999 | BT77: -999 | BU77: 28 | BV77: 0.5608433429 | BW77: 53.06215475 | BX77: -999 | BY77: -999 | CA77: 17.5 | CB77: 0.2670518352 | CC77: 0.1045790013
BQ78: 0.6042616181 | BR78: 65.28786885 | BS78: -999 | BT78: -999 | BU78: 29 | BV78: 0.7201152314 | BW78: 61.66367714 | BX78: -999 | BY78: -999 | CA78: 18 | CB78: 0.2780373005 | CC78: 0.1102505253
AX79: x half arm | AY79: 105 | BQ79: 0.03647660837 | BR79: 24.13753475 | BS79: -999 | BT79: -999 | BU79: 30 | BV79: 0.6749986503 | BW79: 59.0751688 | BX79: -999 | BY79: -999 | CA79: 18.5 | CB79: 0.2892937995 | CC79: 0.1161570064
AD80: N | AE80: =AA11 -> 0 | AF80: z | AG80: =AG81/SQRT(AG86*(1-AG86)/$AE$80) ->  | AH80: =AH81/SQRT(AH86*(1-AH86)/$AE$80) ->  | AI80: =AI81/SQRT(AI86*(1-AI86)/$AE$80) ->  | AJ80: =AJ81/SQRT(AJ86*(1-AJ86)/$AE$80) ->  | AK80: =AK81/SQRT(AK86*(1-AK86)/$AE$80) ->  | AL80: p (c2) | AM80: =CHITEST(AG83:AK83,AG84:AK84) ->  | AN80: Display freqs | AP80: %ages | AQ80: exp % | AX80: Left,Right x | AY80: Expected y | BQ80: 0.5578536503 | BR80: 62.91059321 | BS80: -999 | BT80: -999 | BU80: 31 | BV80: 0.2782557029 | BW80: 38.23937763 | BX80: -999 | BY80: -999 | CA80: 19 | CB80: 0.3008179544 | CC80: 0.1223034533
N81: Display cols of expected %ages | Z81: X axis | AA81: left end | AB81: 0 | AF81: % diff | AG81: =AG85-AG86 ->  | AH81: =AH85-AH86 ->  | AI81: =AI85-AI86 ->  | AJ81: =AJ85-AJ86 ->  | AK81: =AK85-AK86 ->  | AL81: chi-sq test | AN81: 100 | AO81: =IF($I$4>0,86.4,NA()) ->  | AP81: =IF($I$4>0,87,NA()) ->  | AQ81: =IF($BR$9,87.5,NA()) -> 87.5 | AW81: To calculate expected %ages | AX81: =IF(TRUE,AM87-$AY$79,NA()) -> 795 | AY81: =IF($BR$9,IF(NOT($BR$12),AS87*IF(BT7,$I$4,0)*$AB$87/$AB$94,AS87*L18*$AB$87/$AB$94),NA()) -> 0 | AZ81: *** | BQ81: 0.7551144026 | BR81: 73.81345573 | BS81: -999 | BT81: -999 | BU81: 32 | BV81: 0.6466012243 | BW81: 57.52321074 | BX81: -999 | BY81: -999 | CA81: 19.5 | CB81: 0.3126057397 | CC81: 0.1286946802
O82: half width | P82: 83 | AA82: right end | AB82: 1000 | AG82: *** | AH82: ** | AI82: * | AJ82: ? | AK82: p>.10 | AL82: p(z) | AM82: =2*(1-NORMSDIST(AH87)) ->  | AN82: 300 | AO82: =AO81 ->  | AQ82: 87.5 | AS82: Expect'd %ages | AV82: P(p<.10) | AW82: =1-NORMSDIST(NORMSINV(0.95)+$T$8*SQRT($BP$8/2))+NORMSDIST($T$8*SQRT($BP$8/2)-NORMSINV(0.95)) -> 0.6388938033 | AX82: =IF(TRUE,AM87+$AY$79,NA()) -> 1005 | AY82: =AY81 -> 0 | AZ82: *** | BQ82: 0.8427070789 | BR82: =IF(AND($BT$7,$BU82<=$BP$8),$J$6+$J$5*NORMSINV(BQ82),"") ->  | BS82: =IF(AND($BT$2,BR82<>"",$G$4<>""),BR82,-999) -> -999 | BT82: =IF(BS82=-999,-999,2) -> -999 | BU82: 33 | BV82: 0.6489973832 | BW82: =IF(AND($BT$7,$BU82<=$BP$8),$J$4+$J$5*NORMSINV(BV82),"") ->  | BX82: =IF(AND($BT$2,BW82<>"",$G$4<>""),BW82,-999) -> -999 | BY82: =IF(BX82=-999,-999,0) -> -999 | CA82: 20 | CB82: 0.3246524674 | CC82: 0.1353352832
O83: bottom | P83: 0.2 | AA83: Histogram | AF83: Histo data freqs | AG83: =B4 -> 0 | AH83: =C4 -> 0 | AI83: =D4 -> 0 | AJ83: =E4 -> 0 | AK83: =F4 -> 0 | AL83: pairs test | AN83: =AO87 -> 500 | AQ83: 87.5 | AR83: p>.10 | AS83: =1-AW82 -> 0.3611061967 | AV83: P(p<.05) | AW83: =1-NORMSDIST(NORMSINV(0.975)+$T$8*SQRT($BP$8/2))+NORMSDIST($T$8*SQRT($BP$8/2)-NORMSINV(0.975)) -> 0.516005274 | AX83: =IF(TRUE,AN87-$AY$79,NA()) -> 595 | AY83: =IF($BR$9,IF(NOT($BR$12),AS86*IF(BT7,$I$4,0)*$AB$87/$AB$94,AS86*L18*$AB$87/$AB$94),NA()) -> 0 | AZ83: ** | BQ83: =MOD(BQ82*10000013,1) -> 0.7442311607 | BS83: -999 | BT83: -999 | BU83: 34 | BV83: =MOD(BV82*10000013,1) -> 0.2688877974 | BX83: -999 | BY83: -999 | CA83: 20.5 | CB83: 0.3369527723 | CC83: 0.1422296179
N84: *** | O84: =AM87-$P$82 -> 817 | P84: =IF($BR$12,0,NA()) -> 0 | AA84: appearance | AF84: Theory freqs | AG84: =AG86*$AG$90 -> 0 | AH84: =AH86*$AG$90 -> 0 | AI84: =AI86*$AG$90 -> 0 | AJ84: =AJ86*$AG$90 -> 0 | AK84: =AK86*$AG$90 -> 0 | AN84: 700 | AQ84: 87.5 | AR84: ? | AS84: =AW82-AW83 -> 0.1228885294 | AV84: P(p<.01) | AW84: =1-NORMSDIST(NORMSINV(0.995)+$T$8*SQRT($BP$8/2))+NORMSDIST($T$8*SQRT($BP$8/2)-NORMSINV(0.995)) -> 0.282367654 | AX84: =IF(TRUE,AN87+$AY$79,NA()) -> 805 | AY84: =AY83 -> 0 | AZ84: ** | BQ84: 0.2823063247 | BS84: -999 | BT84: -999 | BU84: 35 | BV84: 0.469246896 | BX84: -999 | BY84: -999 | CA84: 21 | CB84: 0.3495006002 | CC84: 0.1493817753
O85: =O84 -> 817 | P85: =IF($BR$12,AY81,NA()) -> 0 | AA85: y | AF85: Histo data %ages | AG85: =IF($AG$90=0,"",AG83/$AG$90) ->  | AH85: =IF($AG$90=0,"",AH83/$AG$90) ->  | AI85: =IF($AG$90=0,"",AI83/$AG$90) ->  | AJ85: =IF($AG$90=0,"",AJ83/$AG$90) ->  | AK85: =IF($AG$90=0,"",AK83/$AG$90) ->  | AN85: 900 | AQ85: 87.5 | AR85: * | AS85: =AW83-AW84 -> 0.23363762 | AV85: P(p<.001) | AW85: =1-NORMSDIST(NORMSINV(0.9995)+$T$8*SQRT($BP$8/2))+NORMSDIST($T$8*SQRT($BP$8/2)-NORMSINV(0.9995)) -> 0.09843397933 | AX85: =IF(TRUE,AO87-$AY$79,NA()) -> 395 | AY85: =IF($BR$9,IF(NOT($BR$12),AS85*IF(BT7,$I$4,0)*$AB$87/$AB$94,AS85*L18*$AB$87/$AB$94),NA()) -> 0 | AZ85: * | BQ85: 0.9168880247 | BS85: -999 | BT85: -999 | BU85: 36 | BV85: 0.06004779972 | BX85: -999 | BY85: -999 | CA85: 21.5 | CB85: 0.3622891968 | CC85: 0.1567955581
O86: =AM87+$P$82 -> 983 | P86: =P85 -> 0 | AA86: 161 | AF86: Theory %ages | AG86: =AS87 -> 0.09843397933 | AH86: =AS86 -> 0.1839336746 | AI86: =AS85 -> 0.23363762 | AJ86: =AS84 -> 0.1228885294 | AK86: =AS83 -> 0.3611061967 | AL86: col no. | AM86: 1 | AN86: 2 | AO86: 3 | AP86: 4 | AQ86: 5 | AR86: ** | AS86: =AW84-AW85 -> 0.1839336746 | AX86: =IF(TRUE,AO87+$AY$79,NA()) -> 605 | AY86: =AY85 -> 0 | AZ86: * | BQ86: 0.1661239676 | BS86: -999 | BT86: -999 | BU86: 37 | BV86: 0.7778349984 | BX86: -999 | BY86: -999 | CA86: 22 | CB86: 0.3753110989 | CC86: 0.1644744566
O87: =O86 -> 983 | P87: =P84 -> 0 | AA87: ytick | AB87: =AA86/100 -> 1.61 | AF87: P(next will be the same) | AG87: =AG86^2+AH86^2+AI86^2+AJ86^2+AK86^2 -> 0.2436066584 | AH87: =ABS(AG87-AF89/AA11)/SQRT(AG87*(1-AG87)/AA11) ->  | AI87: z | AL87: xcentre | AM87: 900 | AN87: 700 | AO87: =$AB$81+(($AB$82-$AB$81)/10)*(2*AO86-1) -> 500 | AP87: 300 | AQ87: 100 | AR87: *** | AS87: =AW85 -> 0.09843397933 | AX87: =IF(TRUE,AP87-$AY$79,NA()) -> 195 | AY87: =IF($BR$9,IF(NOT($BR$12),AS84*IF(BT7,$I$4,0)*$AB$87/$AB$94,AS84*L18*$AB$87/$AB$94),NA()) -> 0 | AZ87: ? | BQ87: 0.8357890807 | BS87: -999 | BT87: -999 | BU87: 38 | BV87: 0.09629220702 | BX87: -999 | BY87: -999 | CA87: 22.5 | CB87: 0.3885581275 | CC87: 0.1724216239
N88: ** | O88: =AN87-$P$82 -> 617 | P88: =IF($BR$12,0,NA()) -> 0 | AA88: x | AE88: Expected pairs | AF88: =AG87*AA11 -> 0 | AI88: To highlight last point | AK88: =H4<0.001 -> TRUE | AM88: =AND(H4>=0.001,H4<0.01) -> FALSE | AO88: =AND(H4>=0.01,H4<0.05) -> FALSE | AQ88: =AND(H4>=0.05,H4<0.1) -> FALSE | AS88: =H4>=0.1 -> FALSE | AX88: =IF(TRUE,AP87+$AY$79,NA()) -> 405 | AY88: =AY87 -> 0 | AZ88: ? | BQ88: 0.672350239 | BS88: -999 | BT88: -999 | BU88: 39 | BV88: 0.3219741005 | BX88: -999 | BY88: -999 | CA88: 23 | CB88: 0.4020213831 | CC88: 0.1806398516
O89: =O88 -> 617 | P89: =IF($BR$12,AY83,NA()) -> 0 | AA89: 772 | AE89: Observed pairs | AF89: =A3 -> 0 | AJ89: =IF(AND($AK$88,$B$4>0,$B$4<1001),INDEX(AJ92:AJ1091,$B$4),NA()) ->  | AK89: =IF(AND($AK$88,$B$4>0,$B$4<1001),INDEX(AK92:AK1091,$B$4),NA()) ->  | AL89: =IF(AND($AM$88,$C$4>0,$C$4<1001),INDEX(AL92:AL1091,$C$4),NA()) ->  | AM89: =IF(AND($AM$88,$C$4>0,$C$4<1001),INDEX(AM92:AM1091,$C$4),NA()) ->  | AN89: =IF(AND($AO$88,$D$4>0,$D$4<1001),INDEX(AN92:AN1091,$D$4),NA()) ->  | AO89: =IF(AND($AO$88,$D$4>0,$D$4<1001),INDEX(AO92:AO1091,$D$4),NA()) ->  | AP89: =IF(AND($AQ$88,$E$4>0,$E$4<1001),INDEX(AP92:AP1091,$E$4),NA()) ->  | AQ89: =IF(AND($AQ$88,$E$4>0,$E$4<1001),INDEX(AQ92:AQ1091,$E$4),NA()) ->  | AR89: =IF(AND($AS$88,$F$4>0,$F$4<1001),INDEX(AR92:AR1091,$F$4),NA()) ->  | AS89: =IF(AND($AS$88,$F$4>0,$F$4<1001),INDEX(AS92:AS1091,$F$4),NA()) ->  | AX89: =IF(TRUE,AQ87-$AY$79,NA()) -> -5 | AY89: =IF($BR$9,IF(NOT($BR$12),AS83*IF(BT7,$I$4,0)*$AB$87/$AB$94,AS83*L18*$AB$87/$AB$94),NA()) -> 0 | AZ89: p>.10 | BQ89: 0.130639758 | BS89: -999 | BT89: -999 | BU89: 40 | BV89: 0.1911137942 | BX89: -999 | BY89: -999 | CA89: 23.5 | CB89: 0.4156912424 | CC89: 0.1891315451
O90: =AN87+$P$82 -> 783 | P90: =P89 -> 0 | AA90: xtick | AB90: =AA89/100 -> 7.72 | AF90: Total | AG90: =SUM($AG$83:$AK$83) -> 0 | AJ90: *** | AL90: ** | AN90: * | AP90: ? | AR90: >.10 | AX90: =IF(TRUE,AQ87+$AY$79,NA()) -> 205 | AY90: =AY89 -> 0 | AZ90: p>.10 | BQ90: 0.2779272012 | BS90: -999 | BT90: -999 | BU90: 41 | BV90: 0.4267040659 | BX90: -999 | BY90: -999 | CA90: 24 | CB90: 0.4295573582 | CC90: 0.1978986991
O91: =O90 -> 783 | P91: =P88 -> 0 | AA91: space | AG91: mod | AH91: sign | AI91: y | AJ91: x | AK91: y | AL91: x | AM91: y | AN91: x | AO91: y | AP91: x | AQ91: y | AR91: x | AS91: y | AW91: Display power | AY91: For diff axis tick marks | BQ91: 0.6254661642 | BS91: -999 | BT91: -999 | BU91: 42 | BV91: 0.2058950458 | BX91: -999 | BY91: -999 | CA91: 24.5 | CB91: 0.4436086607 | CC91: 0.2069428729
P92: * | AA92: 90 | AE92: 1 | AG92: =2*ROUNDUP((MOD(AE92-1,$AB$94)+1)/2,0)-1 -> 1 | AH92: =IF(AG92=AG93,-1,1) -> -1 | AI92: =IF($BT$7,$AB$87*(0.5+INT((AE92-0.5)/$AB$94)),NA()) -> 0.805 | AJ92: =IF($BR$11,$AM$87+$AB$90*AH92*AG92,NA()) ->  | AK92: =IF($AG$83<AE92,NA(),AI92) ->  | AL92: =IF($BR$11,$AN$87+$AB$90*AH92*AG92,NA()) ->  | AM92: =IF($AH$83<AE92,NA(),AI92) ->  | AN92: =IF($BR$11,$AO$87+$AB$90*AH92*AG92,NA()) ->  | AO92: =IF($AI$83<AE92,NA(),AI92) ->  | AP92: =IF($BR$11,$AP$87+$AB$90*AH92*AG92,NA()) ->  | AQ92: =IF($AJ$83<AE92,NA(),AI92) ->  | AR92: =IF($BR$11,$AQ$87+$AB$90*AH92*AG92,NA()) ->  | AS92: =IF($AK$83<AE92,NA(),AI92) ->  | AW92: 30 | AX92: =IF(BR9,80,NA()) -> 80 | AY92: -100 | AZ92: =IF($BT$5,$BT$12+AY92,NA()) ->  | BA92: =$BS$14 -> 4.5 | BQ92: 0.7730751149 | BS92: -999 | BT92: -999 | BU92: 43 | BV92: 0.1343575437 | BX92: -999 | BY92: -999 | CA92: 25 | CB92: 0.4578333618 | CC92: 0.2162651668
O93: =AO87-$P$82 -> 417 | P93: =IF($BR$12,0,NA()) -> 0 | AA93: spacetick | AB93: =AA92/10 -> 9 | AE93: 2 | AG93: 1 | AH93: 1 | AI93: 0.805 | AW93: Power | AX93: =IF(BR9,AB10,"") -> 0.516005274 | AY93: -98 | BA93: 4.5 | BQ93: 0.1993328594 | BS93: -999 | BT93: -999 | BU93: 44 | BV93: 0.183269972 | BX93: -999 | BY93: -999 | CA93: 25.5 | CB93: 0.4722189613 | CC93: 0.2258661978
O94: =O93 -> 417 | P94: =IF($BR$12,AY85,NA()) -> 0 | AA94: no. in row | AB94: =EVEN(((AB82-AB81)/10-2*AB93)/AB90) -> 12 | AE94: 3 | AG94: 3 | AH94: -1 | AI94: 0.805 | AY94: -96 | BA94: 4.5 | BQ94: 0.1849984936 | BS94: -999 | BT94: -999 | BU94: 45 | BV94: 0.1023260821 | BX94: -999 | BY94: -999 | CA94: 26 | CB94: 0.486752256 | CC94: 0.2357460766
O95: =AO87+$P$82 -> 583 | P95: =P94 -> 0 | AB95: To highlight last point | AE95: 4 | AG95: 3 | AH95: 1 | AI95: 0.805 | AY95: -94 | BA95: 4.5 | BQ95: 0.3413965665 | BS95: -999 | BT95: -999 | BU95: 46 | BV95: 0.1508960817 | BX95: -999 | BY95: -999 | CA95: 26.5 | CB95: 0.501419351 | CC95: 0.2459043844
O96: =O95 -> 583 | P96: =P93 -> 0 | AA96: =AJ89 ->  | AB96: =AK89 ->  | AE96: 5 | AG96: 5 | AH96: -1 | AI96: 0.805 | AY96: -92 | BA96: 4.5 | BQ96: 0.102959346 | BS96: -999 | BT96: -999 | BU96: 47 | BV96: 0.7786582727 | BX96: -999 | BY96: -999 | CA96: 27 | CB96: 0.5162056739 | CC96: 0.2563401514
P97: ? | AA97: =AL89 ->  | AB97: =AM89 ->  | AE97: 6 | AG97: 5 | AH97: 1 | AI97: 0.805 | AY97: -90 | BA97: 4.5 | BQ97: 0.7987333201 | BS97: -999 | BT97: -999 | BU97: 48 | BV97: 0.8495427612 | BX97: -999 | BY97: -999 | CA97: 27.5 | CB97: 0.531095991 | CC97: 0.2670518352
O98: =AP87-$P$82 -> 217 | P98: =IF($BR$12,0,NA()) -> 0 | AA98: =AN89 ->  | AB98: =AO89 ->  | AE98: 7 | AG98: 7 | AH98: -1 | AI98: 0.805 | AY98: -88 | BA98: 4.5 | BQ98: 0.5844051056 | BS98: -999 | BT98: -999 | BU98: 49 | BV98: 0.6562711764 | BX98: -999 | BY98: -999 | CA98: 28 | CB98: 0.5460744266 | CC98: 0.2780373005
O99: =O98 -> 217 | P99: =IF($BR$12,AY87,NA()) -> 0 | AA99: =AP89 ->  | AB99: =AQ89 ->  | AE99: 8 | AG99: 7 | AH99: 1 | AI99: 0.805 | AY99: -86 | BA99: 4.5 | BQ99: 0.6528765522 | BS99: -999 | BT99: -999 | BU99: 50 | BV99: 0.2956523094 | BX99: -999 | BY99: -999 | CA99: 28.5 | CB99: 0.5611244848 | CC99: 0.2892937995
O100: =AP87+$P$82 -> 383 | P100: =P99 -> 0 | AA100: =AR89 ->  | AB100: =AS89 ->  | AE100: 9 | AG100: 9 | AH100: -1 | AI100: 0.805 | AY100: -84 | BA100: 4.5 | BQ100: 0.00933874771 | BS100: -999 | BT100: -999 | BU100: 51 | BV100: 0.9378062803 | BX100: -999 | BY100: -999 | CA100: 29 | CB100: 0.5762290737 | CC100: 0.3008179544
O101: =O100 -> 383 | P101: =P98 -> 0 | Z101: For brief lower figs display | AE101: 10 | AG101: 9 | AH101: 1 | AI101: 0.805 | AY101: -82 | BA101: 4.5 | BQ101: 0.5985036157 | BS101: -999 | BT101: -999 | BU101: 52 | BV101: 0.9947798792 | BX101: -999 | BY101: -999 | CA101: 29.5 | CB101: 0.5913705322 | CC101: 0.3126057397
P102: p>.10 | Z102: 1 | AA102: =IF(figonedisp,Z102,NA()) ->  | AB102: 1 | AD102: FALSE | AE102: 11 | AG102: 11 | AH102: -1 | AI102: 0.805 | AY102: -80 | BA102: 4.5 | BQ102: 0.9376185946 | BS102: -999 | BT102: -999 | BU102: 53 | BV102: 0.7244112361 | BX102: -999 | BY102: -999 | CA102: 30 | CB102: 0.6065306597 | CC102: 0.3246524674
O103: =AQ87-$P$82 -> 17 | P103: =IF($BR$12,0,NA()) -> 0 | Z103: 2 | AA103: =IF(figtwodisp,Z103,NA()) ->  | AB103: 1 | AD103: FALSE | AE103: 12 | AG103: 11 | AH103: 1 | AI103: 0.805 | AY103: -78 | BA103: 4.5 | BQ103: 0.1352082454 | BS103: -999 | BT103: -999 | BU103: 54 | BV103: 0.7785685752 | BX103: -999 | BY103: -999 | CA103: 30.5 | CB103: 0.6216907477 | CC103: 0.3369527723
O104: =O103 -> 17 | P104: =IF($BR$12,AY89,NA()) -> 0 | Z104: 3 | AA104: =IF(figthreedisp,Z104,NA()) ->  | AB104: 1 | AD104: FALSE | AE104: 13 | AG104: 1 | AH104: -1 | AI104: 2.415 | AY104: -76 | BA104: 4.5 | BQ104: 0.2113753073 | BS104: -999 | BT104: -999 | BU104: 55 | BV104: 0.8729786295 | BX104: -999 | BY104: -999 | CA104: 31 | CB104: 0.6368316144 | CC104: 0.3495006002
O105: =AQ87+$P$82 -> 183 | P105: =P104 -> 0 | Z105: 4 | AA105: =IF(figfourdisp,Z105,NA()) ->  | AB105: 1 | AD105: FALSE | AE105: 14 | AG105: 1 | AH105: 1 | AI105: 2.415 | AY105: -74 | BA105: 4.5 | BQ105: 0.8207964562 | BS105: -999 | BT105: -999 | BU105: 56 | BV105: 0.6441659573 | BX105: -999 | BY105: -999 | CA105: 31.5 | CB105: 0.6519336409 | CC105: 0.3622891968
O106: =O105 -> 183 | P106: =P103 -> 0 | Z106: 5 | AA106: =IF(figfivedisp,Z106,NA()) ->  | AB106: 1 | AD106: FALSE | AE106: 15 | AG106: 3 | AH106: -1 | AI106: 2.415 | AY106: -72 | BA106: 4.5 | BQ106: 0.2322335653 | BS106: -999 | BT106: -999 | BU106: 57 | BV106: 0.9476230312 | BX106: -999 | BY106: -999 | CA106: 32 | CB106: =IF($BV$1,NORMDIST(CA106,$AB$3,$AB$7,FALSE)/$BR$2,NA()) -> 0.6669768109 | CC106: =IF($BV$1,NORMDIST(CA106,$AB$5,$AB$7,FALSE)/$BR$2,NA()) -> 0.3753110989
O107: x side | P107: 2.5 | AA107: fig disp length | AB107: 33 | AE107: 16 | AG107: 3 | AH107: 1 | AI107: 2.415 | AY107: -70 | BA107: 4.5 | BQ107: 0.6720433794 | BS107: -999 | BT107: -999 | BU107: 58 | BV107: 0.6312382016 | BX107: -999 | BY107: -999 | CA107: =CA106+$BR$1 -> 32.5 | CB107: 0.6819407512 | CC107: 0.3885581275
O108: x tick | P108: =(P82-P107)/100 -> 0.805 | Y108: For ongoing lower figs display | AE108: 17 | AG108: 5 | AH108: -1 | AI108: 2.415 | AY108: -68 | BA108: 4.5 | BQ108: 0.530525934 | BS108: -999 | BT108: -999 | BU108: 59 | BV108: 0.2224275786 | BX108: -999 | BY108: -999 | CA108: 33 | CB108: 0.6968047755 | CC108: 0.4020213831
N109: bars | O109: =AY81-$P$83 -> -0.2 | P109: =AY83-$P$83 -> -0.2 | R109: =AY85-$P$83 -> -0.2 | AA109: =IF(ISNA(AR89),NA(),IF(BR8,Z102,NA())) ->  | AB109: 1 | AE109: 18 | AG109: 5 | AH109: 1 | AI109: 2.415 | AY109: -66 | BA109: 4.5 | BQ109: 0.2363485359 | BS109: -999 | BT109: -999 | BU109: 60 | BV109: 0.677988166 | BX109: -999 | BY109: -999 | CA109: 33.5 | CB109: 0.7115479293 | CC109: 0.4156912424
O110: x *** | P110: x ** | R110: x * | AA110: =IF(ISNA(AP89),NA(),IF(BR8,Z103,NA())) ->  | AB110: 1 | AE110: 19 | AG110: 7 | AH110: -1 | AI110: 2.415 | AY110: -64 | BA110: 4.5 | BQ110: 0.431186419 | BS110: -999 | BT110: -999 | BU110: 61 | BV110: 0.4737413395 | BX110: -999 | BY110: -999 | CA110: 34 | CB110: 0.7261490371 | CC110: 0.4295573582
N111: 1 | O111: =O84+$P$107 -> 819.5 | P111: =O88+$P$107 -> 619.5 | R111: =O93+$P$107 -> 419.5 | AA111: =IF(ISNA(AN89),NA(),IF(BR8,Z104,NA())) ->  | AB111: 1 | AE111: 20 | AG111: 7 | AH111: 1 | AI111: 2.415 | AY111: -62 | BA111: 4.5 | BQ111: 0.7952270471 | BS111: -999 | BT111: -999 | BU111: 62 | BV111: 0.5538336132 | BX111: -999 | BY111: -999 | CA111: 34.5 | CB111: 0.7405867512 | CC111: 0.4436086607
N112: 2 | O112: =O111+$P$108 -> 820.305 | P112: =P111+$P$108 -> 620.305 | R112: =R111+$P$108 -> 420.305 | AA112: =IF(ISNA(AL89),NA(),IF(BR8,Z105,NA())) ->  | AB112: 1 | AE112: 21 | AG112: 9 | AH112: -1 | AI112: 2.415 | AY112: -60 | BA112: 4.5 | BQ112: 0.8085112087 | BS112: -999 | BT112: -999 | BU112: 63 | BV112: 0.3315587062 | BX112: -999 | BY112: -999 | CA112: 35 | CB112: 0.754839602 | CC112: 0.4578333618
N113: 3 | O113: 821.11 | P113: 621.11 | R113: 421.11 | AA113: =IF(ISNA(AJ89),NA(),IF(BR8,Z106,NA())) ->  | AB113: 1 | AE113: 22 | AG113: 9 | AH113: 1 | AI113: 2.415 | AY113: -58 | BA113: 4.5 | BQ113: 0.5980742835 | BS113: -999 | BT113: -999 | BU113: 64 | BV113: 0.3726518396 | BX113: -999 | BY113: -999 | CA113: 35.5 | CB113: 0.7688860499 | CC113: 0.4722189613
N114: 4 | O114: 821.915 | P114: 621.915 | R114: 421.915 | Z114: =AY87-$P$83 -> -0.2 | AA114: =AY89-$P$83 -> -0.2 | AE114: 23 | AG114: 11 | AH114: -1 | AI114: 2.415 | AY114: -56 | BA114: 4.5 | BQ114: 0.6094741039 | BR114: =IF(AND($BT$7,$BU114<=$BP$8),$J$6+$J$5*NORMSINV(BQ114),"") ->  | BS114: =IF(AND($BT$2,BR114<>"",$G$4<>""),BR114,-999) -> -999 | BT114: =IF(BS114=-999,-999,2) -> -999 | BU114: 65 | BV114: 0.2407620717 | BW114: =IF(AND($BT$7,$BU114<=$BP$8),$J$4+$J$5*NORMSINV(BV114),"") ->  | BX114: =IF(AND($BT$2,BW114<>"",$G$4<>""),BW114,-999) -> -999 | BY114: =IF(BX114=-999,-999,0) -> -999 | CA114: 36 | CB114: 0.7827045382 | CC114: 0.486752256
N115: 5 | O115: 822.72 | P115: 622.72 | R115: 422.72 | Z115: x ? | AA115: x >.10 | AB115: y | AE115: 24 | AG115: 11 | AH115: 1 | AI115: 2.415 | AY115: -54 | BA115: 4.5 | BQ115: =MOD(BQ114*10000013,1) -> 0.9621414505 | BS115: -999 | BT115: -999 | BU115: 66 | BV115: =MOD(BV114*10000013,1) -> 0.8467469607 | BX115: -999 | BY115: -999 | CA115: 36.5 | CB115: 0.7962735471 | CC115: 0.501419351
N116: 6 | O116: 823.525 | P116: 623.525 | R116: 423.525 | Z116: =O98+$P$107 -> 219.5 | AA116: =O103+$P$107 -> 19.5 | AB116: =IF($BR$12,P83,NA()) -> 0.2 | AE116: 25 | AG116: 1 | AH116: -1 | AI116: 4.025 | AY116: -52 | BA116: 4.5 | BQ116: 0.0127841346 | BS116: -999 | BT116: -999 | BU116: 67 | BV116: 0.6142590363 | BX116: -999 | BY116: -999 | CA116: 37 | CB116: 0.8095716487 | CC116: 0.5162056739
N117: 7 | O117: 824.33 | P117: 624.33 | R117: 424.33 | Z117: =Z116+$P$108 -> 220.305 | AA117: =AA116+$P$108 -> 20.305 | AB117: =AB116 -> 0.2 | AE117: 26 | AG117: 1 | AH117: 1 | AI117: 4.025 | AY117: -50 | BA117: 4.5 | BQ117: 0.512159612 | BS117: -999 | BT117: -999 | BU117: 68 | BV117: 0.3479461018 | BX117: -999 | BY117: -999 | CA117: 37.5 | CB117: 0.8225775624 | CC117: 0.531095991
N118: 8 | O118: 825.135 | P118: 625.135 | R118: 425.135 | Z118: 221.11 | AA118: 21.11 | AB118: 0.2 | AE118: 27 | AG118: 3 | AH118: -1 | AI118: 4.025 | AY118: -48 | BA118: 4.5 | BQ118: 0.7783728652 | BS118: -999 | BT118: -999 | BU118: 69 | BV118: 0.5412953962 | BX118: -999 | BY118: -999 | CA118: 38 | CB118: 0.8352702114 | CC118: 0.5460744266
N119: 9 | O119: 825.94 | P119: 625.94 | R119: 425.94 | Z119: 221.915 | AA119: 21.915 | AB119: 0.2 | AE119: 28 | AG119: 3 | AH119: 1 | AI119: 4.025 | AY119: -46 | BA119: 4.5 | BQ119: 0.7705496512 | BS119: -999 | BT119: -999 | BU119: 70 | BV119: 0.9984807465 | BX119: -999 | BY119: -999 | CA119: 38.5 | CB119: 0.8476287787 | CC119: 0.5611244848
N120: 10 | O120: 826.745 | P120: 626.745 | R120: 426.745 | Z120: 222.72 | AA120: 22.72 | AB120: 0.2 | AE120: 29 | AG120: 5 | AH120: -1 | AI120: 4.025 | AY120: -44 | BA120: 4.5 | BQ120: 0.5294988863 | BS120: -999 | BT120: -999 | BU120: 71 | BV120: 0.4454751629 | BX120: -999 | BY120: -999 | CA120: 39 | CB120: 0.8596327636 | CC120: 0.5762290737
N121: 11 | O121: 827.55 | P121: 627.55 | R121: 427.55 | Z121: 223.525 | AA121: 23.525 | AB121: 0.2 | AE121: 30 | AG121: 5 | AH121: 1 | AI121: 4.025 | AY121: -42 | BA121: 4.5 | BQ121: 0.7466556691 | BS121: -999 | BT121: -999 | BU121: 72 | BV121: 0.4205594901 | BX121: -999 | BY121: -999 | CA121: 39.5 | CB121: 0.8712620381 | CC121: 0.5913705322
N122: 12 | O122: 828.355 | P122: 628.355 | R122: 428.355 | Z122: 224.33 | AA122: 24.33 | AB122: 0.2 | AE122: 31 | AG122: 7 | AH122: -1 | AI122: 4.025 | AY122: -40 | BA122: 4.5 | BQ122: 0.3971569948 | BS122: -999 | BT122: -999 | BU122: 73 | BV122: 0.3682688642 | BX122: -999 | BY122: -999 | CA122: 40 | CB122: 0.8824969026 | CC122: 0.6065306597
N123: 13 | O123: 829.16 | P123: 629.16 | R123: 429.16 | Z123: 225.135 | AA123: 25.135 | AB123: 0.2 | AE123: 32 | AG123: 7 | AH123: 1 | AI123: 4.025 | AY123: -38 | BA123: 4.5 | BQ123: 0.1109393202 | BS123: -999 | BT123: -999 | BU123: 74 | BV123: 0.4297884498 | BX123: -999 | BY123: -999 | CA123: 40.5 | CB123: 0.8933181416 | CC123: 0.6216907477
N124: 14 | O124: 829.965 | P124: 629.965 | R124: 429.965 | Z124: 225.94 | AA124: 25.94 | AB124: 0.2 | AE124: 33 | AG124: 9 | AH124: -1 | AI124: 4.025 | AY124: -36 | AZ124: =IF($BT$5,$BT$12+AY124,NA()) ->  | BA124: =$BS$14 -> 4.5 | BQ124: 0.6439795606 | BS124: -999 | BT124: -999 | BU124: 75 | BV124: 0.08504137583 | BX124: -999 | BY124: -999 | CA124: 41 | CB124: 0.9037070779 | CC124: 0.6368316144
N125: 15 | O125: 830.77 | P125: 630.77 | R125: 430.77 | Z125: 226.745 | AA125: 26.745 | AB125: 0.2 | AE125: 34 | AG125: 9 | AH125: 1 | AI125: 4.025 | AY125: -34 | BA125: 4.5 | BQ125: 0.9775725864 | BS125: -999 | BT125: -999 | BU125: 76 | BV125: 0.8638455812 | BX125: -999 | BY125: -999 | CA125: 41.5 | CB125: 0.9136456264 | CC125: 0.6519336409
N126: 16 | O126: 831.575 | P126: 631.575 | R126: 431.575 | Z126: 227.55 | AA126: 27.55 | AB126: 0.2 | AE126: 35 | AG126: 11 | AH126: -1 | AI126: 4.025 | AY126: -32 | BA126: 4.5 | BQ126: 0.5723175816 | BS126: -999 | BT126: -999 | BU126: 77 | BV126: 0.04188053496 | BX126: -999 | BY126: -999 | CA126: 42 | CB126: 0.9231163464 | CC126: 0.6669768109
N127: 17 | O127: 832.38 | P127: 632.38 | R127: 432.38 | Z127: 228.355 | AA127: 28.355 | AB127: 0.2 | AE127: 36 | AG127: 11 | AH127: 1 | AI127: 4.025 | AY127: -30 | BA127: 4.5 | BQ127: 0.2563664876 | BS127: -999 | BT127: -999 | BU127: 78 | BV127: 0.894065151 | BX127: -999 | BY127: -999 | CA127: 42.5 | CB127: 0.9321024924 | CC127: 0.6819407512
N128: 18 | O128: 833.185 | P128: 633.185 | R128: 433.185 | Z128: 229.16 | AA128: 29.16 | AB128: 0.2 | AE128: 37 | AG128: 1 | AH128: -1 | AI128: 5.635 | AY128: -28 | BA128: 4.5 | BQ128: 0.208688926 | BS128: -999 | BT128: -999 | BU128: 79 | BV128: 0.1327577848 | BX128: -999 | BY128: -999 | CA128: 43 | CB128: 0.9405880634 | CC128: 0.6968047755
N129: 19 | O129: 833.99 | P129: 633.99 | R129: 433.99 | Z129: 229.965 | AA129: 29.965 | AB129: 0.2 | AE129: 38 | AG129: 1 | AH129: 1 | AI129: 5.635 | AY129: -26 | BA129: 4.5 | BQ129: 0.9724732302 | BS129: -999 | BT129: -999 | BU129: 80 | BV129: 0.5738386158 | BX129: -999 | BY129: -999 | CA129: 43.5 | CB129: 0.9485578504 | CC129: 0.7115479293
N130: 20 | O130: 834.795 | P130: 634.795 | R130: 434.795 | Z130: 230.77 | AA130: 30.77 | AB130: 0.2 | AE130: 39 | AG130: 3 | AH130: -1 | AI130: 5.635 | AY130: -24 | BA130: 4.5 | BQ130: 0.9442812614 | BS130: -999 | BT130: -999 | BU130: 81 | BV130: 0.6178021003 | BX130: -999 | BY130: -999 | CA130: 44 | CB130: 0.9559974818 | CC130: 0.7261490371
N131: 21 | O131: 835.6 | P131: 635.6 | R131: 435.6 | Z131: 231.575 | AA131: 31.575 | AB131: 0.2 | AE131: 40 | AG131: 3 | AH131: 1 | AI131: 5.635 | AY131: -22 | BA131: 4.5 | BQ131: 0.8897992931 | BS131: -999 | BT131: -999 | BU131: 82 | BV131: 0.03398815729 | BX131: -999 | BY131: -999 | CA131: 44.5 | CB131: 0.9628934665 | CC131: 0.7405867512
N132: 22 | O132: 836.405 | P132: 636.405 | R132: 436.405 | Z132: 232.38 | AA132: 32.38 | AB132: 0.2 | AE132: 41 | AG132: 5 | AH132: -1 | AI132: 5.635 | AY132: -20 | BA132: 4.5 | BQ132: 0.4986971729 | BS132: -999 | BT132: -999 | BU132: 83 | BV132: 0.01471844502 | BX132: -999 | BY132: -999 | CA132: 45 | CB132: 0.9692332345 | CC132: 0.754839602
N133: 23 | O133: 837.21 | P133: 637.21 | R133: 437.21 | Z133: 233.185 | AA133: 33.185 | AB133: 0.2 | AE133: 42 | AG133: 5 | AH133: 1 | AI133: 5.635 | AY133: -18 | BA133: 4.5 | BQ133: 0.2115669511 | BS133: -999 | BT133: -999 | BU133: 84 | BV133: 0.6415191237 | BX133: -999 | BY133: -999 | CA133: 45.5 | CB133: 0.9750051753 | CC133: 0.7688860499
N134: 24 | O134: 838.015 | P134: 638.015 | R134: 438.015 | Z134: 233.99 | AA134: 33.99 | AB134: 0.2 | AE134: 43 | AG134: 7 | AH134: -1 | AI134: 5.635 | AY134: -16 | BA134: 4.5 | BQ134: 0.2616289668 | BS134: -999 | BT134: -999 | BU134: 85 | BV134: 0.5766320098 | BX134: -999 | BY134: -999 | CA134: 46 | CB134: 0.9801986733 | CC134: 0.7827045382
N135: 25 | O135: 838.82 | P135: 638.82 | R135: 438.82 | Z135: 234.795 | AA135: 34.795 | AB135: 0.2 | AE135: 44 | AG135: 7 | AH135: 1 | AI135: 5.635 | AY135: -14 | BA135: 4.5 | BQ135: 0.06896173581 | BS135: -999 | BT135: -999 | BU135: 86 | BV135: 0.5944076274 | BX135: -999 | BY135: -999 | CA135: 46.5 | CB135: 0.9848041402 | CC135: 0.7962735471
N136: 26 | O136: 839.625 | P136: 639.625 | R136: 439.625 | Z136: 235.6 | AA136: 35.6 | AB136: 0.2 | AE136: 45 | AG136: 9 | AH136: -1 | AI136: 5.635 | AY136: -12 | BA136: 4.5 | BQ136: 0.2546506636 | BS136: -999 | BT136: -999 | BU136: 87 | BV136: 0.0008894819766 | BX136: -999 | BY136: -999 | CA136: 47 | CB136: 0.9888130446 | CC136: 0.8095716487
N137: 27 | O137: 840.43 | P137: 640.43 | R137: 440.43 | Z137: 236.405 | AA137: 36.405 | AB137: 0.2 | AE137: 46 | AG137: 9 | AH137: 1 | AI137: 5.635 | AY137: -10 | BA137: 4.5 | BQ137: 0.9463033341 | BS137: -999 | BT137: -999 | BU137: 88 | BV137: 0.8313295487 | BX137: -999 | BY137: -999 | CA137: 47.5 | CB137: 0.9922179383 | CC137: 0.8225775624
N138: 28 | O138: 841.235 | P138: 641.235 | R138: 441.235 | Z138: 237.21 | AA138: 37.21 | AB138: 0.2 | AE138: 47 | AG138: 11 | AH138: -1 | AI138: 5.635 | AY138: -8 | BA138: 4.5 | BQ138: 0.6428146772 | BS138: -999 | BT138: -999 | BU138: 89 | BV138: 0.2945985962 | BX138: -999 | BY138: -999 | CA138: 48 | CB138: 0.9950124792 | CC138: 0.8352702114
N139: 29 | O139: 842.04 | P139: 642.04 | R139: 442.04 | Z139: 238.015 | AA139: 38.015 | AB139: 0.2 | AE139: 48 | AG139: 11 | AH139: 1 | AI139: 5.635 | AY139: -6 | BA139: 4.5 | BQ139: 0.128677424 | BS139: -999 | BT139: -999 | BU139: 90 | BV139: 0.7914871965 | BX139: -999 | BY139: -999 | CA139: =CA138+$BR$1 -> 48.5 | CB139: 0.9971914514 | CC139: 0.8476287787
N140: 30 | O140: 842.845 | P140: 642.845 | R140: 442.845 | Z140: 238.82 | AA140: 38.82 | AB140: 0.2 | AE140: 49 | AG140: 1 | AH140: -1 | AI140: 7.245 | AY140: -4 | BA140: 4.5 | BQ140: 0.9132406823 | BS140: -999 | BT140: -999 | BU140: 91 | BV140: 0.2539372165 | BX140: -999 | BY140: -999 | CA140: 49 | CB140: 0.9987507809 | CC140: 0.8596327636
N141: 31 | O141: 843.65 | P141: 643.65 | R141: 443.65 | Z141: 239.625 | AA141: 39.625 | AB141: 0.2 | AE141: 50 | AG141: 1 | AH141: 1 | AI141: 7.245 | AY141: -2 | BA141: 4.5 | BQ141: 0.6954659484 | BS141: -999 | BT141: -999 | BU141: 92 | BV141: 0.4659398738 | BX141: -999 | BY141: -999 | CA141: 49.5 | CB141: 0.9996875488 | CC141: 0.8712620381
N142: 32 | O142: 844.455 | P142: 644.455 | R142: 444.455 | Z142: 240.43 | AA142: 40.43 | AB142: 0.2 | AE142: 51 | AG142: 3 | AH142: -1 | AI142: 7.245 | AY142: 0 | BA142: 4.5 | BQ142: 0.5253841691 | BS142: -999 | BT142: -999 | BU142: 93 | BV142: 0.7955131996 | BX142: -999 | BY142: -999 | CA142: 50 | CB142: 1 | CC142: 0.8824969026
N143: 33 | O143: 845.26 | P143: 645.26 | R143: 445.26 | Z143: 241.235 | AA143: 41.235 | AB143: 0.2 | AE143: 52 | AG143: 3 | AH143: 1 | AI143: 7.245 | AY143: 2 | BA143: 4.5 | BQ143: 0.5207133256 | BS143: -999 | BT143: -999 | BU143: 94 | BV143: 0.3380946014 | BX143: -999 | BY143: -999 | CA143: 50.5 | CB143: 0.9996875488 | CC143: 0.8933181416
N144: 34 | O144: =O143+$P$108 -> 846.065 | P144: =P143+$P$108 -> 646.065 | R144: =R143+$P$108 -> 446.065 | Z144: 242.04 | AA144: 42.04 | AB144: 0.2 | AE144: 53 | AG144: 5 | AH144: -1 | AI144: 7.245 | AY144: 4 | BA144: 4.5 | BQ144: 0.02517218515 | BS144: -999 | BT144: -999 | BU144: 95 | BV144: 0.4093062896 | BX144: -999 | BY144: -999 | CA144: 51 | CB144: 0.9987507809 | CC144: 0.9037070779
N145: 35 | O145: 846.87 | P145: 646.87 | R145: 446.87 | Z145: 242.845 | AA145: 42.845 | AB145: 0.2 | AE145: 54 | AG145: 5 | AH145: 1 | AI145: 7.245 | AY145: 6 | BA145: 4.5 | BQ145: 0.1787660979 | BS145: -999 | BT145: -999 | BU145: 96 | BV145: 0.217263246 | BX145: -999 | BY145: -999 | CA145: 51.5 | CB145: 0.9971914514 | CC145: 0.9136456264
N146: 36 | O146: 847.675 | P146: 647.675 | R146: 447.675 | Z146: 243.65 | AA146: 43.65 | AB146: 0.2 | AE146: 55 | AG146: 7 | AH146: -1 | AI146: 7.245 | AY146: 8 | BA146: 4.5 | BQ146: 0.3026937656 | BR146: =IF(AND($BT$7,$BU146<=$BP$8),$J$6+$J$5*NORMSINV(BQ146),"") ->  | BS146: =IF(AND($BT$2,BR146<>"",$G$4<>""),BR146,-999) -> -999 | BT146: =IF(BS146=-999,-999,2) -> -999 | BU146: 97 | BV146: 0.2839732934 | BW146: =IF(AND($BT$7,$BU146<=$BP$8),$J$4+$J$5*NORMSINV(BV146),"") ->  | BX146: =IF(AND($BT$2,BW146<>"",$G$4<>""),BW146,-999) -> -999 | BY146: =IF(BX146=-999,-999,0) -> -999 | CA146: 52 | CB146: 0.9950124792 | CC146: 0.9231163464
N147: 37 | O147: 848.48 | P147: 648.48 | R147: 448.48 | Z147: 244.455 | AA147: 44.455 | AB147: 0.2 | AE147: 56 | AG147: 7 | AH147: 1 | AI147: 7.245 | AY147: 10 | BA147: 4.5 | BQ147: =MOD(BQ146*10000013,1) -> 0.5911235176 | BS147: -999 | BT147: -999 | BU147: 98 | BV147: =MOD(BV146*10000013,1) -> 0.6254423056 | BX147: -999 | BY147: -999 | CA147: 52.5 | CB147: 0.9922179383 | CC147: 0.9321024924
N148: 38 | O148: 849.285 | P148: 649.285 | R148: 449.285 | Z148: 245.26 | AA148: 45.26 | AB148: 0.2 | AE148: 57 | AG148: 9 | AH148: -1 | AI148: 7.245 | AY148: 12 | BA148: 4.5 | BQ148: 0.86063255 | BS148: -999 | BT148: -999 | BU148: 99 | BV148: 0.1865477879 | BX148: -999 | BY148: -999 | CA148: 53 | CB148: 0.9888130446 | CC148: 0.9405880634
N149: 39 | O149: 850.09 | P149: 650.09 | R149: 450.09 | Z149: =Z148+$P$108 -> 246.065 | AA149: =AA148+$P$108 -> 46.065 | AB149: =AB148 -> 0.2 | AE149: 58 | AG149: 9 | AH149: 1 | AI149: 7.245 | AY149: 14 | BA149: 4.5 | BQ149: 0.6879365705 | BS149: -999 | BT149: -999 | BU149: 100 | BV149: 0.3037216011 | BX149: -999 | BY149: -999 | CA149: 53.5 | CB149: 0.9848041402 | CC149: 0.9485578504
N150: 40 | O150: 850.895 | P150: 650.895 | R150: 450.895 | Z150: 246.87 | AA150: 46.87 | AB150: 0.2 | AE150: 59 | AG150: 11 | AH150: -1 | AI150: 7.245 | AY150: 16 | BA150: 4.5 | BQ150: 0.6481290869 | BS150: -999 | BT150: -999 | BU150: 101 | BV150: 0.9598156083 | BX150: -999 | BY150: -999 | CA150: 54 | CB150: 0.9801986733 | CC150: 0.9559974818
N151: 41 | O151: 851.7 | P151: 651.7 | R151: 451.7 | Z151: 247.675 | AA151: 47.675 | AB151: 0.2 | AE151: 60 | AG151: 11 | AH151: 1 | AI151: 7.245 | AY151: 18 | BA151: 4.5 | BQ151: 0.2950929366 | BS151: -999 | BT151: -999 | BU151: 102 | BV151: 0.5609781239 | BX151: -999 | BY151: -999 | CA151: 54.5 | CB151: 0.9750051753 | CC151: 0.9628934665
N152: 42 | O152: 852.505 | P152: 652.505 | R152: 452.505 | Z152: 248.48 | AA152: 48.48 | AB152: 0.2 | AE152: 61 | AG152: 1 | AH152: -1 | AI152: 8.855 | AY152: 20 | BA152: 4.5 | BQ152: 0.2022603266 | BS152: -999 | BT152: -999 | BU152: 103 | BV152: 0.5318973679 | BX152: -999 | BY152: -999 | CA152: 55 | CB152: 0.9692332345 | CC152: 0.9692332345
N153: 43 | O153: 853.31 | P153: 653.31 | R153: 453.31 | Z153: 249.285 | AA153: 49.285 | AB153: 0.2 | AE153: 62 | AG153: 1 | AH153: 1 | AI153: 8.855 | AY153: 22 | BA153: 4.5 | BQ153: 0.8953253888 | BS153: -999 | BT153: -999 | BU153: 104 | BV153: 0.5937612895 | BX153: -999 | BY153: -999 | CA153: 55.5 | CB153: 0.9628934665 | CC153: 0.9750051753
N154: 44 | O154: 854.115 | P154: 654.115 | R154: 454.115 | Z154: 250.09 | AA154: 50.09 | AB154: 0.2 | AE154: 63 | AG154: 3 | AH154: -1 | AI154: 8.855 | AY154: 24 | BA154: 4.5 | BQ154: 0.5268238001 | BS154: -999 | BT154: -999 | BU154: 105 | BV154: 0.6138192583 | BX154: -999 | BY154: -999 | CA154: 56 | CB154: 0.9559974818 | CC154: 0.9801986733
N155: 45 | O155: 854.92 | P155: 654.92 | R155: 454.92 | Z155: 250.895 | AA155: 50.895 | AB155: 0.2 | AE155: 64 | AG155: 3 | AH155: 1 | AI155: 8.855 | AY155: 26 | BA155: 4.5 | BQ155: 0.8492811285 | BS155: -999 | BT155: -999 | BU155: 106 | BV155: 0.5625258479 | BX155: -999 | BY155: -999 | CA155: 56.5 | CB155: 0.9485578504 | CC155: 0.9848041402
N156: 46 | O156: 855.725 | P156: 655.725 | R156: 455.725 | Z156: 251.7 | AA156: 51.7 | AB156: 0.2 | AE156: 65 | AG156: =2*ROUNDUP((MOD(AE156-1,$AB$94)+1)/2,0)-1 -> 5 | AH156: =IF(AG156=AG157,-1,1) -> -1 | AI156: =IF($BT$7,$AB$87*(0.5+INT((AE156-0.5)/$AB$94)),NA()) -> 8.855 | AJ156: =IF($BR$11,$AM$87+$AB$90*AH156*AG156,NA()) ->  | AK156: =IF($AG$83<AE156,NA(),AI156) ->  | AL156: =IF($BR$11,$AN$87+$AB$90*AH156*AG156,NA()) ->  | AM156: =IF($AH$83<AE156,NA(),AI156) ->  | AN156: =IF($BR$11,$AO$87+$AB$90*AH156*AG156,NA()) ->  | AO156: =IF($AI$83<AE156,NA(),AI156) ->  | AP156: =IF($BR$11,$AP$87+$AB$90*AH156*AG156,NA()) ->  | AQ156: =IF($AJ$83<AE156,NA(),AI156) ->  | AR156: =IF($BR$11,$AQ$87+$AB$90*AH156*AG156,NA()) ->  | AS156: =IF($AK$83<AE156,NA(),AI156) ->  | AY156: 28 | AZ156: =IF($BT$5,$BT$12+AY156,NA()) ->  | BA156: =$BS$14 -> 4.5 | BQ156: 0.3256139867 | BS156: -999 | BT156: -999 | BU156: 107 | BV156: 0.7921033818 | BX156: -999 | BY156: -999 | CA156: 57 | CB156: 0.9405880634 | CC156: 0.9888130446
N157: 47 | O157: 856.53 | P157: 656.53 | R157: 456.53 | Z157: 252.505 | AA157: 52.505 | AB157: 0.2 | AE157: 66 | AG157: 5 | AH157: 1 | AI157: 8.855 | AY157: 30 | BA157: 4.5 | BQ157: 0.0999895595 | BS157: -999 | BT157: -999 | BU157: 108 | BV157: 0.1156187002 | BX157: -999 | BY157: -999 | CA157: 57.5 | CB157: 0.9321024924 | CC157: 0.9922179383
N158: 48 | O158: 857.335 | P158: 657.335 | R158: 457.335 | Z158: 253.31 | AA158: 53.31 | AB158: 0.2 | AE158: 67 | AG158: 7 | AH158: -1 | AI158: 8.855 | AY158: 32 | BA158: 4.5 | BQ158: 0.8948783688 | BS158: -999 | BT158: -999 | BU158: 109 | BV158: 0.5046588648 | BX158: -999 | BY158: -999 | CA158: 58 | CB158: 0.9231163464 | CC158: 0.9950124792
N159: 49 | O159: 858.14 | P159: 658.14 | R159: 458.14 | Z159: 254.115 | AA159: 54.115 | AB159: 0.2 | AE159: 68 | AG159: 7 | AH159: 1 | AI159: 8.855 | AY159: 34 | BA159: 4.5 | BQ159: 0.3216659985 | BS159: -999 | BT159: -999 | BU159: 110 | BV159: 0.2086758707 | BX159: -999 | BY159: -999 | CA159: 58.5 | CB159: 0.9136456264 | CC159: 0.9971914514
N160: 50 | O160: 858.945 | P160: 658.945 | R160: 458.945 | Z160: 254.92 | AA160: 54.92 | AB160: 0.2 | AE160: 69 | AG160: 9 | AH160: -1 | AI160: 8.855 | AY160: 36 | BA160: 4.5 | BQ160: 0.1671406738 | BS160: -999 | BT160: -999 | BU160: 111 | BV160: 0.419505002 | BX160: -999 | BY160: -999 | CA160: 59 | CB160: 0.9037070779 | CC160: 0.9987507809
N161: 51 | O161: 859.75 | P161: 659.75 | R161: 459.75 | Z161: 255.725 | AA161: 55.725 | AB161: 0.2 | AE161: 70 | AG161: 9 | AH161: 1 | AI161: 8.855 | AY161: 38 | BA161: 4.5 | BQ161: 0.9112888239 | BS161: -999 | BT161: -999 | BU161: 112 | BV161: 0.4733358864 | BX161: -999 | BY161: -999 | CA161: 59.5 | CB161: 0.8933181416 | CC161: 0.9996875488
N162: 52 | O162: 860.555 | P162: 660.555 | R162: 460.555 | Z162: 256.53 | AA162: 56.53 | AB162: 0.2 | AE162: 71 | AG162: 11 | AH162: -1 | AI162: 8.855 | AY162: 40 | BA162: 4.5 | BQ162: 0.08607880399 | BS162: -999 | BT162: -999 | BU162: 113 | BV162: 0.0171076823 | BX162: -999 | BY162: -999 | CA162: 60 | CB162: 0.8824969026 | CC162: 1
N163: 53 | O163: 861.36 | P163: 661.36 | R163: 461.36 | Z163: 257.335 | AA163: 57.335 | AB163: 0.2 | AE163: 72 | AG163: 11 | AH163: 1 | AI163: 8.855 | AY163: 42 | BA163: 4.5 | BQ163: 0.1588875614 | BS163: -999 | BT163: -999 | BU163: 114 | BV163: 0.04542581178 | BX163: -999 | BY163: -999 | CA163: 60.5 | CB163: 0.8712620381 | CC163: 0.9996875488
N164: 54 | O164: 862.165 | P164: 662.165 | R164: 462.165 | Z164: 258.14 | AA164: 58.14 | AB164: 0.2 | AE164: 73 | AG164: 1 | AH164: -1 | AI164: 10.465 | AY164: 44 | BA164: 4.5 | BQ164: 0.6796449535 | BS164: -999 | BT164: -999 | BU164: 115 | BV164: 0.708360346 | BX164: -999 | BY164: -999 | CA164: 61 | CB164: 0.8596327636 | CC164: 0.9987507809
N165: 55 | O165: 862.97 | P165: 662.97 | R165: 462.97 | Z165: 258.945 | AA165: 58.945 | AB165: 0.2 | AE165: 74 | AG165: 1 | AH165: 1 | AI165: 10.465 | AY165: 46 | BA165: 4.5 | BQ165: 0.3699794076 | BS165: -999 | BT165: -999 | BU165: 116 | BV165: 0.6690261904 | BX165: -999 | BY165: -999 | CA165: 61.5 | CB165: 0.8476287787 | CC165: 0.9971914514
N166: 56 | O166: 863.775 | P166: 663.775 | R166: 463.775 | Z166: 259.75 | AA166: 59.75 | AB166: 0.2 | AE166: 75 | AG166: 3 | AH166: -1 | AI166: 10.465 | AY166: 48 | BA166: 4.5 | BQ166: 0.8861154132 | BS166: -999 | BT166: -999 | BU166: 117 | BV166: 0.601490723 | BX166: -999 | BY166: -999 | CA166: 62 | CB166: 0.8352702114 | CC166: 0.9950124792
N167: 57 | O167: 864.58 | P167: 664.58 | R167: 464.58 | Z167: 260.555 | AA167: 60.555 | AB167: 0.2 | AE167: 76 | AG167: 3 | AH167: 1 | AI167: 10.465 | AY167: 50 | BA167: 4.5 | BQ167: 0.6510916911 | BS167: -999 | BT167: -999 | BU167: 118 | BV167: 0.04907114245 | BX167: -999 | BY167: -999 | CA167: 62.5 | CB167: 0.8225775624 | CC167: 0.9922179383
N168: 58 | O168: 865.385 | P168: 665.385 | R168: 465.385 | Z168: 261.36 | AA168: 61.36 | AB168: 0.2 | AE168: 77 | AG168: 5 | AH168: -1 | AI168: 10.465 | AY168: 52 | BA168: 4.5 | BQ168: 0.3752575628 | BS168: -999 | BT168: -999 | BU168: 119 | BV168: 0.06242460199 | BX168: -999 | BY168: -999 | CA168: 63 | CB168: 0.8095716487 | CC168: 0.9888130446
N169: 59 | O169: 866.19 | P169: 666.19 | R169: 466.19 | Z169: 262.165 | AA169: 62.165 | AB169: 0.2 | AE169: 78 | AG169: 5 | AH169: 1 | AI169: 10.465 | AY169: 54 | BA169: 4.5 | BQ169: 0.5068077706 | BS169: -999 | BT169: -999 | BU169: 120 | BV169: 0.8313898686 | BX169: -999 | BY169: -999 | CA169: 63.5 | CB169: 0.7962735471 | CC169: 0.9848041402
N170: 60 | O170: 866.995 | P170: 666.995 | R170: 466.995 | Z170: 262.97 | AA170: 62.97 | AB170: 0.2 | AE170: 79 | AG170: 7 | AH170: -1 | AI170: 10.465 | AY170: 56 | BA170: 4.5 | BQ170: 0.2943015508 | BS170: -999 | BT170: -999 | BU170: 121 | BV170: 0.4943878818 | BX170: -999 | BY170: -999 | CA170: 64 | CB170: =IF($BV$1,NORMDIST(CA170,$AB$3,$AB$7,FALSE)/$BR$2,NA()) -> 0.7827045382 | CC170: =IF($BV$1,NORMDIST(CA170,$AB$5,$AB$7,FALSE)/$BR$2,NA()) -> 0.9801986733
N171: 61 | O171: 867.8 | P171: 667.8 | R171: 467.8 | Z171: 263.775 | AA171: 63.775 | AB171: 0.2 | AE171: 80 | AG171: 7 | AH171: 1 | AI171: 10.465 | AY171: 58 | BA171: 4.5 | BQ171: 0.334273871 | BS171: -999 | BT171: -999 | BU171: 122 | BV171: 0.2453458104 | BX171: -999 | BY171: -999 | CA171: =CA170+$BR$1 -> 64.5 | CB171: 0.7688860499 | CC171: 0.9750051753
N172: 62 | O172: 868.605 | P172: 668.605 | R172: 468.605 | Z172: 264.58 | AA172: 64.58 | AB172: 0.2 | AE172: 81 | AG172: 9 | AH172: -1 | AI172: 10.465 | AY172: 60 | BA172: 4.5 | BQ172: 0.05590416119 | BS172: -999 | BT172: -999 | BU172: 123 | BV172: 0.2937781531 | BX172: -999 | BY172: -999 | CA172: 65 | CB172: 0.754839602 | CC172: 0.9692332345
N173: 63 | O173: 869.41 | P173: 669.41 | R173: 469.41 | Z173: 265.385 | AA173: 65.385 | AB173: 0.2 | AE173: 82 | AG173: 9 | AH173: 1 | AI173: 10.465 | AY173: 62 | BA173: 4.5 | BQ173: 0.3386043571 | BS173: -999 | BT173: -999 | BU173: 124 | BV173: 0.3504797164 | BX173: -999 | BY173: -999 | CA173: 65.5 | CB173: 0.7405867512 | CC173: 0.9628934665
N174: 64 | O174: 870.215 | P174: 670.215 | R174: 470.215 | Z174: 266.19 | AA174: 66.19 | AB174: 0.2 | AE174: 83 | AG174: 11 | AH174: -1 | AI174: 10.465 | AY174: 64 | BA174: 4.5 | BQ174: 0.9727923684 | BS174: -999 | BT174: -999 | BU174: 125 | BV174: 0.7205870617 | BX174: -999 | BY174: -999 | CA174: 66 | CB174: 0.7261490371 | CC174: 0.9559974818
N175: 65 | O175: 871.02 | P175: 671.02 | R175: 471.02 | Z175: 266.995 | AA175: 66.995 | AB175: 0.2 | AE175: 84 | AG175: 11 | AH175: 1 | AI175: 10.465 | AY175: 66 | BA175: 4.5 | BQ175: 0.330122944 | BS175: -999 | BT175: -999 | BU175: 126 | BV175: 0.984812865 | BX175: -999 | BY175: -999 | CA175: 66.5 | CB175: 0.7115479293 | CC175: 0.9485578504
N176: 66 | O176: =O175+$P$108 -> 871.825 | P176: =P175+$P$108 -> 671.825 | R176: =R175+$P$108 -> 471.825 | Z176: 267.8 | AA176: 67.8 | AB176: 0.2 | AE176: 85 | AG176: 1 | AH176: -1 | AI176: 12.075 | AY176: 68 | BA176: 4.5 | BQ176: 0.7312740795 | BS176: -999 | BT176: -999 | BU176: 127 | BV176: 0.4529047031 | BX176: -999 | BY176: -999 | CA176: 67 | CB176: 0.6968047755 | CC176: 0.9405880634
N177: 67 | O177: 872.63 | P177: 672.63 | R177: 472.63 | Z177: 268.605 | AA177: 68.605 | AB177: 0.2 | AE177: 86 | AG177: 1 | AH177: 1 | AI177: 12.075 | AY177: 70 | BA177: 4.5 | BQ177: 0.3018773459 | BS177: -999 | BT177: -999 | BU177: 128 | BV177: 0.9187166933 | BX177: -999 | BY177: -999 | CA177: 67.5 | CB177: 0.6819407512 | CC177: 0.9321024924
N178: 68 | O178: 873.435 | P178: 673.435 | R178: 473.435 | Z178: 269.41 | AA178: 69.41 | AB178: 0.2 | AE178: 87 | AG178: 3 | AH178: -1 | AI178: 12.075 | AY178: 72 | BA178: 4.5 | BQ178: 0.383303564 | BR178: =IF(AND($BT$7,$BU178<=$BP$8),$J$6+$J$5*NORMSINV(BQ178),"") ->  | BS178: =IF(AND($BT$2,BR178<>"",$G$4<>""),BR178,-999) -> -999 | BT178: =IF(BS178=-999,-999,2) -> -999 | BU178: 129 | BV178: 0.8762872983 | BW178: =IF(AND($BT$7,$BU178<=$BP$8),$J$4+$J$5*NORMSINV(BV178),"") ->  | BX178: =IF(AND($BT$2,BW178<>"",$G$4<>""),BW178,-999) -> -999 | BY178: =IF(BX178=-999,-999,0) -> -999 | CA178: 68 | CB178: 0.6669768109 | CC178: 0.9231163464
N179: 69 | O179: 874.24 | P179: 674.24 | R179: 474.24 | Z179: 270.215 | AA179: 70.215 | AB179: 0.2 | AE179: 88 | AG179: 3 | AH179: 1 | AI179: 12.075 | AY179: 74 | BA179: 4.5 | BQ179: =MOD(BQ178*10000013,1) -> 0.6233648621 | BS179: -999 | BT179: -999 | BU179: 130 | BV179: =MOD(BV178*10000013,1) -> 0.3745050821 | BX179: -999 | BY179: -999 | CA179: 68.5 | CB179: 0.6519336409 | CC179: 0.9136456264
N180: 70 | O180: 875.045 | P180: 675.045 | R180: 475.045 | Z180: 271.02 | AA180: 71.02 | AB180: 0.2 | AE180: 89 | AG180: 5 | AH180: -1 | AI180: 12.075 | AY180: 76 | BA180: 4.5 | BQ180: 0.7242890708 | BS180: -999 | BT180: -999 | BU180: 131 | BV180: 0.6900194008 | BX180: -999 | BY180: -999 | CA180: 69 | CB180: 0.6368316144 | CC180: 0.9037070779
N181: 71 | O181: 875.85 | P181: 675.85 | R181: 475.85 | Z181: =Z180+$P$108 -> 271.825 | AA181: =AA180+$P$108 -> 71.825 | AB181: =AB180 -> 0.2 | AE181: 90 | AG181: 5 | AH181: 1 | AI181: 12.075 | AY181: 78 | BA181: 4.5 | BQ181: 0.1239064001 | BS181: -999 | BT181: -999 | BU181: 132 | BV181: 0.9781555478 | BX181: -999 | BY181: -999 | CA181: 69.5 | CB181: 0.6216907477 | CC181: 0.8933181416
N182: 72 | O182: 876.655 | P182: 676.655 | R182: 476.655 | Z182: 272.63 | AA182: 72.63 | AB182: 0.2 | AE182: 91 | AG182: 7 | AH182: -1 | AI182: 12.075 | AY182: 80 | BA182: 4.5 | BQ182: 0.6113301329 | BS182: -999 | BT182: -999 | BU182: 133 | BV182: 0.193551885 | BX182: -999 | BY182: -999 | CA182: 70 | CB182: 0.6065306597 | CC182: 0.8824969026
N183: 73 | O183: 877.46 | P183: 677.46 | R183: 477.46 | Z183: 273.435 | AA183: 73.435 | AB183: 0.2 | AE183: 92 | AG183: 7 | AH183: 1 | AI183: 12.075 | AY183: 82 | BA183: 4.5 | BQ183: 0.2766064368 | BS183: -999 | BT183: -999 | BU183: 134 | BV183: 0.3658155892 | BX183: -999 | BY183: -999 | CA183: 70.5 | CB183: 0.5913705322 | CC183: 0.8712620381
N184: 74 | O184: 878.265 | P184: 678.265 | R184: 478.265 | Z184: 274.24 | AA184: 74.24 | AB184: 0.2 | AE184: 93 | AG184: 9 | AH184: -1 | AI184: 12.075 | AY184: 84 | BA184: 4.5 | BQ184: 0.9640720598 | BS184: -999 | BT184: -999 | BU184: 135 | BV184: 0.6476469655 | BX184: -999 | BY184: -999 | CA184: 71 | CB184: 0.5762290737 | CC184: 0.8596327636
N185: 75 | O185: 879.07 | P185: 679.07 | R185: 479.07 | Z185: 275.045 | AA185: 75.045 | AB185: 0.2 | AE185: 94 | AG185: 9 | AH185: 1 | AI185: 12.075 | AY185: 86 | BA185: 4.5 | BQ185: 0.131336417 | BS185: -999 | BT185: -999 | BU185: 136 | BV185: 0.0740004424 | BX185: -999 | BY185: -999 | CA185: 71.5 | CB185: 0.5611244848 | CC185: 0.8476287787
N186: 76 | O186: 879.875 | P186: 679.875 | R186: 479.875 | Z186: 275.85 | AA186: 75.85 | AB186: 0.2 | AE186: 95 | AG186: 11 | AH186: -1 | AI186: 12.075 | AY186: 88 | BA186: 4.5 | BQ186: 0.877865117 | BS186: -999 | BT186: -999 | BU186: 137 | BV186: 0.386011498 | BX186: -999 | BY186: -999 | CA186: 72 | CB186: 0.5460744266 | CC186: 0.8352702114
N187: 77 | O187: 880.68 | P187: 680.68 | R187: 480.68 | Z187: 276.655 | AA187: 76.655 | AB187: 0.2 | AE187: 96 | AG187: 11 | AH187: 1 | AI187: 12.075 | AY187: 90 | BA187: 4.5 | BQ187: 0.5826790892 | BS187: -999 | BT187: -999 | BU187: 138 | BV187: 0.9986384902 | BX187: -999 | BY187: -999 | CA187: 72.5 | CB187: 0.531095991 | CC187: 0.8225775624
N188: 78 | O188: 881.485 | P188: 681.485 | R188: 481.485 | Z188: 277.46 | AA188: 77.46 | AB188: 0.2 | AE188: 97 | AG188: 1 | AH188: -1 | AI188: 13.685 | AY188: 92 | AZ188: =IF($BT$5,$BT$12+AY188,NA()) ->  | BA188: 4.5 | BQ188: 0.4664158933 | BS188: -999 | BT188: -999 | BU188: 139 | BV188: 0.8844498117 | BX188: -999 | BY188: -999 | CA188: 73 | CB188: 0.5162056739 | CC188: 0.8095716487
N189: 79 | O189: 882.29 | P189: 682.29 | R189: 482.29 | Z189: 278.265 | AA189: 78.265 | AB189: 0.2 | AE189: 98 | AG189: 1 | AH189: 1 | AI189: 13.685 | AY189: 94 | AZ189: =IF($BT$5,$BT$12+AY189,NA()) ->  | BA189: 4.5 | BQ189: 0.9962712787 | BS189: -999 | BT189: -999 | BU189: 140 | BV189: 0.6143705789 | BX189: -999 | BY189: -999 | CA189: 73.5 | CB189: 0.501419351 | CC189: 0.7962735471
N190: 80 | O190: 883.095 | P190: 683.095 | R190: 483.095 | Z190: 279.07 | AA190: 79.07 | AB190: 0.2 | AE190: 99 | AG190: 3 | AH190: -1 | AI190: 13.685 | AY190: 96 | AZ190: =IF($BT$5,$BT$12+AY190,NA()) ->  | BA190: 4.5 | BQ190: 0.7386183552 | BS190: -999 | BT190: -999 | BU190: 141 | BV190: 0.7758173216 | BX190: -999 | BY190: -999 | CA190: 74 | CB190: 0.486752256 | CC190: 0.7827045382
N191: 81 | O191: 883.9 | P191: 683.9 | R191: 483.9 | Z191: 279.875 | AA191: 79.875 | AB191: 0.2 | AE191: 100 | AG191: 3 | AH191: 1 | AI191: 13.685 | AY191: 98 | AZ191: =IF($BT$5,$BT$12+AY191,NA()) ->  | BA191: 4.5 | BQ191: 0.1544825993 | BS191: -999 | BT191: -999 | BU191: 142 | BV191: 0.3017594907 | BX191: -999 | BY191: -999 | CA191: 74.5 | CB191: 0.4722189613 | CC191: 0.7688860499
N192: 82 | O192: 884.705 | P192: 684.705 | R192: 484.705 | Z192: 280.68 | AA192: 80.68 | AB192: 0.2 | AE192: 101 | AG192: 5 | AH192: -1 | AI192: 13.685 | AY192: 100 | AZ192: =IF($BT$5,$BT$12+AY192,NA()) ->  | BA192: 4.5 | BQ192: 0.001752089709 | BS192: -999 | BT192: -999 | BU192: 143 | BV192: 0.8303061742 | BX192: -999 | BY192: -999 | CA192: 75 | CB192: 0.4578333618 | CC192: 0.754839602
N193: 83 | O193: 885.51 | P193: 685.51 | R193: 485.51 | Z193: 281.485 | AA193: 81.485 | AB193: 0.2 | AE193: 102 | AG193: 5 | AH193: 1 | AI193: 13.685 | BQ193: 0.9198676012 | BS193: -999 | BT193: -999 | BU193: 144 | BV193: 0.536315823 | BX193: -999 | BY193: -999 | CA193: 75.5 | CB193: 0.4436086607 | CC193: 0.7405867512
N194: 84 | O194: 886.315 | P194: 686.315 | R194: 486.315 | Z194: 282.29 | AA194: 82.29 | AB194: 0.2 | AE194: 103 | AG194: 7 | AH194: -1 | AI194: 13.685 | BQ194: 0.9707352333 | BS194: -999 | BT194: -999 | BU194: 145 | BV194: 0.2018441726 | BX194: -999 | BY194: -999 | CA194: 76 | CB194: 0.4295573582 | CC194: 0.7261490371
N195: 85 | O195: 887.12 | P195: 687.12 | R195: 487.12 | Z195: 283.095 | AA195: 83.095 | AB195: 0.2 | AE195: 104 | AG195: 7 | AH195: 1 | AI195: 13.685 | BQ195: 0.952328857 | BS195: -999 | BT195: -999 | BU195: 146 | BV195: 0.3494965229 | BX195: -999 | BY195: -999 | CA195: 76.5 | CB195: 0.4156912424 | CC195: 0.7115479293
N196: 86 | O196: 887.925 | P196: 687.925 | R196: 487.925 | Z196: 283.9 | AA196: 83.9 | AB196: 0.2 | AE196: 105 | AG196: 9 | AH196: -1 | AI196: 13.685 | BQ196: 0.9506195895 | BS196: -999 | BT196: -999 | BU196: 147 | BV196: 0.7726382334 | BX196: -999 | BY196: -999 | CA196: 77 | CB196: 0.4020213831 | CC196: 0.6968047755
N197: 87 | O197: 888.73 | P197: 688.73 | R197: 488.73 | Z197: 284.705 | AA197: 84.705 | AB197: 0.2 | AE197: 106 | AG197: 9 | AH197: 1 | AI197: 13.685 | BQ197: 0.2534284852 | BS197: -999 | BT197: -999 | BU197: 148 | BV197: 0.3780823294 | BX197: -999 | BY197: -999 | CA197: 77.5 | CB197: 0.3885581275 | CC197: 0.6819407512
N198: 88 | O198: 889.535 | P198: 689.535 | R198: 489.535 | Z198: 285.51 | AA198: 85.51 | AB198: 0.2 | AE198: 107 | AG198: 11 | AH198: -1 | AI198: 13.685 | BQ198: 0.1470154338 | BS198: -999 | BT198: -999 | BU198: 149 | BV198: 0.2091436256 | BX198: -999 | BY198: -999 | CA198: 78 | CB198: 0.3753110989 | CC198: 0.6669768109
N199: 89 | O199: 890.34 | P199: 690.34 | R199: 490.34 | Z199: 286.315 | AA199: 86.315 | AB199: 0.2 | AE199: 108 | AG199: 11 | AH199: 1 | AI199: 13.685 | BQ199: 0.2487856112 | BS199: -999 | BT199: -999 | BU199: 150 | BV199: 0.9745903704 | BX199: -999 | BY199: -999 | CA199: 78.5 | CB199: 0.3622891968 | CC199: 0.6519336409
N200: 90 | O200: 891.145 | P200: 691.145 | R200: 491.145 | Z200: 287.12 | AA200: 87.12 | AB200: 0.2 | AE200: 109 | AG200: 1 | AH200: -1 | AI200: 15.295 | BQ200: 0.3466335051 | BS200: -999 | BT200: -999 | BU200: 151 | BV200: 0.3739902396 | BX200: -999 | BY200: -999 | CA200: 79 | CB200: 0.3495006002 | CC200: 0.6368316144
... 891 more rows

Sheet Random
C1: Random | I1: =(nopts+mindist+persist)/1000000 -> 0.000402 | J1: 0.000402 | K1: 0.000402 | L1: 0.000402 | M1: 0.000402 | N1: 0.000402 | O1: 0.000402 | P1: 0.000402 | Q1: 0.000402 | R1: 0.000402 | S1: 0.000402 | T1: 0.000402 | U1: 0.000402 | V1: 0.000402 | W1: 0.000402
C2: Compare a random scatter of points | I2: =(nopts+mindist+persist)/1000000 -> 0.000402 | W2: =(nopts+mindist+persist)/1000000 -> 0.000402
C3: with a scatter having minimum spacing | I3: 0.000402 | W3: 0.000402
I4: 0.000402 | W4: 0.000402
I5: 0.000402 | W5: 0.000402
I6: 0.000402 | W6: 0.000402
A7: 1 | B7: Number of points | I7: 0.000402 | W7: 0.000402
F8: =IF(F56<8,F56+2,(F56-7)*10) -> 200 | I8: 0.000402 | W8: 0.000402
I9: 0.000402 | W9: 0.000402
I10: 0.000402 | W10: 0.000402
I11: 0.000402 | W11: 0.000402
A12: 2 | B12: Minimum spacing | I12: 0.000402 | W12: 0.000402
F13: =IF(F57<101,F57/10,F57-90) -> 2 | G13: % | I13: 0.000402 | W13: 0.000402
I14: 0.000402 | W14: 0.000402
B15: Mark minimum space | I15: 0.000402 | W15: 0.000402
I16: 0.000402 | W16: 0.000402
I17: 0.000402 | W17: 0.000402
A18: 3 | I18: 0.000402 | W18: 0.000402
I19: 0.000402 | W19: 0.000402
I20: 0.000402 | W20: 0.000402
A21: 4 | B21: Progress | I21: 0.000402 | W21: 0.000402
I22: 0.000402 | W22: 0.000402
E23: Number still to do | F23: 0 | I23: 0.000402 | W23: 0.000402
I24: 0.000402 | W24: 0.000402
I25: 0.000402 | W25: 0.000402
I26: 0.000402 | W26: 0.000402
I27: 0.000402 | W27: 0.000402
I28: 0.000402 | W28: 0.000402
I29: 0.000402 | W29: 0.000402
I30: 0.000402 | W30: 0.000402
E56: For no. points | F56: 27 | I56: Mark min space? | J56: FALSE | L56: Choose L or R | M56: 0.458119154 | P56: Min space L | R56: Min space R
E57: For min. distance | F57: 20 | I57: =IF(AND(J56,mindist>0),1,NA()) ->  | J57: 1.005 | L57: less than .5? | M57: =forLR<0.5 -> TRUE | N57: disp now? | O57: =MOD(nof,10) -> 0 | P57: =IF(AND(M57,J56,mindist>0),1,NA()) ->  | Q57: =J57 -> 1.005 | R57: =IF(AND(NOT(M57),J56,mindist>0),1,NA()) ->  | S57: =J57 -> 1.005
E58: Persistence | F58: 200 | I58: =IF(AND(J56,mindist>0),1+mindist/100,NA()) ->  | J58: =J57 -> 1.005 | L58: For display | P58: =IF(AND(M57,J56,mindist>0),1+mindist/100,NA()) ->  | Q58: =J58 -> 1.005 | R58: =IF(AND(NOT(M57),J56,mindist>0),1+mindist/100,NA()) ->  | S58: =J58 -> 1.005
H59: x spaced | I59: y spaced | J59: x random | K59: y random | L59: x Left | M59: y Left | N59: x Right | O59: y Right
H60: 1.437391281 | I60: 1.945070624 | J60: 1.27304554 | K60: 1.173581123 | L60: =IF($M$57,H60,J60) -> 1.437391281 | M60: =IF($M$57,I60,K60) -> 1.945070624 | N60: =IF($M$57,J60,H60) -> 1.27304554 | O60: =IF($M$57,K60,I60) -> 1.173581123
H61: 1.506093204 | I61: 1.343701005 | J61: 1.512945414 | K61: 1.396508455 | L61: 1.506093204 | M61: 1.343701005 | N61: 1.512945414 | O61: 1.396508455
H62: 1.259430349 | I62: 1.067332149 | J62: 1.641124249 | K62: 1.364755154 | L62: 1.259430349 | M62: 1.067332149 | N62: 1.641124249 | O62: 1.364755154
H63: 1.546340644 | I63: 1.88165009 | J63: 1.423023939 | K63: 1.594495535 | L63: 1.546340644 | M63: 1.88165009 | N63: 1.423023939 | O63: 1.594495535
H64: 1.380801141 | I64: 1.057223678 | J64: 1.109437943 | K64: 1.145849228 | L64: 1.380801141 | M64: 1.057223678 | N64: 1.109437943 | O64: 1.145849228
H65: 1.144952953 | I65: 1.760129571 | J65: 1.264636278 | K65: 1.138506174 | L65: 1.144952953 | M65: 1.760129571 | N65: 1.264636278 | O65: 1.138506174
H66: 1.042226255 | I66: 1.692577243 | J66: 1.844490528 | K66: 1.517351627 | L66: 1.042226255 | M66: 1.692577243 | N66: 1.844490528 | O66: 1.517351627
H67: 1.800465286 | I67: 1.983533978 | J67: 1.524598837 | K67: 1.068091154 | L67: 1.800465286 | M67: 1.983533978 | N67: 1.524598837 | O67: 1.068091154
H68: 1.625053346 | I68: 1.329349875 | J68: 1.278410912 | K68: 1.682875633 | L68: 1.625053346 | M68: 1.329349875 | N68: 1.278410912 | O68: 1.682875633
H69: 1.402037799 | I69: 1.384382844 | J69: 1.205353022 | K69: 1.875926256 | L69: 1.402037799 | M69: 1.384382844 | N69: 1.205353022 | O69: 1.875926256
H70: 1.151255071 | I70: 1.401623607 | J70: 1.608952999 | K70: 1.549159527 | L70: 1.151255071 | M70: 1.401623607 | N70: 1.608952999 | O70: 1.549159527
H71: 1.72945565 | I71: 1.123320699 | J71: 1.324965239 | K71: 1.007812262 | L71: 1.72945565 | M71: 1.123320699 | N71: 1.324965239 | O71: 1.007812262
H72: 1.783429086 | I72: 1.921605468 | J72: 1.299495697 | K72: 1.226066589 | L72: 1.783429086 | M72: 1.921605468 | N72: 1.299495697 | O72: 1.226066589
H73: 1.953128994 | I73: 1.189117074 | J73: 1.417126894 | K73: 1.362674952 | L73: 1.953128994 | M73: 1.189117074 | N73: 1.417126894 | O73: 1.362674952
H74: 1.324798048 | I74: 1.97962749 | J74: 1.579042912 | K74: 1.526585102 | L74: 1.324798048 | M74: 1.97962749 | N74: 1.579042912 | O74: 1.526585102
H75: 1.134092987 | I75: 1.898666501 | J75: 1.031154394 | K75: 1.792565107 | L75: 1.134092987 | M75: 1.898666501 | N75: 1.031154394 | O75: 1.792565107
H76: 1.719209611 | I76: 1.244146705 | J76: 1.942223549 | K76: 1.466828346 | L76: 1.719209611 | M76: 1.244146705 | N76: 1.942223549 | O76: 1.466828346
H77: 1.724007785 | I77: 1.396988511 | J77: 1.231989145 | K77: 1.60265851 | L77: 1.724007785 | M77: 1.396988511 | N77: 1.231989145 | O77: 1.60265851
H78: 1.551136434 | I78: 1.461745143 | J78: 1.649291515 | K78: 1.766034603 | L78: 1.551136434 | M78: 1.461745143 | N78: 1.649291515 | O78: 1.766034603
H79: 1.065158546 | I79: 1.157227635 | J79: 1.100197554 | K79: 1.051255941 | L79: 1.065158546 | M79: 1.157227635 | N79: 1.100197554 | O79: 1.051255941
H80: 1.545676172 | I80: 1.957129836 | J80: 1.226125717 | K80: 1.346567154 | L80: 1.545676172 | M80: 1.957129836 | N80: 1.226125717 | O80: 1.346567154
H81: 1.890455425 | I81: 1.480653405 | J81: 1.231971025 | K81: 1.849783182 | L81: 1.890455425 | M81: 1.480653405 | N81: 1.231971025 | O81: 1.849783182
H82: 1.068551481 | I82: 1.133132815 | J82: 1.964230061 | K82: 1.83391428 | L82: 1.068551481 | M82: 1.133132815 | N82: 1.964230061 | O82: 1.83391428
H83: 1.823433578 | I83: 1.996660352 | J83: 1.239125967 | K83: 1.662791014 | L83: 1.823433578 | M83: 1.996660352 | N83: 1.239125967 | O83: 1.662791014
H84: 1.626110017 | I84: 1.970711112 | J84: 1.420733452 | K84: 1.056689262 | L84: 1.626110017 | M84: 1.970711112 | N84: 1.420733452 | O84: 1.056689262
H85: 1.878253162 | I85: 1.162768006 | J85: 1.249103785 | K85: 1.607955217 | L85: 1.878253162 | M85: 1.162768006 | N85: 1.249103785 | O85: 1.607955217
H86: 1.365324438 | I86: 1.528946757 | J86: 1.918389797 | K86: 1.546630383 | L86: 1.365324438 | M86: 1.528946757 | N86: 1.918389797 | O86: 1.546630383
H87: 1.959699333 | I87: 1.7646209 | J87: 1.404970884 | K87: 1.756076574 | L87: 1.959699333 | M87: 1.7646209 | N87: 1.404970884 | O87: 1.756076574
H88: 1.573792398 | I88: 1.445046782 | J88: 1.045578003 | K88: 1.038600922 | L88: 1.573792398 | M88: 1.445046782 | N88: 1.045578003 | O88: 1.038600922
H89: 1.363182247 | I89: 1.415988564 | J89: 1.365418673 | K89: 1.631080866 | L89: 1.363182247 | M89: 1.415988564 | N89: 1.365418673 | O89: 1.631080866
H90: 1.179736555 | I90: 1.434343219 | J90: 1.156301975 | K90: 1.970589161 | L90: 1.179736555 | M90: 1.434343219 | N90: 1.156301975 | O90: 1.970589161
H91: 1.804763615 | I91: 1.710018873 | J91: 1.252004623 | K91: 1.790293097 | L91: 1.804763615 | M91: 1.710018873 | N91: 1.252004623 | O91: 1.790293097
H92: 1.87019068 | I92: 1.983708382 | J92: 1.271023989 | K92: 1.46297133 | L92: 1.87019068 | M92: 1.983708382 | N92: 1.271023989 | O92: 1.46297133
H93: 1.912946999 | I93: 1.923066378 | J93: 1.500069141 | K93: 1.88447845 | L93: 1.912946999 | M93: 1.923066378 | N93: 1.500069141 | O93: 1.88447845
H94: 1.572497904 | I94: 1.422196865 | J94: 1.81932807 | K94: 1.726750493 | L94: 1.572497904 | M94: 1.422196865 | N94: 1.81932807 | O94: 1.726750493
H95: 1.774027765 | I95: 1.666606307 | J95: 1.914102554 | K95: 1.833417892 | L95: 1.774027765 | M95: 1.666606307 | N95: 1.914102554 | O95: 1.833417892
H96: 1.777559459 | I96: 1.776372552 | J96: 1.473719835 | K96: 1.737818003 | L96: 1.777559459 | M96: 1.776372552 | N96: 1.473719835 | O96: 1.737818003
H97: 1.564603269 | I97: 1.1645087 | J97: 1.311508656 | K97: 1.467859745 | L97: 1.564603269 | M97: 1.1645087 | N97: 1.311508656 | O97: 1.467859745
H98: 1.894253433 | I98: 1.866232038 | J98: 1.38431716 | K98: 1.965498686 | L98: 1.894253433 | M98: 1.866232038 | N98: 1.38431716 | O98: 1.965498686
H99: 1.503143251 | I99: 1.984142661 | J99: 1.446845055 | K99: 1.779135704 | L99: 1.503143251 | M99: 1.984142661 | N99: 1.446845055 | O99: 1.779135704
H100: 1.308570087 | I100: 1.078848481 | J100: 1.87976861 | K100: 1.579241991 | L100: 1.308570087 | M100: 1.078848481 | N100: 1.87976861 | O100: 1.579241991
H101: 1.861620367 | I101: 1.80959022 | J101: 1.767865658 | K101: 1.923984051 | L101: 1.861620367 | M101: 1.80959022 | N101: 1.767865658 | O101: 1.923984051
H102: 1.050294578 | I102: 1.824866414 | J102: 1.228140593 | K102: 1.2748487 | L102: 1.050294578 | M102: 1.824866414 | N102: 1.228140593 | O102: 1.2748487
H103: 1.052632272 | I103: 1.90305841 | J103: 1.987949371 | K103: 1.262268066 | L103: 1.052632272 | M103: 1.90305841 | N103: 1.987949371 | O103: 1.262268066
H104: 1.539837062 | I104: 1.343055367 | J104: 1.213124514 | K104: 1.201244593 | L104: 1.539837062 | M104: 1.343055367 | N104: 1.213124514 | O104: 1.201244593
H105: 1.129401624 | I105: 1.60487926 | J105: 1.586100101 | K105: 1.856976032 | L105: 1.129401624 | M105: 1.60487926 | N105: 1.586100101 | O105: 1.856976032
H106: 1.088232696 | I106: 1.200309873 | J106: 1.634036779 | K106: 1.460480452 | L106: 1.088232696 | M106: 1.200309873 | N106: 1.634036779 | O106: 1.460480452
H107: 1.285776079 | I107: 1.833509803 | J107: 1.306946754 | K107: 1.97422123 | L107: 1.285776079 | M107: 1.833509803 | N107: 1.306946754 | O107: 1.97422123
H108: 1.397141635 | I108: 1.791649461 | J108: 1.805818796 | K108: 1.607732058 | L108: 1.397141635 | M108: 1.791649461 | N108: 1.805818796 | O108: 1.607732058
H109: 1.356228292 | I109: 1.585532069 | J109: 1.660743237 | K109: 1.58324194 | L109: 1.356228292 | M109: 1.585532069 | N109: 1.660743237 | O109: 1.58324194
H110: 1.31585592 | I110: 1.43565309 | J110: 1.423368454 | K110: 1.856401443 | L110: 1.31585592 | M110: 1.43565309 | N110: 1.423368454 | O110: 1.856401443
H111: 1.239882767 | I111: 1.052610636 | J111: 1.78038168 | K111: 1.036704898 | L111: 1.239882767 | M111: 1.052610636 | N111: 1.78038168 | O111: 1.036704898
H112: 1.136326373 | I112: 1.669188023 | J112: 1.26292491 | K112: 1.842249036 | L112: 1.136326373 | M112: 1.669188023 | N112: 1.26292491 | O112: 1.842249036
H113: 1.210172474 | I113: 1.22621417 | J113: 1.506153107 | K113: 1.619644523 | L113: 1.210172474 | M113: 1.22621417 | N113: 1.506153107 | O113: 1.619644523
H114: 1.60674578 | I114: 1.100214958 | J114: 1.942988634 | K114: 1.382624269 | L114: 1.60674578 | M114: 1.100214958 | N114: 1.942988634 | O114: 1.382624269
H115: 1.347347558 | I115: 1.039786577 | J115: 1.890142918 | K115: 1.493553996 | L115: 1.347347558 | M115: 1.039786577 | N115: 1.890142918 | O115: 1.493553996
H116: 1.407380641 | I116: 1.931220531 | J116: 1.251241446 | K116: 1.55405724 | L116: 1.407380641 | M116: 1.931220531 | N116: 1.251241446 | O116: 1.55405724
H117: 1.469948709 | I117: 1.545640349 | J117: 1.376609802 | K117: 1.147068024 | L117: 1.469948709 | M117: 1.545640349 | N117: 1.376609802 | O117: 1.147068024
H118: 1.733093441 | I118: 1.220317483 | J118: 1.210244417 | K118: 1.323166132 | L118: 1.733093441 | M118: 1.220317483 | N118: 1.210244417 | O118: 1.323166132
H119: 1.423793256 | I119: 1.741235614 | J119: 1.11843729 | K119: 1.435745716 | L119: 1.423793256 | M119: 1.741235614 | N119: 1.11843729 | O119: 1.435745716
H120: 1.824579895 | I120: 1.573299527 | J120: 1.768974066 | K120: 1.293949842 | L120: 1.824579895 | M120: 1.573299527 | N120: 1.768974066 | O120: 1.293949842
H121: 1.070524156 | I121: 1.623796821 | J121: 1.502491951 | K121: 1.68836689 | L121: 1.070524156 | M121: 1.623796821 | N121: 1.502491951 | O121: 1.68836689
H122: 1.352360904 | I122: 1.633022904 | J122: 1.160604715 | K122: 1.90665555 | L122: 1.352360904 | M122: 1.633022904 | N122: 1.160604715 | O122: 1.90665555
H123: 1.369614065 | I123: 1.814906001 | J123: 1.164027691 | K123: 1.499169827 | L123: 1.369614065 | M123: 1.814906001 | N123: 1.164027691 | O123: 1.499169827
H124: 1.033721626 | I124: 1.747632146 | J124: 1.840702772 | K124: 1.294584036 | L124: =IF($M$57,H124,J124) -> 1.033721626 | M124: =IF($M$57,I124,K124) -> 1.747632146 | N124: =IF($M$57,J124,H124) -> 1.840702772 | O124: =IF($M$57,K124,I124) -> 1.294584036
H125: 1.421160638 | I125: 1.514270186 | J125: 1.003923416 | K125: 1.665517807 | L125: 1.421160638 | M125: 1.514270186 | N125: 1.003923416 | O125: 1.665517807
H126: 1.976572216 | I126: 1.093396783 | J126: 1.780459642 | K126: 1.044161081 | L126: 1.976572216 | M126: 1.093396783 | N126: 1.780459642 | O126: 1.044161081
H127: 1.965886533 | I127: 1.999721408 | J127: 1.688683033 | K127: 1.687899113 | L127: 1.965886533 | M127: 1.999721408 | N127: 1.688683033 | O127: 1.687899113
H128: 1.17944783 | I128: 1.174711347 | J128: 1.966691732 | K128: 1.694937468 | L128: 1.17944783 | M128: 1.174711347 | N128: 1.966691732 | O128: 1.694937468
H129: 1.885139406 | I129: 1.127216697 | J129: 1.150435448 | K129: 1.269927025 | L129: 1.885139406 | M129: 1.127216697 | N129: 1.150435448 | O129: 1.269927025
H130: 1.031508625 | I130: 1.324095368 | J130: 1.901840448 | K130: 1.239588976 | L130: 1.031508625 | M130: 1.324095368 | N130: 1.901840448 | O130: 1.239588976
H131: 1.700891912 | I131: 1.830838084 | J131: 1.086934566 | K131: 1.818339825 | L131: 1.700891912 | M131: 1.830838084 | N131: 1.086934566 | O131: 1.818339825
H132: 1.812539756 | I132: 1.202193379 | J132: 1.103972197 | K132: 1.623916388 | L132: 1.812539756 | M132: 1.202193379 | N132: 1.103972197 | O132: 1.623916388
H133: 1.461559355 | I133: 1.943000793 | J133: 1.192951441 | K133: 1.297774911 | L133: 1.461559355 | M133: 1.943000793 | N133: 1.192951441 | O133: 1.297774911
H134: 1.606778443 | I134: 1.246845484 | J134: 1.31291151 | K134: 1.09341228 | L134: 1.606778443 | M134: 1.246845484 | N134: 1.31291151 | O134: 1.09341228
H135: 1.003313601 | I135: 1.956898212 | J135: 1.733778715 | K135: 1.427734494 | L135: 1.003313601 | M135: 1.956898212 | N135: 1.733778715 | O135: 1.427734494
H136: 1.459575474 | I136: 1.460427046 | J136: 1.856248856 | K136: 1.411154151 | L136: 1.459575474 | M136: 1.460427046 | N136: 1.856248856 | O136: 1.411154151
H137: 1.70682627 | I137: 1.376145363 | J137: 1.386681795 | K137: 1.23709166 | L137: 1.70682627 | M137: 1.376145363 | N137: 1.386681795 | O137: 1.23709166
H138: 1.227304757 | I138: 1.069836855 | J138: 1.79022646 | K138: 1.822600245 | L138: 1.227304757 | M138: 1.069836855 | N138: 1.79022646 | O138: 1.822600245
H139: 1.332351267 | I139: 1.419980526 | J139: 1.993945837 | K139: 1.698990941 | L139: 1.332351267 | M139: 1.419980526 | N139: 1.993945837 | O139: 1.698990941
H140: 1.490532696 | I140: 1.833375692 | J140: 1.339941978 | K140: 1.152457595 | L140: 1.490532696 | M140: 1.833375692 | N140: 1.339941978 | O140: 1.152457595
H141: 1.9057675 | I141: 1.510766983 | J141: 1.788480997 | K141: 1.614701867 | L141: 1.9057675 | M141: 1.510766983 | N141: 1.788480997 | O141: 1.614701867
H142: 1.345450699 | I142: 1.962469339 | J142: 1.371118069 | K142: 1.30355823 | L142: 1.345450699 | M142: 1.962469339 | N142: 1.371118069 | O142: 1.30355823
H143: 1.218578875 | I143: 1.773993015 | J143: 1.893822432 | K143: 1.11361897 | L143: 1.218578875 | M143: 1.773993015 | N143: 1.893822432 | O143: 1.11361897
H144: 1.903875172 | I144: 1.621668577 | J144: 1.890102386 | K144: 1.756859183 | L144: 1.903875172 | M144: 1.621668577 | N144: 1.890102386 | O144: 1.756859183
H145: 1.327914298 | I145: 1.538271904 | J145: 1.824130297 | K145: 1.153261781 | L145: 1.327914298 | M145: 1.538271904 | N145: 1.824130297 | O145: 1.153261781
H146: 1.793247521 | I146: 1.428649187 | J146: 1.543867588 | K146: 1.071442485 | L146: 1.793247521 | M146: 1.428649187 | N146: 1.543867588 | O146: 1.071442485
H147: 1.984189689 | I147: 1.019274831 | J147: 1.656634092 | K147: 1.95421195 | L147: 1.984189689 | M147: 1.019274831 | N147: 1.656634092 | O147: 1.95421195
H148: 1.12001127 | I148: 1.384515166 | J148: 1.492797852 | K148: 1.900066376 | L148: 1.12001127 | M148: 1.384515166 | N148: 1.492797852 | O148: 1.900066376
H149: 1.169410884 | I149: 1.825427651 | J149: 1.652726412 | K149: 1.222282648 | L149: 1.169410884 | M149: 1.825427651 | N149: 1.652726412 | O149: 1.222282648
H150: 1.490728915 | I150: 1.670433521 | J150: 1.065829039 | K150: 1.013614774 | L150: 1.490728915 | M150: 1.670433521 | N150: 1.065829039 | O150: 1.013614774
H151: 1.955840886 | I151: 1.209912062 | J151: 1.892950058 | K151: 1.445581794 | L151: 1.955840886 | M151: 1.209912062 | N151: 1.892950058 | O151: 1.445581794
H152: 1.169949591 | I152: 1.287556648 | J152: 1.750104189 | K152: 1.853855729 | L152: 1.169949591 | M152: 1.287556648 | N152: 1.750104189 | O152: 1.853855729
H153: 1.255918801 | I153: 1.347275972 | J153: 1.868065357 | K153: 1.858614802 | L153: 1.255918801 | M153: 1.347275972 | N153: 1.868065357 | O153: 1.858614802
H154: 1.415713847 | I154: 1.595674038 | J154: 1.189521551 | K154: 1.944295049 | L154: 1.415713847 | M154: 1.595674038 | N154: 1.189521551 | O154: 1.944295049
H155: 1.258526623 | I155: 1.017675161 | J155: 1.322199821 | K155: 1.600215316 | L155: 1.258526623 | M155: 1.017675161 | N155: 1.322199821 | O155: 1.600215316
H156: 1.378900588 | I156: 1.642148972 | J156: 1.741991282 | K156: 1.711202264 | L156: 1.378900588 | M156: 1.642148972 | N156: 1.741991282 | O156: 1.711202264
H157: 1.184855759 | I157: 1.05753541 | J157: 1.246076107 | K157: 1.198215365 | L157: 1.184855759 | M157: 1.05753541 | N157: 1.246076107 | O157: 1.198215365
H158: 1.97601372 | I158: 1.17746973 | J158: 1.656048536 | K158: 1.908971906 | L158: 1.97601372 | M158: 1.17746973 | N158: 1.656048536 | O158: 1.908971906
H159: 1.271722615 | I159: 1.256407499 | J159: 1.77104187 | K159: 1.758571982 | L159: 1.271722615 | M159: 1.256407499 | N159: 1.77104187 | O159: 1.758571982
H160: 1.38918215 | I160: 1.155249596 | J160: 1.570853472 | K160: 1.120123506 | L160: 1.38918215 | M160: 1.155249596 | N160: 1.570853472 | O160: 1.120123506
H161: 1.271568596 | I161: 1.856967211 | J161: 1.669069767 | K161: 1.465367198 | L161: 1.271568596 | M161: 1.856967211 | N161: 1.669069767 | O161: 1.465367198
H162: 1.566159785 | I162: 1.232226849 | J162: 1.016191244 | K162: 1.255301595 | L162: 1.566159785 | M162: 1.232226849 | N162: 1.016191244 | O162: 1.255301595
H163: 1.95246011 | I163: 1.055015326 | J163: 1.852757454 | K163: 1.080808043 | L163: 1.95246011 | M163: 1.055015326 | N163: 1.852757454 | O163: 1.080808043
H164: 1.72032553 | I164: 1.268264771 | J164: 1.91247201 | K164: 1.053275704 | L164: 1.72032553 | M164: 1.268264771 | N164: 1.91247201 | O164: 1.053275704
H165: 1.598088562 | I165: 1.499477625 | J165: 1.875327587 | K165: 1.44522655 | L165: 1.598088562 | M165: 1.499477625 | N165: 1.875327587 | O165: 1.44522655
H166: 1.830683291 | I166: 1.826351643 | J166: 1.070730925 | K166: 1.580940366 | L166: 1.830683291 | M166: 1.826351643 | N166: 1.070730925 | O166: 1.580940366
H167: 1.50777036 | I167: 1.79240489 | J167: 1.430627823 | K167: 1.977079749 | L167: 1.50777036 | M167: 1.79240489 | N167: 1.430627823 | O167: 1.977079749
H168: 1.692628086 | I168: 1.73331511 | J168: 1.496446848 | K168: 1.988972902 | L168: 1.692628086 | M168: 1.73331511 | N168: 1.496446848 | O168: 1.988972902
H169: 1.853130758 | I169: 1.172949672 | J169: 1.664115429 | K169: 1.276250362 | L169: 1.853130758 | M169: 1.172949672 | N169: 1.664115429 | O169: 1.276250362
H170: 1.870448768 | I170: 1.733544469 | J170: 1.394684553 | K170: 1.097482443 | L170: 1.870448768 | M170: 1.733544469 | N170: 1.394684553 | O170: 1.097482443
H171: 1.673322737 | I171: 1.309663773 | J171: 1.087103128 | K171: 1.632897973 | L171: 1.673322737 | M171: 1.309663773 | N171: 1.087103128 | O171: 1.632897973
H172: 1.548674881 | I172: 1.579359293 | J172: 1.840760708 | K172: 1.933692813 | L172: 1.548674881 | M172: 1.579359293 | N172: 1.840760708 | O172: 1.933692813
H173: 1.210987628 | I173: 1.148329258 | J173: 1.716126204 | K173: 1.810770154 | L173: 1.210987628 | M173: 1.148329258 | N173: 1.716126204 | O173: 1.810770154
H174: 1.32023412 | I174: 1.849154234 | J174: 1.777957916 | K174: 1.382355094 | L174: 1.32023412 | M174: 1.849154234 | N174: 1.777957916 | O174: 1.382355094
H175: 1.584239066 | I175: 1.3708601 | J175: 1.521678209 | K175: 1.474680543 | L175: 1.584239066 | M175: 1.3708601 | N175: 1.521678209 | O175: 1.474680543
H176: 1.586803734 | I176: 1.774543047 | J176: 1.326498508 | K176: 1.262612224 | L176: 1.586803734 | M176: 1.774543047 | N176: 1.326498508 | O176: 1.262612224
H177: 1.865830958 | I177: 1.258994579 | J177: 1.158544302 | K177: 1.160273671 | L177: 1.865830958 | M177: 1.258994579 | N177: 1.158544302 | O177: 1.160273671
H178: 1.241450131 | I178: 1.176326513 | J178: 1.523980141 | K178: 1.961671233 | L178: 1.241450131 | M178: 1.176326513 | N178: 1.523980141 | O178: 1.961671233
H179: 1.39414221 | I179: 1.297595978 | J179: 1.672134638 | K179: 1.23131907 | L179: 1.39414221 | M179: 1.297595978 | N179: 1.672134638 | O179: 1.23131907
H180: 1.692864716 | I180: 1.328430414 | J180: 1.048625469 | K180: 1.944864154 | L180: 1.692864716 | M180: 1.328430414 | N180: 1.048625469 | O180: 1.944864154
H181: 1.27317673 | I181: 1.674652576 | J181: 1.998484373 | K181: 1.37971127 | L181: 1.27317673 | M181: 1.674652576 | N181: 1.998484373 | O181: 1.37971127
H182: 1.365363896 | I182: 1.457905531 | J182: 1.71928215 | K182: 1.255648017 | L182: 1.365363896 | M182: 1.457905531 | N182: 1.71928215 | O182: 1.255648017
H183: 1.872563422 | I183: 1.781277657 | J183: 1.464253664 | K183: 1.125469804 | L183: 1.872563422 | M183: 1.781277657 | N183: 1.464253664 | O183: 1.125469804
H184: 1.198889077 | I184: 1.244927645 | J184: 1.99542284 | K184: 1.015604854 | L184: 1.198889077 | M184: 1.244927645 | N184: 1.99542284 | O184: 1.015604854
H185: 1.327556193 | I185: 1.711709499 | J185: 1.286727667 | K185: 1.316739202 | L185: 1.327556193 | M185: 1.711709499 | N185: 1.286727667 | O185: 1.316739202
H186: 1.149006665 | I186: 1.322797537 | J186: 1.477145195 | K186: 1.924441695 | L186: 1.149006665 | M186: 1.322797537 | N186: 1.477145195 | O186: 1.924441695
H187: 1.686908066 | I187: 1.777940989 | J187: 1.405171871 | K187: 1.759990573 | L187: 1.686908066 | M187: 1.777940989 | N187: 1.405171871 | O187: 1.759990573
H188: 1.173500597 | I188: 1.936571598 | J188: 1.324055433 | K188: 1.069013715 | L188: =IF($M$57,H188,J188) -> 1.173500597 | M188: =IF($M$57,I188,K188) -> 1.936571598 | N188: =IF($M$57,J188,H188) -> 1.324055433 | O188: =IF($M$57,K188,I188) -> 1.069013715
H189: 1.299409688 | I189: 1.649908781 | J189: 1.160850525 | K189: 1.878208518 | L189: 1.299409688 | M189: 1.649908781 | N189: 1.160850525 | O189: 1.878208518
H190: 1.92660445 | I190: 1.466932893 | J190: 1.988952875 | K190: 1.431376696 | L190: 1.92660445 | M190: 1.466932893 | N190: 1.988952875 | O190: 1.431376696
H191: 1.766153753 | I191: 1.713177562 | J191: 1.205541134 | K191: 1.165645123 | L191: 1.766153753 | M191: 1.713177562 | N191: 1.205541134 | O191: 1.165645123
H192: 1.661248863 | I192: 1.98419106 | J192: 1.773604155 | K192: 1.568145514 | L192: 1.661248863 | M192: 1.98419106 | N192: 1.773604155 | O192: 1.568145514
H193: 1.38367933 | I193: 1.277104735 | J193: 1.764247894 | K193: 1.238059998 | L193: 1.38367933 | M193: 1.277104735 | N193: 1.764247894 | O193: 1.238059998
H194: 1.698398769 | I194: 1.609557748 | J194: 1.187054873 | K194: 1.959141016 | L194: 1.698398769 | M194: 1.609557748 | N194: 1.187054873 | O194: 1.959141016
H195: 1.816649854 | I195: 1.66032207 | J195: 1.068209171 | K195: 1.465336323 | L195: 1.816649854 | M195: 1.66032207 | N195: 1.068209171 | O195: 1.465336323
H196: 1.099089324 | I196: 1.659927487 | J196: 1.778621435 | K196: 1.456413984 | L196: 1.099089324 | M196: 1.659927487 | N196: 1.778621435 | O196: 1.456413984
H197: 1.008912981 | I197: 1.531286597 | J197: 1.612053871 | K197: 1.863587379 | L197: 1.008912981 | M197: 1.531286597 | N197: 1.612053871 | O197: 1.863587379
H198: 1.314980686 | I198: 1.28031981 | J198: 1.613245249 | K198: 1.3651402 | L198: 1.314980686 | M198: 1.28031981 | N198: 1.613245249 | O198: 1.3651402
H199: 1.544941366 | I199: 1.636580348 | J199: 1.6560359 | K199: 1.152051449 | L199: 1.544941366 | M199: 1.636580348 | N199: 1.6560359 | O199: 1.152051449
H200: 1.688358009 | I200: 1.943879247 | J200: 1.77149272 | K200: 1.943620443 | L200: 1.688358009 | M200: 1.943879247 | N200: 1.77149272 | O200: 1.943620443
H201: 1.149832666 | I201: 1.300910354 | J201: 1.726034164 | K201: 1.253091812 | L201: 1.149832666 | M201: 1.300910354 | N201: 1.726034164 | O201: 1.253091812
H202: 1.95213145 | I202: 1.951875329 | J202: 1.849555254 | K202: 1.903280497 | L202: 1.95213145 | M202: 1.951875329 | N202: 1.849555254 | O202: 1.903280497
H203: 1.11355263 | I203: 1.792196751 | J203: 1.729836226 | K203: 1.933702588 | L203: 1.11355263 | M203: 1.792196751 | N203: 1.729836226 | O203: 1.933702588
H204: 1.459249318 | I204: 1.908671141 | J204: 1.169719696 | K204: 1.496132255 | L204: 1.459249318 | M204: 1.908671141 | N204: 1.169719696 | O204: 1.496132255
H205: 1.375720084 | I205: 1.597979546 | J205: 1.035632372 | K205: 1.346880555 | L205: 1.375720084 | M205: 1.597979546 | N205: 1.035632372 | O205: 1.346880555
H206: 1.728016198 | I206: 1.077468157 | J206: 1.238035679 | K206: 1.067063212 | L206: 1.728016198 | M206: 1.077468157 | N206: 1.238035679 | O206: 1.067063212
H207: 1.835290492 | I207: 1.202178478 | J207: 1.774305105 | K207: 1.977053761 | L207: 1.835290492 | M207: 1.202178478 | N207: 1.774305105 | O207: 1.977053761
H208: 1.79892236 | I208: 1.480472326 | J208: 1.681855202 | K208: 1.27710855 | L208: 1.79892236 | M208: 1.480472326 | N208: 1.681855202 | O208: 1.27710855
H209: 1.08064276 | I209: 1.33965683 | J209: 1.241264582 | K209: 1.437991738 | L209: 1.08064276 | M209: 1.33965683 | N209: 1.241264582 | O209: 1.437991738
H210: 1.330659211 | I210: 1.64160943 | J210: 1.429400921 | K210: 1.841600299 | L210: 1.330659211 | M210: 1.64160943 | N210: 1.429400921 | O210: 1.841600299
H211: 1.622545898 | I211: 1.671589017 | J211: 1.997543097 | K211: 1.03793025 | L211: 1.622545898 | M211: 1.671589017 | N211: 1.997543097 | O211: 1.03793025
H212: 1.549520433 | I212: 1.05399549 | J212: 1.610333443 | K212: 1.169529915 | L212: 1.549520433 | M212: 1.05399549 | N212: 1.610333443 | O212: 1.169529915
H213: 1.49480933 | I213: 1.447865129 | J213: 1.989515543 | K213: 1.599610567 | L213: 1.49480933 | M213: 1.447865129 | N213: 1.989515543 | O213: 1.599610567
H214: 1.751686513 | I214: 1.285876155 | J214: 1.899554729 | K214: 1.847276211 | L214: 1.751686513 | M214: 1.285876155 | N214: 1.899554729 | O214: 1.847276211
H215: 1.512142956 | I215: 1.209951162 | J215: 1.885996819 | K215: 1.486949325 | L215: 1.512142956 | M215: 1.209951162 | N215: 1.885996819 | O215: 1.486949325
H216: 1.972047985 | I216: 1.849156976 | J216: 1.286616564 | K216: 1.205377817 | L216: 1.972047985 | M216: 1.849156976 | N216: 1.286616564 | O216: 1.205377817
H217: 1.443173826 | I217: 1.68504703 | J217: 1.281143665 | K217: 1.965204716 | L217: 1.443173826 | M217: 1.68504703 | N217: 1.281143665 | O217: 1.965204716
H218: 1.183468521 | I218: 1.654836774 | J218: 1.049752951 | K218: 1.875441313 | L218: 1.183468521 | M218: 1.654836774 | N218: 1.049752951 | O218: 1.875441313
H219: 1.05456537 | I219: 1.486126304 | J219: 1.472144127 | K219: 1.109488487 | L219: 1.05456537 | M219: 1.486126304 | N219: 1.472144127 | O219: 1.109488487
H220: 1.098761737 | I220: 1.36452353 | J220: 1.053993464 | K220: 1.96281743 | L220: 1.098761737 | M220: 1.36452353 | N220: 1.053993464 | O220: 1.96281743
H221: 1.992144048 | I221: 1.574269176 | J221: 1.005078793 | K221: 1.618594646 | L221: 1.992144048 | M221: 1.574269176 | N221: 1.005078793 | O221: 1.618594646
H222: 1.747712791 | I222: 1.388861775 | J222: 1.567404509 | K222: 1.163306952 | L222: 1.747712791 | M222: 1.388861775 | N222: 1.567404509 | O222: 1.163306952
H223: 1.668507516 | I223: 1.211682677 | J223: 1.593326569 | K223: 1.852386475 | L223: 1.668507516 | M223: 1.211682677 | N223: 1.593326569 | O223: 1.852386475
H224: 1.136878431 | I224: 1.73869884 | J224: 1.715891361 | K224: 1.873852253 | L224: 1.136878431 | M224: 1.73869884 | N224: 1.715891361 | O224: 1.873852253
H225: 1.27212888 | I225: 1.452454329 | J225: 1.591104507 | K225: 1.073774695 | L225: 1.27212888 | M225: 1.452454329 | N225: 1.591104507 | O225: 1.073774695
... 834 more rows

Sheet Compare A B
C1: Compare A B | G1: 4 | H1: Two independent groups | Q1: 6 | S1: Display figure for paired data | AI1: y high | AJ1: 150 | AK1: delta | AL1: 1e-05 | AM1: sliders
C2: See figures that compare | AI2: y low | AJ2: 0 | AK2: x inc | AL2: 0.258 | AM2: 500 | AO2: sqrt ratio
C3: two conditions (A and B), | R3: 7 | S3: Paired data (Blank unless NA = NB) | AI3: y no. | AJ3: 1000 | AK3: bulge scale | AL3: 0.4 | AM3: 500 | AO3: =SQRT(AN7/AR7) -> 0.9523225259
C4: for two independent groups, | K4: MB-MA | L4: =D19-D10 -> 54 | S4: r | T4: =(AM6-1000)/1000 -> 0.7 | W4: Mdiff | X4: =IF(M15,D19-D10,"") -> 54 | AI4: y inc | AJ4: =(AJ1-AJ2)/AJ3 -> 0.15 | AK4: Reveal paired | AL4: FALSE | AM4: 1040 | AN4: target half sum | AO4: sum | AS4: sum
C5: or for paired data. | T5: SLIDER | AI5: y midpt | AJ5: =(AJ2+AJ1)/2 -> 75 | AK5: mean | AL5: =I11 -> 50 | AM5: 550 | AN5: 21 | AO5: =SUM(AO9:AO1009) -> 41.98988207 | AP5: =I12 -> 104 | AS5: =SUM(AS9:AS1009) -> 41.70905213
C6: All error bars are assumed | I6: MOEA | L6: MOEB | N6: MOEdiff | T6: MOEA | W6: MOEB | Y6: MOEdiff | AK6: SE | AL6: =(D13/SQRT($C$16)) -> 15.8113883 | AM6: 1700 | AN6: half sum | AO6: max | AP6: =(D22/SQRT($C$25)) -> 17.39252713 | AR6: half sum | AS6: max
C7: to be 95% CIs | I7: =K11 -> 31.98155155 | L7: =K12 -> 35.1797067 | N7: =K13 -> 46.79549453 | T7: =IF(M15,K11,"") -> 31.98155155 | W7: =IF(M15,K12,"") -> 35.1797067 | Y7: =IF(M15,TINV(0.05,(C16-1))*J14/SQRT(C16),"") -> 26.17802816 | AI7: 1 | AJ7: 2 | AK7: df | AL7: =C16-1 -> 39 | AN7: =SUM(AN9:AN1009) -> 21.05533737 | AO7: =MAX(AO9:AO1009) -> 0.1581398341 | AP7: =C25-1 -> 39 | AR7: =SUM(AR9:AR1009) -> 23.21635791 | AS7: =MAX(AS9:AS1009) -> 0.1434200205
AI8: x | AJ8: x | AK8: y | AL8: tA | AM8: tA bar | AN8: for adding | AO8: tA bar disp | AP8: tB | AQ8: tB bar | AR8: for adding | AS8: tB bar disp
A9: 1 | B9: A | G9: =$F$9 -> 0 | H9: 0 | I9: 0 | J9: 0 | K9: 0 | L9: 0 | M9: 0 | N9: 0 | O9: =$F$9 -> 0 | P9: 0 | Q9: =$F$9 -> 0 | R9: 0 | S9: 0 | T9: 0 | U9: 0 | V9: 0 | W9: 0 | X9: 0 | Y9: 0 | Z9: 0 | AA9: 0 | AI9: =IF($M$18,AI7+$AL$2,NA()) ->  | AJ9: =IF($M$18,AJ7-$AL$2,NA()) ->  | AK9: =AJ2 -> 0 | AL9: =ABS(($AL$5-AK9)/$AL$6) -> 3.16227766 | AM9: =$AL$3*ABS((TDIST(AL9,$AL$7,1)-TDIST(AL9+$AL$1,$AL$7,1))/($AL$1)) -> 0.00165025614 | AN9: =IF(($D$10>$AJ$5)=($D$10>AK9),AM9,0) -> 0 | AO9: =AM9*$AN$5/$AN$7 -> 0.001645918958 | AP9: =ABS(($AP$5-AK9)/$AP$6) -> 5.979579576 | AQ9: =$AL$3*ABS((TDIST(AP9,$AP$7,1)-TDIST(AP9+$AL$1,$AP$7,1))/($AL$1)) -> 3.536905755e-07 | AR9: =IF(($D$19>$AJ$5)=($D$19>AK9),AQ9,0) -> 3.536905755e-07 | AS9: =AQ9*$AN$5/$AR$7 -> 3.199253783e-07
B10: Mean | C10: MA | D10: =AM2/10 -> 50 | F10: =$F$9 -> 0 | I10: Mean | J10: SD | K10: CI bar | L10: Mean | M10: POL | N10: =(M26-M27)/((K11+K12)/2) -> 0.3919300679 | P10: 0 | AA10: =$F$9 -> 0 | AI10: =IF($M$18,AI9,NA()) ->  | AJ10: =IF($M$18,AJ9,NA()) ->  | AK10: =AK9+$AJ$4 -> 0.15 | AL10: 3.152790827 | AM10: =$AL$3*ABS((TDIST(AL10,$AL$7,1)-TDIST(AL10+$AL$1,$AL$7,1))/($AL$1)) -> 0.001691132728 | AN10: =IF(($D$10>$AJ$5)=($D$10>AK10),AM10,0) -> 0 | AO10: =AM10*$AN$5/$AN$7 -> 0.001686688114 | AP10: 5.970955182 | AQ10: =$AL$3*ABS((TDIST(AP10,$AP$7,1)-TDIST(AP10+$AL$1,$AP$7,1))/($AL$1)) -> 3.635859478e-07 | AR10: =IF(($D$19>$AJ$5)=($D$19>AK10),AQ10,0) -> 3.635859478e-07 | AS10: =AQ10*$AN$5/$AR$7 -> 3.288760853e-07
C11: SLIDER | F11: 0 | H11: A | I11: =D10 -> 50 | K11: =(D13/SQRT($C$16))*TINV(0.05,$C$16-1) -> 31.98155155 | L11: =IF($M$15,I11,NA()) -> 50 | P11: 0 | AA11: 0 | AK11: =AK10+$AJ$4 -> 0.3 | AL11: 3.143303994 | AM11: 0.001732946128 | AN11: 0 | AO11: 0.001728391621 | AP11: 5.962330788 | AQ11: 3.737574997e-07 | AR11: 3.737574997e-07 | AS11: 3.380766064e-07
F12: 0 | H12: B | I12: =D19 -> 104 | K12: =(D22/SQRT($C$25))*TINV(0.05,$C$25-1) -> 35.1797067 | L12: =IF($M$15,I12,NA()) -> 104 | P12: 0 | AA12: 0 | AK12: 0.45 | AL12: 3.133817161 | AM12: 0.001775715457 | AN12: 0 | AO12: 0.001771048544 | AP12: 5.953706395 | AQ12: 3.842128976e-07 | AR12: 3.842128976e-07 | AS12: 3.475338759e-07
B13: SD | C13: sA | D13: =AM3/5 -> 100 | F13: 0 | H13: =IF(M16,"Difference ","") ->  | I13: Ind Gps | J13: =SQRT((D13^2*(C16-1)+D22^2*(C25-1))/(C16+C25-2)) -> 105.1189802 | K13: =J13*TINV(0.05,(C16+$C$25-2))*SQRT(1/$C$25+1/C16) -> 46.79549453 | P13: 0 | AA13: 0 | AK13: 0.6 | AL13: 3.124330328 | AM13: 0.001819460149 | AN13: 0 | AO13: 0.001814678267 | AP13: 5.945082001 | AQ13: 3.949600187e-07 | AR13: 3.949600187e-07 | AS13: 3.572550193e-07
C14: SLIDER | F14: 0 | I14: Paired | J14: =SQRT(D13^2+D22^2-2*T4*D13*D22) -> 81.85352772 | P14: 0 | AA14: 0 | AK14: 0.75 | AL14: 3.114843495 | AM14: 0.001864199961 | AN14: 0 | AO14: 0.001859300494 | AP14: 5.936457607 | AQ14: 4.060069571e-07 | AR14: 4.060069571e-07 | AS14: 3.672473578e-07
F15: 0 | H15: Lines | L15: NA=NB? | M15: =(C16=C25) -> TRUE | P15: 0 | AA15: 0 | AK15: 0.9 | AL15: 3.105356662 | AM15: 0.001909954975 | AN15: 0 | AO15: 0.001904935255 | AP15: 5.927833214 | AQ15: 4.173620289e-07 | AR15: 4.173620289e-07 | AS15: 3.775184136e-07
B16: NA | C16: 40 | F16: 0 | H16: 1 | I16: =I11 -> 50 | J16: =IF($M$15,H16,NA()) -> 1 | L16: Diff axis? | M16: FALSE | P16: 0 | AA16: 0 | AK16: 1.05 | AL16: 3.095869829 | AM16: 0.001956745603 | AN16: 0 | AO16: 0.001951602909 | AP16: 5.91920882 | AQ16: 4.290337791e-07 | AR16: 4.290337791e-07 | AS16: 3.88075916e-07
F17: 0 | H17: =$H$26 ->  | I17: =I16 -> 50 | J17: =IF($M$15,H17,NA()) ->  | L17: Overlap? | M17: FALSE | P17: 0 | AA17: 0 | AK17: 1.2 | AL17: 3.086382996 | AM17: 0.002004592588 | AN17: 0 | AO17: 0.001999324143 | AP17: 5.910584427 | AQ17: 4.410309874e-07 | AR17: 4.410309874e-07 | AS17: 3.989278065e-07
A18: 2 | B18: B | F18: 0 | H18: 2 | I18: =I12 -> 104 | J18: =IF($M$15,H18,NA()) -> 2 | L18: Cat's eyes? | M18: FALSE | P18: 0 | AA18: 0 | AK18: 1.35 | AL18: 3.076896163 | AM18: 0.002053517008 | AN18: 0 | AO18: 0.00204811998 | AP18: 5.901960033 | AQ18: 4.533626744e-07 | AR18: 4.533626744e-07 | AS18: 4.100822446e-07
B19: Mean | C19: MB | D19: =AM4/10 -> 104 | F19: 0 | H19: =$H$26 ->  | I19: =I18 -> 104 | J19: =IF($M$15,H19,NA()) ->  | K19: 1 | M19: Blank point | P19: 0 | AA19: 0 | AK19: 1.5 | AL19: 3.06740933 | AM19: 0.002103540278 | AN19: 0 | AO19: 0.00209801178 | AP19: 5.893335639 | AQ19: 4.660381084e-07 | AR19: 4.660381084e-07 | AS19: 4.215476137e-07
C20: SLIDER | F20: 0 | K20: 2 | M20: 2.5 | N20: 6 | P20: 0 | AA20: 0 | AK20: 1.65 | AL20: 3.057922497 | AM20: 0.002154684156 | AN20: 0 | AO20: 0.002149021242 | AP20: 5.884711246 | AQ20: 4.790668119e-07 | AR20: 4.790668119e-07 | AS20: 4.333325274e-07
F21: 0 | H21: Diff of means | J21: Paired | M21: 2.8 | N21: =N20 -> 6 | P21: 0 | AA21: 0 | AK21: 1.8 | AL21: 3.048435664 | AM21: 0.002206970742 | AN21: 0 | AO21: 0.00220117041 | AP21: 5.876086852 | AQ21: 4.924585689e-07 | AR21: 4.924585689e-07 | AS21: 4.454458356e-07
B22: SD | C22: sB | D22: =AM5/5 -> 110 | F22: 0 | H22: =IF(M16,2.8,NA()) ->  | I22: =I12 -> 104 | J22: =IF(AND(M15,M16),2.8,NA()) ->  | M22: 2.5 | N22: =N21 -> 6 | P22: 0 | AA22: 0 | AK22: 1.95 | AL22: 3.038948831 | AM22: 0.002260422484 | AN22: 0 | AO22: 0.00225448167 | AP22: 5.867462459 | AQ22: 5.062234312e-07 | AR22: 5.062234312e-07 | AS22: 4.578966304e-07
C23: SLIDER | F23: 0 | H23: Diffs axis | M23: 2.76 | N23: =N22 -> 6 | P23: 0 | AA23: 0 | AK23: 2.1 | AL23: 3.029461998 | AM23: 0.002315062178 | AN23: 0 | AO23: 0.00230897776 | AP23: 5.858838065 | AQ23: 5.203717262e-07 | AR23: 5.203717262e-07 | AS23: 4.706942533e-07
F24: 0 | H24: =IF(M16,3.15,NA()) ->  | I24: =$I$32+80 -> 130 | J24: =IF(AND(M15,M16),3.15,NA()) ->  | M24: 1.3 | N24: =N23 -> 6 | P24: 0 | AA24: 0 | AK24: 2.25 | AL24: 3.019975165 | AM24: 0.002370912973 | AN24: 0 | AO24: 0.002364681769 | AP24: 5.850213671 | AQ24: 5.349140645e-07 | AR24: 5.349140645e-07 | AS24: 4.838483021e-07
B25: NB | C25: 40 | F25: 0 | H25: =$H$24 ->  | I25: =$I$32+70 -> 120 | J25: =J24 ->  | L25: Overlap | M25: 1.77 | N25: =N24 -> 6 | P25: =$F$9 -> 0 | AA25: =$F$9 -> 0 | AK25: 2.4 | AL25: 3.010488332 | AM25: 0.002427998373 | AN25: 0 | AO25: 0.002421617139 | AP25: 5.841589278 | AQ25: 5.498613469e-07 | AR25: 5.498613469e-07 | AS25: 4.973686369e-07
F26: 0 | H26: =$H$24 ->  | I26: =$I$32+60 -> 110 | J26: =J25 ->  | L26: =IF(M17,1,NA()) ->  | M26: =MIN(I11+K11,I12+K12) -> 81.98155155 | P26: 0 | AA26: 0 | AK26: 2.55 | AL26: 3.001001499 | AM26: 0.002486342242 | AN26: 0 | AO26: 0.002479807669 | AP26: 5.832964884 | AQ26: 5.652247729e-07 | AR26: 5.652247729e-07 | AS26: 5.112653879e-07
A27: 3 | F27: 0 | I27: =$I$32+50 -> 100 | J27: =J26 ->  | L27: =IF(M17,1,NA()) ->  | M27: =MAX(I11-K11,I12-K12) -> 68.8202933 | P27: 0 | AA27: 0 | AK27: 2.7 | AL27: 2.991514667 | AM27: 0.0025459688 | AN27: 0 | AO27: 0.002539277517 | AP27: 5.82434049 | AQ27: 5.81015848e-07 | AR27: 5.81015848e-07 | AS27: 5.255489623e-07
F28: 0 | I28: =$I$32+40 -> 90 | J28: =J27 ->  | L28: t | M28: =ABS(I12-I11)/(J13*SQRT(1/C16+1/C25)) -> 2.297352401 | N28: =ABS(I12-I11)/(J14/SQRT(C16)) -> 4.17240401 | P28: 0 | AA28: 0 | AK28: 2.85 | AL28: 2.982027834 | AM28: 0.002606902633 | AN28: 0 | AO28: 0.002600051204 | AP28: 5.815716097 | AQ28: 5.972463927e-07 | AR28: 5.972463927e-07 | AS28: 5.402300523e-07
F29: 0 | I29: =$I$32+30 -> 80 | L29: p | M29: =TDIST(M28,C16+C25-2,2) -> 0.02428052916 | N29: =TDIST(N28,C16-1,2) -> 0.0001629863091 | P29: 0 | AA29: 0 | AK29: 3 | AL29: 2.972541001 | AM29: 0.00266916869 | AN29: 0 | AO29: 0.002662153614 | AP29: 5.807091703 | AQ29: 6.13928551e-07 | AR29: 6.13928551e-07 | AS29: 5.553196423e-07
F30: 0 | I30: =$I$32+20 -> 70 | M30: =IF(M17,N10,"") ->  | N30: =IF(OR(M16,M17),M29,"") ->  | P30: 0 | AA30: 0 | AK30: =AK29+$AJ$4 -> 3.15 | AL30: 2.963054168 | AM30: 0.002732792289 | AN30: 0 | AO30: 0.002725609999 | AP30: 5.79846731 | AQ30: 6.310747978e-07 | AR30: 6.310747978e-07 | AS30: 5.708290166e-07
F31: 0 | I31: =$I$32+10 -> 60 | M31: =IF(M17,"Overlap =","") ->  | N31: =IF(OR(M16,M17),"p =","") ->  | P31: 0 | AA31: 0 | AK31: 3.3 | AL31: 2.953567335 | AM31: 0.002797799117 | AN31: 0 | AO31: 0.002790445976 | AP31: 5.789842916 | AQ31: 6.486979496e-07 | AR31: 6.486979496e-07 | AS31: 5.867697679e-07
F32: 0 | I32: =I11 -> 50 | L32: left fig | M32: =IF(AND(M15,M16),"p =","") ->  | N32: =IF(AND(M15,M16),N29,"") ->  | P32: 0 | AA32: 0 | AK32: 3.45 | AL32: 2.944080502 | AM32: 0.002864215233 | AN32: 0 | AO32: 0.002856687538 | AP32: 5.781218522 | AQ32: 6.668111726e-07 | AR32: 6.668111726e-07 | AS32: 6.031538056e-07
F33: 0 | I33: =$I$32-10 -> 40 | L33: Bulge centre lines | N33: 3.5 | P33: 0 | AA33: 0 | AK33: 3.6 | AL33: 2.934593669 | AM33: 0.00293206707 | AN33: 0 | AO33: 0.002924361048 | AP33: 5.772594129 | AQ33: 6.854279922e-07 | AR33: 6.854279922e-07 | AS33: 6.199933639e-07
F34: 0 | I34: =$I$32-20 -> 30 | L34: =AI9 ->  | M34: =MAX(D10-N33*AL6,AJ2) -> 0 | P34: 0 | AA34: 0 | AK34: 3.75 | AL34: 2.925106836 | AM34: 0.003001381436 | AN34: 0 | AO34: 0.002993493243 | AP34: 5.763969735 | AQ34: 7.045623029e-07 | AR34: 7.045623029e-07 | AS34: 6.373010108e-07
E35: 5 | F35: 0 | I35: =$I$32-30 -> 20 | L35: =L34 ->  | M35: =MIN(D10+N33*AL6,AJ1) -> 105.3398591 | P35: 0 | AA35: 0 | AK35: 3.9 | AL35: 2.915620003 | AM35: 0.00307218552 | AN35: 0 | AO35: 0.003064111241 | AP35: 5.755345342 | AQ35: 7.242283782e-07 | AR35: 7.242283782e-07 | AS35: 6.550896571e-07
F36: 0 | I36: =$I$32-40 -> 10 | L36: =AJ9 ->  | M36: =MAX(D19-N33*AP6,AJ2) -> 43.12615504 | P36: 0 | AA36: 0 | AK36: 4.05 | AL36: 2.90613317 | AM36: 0.003144506886 | AN36: 0 | AO36: 0.003136242533 | AP36: 5.746720948 | AQ36: 7.444408802e-07 | AR36: 7.444408802e-07 | AS36: 6.733725654e-07
F37: 0 | L37: =L36 ->  | M37: =MIN(D19+N33*AP6,AJ1) -> 150 | P37: 0 | AA37: 0 | AK37: 4.2 | AL37: 2.896646337 | AM37: 0.003218373483 | AN37: 0 | AO37: 0.003209914994 | AP37: 5.738096554 | AQ37: 7.65214871e-07 | AR37: 7.65214871e-07 | AS37: 6.921633597e-07
AK38: 4.35 | AL38: 2.887159504 | AM38: 0.00329381364 | AN38: 0 | AO38: 0.003285156881 | AP38: 5.729472161 | AQ38: 7.865658226e-07 | AR38: 7.865658226e-07 | AS38: 7.114760351e-07
AK39: 4.5 | AL39: 2.877672671 | AM39: 0.003370856074 | AN39: 0 | AO39: 0.003361996833 | AP39: 5.720847767 | AQ39: 8.085096281e-07 | AR39: 8.085096281e-07 | AS39: 7.313249674e-07
AK40: 4.65 | AL40: 2.868185838 | AM40: 0.003449529883 | AN40: 0 | AO40: 0.003440463872 | AP40: 5.712223373 | AQ40: 8.310626129e-07 | AR40: 8.310626129e-07 | AS40: 7.517249234e-07
AK41: 4.8 | AL41: 2.858699005 | AM41: 0.003529864554 | AN41: 0 | AO41: 0.003520587409 | AP41: 5.70359898 | AQ41: 8.54241547e-07 | AR41: 8.54241547e-07 | AS41: 7.726910722e-07
AK42: 4.95 | AL42: 2.849212172 | AM42: 0.003611889964 | AN42: 0 | AO42: 0.00360239724 | AP42: 5.694974586 | AQ42: 8.78063655e-07 | AR42: 8.78063655e-07 | AS42: 7.942389943e-07
AK43: 5.1 | AL43: 2.839725339 | AM43: 0.003695636373 | AN43: 0 | AO43: 0.003685923548 | AP43: 5.686350193 | AQ43: 9.02546631e-07 | AR43: 9.02546631e-07 | AS43: 8.163846941e-07
AK44: 5.25 | AL44: 2.830238506 | AM44: 0.003781134437 | AN44: 0 | AO44: 0.003771196907 | AP44: 5.677725799 | AQ44: 9.277086481e-07 | AR44: 9.277086481e-07 | AS44: 8.391446103e-07
AK45: 5.4 | AL45: 2.820751673 | AM45: 0.003868415198 | AN45: 0 | AO45: 0.003858248278 | AP45: 5.669101405 | AQ45: 9.535683739e-07 | AR45: 9.535683739e-07 | AS45: 8.625356281e-07
AK46: 5.55 | AL46: 2.81126484 | AM46: 0.00395751009 | AN46: 0 | AO46: 0.003947109012 | AP46: 5.660477012 | AQ46: 9.801449814e-07 | AR46: 9.801449814e-07 | AS46: 8.865750903e-07
AK47: 5.7 | AL47: 2.801778007 | AM47: 0.004048450938 | AN47: 0 | AO47: 0.00403781085 | AP47: 5.651852618 | AQ47: 1.007458164e-06 | AR47: 1.007458164e-06 | AS47: 9.112808103e-07
AK48: 5.85 | AL48: 2.792291174 | AM48: 0.004141269957 | AN48: 0 | AO48: 0.004130385924 | AP48: 5.643228224 | AQ48: 1.035528149e-06 | AR48: 1.035528149e-06 | AS48: 9.366710844e-07
AK49: 6 | AL49: 2.782804341 | AM49: 0.004235999757 | AN49: 0 | AO49: 0.004224866755 | AP49: 5.634603831 | AQ49: 1.064375712e-06 | AR49: 1.064375712e-06 | AS49: 9.627647043e-07
AK50: 6.15 | AL50: 2.773317508 | AM50: 0.004332673334 | AN50: 0 | AO50: 0.004321286257 | AP50: 5.625979437 | AQ50: 1.09402219e-06 | AR50: 1.09402219e-06 | AS50: 9.895809705e-07
AK51: 6.3 | AL51: 2.763830675 | AM51: 0.004431324079 | AN51: 0 | AO51: 0.004419677729 | AP51: 5.617355044 | AQ51: 1.124489498e-06 | AR51: 1.124489498e-06 | AS51: 1.017139706e-06
AK52: 6.45 | AL52: 2.754343842 | AM52: 0.00453198577 | AN52: 0 | AO52: 0.004520074862 | AP52: 5.60873065 | AQ52: 1.155800143e-06 | AR52: 1.155800143e-06 | AS52: 1.045461269e-06
AK53: 6.6 | AL53: 2.744857009 | AM53: 0.004634692578 | AN53: 0 | AO53: 0.004622511737 | AP53: 5.600106256 | AQ53: 1.187977242e-06 | AR53: 1.187977242e-06 | AS53: 1.07456657e-06
AK54: 6.75 | AL54: 2.735370176 | AM54: 0.004739479059 | AN54: 0 | AO54: 0.00472702282 | AP54: 5.591481863 | AQ54: 1.221044536e-06 | AR54: 1.221044536e-06 | AS54: 1.104477083e-06
AK55: 6.9 | AL55: 2.725883343 | AM55: 0.004846380162 | AN55: 0 | AO55: 0.004833642966 | AP55: 5.582857469 | AQ55: 1.255026406e-06 | AR55: 1.255026406e-06 | AS55: 1.135214862e-06
AK56: 7.05 | AL56: 2.71639651 | AM56: 0.004955431215 | AN56: 0 | AO56: 0.004942407413 | AP56: 5.574233076 | AQ56: 1.289947892e-06 | AR56: 1.289947892e-06 | AS56: 1.166802556e-06
AK57: 7.2 | AL57: 2.706909677 | AM57: 0.005066667938 | AN57: 0 | AO57: 0.005053351786 | AP57: 5.565608682 | AQ57: 1.325834711e-06 | AR57: 1.325834711e-06 | AS57: 1.199263426e-06
AK58: 7.35 | AL58: 2.697422844 | AM58: 0.005180126431 | AN58: 0 | AO58: 0.005166512088 | AP58: 5.556984288 | AQ58: 1.36271327e-06 | AR58: 1.36271327e-06 | AS58: 1.23262136e-06
AK59: 7.5 | AL59: 2.687936011 | AM59: 0.005295843178 | AN59: 0 | AO59: 0.00528192471 | AP59: 5.548359895 | AQ59: 1.400610689e-06 | AR59: 1.400610689e-06 | AS59: 1.266900889e-06
AK60: 7.65 | AL60: 2.678449178 | AM60: 0.005413855037 | AN60: 0 | AO60: 0.005399626411 | AP60: 5.539735501 | AQ60: 1.439554821e-06 | AR60: 1.439554821e-06 | AS60: 1.302127205e-06
AK61: 7.8 | AL61: 2.668962345 | AM61: 0.00553419925 | AN61: 0 | AO61: 0.005519654337 | AP61: 5.531111107 | AQ61: 1.479574264e-06 | AR61: 1.479574264e-06 | AS61: 1.338326178e-06
AK62: 7.95 | AL62: 2.659475512 | AM62: 0.005656913428 | AN62: 0 | AO62: 0.005642046 | AP62: 5.522486714 | AQ62: 1.52069839e-06 | AR62: 1.52069839e-06 | AS62: 1.375524375e-06
AK63: 8.1 | AL63: 2.649988679 | AM63: 0.005782035558 | AN63: 0 | AO63: 0.005766839285 | AP63: 5.51386232 | AQ63: 1.562957358e-06 | AR63: 1.562957358e-06 | AS63: 1.413749075e-06
AK64: 8.25 | AL64: 2.640501846 | AM64: 0.005909603993 | AN64: 0 | AO64: 0.005894072446 | AP64: 5.505237927 | AQ64: 1.606382137e-06 | AR64: 1.606382137e-06 | AS64: 1.453028292e-06
AK65: 8.4 | AL65: 2.631015013 | AM65: 0.006039657453 | AN65: 0 | AO65: 0.006023784101 | AP65: 5.496613533 | AQ65: 1.651004529e-06 | AR65: 1.651004529e-06 | AS65: 1.493390792e-06
AK66: 8.55 | AL66: 2.62152818 | AM66: 0.006172235019 | AN66: 0 | AO66: 0.006156013229 | AP66: 5.487989139 | AQ66: 1.696857191e-06 | AR66: 1.696857191e-06 | AS66: 1.534866113e-06
AK67: 8.7 | AL67: 2.612041347 | AM67: 0.006307376131 | AN67: 0 | AO67: 0.006290799165 | AP67: 5.479364746 | AQ67: 1.743973652e-06 | AR67: 1.743973652e-06 | AS67: 1.577484584e-06
AK68: 8.85 | AL68: 2.602554514 | AM68: 0.006445120585 | AN68: 0 | AO68: 0.0064281816 | AP68: 5.470740352 | AQ68: 1.792388344e-06 | AR68: 1.792388344e-06 | AS68: 1.62127735e-06
AK69: 9 | AL69: 2.593067681 | AM69: 0.006585508522 | AN69: 0 | AO69: 0.006568200571 | AP69: 5.462115958 | AQ69: 1.842136619e-06 | AR69: 1.842136619e-06 | AS69: 1.666276388e-06
AK70: 9.15 | AL70: 2.583580848 | AM70: 0.006728580433 | AN70: 0 | AO70: 0.006710896463 | AP70: 5.453491565 | AQ70: 1.893254777e-06 | AR70: 1.893254777e-06 | AS70: 1.712514532e-06
AK71: 9.3 | AL71: 2.574094015 | AM71: 0.006874377149 | AN71: 0 | AO71: 0.006856309998 | AP71: 5.444867171 | AQ71: 1.945780087e-06 | AR71: 1.945780087e-06 | AS71: 1.760025496e-06
AK72: 9.45 | AL72: 2.564607182 | AM72: 0.007022939836 | AN72: 0 | AO72: 0.007004482234 | AP72: 5.436242778 | AQ72: 1.999750819e-06 | AR72: 1.999750819e-06 | AS72: 1.808843892e-06
AK73: 9.6 | AL73: =ABS(($AL$5-AK73)/$AL$6) -> 2.555120349 | AM73: 0.007174309988 | AN73: 0 | AO73: 0.007155454557 | AP73: =ABS(($AP$5-AK73)/$AP$6) -> 5.427618384 | AQ73: 2.055206262e-06 | AR73: 2.055206262e-06 | AS73: 1.859005261e-06
AI74: =IF($M$18,AI73,NA()) ->  | AJ74: =IF($M$18,AJ73,NA()) ->  | AK74: 9.75 | AL74: 2.545633516 | AM74: =$AL$3*ABS((TDIST(AL74,$AL$7,1)-TDIST(AL74+$AL$1,$AL$7,1))/($AL$1)) -> 0.007328529425 | AN74: =IF(($D$10>$AJ$5)=($D$10>AK74),AM74,0) -> 0 | AO74: =AM74*$AN$5/$AN$7 -> 0.007309268677 | AP74: 5.41899399 | AQ74: =$AL$3*ABS((TDIST(AP74,$AP$7,1)-TDIST(AP74+$AL$1,$AP$7,1))/($AL$1)) -> 2.112186756e-06 | AR74: =IF(($D$19>$AJ$5)=($D$19>AK74),AQ74,0) -> 2.112186756e-06 | AS74: =AQ74*$AN$5/$AR$7 -> 1.910546092e-06
AK75: 9.9 | AL75: 2.536146683 | AM75: 0.007485640289 | AN75: 0 | AO75: 0.007465966624 | AP75: 5.410369597 | AQ75: 2.17073372e-06 | AR75: 2.17073372e-06 | AS75: 1.963503849e-06
AK76: 10.05 | AL76: 2.52665985 | AM76: 0.007645685027 | AN76: 0 | AO76: 0.007625590734 | AP76: 5.401745203 | AQ76: 2.230889673e-06 | AR76: 2.230889673e-06 | AS76: 2.017916993e-06
AK77: 10.2 | AL77: 2.517173017 | AM77: 0.007808706399 | AN77: 0 | AO77: 0.007788183655 | AP77: 5.39312081 | AQ77: 2.292698272e-06 | AR77: 2.292698272e-06 | AS77: 2.073825012e-06
AK78: 10.35 | AL78: 2.507686185 | AM78: 0.007974747457 | AN78: 0 | AO78: 0.007953788326 | AP78: 5.384496416 | AQ78: 2.356204336e-06 | AR78: 2.356204336e-06 | AS78: 2.131268446e-06
AK79: 10.5 | AL79: 2.498199352 | AM79: 0.008143851548 | AN79: 0 | AO79: 0.00812244798 | AP79: 5.375872022 | AQ79: 2.421453876e-06 | AR79: 2.421453876e-06 | AS79: 2.190288916e-06
AK80: 10.65 | AL80: 2.488712519 | AM80: 0.008316062304 | AN80: 0 | AO80: 0.008294206134 | AP80: 5.367247629 | AQ80: 2.48849413e-06 | AR80: 2.48849413e-06 | AS80: 2.250929148e-06
AK81: 10.8 | AL81: 2.479225686 | AM81: 0.008491423628 | AN81: 0 | AO81: 0.008469106576 | AP81: 5.358623235 | AQ81: 2.557373589e-06 | AR81: 2.557373589e-06 | AS81: 2.313233005e-06
AK82: 10.95 | AL82: 2.469738853 | AM82: 0.008669979696 | AN82: 0 | AO82: 0.008647193365 | AP82: 5.349998841 | AQ82: 2.628142035e-06 | AR82: 2.628142035e-06 | AS82: 2.377245516e-06
AK83: 11.1 | AL83: 2.46025202 | AM83: 0.008851774946 | AN83: 0 | AO83: 0.008828510822 | AP83: 5.341374448 | AQ83: 2.700850573e-06 | AR83: 2.700850573e-06 | AS83: 2.443012907e-06
AK84: 11.25 | AL84: 2.450765187 | AM84: 0.009036854053 | AN84: 0 | AO84: 0.009013103507 | AP84: 5.332750054 | AQ84: 2.77555166e-06 | AR84: 2.77555166e-06 | AS84: 2.510582629e-06
AK85: 11.4 | AL85: 2.441278354 | AM85: 0.009225261947 | AN85: 0 | AO85: 0.00920101623 | AP85: 5.324125661 | AQ85: 2.85229915e-06 | AR85: 2.85229915e-06 | AS85: 2.580003392e-06
AK86: 11.55 | AL86: 2.431791521 | AM86: 0.009417043787 | AN86: 0 | AO86: 0.009392294031 | AP86: 5.315501267 | AQ86: 2.931148319e-06 | AR86: 2.931148319e-06 | AS86: 2.651325197e-06
AK87: 11.7 | AL87: 2.422304688 | AM87: 0.009612244942 | AN87: 0 | AO87: 0.009586982161 | AP87: 5.306876873 | AQ87: 3.012155911e-06 | AR87: 3.012155911e-06 | AS87: 2.72459937e-06
AK88: 11.85 | AL88: 2.412817855 | AM88: 0.009810911009 | AN88: 0 | AO88: 0.009785126097 | AP88: 5.29825248 | AQ88: 3.095380169e-06 | AR88: 3.095380169e-06 | AS88: 2.799878594e-06
AK89: 12 | AL89: 2.403331022 | AM89: 0.01001308778 | AN89: 0 | AO89: 0.009986771509 | AP89: 5.289628086 | AQ89: 3.180880879e-06 | AR89: 3.180880879e-06 | AS89: 2.877216948e-06
AK90: 12.15 | AL90: 2.393844189 | AM90: 0.01021882123 | AN90: 0 | AO90: 0.01019196425 | AP90: 5.281003692 | AQ90: 3.268719403e-06 | AR90: 3.268719403e-06 | AS90: 2.956669937e-06
AK91: 12.3 | AL91: 2.384357356 | AM91: 0.01042815752 | AN91: 0 | AO91: 0.01040075036 | AP91: 5.272379299 | AQ91: 3.358958731e-06 | AR91: 3.358958731e-06 | AS91: 3.038294534e-06
AK92: 12.45 | AL92: 2.374870523 | AM92: 0.01064114297 | AN92: 0 | AO92: 0.01061317605 | AP92: 5.263754905 | AQ92: 3.451663506e-06 | AR92: 3.451663506e-06 | AS92: 3.122149216e-06
AK93: 12.6 | AL93: 2.36538369 | AM93: 0.01085782407 | AN93: 0 | AO93: 0.01082928767 | AP93: 5.255130512 | AQ93: 3.546900085e-06 | AR93: 3.546900085e-06 | AS93: 3.208294e-06
AK94: =AK93+$AJ$4 -> 12.75 | AL94: 2.355896857 | AM94: 0.01107824743 | AN94: 0 | AO94: 0.01104913172 | AP94: 5.246506118 | AQ94: 3.644736567e-06 | AR94: 3.644736567e-06 | AS94: 3.296790487e-06
AK95: 12.9 | AL95: 2.346410024 | AM95: 0.0113024598 | AN95: 0 | AO95: 0.01127275482 | AP95: 5.237881724 | AQ95: 3.745242848e-06 | AR95: 3.745242848e-06 | AS95: 3.3877019e-06
AK96: 13.05 | AL96: 2.336923191 | AM96: 0.01153050805 | AN96: 0 | AO96: 0.01150020372 | AP96: 5.229257331 | AQ96: 3.848490662e-06 | AR96: 3.848490662e-06 | AS96: 3.481093125e-06
AK97: 13.2 | AL97: 2.327436358 | AM97: 0.01176243916 | AN97: 0 | AO97: 0.01173152526 | AP97: 5.220632937 | AQ97: 3.954553631e-06 | AR97: 3.954553631e-06 | AS97: 3.577030754e-06
AK98: 13.35 | AL98: 2.317949525 | AM98: 0.01199830017 | AN98: 0 | AO98: 0.01196676639 | AP98: 5.212008544 | AQ98: 4.063507307e-06 | AR98: 4.063507307e-06 | AS98: 3.675583129e-06
AK99: 13.5 | AL99: 2.308462692 | AM99: 0.01223813821 | AN99: 0 | AO99: 0.01220597409 | AP99: 5.20338415 | AQ99: 4.175429231e-06 | AR99: 4.175429231e-06 | AS99: 3.776820387e-06
AK100: 13.65 | AL100: 2.298975859 | AM100: 0.01248200048 | AN100: 0 | AO100: 0.01244919544 | AP100: 5.194759756 | AQ100: 4.290398977e-06 | AR100: 4.290398977e-06 | AS100: 3.880814504e-06
AK101: 13.8 | AL101: 2.289489026 | AM101: 0.0127299342 | AN101: 0 | AO101: 0.01269647755 | AP101: 5.186135363 | AQ101: 4.408498203e-06 | AR101: 4.408498203e-06 | AS101: 3.987639346e-06
AK102: 13.95 | AL102: 2.280002193 | AM102: 0.01298198663 | AN102: 0 | AO102: 0.01294786754 | AP102: 5.177510969 | AQ102: 4.529810708e-06 | AR102: 4.529810708e-06 | AS102: 4.097370709e-06
AK103: 14.1 | AL103: 2.27051536 | AM103: 0.01323820506 | AN103: 0 | AO103: 0.01320341257 | AP103: 5.168886575 | AQ103: 4.654422484e-06 | AR103: 4.654422484e-06 | AS103: 4.210086377e-06
AK104: 14.25 | AL104: 2.261028527 | AM104: 0.01349863673 | AN104: 0 | AO104: 0.01346315979 | AP104: 5.160262182 | AQ104: 4.782421772e-06 | AR104: 4.782421772e-06 | AS104: 4.325866167e-06
AK105: 14.4 | AL105: 2.251541694 | AM105: 0.01376332891 | AN105: 0 | AO105: 0.0137271563 | AP105: 5.151637788 | AQ105: 4.91389912e-06 | AR105: 4.91389912e-06 | AS105: 4.444791983e-06
AK106: 14.55 | AL106: 2.242054861 | AM106: 0.01403232878 | AN106: 0 | AO106: 0.01399544919 | AP106: 5.143013395 | AQ106: 5.048947439e-06 | AR106: 5.048947439e-06 | AS106: 4.566947866e-06
AK107: 14.7 | AL107: 2.232568028 | AM107: 0.01430568351 | AN107: 0 | AO107: 0.01426808549 | AP107: 5.134389001 | AQ107: 5.187662065e-06 | AR107: 5.187662065e-06 | AS107: 4.692420051e-06
AK108: 14.85 | AL108: 2.223081195 | AM108: 0.01458344017 | AN108: 0 | AO108: 0.01454511215 | AP108: 5.125764607 | AQ108: 5.33014082e-06 | AR108: 5.33014082e-06 | AS108: 4.821297021e-06
AK109: 15 | AL109: 2.213594362 | AM109: 0.01486564574 | AN109: 0 | AO109: 0.01482657603 | AP109: 5.117140214 | AQ109: 5.476484075e-06 | AR109: 5.476484075e-06 | AS109: 4.953669565e-06
AK110: 15.15 | AL110: 2.204107529 | AM110: 0.01515234708 | AN110: 0 | AO110: 0.01511252388 | AP110: 5.10851582 | AQ110: 5.626794812e-06 | AR110: 5.626794812e-06 | AS110: 5.089630833e-06
AK111: 15.3 | AL111: 2.194620696 | AM111: 0.01544359095 | AN111: 0 | AO111: 0.0154030023 | AP111: 5.099891426 | AQ111: 5.78117869e-06 | AR111: 5.78117869e-06 | AS111: 5.2292764e-06
AK112: 15.45 | AL112: 2.185133863 | AM112: 0.01573942392 | AN112: 0 | AO112: 0.01569805777 | AP112: 5.091267033 | AQ112: 5.939744117e-06 | AR112: 5.939744117e-06 | AS112: 5.372704321e-06
AK113: 15.6 | AL113: 2.17564703 | AM113: 0.01603989241 | AN113: 0 | AO113: 0.01599773657 | AP113: 5.082642639 | AQ113: 6.102602313e-06 | AR113: 6.102602313e-06 | AS113: 5.520015201e-06
AK114: 15.75 | AL114: 2.166160197 | AM114: 0.01634504265 | AN114: 0 | AO114: 0.01630208481 | AP114: 5.074018246 | AQ114: 6.269867386e-06 | AR114: 6.269867386e-06 | AS114: 5.671312254e-06
AK115: 15.9 | AL115: 2.156673364 | AM115: 0.01665492065 | AN115: 0 | AO115: 0.0166111484 | AP115: 5.065393852 | AQ115: 6.441656397e-06 | AR115: 6.441656397e-06 | AS115: 5.826701365e-06
AK116: 16.05 | AL116: 2.147186531 | AM116: 0.01696957218 | AN116: 0 | AO116: 0.01692497296 | AP116: 5.056769458 | AQ116: 6.618089443e-06 | AR116: 6.618089443e-06 | AS116: 5.986291168e-06
AK117: 16.2 | AL117: 2.137699698 | AM117: 0.01728904276 | AN117: 0 | AO117: 0.01724360392 | AP117: 5.048145065 | AQ117: 6.799289728e-06 | AR117: 6.799289728e-06 | AS117: 6.150193103e-06
AK118: 16.35 | AL118: 2.128212865 | AM118: 0.01761337764 | AN118: 0 | AO118: 0.01756708639 | AP118: 5.039520671 | AQ118: 6.985383638e-06 | AR118: 6.985383638e-06 | AS118: 6.318521491e-06
AK119: 16.5 | AL119: 2.118726032 | AM119: 0.01794262177 | AN119: 0 | AO119: 0.0178954652 | AP119: 5.030896278 | AQ119: 7.176500826e-06 | AR119: 7.176500826e-06 | AS119: 6.491393609e-06
AK120: 16.65 | AL120: 2.109239199 | AM120: 0.01827681976 | AN120: 0 | AO120: 0.01822878486 | AP120: 5.022271884 | AQ120: 7.372774291e-06 | AR120: 7.372774291e-06 | AS120: 6.668929757e-06
AK121: 16.8 | AL121: 2.099752366 | AM121: 0.01861601589 | AN121: 0 | AO121: 0.01856708951 | AP121: 5.01364749 | AQ121: 7.574340458e-06 | AR121: 7.574340458e-06 | AS121: 6.851253338e-06
AK122: 16.95 | AL122: 2.090265533 | AM122: 0.01896025405 | AN122: 0 | AO122: 0.01891042295 | AP122: 5.005023097 | AQ122: 7.781339272e-06 | AR122: 7.781339272e-06 | AS122: 7.038490936e-06
AK123: 17.1 | AL123: 2.0807787 | AM123: 0.01930957776 | AN123: 0 | AO123: 0.01925882857 | AP123: 4.996398703 | AQ123: 7.993914275e-06 | AR123: 7.993914275e-06 | AS123: 7.23077239e-06
AK124: 17.25 | AL124: 2.071291867 | AM124: 0.0196640301 | AN124: 0 | AO124: 0.01961234935 | AP124: 4.987774309 | AQ124: 8.212212698e-06 | AR124: 8.212212698e-06 | AS124: 7.428230876e-06
AK125: 17.4 | AL125: 2.061805034 | AM125: 0.02002365373 | AN125: 0 | AO125: 0.01997102782 | AP125: 4.979149916 | AQ125: 8.436385562e-06 | AR125: 8.436385562e-06 | AS125: 7.631002998e-06
AK126: 17.55 | AL126: 2.052318201 | AM126: 0.02038849081 | AN126: 0 | AO126: 0.02033490604 | AP126: 4.970525522 | AQ126: 8.66658776e-06 | AR126: 8.66658776e-06 | AS126: 7.83922886e-06
AK127: 17.7 | AL127: 2.042831368 | AM127: 0.02075858303 | AN127: 0 | AO127: 0.02070402559 | AP127: 4.961901129 | AQ127: 8.902978153e-06 | AR127: 8.902978153e-06 | AS127: 8.05305216e-06
AK128: 17.85 | AL128: 2.033344535 | AM128: 0.02113397155 | AN128: 0 | AO128: 0.02107842751 | AP128: 4.953276735 | AQ128: 9.145719677e-06 | AR128: 9.145719677e-06 | AS128: 8.272620278e-06
AK129: 18 | AL129: 2.023857703 | AM129: 0.02151469698 | AN129: 0 | AO129: 0.02145815233 | AP129: 4.944652341 | AQ129: 9.394979433e-06 | AR129: 9.394979433e-06 | AS129: 8.498084362e-06
AK130: 18.15 | AL130: 2.01437087 | AM130: 0.02190079936 | AN130: 0 | AO130: 0.02184323996 | AP130: 4.936027948 | AQ130: 9.6509288e-06 | AR130: 9.6509288e-06 | AS130: 8.729599431e-06
AK131: 18.3 | AL131: 2.004884037 | AM131: 0.02229231815 | AN131: 0 | AO131: 0.02223372976 | AP131: 4.927403554 | AQ131: 9.913743533e-06 | AR131: 9.913743533e-06 | AS131: 8.967324462e-06
AK132: 18.45 | AL132: 1.995397204 | AM132: 0.02268929213 | AN132: 0 | AO132: 0.02262966042 | AP132: 4.91877916 | AQ132: 1.018360387e-05 | AR132: 1.018360387e-05 | AS132: 9.211422483e-06
AK133: 18.6 | AL133: 1.985910371 | AM133: 0.02309175949 | AN133: 0 | AO133: 0.02303107002 | AP133: 4.910154767 | AQ133: 1.046069464e-05 | AR133: 1.046069464e-05 | AS133: 9.462060687e-06
AK134: 18.75 | AL134: 1.976423538 | AM134: 0.02349975769 | AN134: 0 | AO134: 0.02343799592 | AP134: 4.901530373 | AQ134: 1.074520539e-05 | AR134: 1.074520539e-05 | AS134: 9.71941052e-06
AK135: 18.9 | AL135: 1.966936705 | AM135: 0.02391332348 | AN135: 0 | AO135: 0.02385047479 | AP135: 4.89290598 | AQ135: 1.103733049e-05 | AR135: 1.103733049e-05 | AS135: 9.98364779e-06
AK136: 19.05 | AL136: 1.957449872 | AM136: 0.02433249291 | AN136: 0 | AO136: 0.02426854256 | AP136: 4.884281586 | AQ136: 1.133726924e-05 | AR136: 1.133726924e-05 | AS136: 1.025495278e-05
AK137: 19.2 | AL137: =ABS(($AL$5-AK137)/$AL$6) -> 1.947963039 | AM137: 0.02475730121 | AN137: 0 | AO137: 0.02469223439 | AP137: =ABS(($AP$5-AK137)/$AP$6) -> 4.875657192 | AQ137: 1.1645226e-05 | AR137: 1.1645226e-05 | AS137: 1.053351033e-05
AI138: =IF($M$18,AI137,NA()) ->  | AJ138: =IF($M$18,AJ137,NA()) ->  | AK138: 19.35 | AL138: 1.938476206 | AM138: =$AL$3*ABS((TDIST(AL138,$AL$7,1)-TDIST(AL138+$AL$1,$AL$7,1))/($AL$1)) -> 0.02518778286 | AN138: =IF(($D$10>$AJ$5)=($D$10>AK138),AM138,0) -> 0 | AO138: =AM138*$AN$5/$AN$7 -> 0.02512158465 | AP138: 4.867032799 | AQ138: =$AL$3*ABS((TDIST(AP138,$AP$7,1)-TDIST(AP138+$AL$1,$AP$7,1))/($AL$1)) -> 1.196141032e-05 | AR138: =IF(($D$19>$AJ$5)=($D$19>AK138),AQ138,0) -> 1.196141032e-05 | AS138: =AQ138*$AN$5/$AR$7 -> 1.081951001e-05
AK139: 19.5 | AL139: 1.928989373 | AM139: 0.02562397147 | AN139: 0 | AO139: 0.02555662687 | AP139: 4.858408405 | AQ139: 1.228603707e-05 | AR139: 1.228603707e-05 | AS139: 1.111314614e-05
AK140: 19.65 | AL140: 1.91950254 | AM140: 0.02606589983 | AN140: 0 | AO140: 0.02599739376 | AP140: 4.849784012 | AQ140: 1.261932653e-05 | AR140: 1.261932653e-05 | AS140: 1.141461801e-05
AK141: 19.8 | AL141: 1.910015707 | AM141: 0.02651359981 | AN141: 0 | AO141: 0.0264439171 | AP141: 4.841159618 | AQ141: 1.296150459e-05 | AR141: 1.296150459e-05 | AS141: 1.172412992e-05
AK142: 19.95 | AL142: 1.900528874 | AM142: 0.02696710239 | AN142: 0 | AO142: 0.02689622779 | AP142: 4.832535224 | AQ142: 1.331280282e-05 | AR142: 1.331280282e-05 | AS142: 1.204189134e-05
AK143: 20.1 | AL143: 1.891042041 | AM143: 0.0274264376 | AN143: 0 | AO143: 0.02735435578 | AP143: 4.823910831 | AQ143: 1.367345864e-05 | AR143: 1.367345864e-05 | AS143: 1.236811702e-05
AK144: 20.25 | AL144: 1.881555208 | AM144: 0.02789163448 | AN144: 0 | AO144: 0.02781833004 | AP144: 4.815286437 | AQ144: 1.404371545e-05 | AR144: 1.404371545e-05 | AS144: 1.270302713e-05
AK145: 20.4 | AL145: 1.872068375 | AM145: 0.02836272107 | AN145: 0 | AO145: 0.02828817852 | AP145: 4.806662043 | AQ145: 1.442382278e-05 | AR145: 1.442382278e-05 | AS145: 1.304684738e-05
AK146: 20.55 | AL146: 1.862581542 | AM146: 0.02883972436 | AN146: 0 | AO146: 0.02876392816 | AP146: 4.79803765 | AQ146: 1.481403645e-05 | AR146: 1.481403645e-05 | AS146: 1.339980917e-05
AK147: 20.7 | AL147: 1.853094709 | AM147: 0.02932267029 | AN147: 0 | AO147: 0.02924560482 | AP147: 4.789413256 | AQ147: 1.52146187e-05 | AR147: 1.52146187e-05 | AS147: 1.376214968e-05
AK148: 20.85 | AL148: 1.843607876 | AM148: 0.02981158369 | AN148: 0 | AO148: 0.02973323326 | AP148: 4.780788863 | AQ148: 1.562583834e-05 | AR148: 1.562583834e-05 | AS148: 1.413411209e-05
AK149: 21 | AL149: 1.834121043 | AM149: 0.03030648825 | AN149: 0 | AO149: 0.03022683712 | AP149: 4.772164469 | AQ149: 1.604797093e-05 | AR149: 1.604797093e-05 | AS149: 1.451594565e-05
AK150: 21.15 | AL150: 1.82463421 | AM150: 0.03080740652 | AN150: 0 | AO150: 0.03072643888 | AP150: 4.763540075 | AQ150: 1.648129894e-05 | AR150: 1.648129894e-05 | AS150: 1.490790585e-05
AK151: 21.3 | AL151: 1.815147377 | AM151: 0.03131435982 | AN151: 0 | AO151: 0.03123205981 | AP151: 4.754915682 | AQ151: 1.69261119e-05 | AR151: 1.69261119e-05 | AS151: 1.531025457e-05
AK152: 21.45 | AL152: 1.805660544 | AM152: 0.03182736826 | AN152: 0 | AO152: 0.03174371997 | AP152: 4.746291288 | AQ152: 1.738270656e-05 | AR152: 1.738270656e-05 | AS152: 1.572326027e-05
AK153: 21.6 | AL153: 1.796173711 | AM153: 0.03234645071 | AN153: 0 | AO153: 0.03226143818 | AP153: 4.737666895 | AQ153: 1.78513871e-05 | AR153: 1.78513871e-05 | AS153: 1.614719805e-05
AK154: 21.75 | AL154: 1.786686878 | AM154: 0.03287162471 | AN154: 0 | AO154: 0.03278523192 | AP154: 4.729042501 | AQ154: 1.833246527e-05 | AR154: 1.833246527e-05 | AS154: 1.658234992e-05
AK155: 21.9 | AL155: 1.777200045 | AM155: 0.03340290653 | AN155: 0 | AO155: 0.03331511743 | AP155: 4.720418107 | AQ155: 1.882626058e-05 | AR155: 1.882626058e-05 | AS155: 1.702900488e-05
AK156: 22.05 | AL156: 1.767713212 | AM156: 0.03394031102 | AN156: 0 | AO156: 0.03385110952 | AP156: 4.711793714 | AQ156: 1.933310049e-05 | AR156: 1.933310049e-05 | AS156: 1.748745914e-05
AK157: 22.2 | AL157: 1.758226379 | AM157: 0.03448385171 | AN157: 0 | AO157: 0.03439322169 | AP157: 4.70316932 | AQ157: 1.98533206e-05 | AR157: 1.98533206e-05 | AS157: 1.795801625e-05
AK158: =AK157+$AJ$4 -> 22.35 | AL158: 1.748739546 | AM158: 0.03503354067 | AN158: 0 | AO158: 0.03494146596 | AP158: 4.694544926 | AQ158: 2.038726485e-05 | AR158: 2.038726485e-05 | AS158: 1.844098732e-05
AK159: 22.5 | AL159: 1.739252713 | AM159: 0.03558938854 | AN159: 0 | AO159: 0.03549585296 | AP159: 4.685920533 | AQ159: 2.093528567e-05 | AR159: 2.093528567e-05 | AS159: 1.893669114e-05
AK160: 22.65 | AL160: 1.72976588 | AM160: 0.03615140448 | AN160: 0 | AO160: 0.03605639181 | AP160: 4.677296139 | AQ160: 2.149774426e-05 | AR160: 2.149774426e-05 | AS160: 1.944545442e-05
AK161: 22.8 | AL161: 1.720279047 | AM161: 0.0367195961 | AN161: 0 | AO161: 0.03662309012 | AP161: 4.668671746 | AQ161: 2.207501071e-05 | AR161: 2.207501071e-05 | AS161: 1.996761192e-05
AK162: 22.95 | AL162: 1.710792214 | AM162: 0.03729396953 | AN162: 0 | AO162: 0.03719595399 | AP162: 4.660047352 | AQ162: 2.266746426e-05 | AR162: 2.266746426e-05 | AS162: 2.050350668e-05
AK163: 23.1 | AL163: 1.701305381 | AM163: 0.03787452928 | AN163: 0 | AO163: 0.03777498792 | AP163: 4.651422958 | AQ163: 2.327549352e-05 | AR163: 2.327549352e-05 | AS163: 2.105349021e-05
AK164: 23.25 | AL164: 1.691818548 | AM164: 0.03846127826 | AN164: 0 | AO164: 0.03836019481 | AP164: 4.642798565 | AQ164: 2.389949666e-05 | AR164: 2.389949666e-05 | AS164: 2.161792266e-05
AK165: 23.4 | AL165: 1.682331715 | AM165: 0.03905421775 | AN165: 0 | AO165: 0.03895157595 | AP165: 4.634174171 | AQ165: 2.453988165e-05 | AR165: 2.453988165e-05 | AS165: 2.219717307e-05
AK166: 23.55 | AL166: 1.672844882 | AM166: 0.03965334735 | AN166: 0 | AO166: 0.03954913092 | AP166: 4.625549777 | AQ166: 2.519706649e-05 | AR166: 2.519706649e-05 | AS166: 2.279161953e-05
AK167: 23.7 | AL167: 1.663358049 | AM167: 0.04025866497 | AN167: 0 | AO167: 0.04015285765 | AP167: 4.616925384 | AQ167: 2.587147943e-05 | AR167: 2.587147943e-05 | AS167: 2.34016494e-05
AK168: 23.85 | AL168: 1.653871216 | AM168: 0.04087016679 | AN168: 0 | AO168: 0.04076275234 | AP168: 4.60830099 | AQ168: 2.656355923e-05 | AR168: 2.656355923e-05 | AS168: 2.402765955e-05
AK169: 24 | AL169: 1.644384383 | AM169: 0.04148784724 | AN169: 0 | AO169: 0.0413788094 | AP169: 4.599676597 | AQ169: 2.727375537e-05 | AR169: 2.727375537e-05 | AS169: 2.467005656e-05
AK170: 24.15 | AL170: 1.63489755 | AM170: 0.04211169891 | AN170: 0 | AO170: 0.04200102148 | AP170: 4.591052203 | AQ170: 2.800252835e-05 | AR170: 2.800252835e-05 | AS170: 2.532925697e-05
AK171: 24.3 | AL171: 1.625410717 | AM171: 0.04274171263 | AN171: 0 | AO171: 0.0426293794 | AP171: 4.582427809 | AQ171: 2.875034988e-05 | AR171: 2.875034988e-05 | AS171: 2.600568745e-05
AK172: 24.45 | AL172: 1.615923884 | AM172: 0.04337787735 | AN172: 0 | AO172: 0.04326387216 | AP172: 4.573803416 | AQ172: 2.951770321e-05 | AR172: 2.951770321e-05 | AS172: 2.669978512e-05
AK173: 24.6 | AL173: 1.606437051 | AM173: 0.04402018015 | AN173: 0 | AO173: 0.04390448687 | AP173: 4.565179022 | AQ173: 3.030508331e-05 | AR173: 3.030508331e-05 | AS173: 2.74119977e-05
AK174: 24.75 | AL174: 1.596950218 | AM174: 0.04466860619 | AN174: 0 | AO174: 0.04455120872 | AP174: 4.556554629 | AQ174: 3.111299724e-05 | AR174: 3.111299724e-05 | AS174: 2.814278383e-05
AK175: 24.9 | AL175: 1.587463385 | AM175: 0.04532313872 | AN175: 0 | AO175: 0.04520402101 | AP175: 4.547930235 | AQ175: 3.194196434e-05 | AR175: 3.194196434e-05 | AS175: 2.889261329e-05
AK176: 25.05 | AL176: 1.577976552 | AM176: 0.04598375895 | AN176: 0 | AO176: 0.04586290502 | AP176: 4.539305841 | AQ176: 3.279251656e-05 | AR176: 3.279251656e-05 | AS176: 2.966196724e-05
AK177: 25.2 | AL177: 1.568489719 | AM177: 0.04665044623 | AN177: 0 | AO177: 0.04652784012 | AP177: 4.530681448 | AQ177: 3.366519874e-05 | AR177: 3.366519874e-05 | AS177: 3.045133851e-05
AK178: 25.35 | AL178: 1.559002886 | AM178: 0.04732317779 | AN178: 0 | AO178: 0.04719880361 | AP178: 4.522057054 | AQ178: 3.45605689e-05 | AR178: 3.45605689e-05 | AS178: 3.126123183e-05
AK179: 25.5 | AL179: 1.549516053 | AM179: 0.04800192883 | AN179: 0 | AO179: 0.04787577077 | AP179: 4.51343266 | AQ179: 3.547919852e-05 | AR179: 3.547919852e-05 | AS179: 3.209216415e-05
AK180: 25.65 | AL180: 1.540029221 | AM180: 0.04868667248 | AN180: 0 | AO180: 0.04855871478 | AP180: 4.504808267 | AQ180: 3.642167288e-05 | AR180: 3.642167288e-05 | AS180: 3.294466486e-05
AK181: 25.8 | AL181: 1.530542388 | AM181: 0.04937737984 | AN181: 0 | AO181: 0.04924760683 | AP181: 4.496183873 | AQ181: 3.738859137e-05 | AR181: 3.738859137e-05 | AS181: 3.381927613e-05
AK182: 25.95 | AL182: 1.521055555 | AM182: 0.05007401975 | AN182: 0 | AO182: 0.04994241584 | AP182: 4.48755948 | AQ182: 3.838056779e-05 | AR182: 3.838056779e-05 | AS182: 3.471655316e-05
AK183: 26.1 | AL183: 1.511568722 | AM183: 0.05077655903 | AN183: 0 | AO183: 0.05064310872 | AP183: 4.478935086 | AQ183: 3.939823066e-05 | AR183: 3.939823066e-05 | AS183: 3.563706449e-05
AK184: 26.25 | AL184: 1.502081889 | AM184: 0.05148496232 | AN184: 0 | AO184: 0.05134965019 | AP184: 4.470310692 | AQ184: 4.044222362e-05 | AR184: 4.044222362e-05 | AS184: 3.658139228e-05
AK185: 26.4 | AL185: 1.492595056 | AM185: 0.05219919196 | AN185: 0 | AO185: 0.0520620027 | AP185: 4.461686299 | AQ185: 4.15132057e-05 | AR185: 4.15132057e-05 | AS185: 3.755013268e-05
AK186: 26.55 | AL186: 1.483108223 | AM186: 0.05291920818 | AN186: 0 | AO186: 0.05278012658 | AP186: 4.453061905 | AQ186: 4.261185169e-05 | AR186: 4.261185169e-05 | AS186: 3.854389603e-05
AK187: 26.7 | AL187: 1.47362139 | AM187: 0.05364496892 | AN187: 0 | AO187: 0.05350397989 | AP187: 4.444437511 | AQ187: 4.373885252e-05 | AR187: 4.373885252e-05 | AS187: 3.956330733e-05
AK188: 26.85 | AL188: 1.464134557 | AM188: 0.0543764299 | AN188: 0 | AO188: 0.05423351845 | AP188: 4.435813118 | AQ188: 4.489491557e-05 | AR188: 4.489491557e-05 | AS188: 4.06090064e-05
AK189: 27 | AL189: 1.454647724 | AM189: 0.05511354452 | AN189: 0 | AO189: 0.0549686958 | AP189: 4.427188724 | AQ189: 4.608076507e-05 | AR189: 4.608076507e-05 | AS189: 4.168164836e-05
AK190: 27.15 | AL190: 1.445160891 | AM190: 0.0558562639 | AN190: 0 | AO190: 0.05570946317 | AP190: 4.418564331 | AQ190: 4.729714249e-05 | AR190: 4.729714249e-05 | AS190: 4.278190387e-05
AK191: 27.3 | AL191: 1.435674058 | AM191: 0.05660453685 | AN191: 0 | AO191: 0.05645576952 | AP191: 4.409939937 | AQ191: 4.854480688e-05 | AR191: 4.854480688e-05 | AS191: 4.391045953e-05
AK192: 27.45 | AL192: 1.426187225 | AM192: 0.05735830983 | AN192: 0 | AO192: 0.05720756144 | AP192: 4.401315543 | AQ192: 4.982453529e-05 | AR192: 4.982453529e-05 | AS192: 4.506801822e-05
AK193: 27.6 | AL193: 1.416700392 | AM193: 0.05811752693 | AN193: 0 | AO193: 0.05796478318 | AP193: 4.39269115 | AQ193: 5.113712318e-05 | AR193: 5.113712318e-05 | AS193: 4.625529943e-05
AK194: 27.75 | AL194: 1.407213559 | AM194: 0.05888212993 | AN194: 0 | AO194: 0.05872737665 | AP194: 4.384066756 | AQ194: 5.248338477e-05 | AR194: 5.248338477e-05 | AS194: 4.747303968e-05
AK195: 27.9 | AL195: 1.397726726 | AM195: 0.05965205813 | AN195: 0 | AO195: 0.05949528134 | AP195: 4.375442363 | AQ195: 5.386415354e-05 | AR195: 5.386415354e-05 | AS195: 4.872199287e-05
AK196: 28.05 | AL196: 1.388239893 | AM196: 0.06042724851 | AN196: 0 | AO196: 0.06026843438 | AP196: 4.366817969 | AQ196: 5.528028257e-05 | AR196: 5.528028257e-05 | AS196: 5.000293063e-05
AK197: 28.2 | AL197: 1.37875306 | AM197: 0.06120763563 | AN197: 0 | AO197: 0.0610467705 | AP197: 4.358193575 | AQ197: 5.673264501e-05 | AR197: 5.673264501e-05 | AS197: 5.131664277e-05
AK198: 28.35 | AL198: 1.369266227 | AM198: 0.06199315157 | AN198: 0 | AO198: 0.06183022195 | AP198: 4.349569182 | AQ198: 5.822213453e-05 | AR198: 5.822213453e-05 | AS198: 5.266393764e-05
AK199: 28.5 | AL199: 1.359779394 | AM199: 0.06278372603 | AN199: 0 | AO199: 0.06261871864 | AP199: 4.340944788 | AQ199: 5.974966577e-05 | AR199: 5.974966577e-05 | AS199: 5.404564256e-05
AK200: 28.65 | AL200: 1.350292561 | AM200: 0.06357928623 | AN200: 0 | AO200: 0.06341218795 | AP200: 4.332320394 | AQ200: 6.131617472e-05 | AR200: 6.131617472e-05 | AS200: 5.546260418e-05
... 809 more rows

Sheet Data two
H1: Data Two | V1: =$U$1 -> 0 | W1: 0 | X1: 0 | Y1: 0 | Z1: 0 | AA1: 0 | AB1: 0 | AC1: 0 | AD1: 0 | AE1: 0 | AF1: 0 | AG1: 0 | AH1: 0 | AI1: 0
H2: Enter your own data, for two independent groups | P2: 10 | U2: =$U$1 -> 0 | Z2: =$U$1 -> 0 | AA2: 0 | AI2: =$U$1 -> 0
H3: Display sample means, with CIs | U3: =$U$1 -> 0 | Z3: 0 | AA3: 0 | AI3: 0
A4: sum G1 | B4: 621 | C4: =SUM(F7:F1006) -> 621 | U4: 0 | Z4: 0 | AA4: 0 | AI4: 0
A5: sum G2 | B5: 542 | C5: =SUM(I7:I1006) -> 542 | E5: 1i | F5: Group 1 | G5: 2 Type | I5: Group 2 | K5: 3 | L5: Display information for: | U5: 0 | Z5: 0 | AA5: 0 | AI5: 0
A6: sumsq G1 | B6: 32235 | C6: =SUMSQ(F7:F1006) -> 32235 | F6: Expt'l | G6: labels | I6: Control | U6: 0 | Z6: 0 | AA6: 0 | AI6: 0
A7: sumsq G2 | B7: 33728 | C7: =SUMSQ(I7:I1006) -> 33728 | E7: 1 | F7: 34 | G7: cm | H7: 1 | I7: 66 | J7: =IF($G$7="","",$G$7) -> cm | U7: 0 | Z7: 0 | AA7: 0 | AI7: 0
A8: C | B8: 94 | C8: =P10 -> 95 | E8: 2 | F8: 54 | H8: 2 | I8: 76 | U8: 0 | Z8: 0 | AA8: 0 | AI8: 0 | AP8: 11
A9: N1 | B9: 13 | C9: =None -> 13 | E9: 3 | F9: 33 | H9: 3 | I9: 56 | K9: 4 | L9: Confidence Intervals | U9: 0 | Z9: 0 | AA9: 0 | AI9: 0 | AQ9: Display d
A10: N2 | B10: 9 | C10: =Ntwo -> 9 | E10: 4 | F10: 44 | H10: 4 | I10: 55 | O10: C | P10: =IF(AH54<100,AH54,99+(AH54-99)/10) -> 95 | U10: 0 | Z10: 0 | AA10: 0 | AI10: 0 | AQ10: and CI for d
B11: Calc CI on d? | C11: =IF(AND(Q30<>"",O35<>"",W70<>""),AND(W53,Y56=1,Q30<=200,ABS(O35)<=10,B4=C4,B5=C5,B6=C6,B7=C7,B8=C8,B9=C9,B10=C10),FALSE) -> FALSE | E11: 5 | F11: 45 | H11: 5 | I11: 48 | U11: 0 | Z11: 0 | AA11: 0 | AI11: 0
A12: To calculate CIs on d | E12: 6 | F12: 53 | H12: 6 | I12: 39 | U12: 0 | Z12: 0 | AA12: 0 | AI12: 0
A13: targtailPs | B13: =1-C13 -> 0.975 | C13: =(100-P10)/200 -> 0.025 | E13: 7 | F13: 37 | H13: 7 | I13: 65 | K13: 5 | L13: Descriptive statistics | U13: 0 | Z13: 0 | AA13: 0 | AI13: 0
A14: tobezero | B14: =100000*(B13-B17) -> 500.0000214 | C14: =100000*(C13-C17) -> -500.0000005 | E14: 8 | F14: 29 | H14: 8 | I14: 68 | N14: Group 1 | P14: Group 2 | U14: 0 | Z14: 0 | AA14: 0 | AI14: 0
A15: df | B15: =IF(Q30="","",Q30) -> 20 | E15: 9 | F15: 38 | H15: 9 | I15: 69 | N15: =IF(F6="","",F6) -> Expt'l | P15: =IF(I6="","",I6) -> Control | U15: 0 | Z15: 0 | AA15: 0 | AI15: 0
A16: NCP limits | B16: 0.116770251 | C16: 4.082146795 | E16: 10 | F16: 62 | H16: 10 | M16: N1 | N16: =COUNTA(F7:F1006) -> 13 | O16: N2 | P16: =COUNTA(I7:I1006) -> 9 | U16: 0 | Z16: 0 | AA16: 0 | AI16: 0
A17: nct | B17: =nct(O30,B16,B15) -> 0.9699999998 | C17: =nct(O30,C16,B15) -> 0.03000000001 | E17: 11 | F17: 46 | H17: 11 | M17: Means M1 | N17: =IF(None>0,AVERAGE(F7:F1006),"") -> 47.76923077 | O17: M2 | P17: =IF(Ntwo>0,AVERAGE(I7:I1006),"") -> 60.22222222 | Q17: =IF($G$7="","",$G$7) -> cm | U17: 0 | Z17: =$U$1 -> 0 | AA17: 0 | AI17: =$U$1 -> 0
A18: approx CI | B18: =O25-O29 -> 0.2202488338 | C18: =O25+O29 -> 24.68573407 | E18: 12 | F18: 77 | H18: 12 | M18: SDs s1 | N18: =IF(None>1,STDEV(F7:F1006),"") -> 14.6353103 | O18: s2 | P18: =IF(Ntwo>1,STDEV(I7:I1006),"") -> 11.65952162 | Q18: =IF($G$7="","",$G$7) -> cm | U18: 0 | Z18: 0 | AA18: 0 | AI18: 0
A19: equiv d | B19: =B18/W70 -> 0.01628601696 | C19: =C18/W70 -> 1.825354881 | E19: 13 | F19: 69 | H19: 13 | K19: 6 | L19: CIs and inference | U19: 0 | Z19: 0 | AA19: 0 | AI19: 0
A20: equiv ncp | B20: =B19/SQRT(1/N16+1/P16) -> 0.03755748247 | C20: =C19/SQRT(1/N16+1/P16) -> 4.209484377 | E20: 14 | H20: 14 | M20: MOE1 | N20: =IF(None>1,(N18/SQRT(None))*TINV(1-$P$10/100,(None-1)),"") -> 8.844029503 | O20: MOE2 | P20: =IF(Ntwo>1,(P18/SQRT(Ntwo))*TINV(1-$P$10/100,(Ntwo-1)),"") -> 8.962301691 | Q20: =IF($G$7="","",$G$7) -> cm | U20: 0 | Z20: 0 | AA20: 0 | AI20: 0
B21: Assume var equal? | C21: =(Y56=1) -> TRUE | E21: 15 | H21: 15 | M21: CI [i | N21: =IF(None>1,N17-N20,"") -> 38.92520127 | O21: to [ | P21: =IF(Ntwo>1,P17-P20,"") -> 51.25992053 | Q21: to | U21: 0 | Z21: 0 | AA21: 0 | AI21: 0
E22: 16 | H22: 16 | N22: =IF(None>1,N17+N20,"") -> 56.61326027 | O22: ] | P22: =IF(Ntwo>1,P17+P20,"") -> 69.18452391 | Q22: ] | U22: 0 | Z22: 0 | AA22: 0 | AI22: 0
E23: 17 | H23: 17 | N23: Mean of MOE1 and MOE2 | O23: =IF(AND(N20<>"",P20<>""),(N20+P20)/2,"") -> 8.903165597 | P23: =IF($G$7="","",$G$7) -> cm | U23: 0 | Z23: 0 | AA23: 0 | AI23: 0
E24: 18 | H24: 18 | N24: =IF(AND(N20<>"",P20<>"",NOT(AND(N20=0,P20=0))),IF((MIN(N17+N20,P17+P20)-MAX(N17-N20,P17-P20))/O23>=0,"Overlap","Gap"),"") -> Overlap | O24: =IF(AND(N20<>"",P20<>"",NOT(AND(N20=0,P20=0))),ABS((MIN(N17+N20,P17+P20)-MAX(N17-N20,P17-P20))/O23),"") -> 0.6012849793 | U24: 0 | Z24: 0 | AA24: 0 | AI24: 0
E25: 19 | H25: 19 | N25: Effect Size | O25: =IF(AND(N17<>"",P17<>""),P17-N17,"") -> 12.45299145 | P25: =IF($G$7="","",$G$7) -> cm | U25: 0 | Z25: 0 | AA25: 0 | AI25: 0
E26: 20 | H26: 20 | K26: 7 | L26: Assumption | U26: 0 | Z26: 0 | AA26: 0 | AI26: 0
E27: 21 | H27: 21 | O27: Assume variances equal? | U27: 0 | Z27: 0 | AA27: 0 | AI27: 0
E28: 22 | H28: 22 | U28: 0 | Z28: 0 | AA28: 0 | AI28: 0
E29: 23 | H29: 23 | K29: 8 | L29: Inference | N29: MOEdiff | O29: =IF(W70<>"",IF(Y56=1,W72,W82),"") -> 12.23274262 | P29: =IF($G$7="","",$G$7) -> cm | U29: 0 | Z29: 0 | AA29: 0 | AI29: 0
E30: 24 | H30: 24 | N30: Independent groups t | O30: =IF(W70<>"",IF(Y56=1,(P17-N17)/(W70*SQRT(1/None+1/Ntwo)),W76),"") -> 2.12352093 | P30: df | Q30: =IF(W70<>"",IF(Y56=1,None+Ntwo-2,W77),"") -> 20 | U30: 0 | Z30: 0 | AA30: 0 | AI30: 0
E31: 25 | H31: 25 | N31: Two-tailed p | O31: =IF(O30<>"",IF(Y56=1,TDIST(ABS(O30),None+Ntwo-2,2),W81),"") -> 0.04637832495 | U31: 0 | Z31: 0 | AA31: 0 | AI31: 0
E32: 26 | H32: 26 | U32: 0 | Z32: 0 | AA32: 0 | AI32: 0
E33: 27 | H33: 27 | K33: 9 | L33: Reveal figure displaying difference | U33: 0 | Z33: 0 | AA33: 0 | AI33: 0
E34: 28 | H34: 28 | K34: Cohen's d | N34: sp | O34: =IF(AND(dispddt,N18<>"",P18<>"",Y56=1),W70,"") ->  | P34: =IF($G$7="","",$G$7) -> cm | U34: 0 | Z34: 0 | AA34: 0 | AI34: 0
E35: 29 | H35: 29 | N35: d | O35: =IF(AND(dispddt,N18<>"",P18<>"",Y56=1),O25/W70,"") ->  | Q35: CI for d | U35: 0 | Z35: 0 | AA35: 0 | AI35: 0
E36: 30 | H36: 30 | K36: 12 | O36: [ | P36: =IF(C11,cidtl*SQRT(1/None+1/Ntwo),"") ->  | Q36: , | R36: =IF(C11,cidtu*SQRT(1/None+1/Ntwo),"") ->  | S36: ] | U36: 0 | Z36: 0 | AA36: 0 | AI36: 0
E37: 31 | H37: 31 | K37: Unbiased d
E38: 32 | H38: 32 | M38: dunb | N38: =IF(AND(dispddt,N18<>"",P18<>"",Y56=1),O35*W52,"") ->  | P38: MOEav | R38: =IF(C11,(R36-P36)/2,"") -> 
E39: 33 | H39: 33
E40: 34 | H40: 34
E41: 35 | H41: 35
E42: 36 | H42: 36
E43: 37 | H43: 37
E44: 38 | H44: 38
E45: 39 | H45: 39
E46: 40 | H46: 40
E47: 41 | H47: 41
E48: 42 | H48: 42
E49: 43 | H49: 43
E50: 44 | H50: 44
E51: 45 | H51: 45
E52: 46 | H52: 46 | M52: For Display | N52: Group1 | P52: Group2 | V52: To debias | W52: =EXP(GAMMALN(Q30/2))/(SQRT(Q30/2)*EXP(GAMMALN(Q30/2-0.5))) -> 0.9619445337
E53: 47 | H53: 47 | M53: 0.8 | N53: =IF(AND($W$56,NOT(F7=""),$W$54),F7,NA()) ->  | O53: 2.2 | P53: =IF(AND($W$56,NOT(I7=""),$W$55),I7,NA()) ->  | V53: Disp d, CI? | W53: FALSE | X53: Show CI | Y53: TRUE | AB53: To get wide figure | AE53: Dotted lines | AH53: for C
E54: 48 | H54: 48 | M54: 0.8 | O54: 2.2 | V54: Group 1? | W54: TRUE | X54: Show O'lap | Y54: FALSE | AB54: 1 | AC54: =W66 -> 29 | AE54: =IF(AG60,1,NA()) -> 1 | AF54: =N17 -> 47.76923077 | AH54: 95
E55: 49 | H55: 49 | M55: 0.8 | O55: 2.2 | V55: Group 2? | W55: TRUE | X55: Dot only | Y55: 1 | AB55: 2 | AC55: =AC54 -> 29 | AE55: =IF(AG60,AE64,NA()) -> 3.1 | AF55: =AF54 -> 47.76923077
E56: 50 | H56: 50 | M56: 0.8 | O56: 2.2 | V56: Disp data | W56: FALSE | X56: Yes-No | Y56: 1 | AB56: 3 | AC56: =AC55 -> 29 | AE56: =IF(AG60,2,NA()) -> 2 | AF56: =P17 -> 60.22222222
E57: 51 | H57: 51 | M57: 0.8 | O57: 2.2 | V57: C OK? | W57: =AND(P10>=0, P10<=99.9) -> TRUE | X57: Reveal Diff fig | Y57: FALSE | AB57: Calcs for unit on diff axis | AE57: =IF(AG60,AE64,NA()) -> 3.1 | AF57: =AF56 -> 60.22222222
E58: 52 | H58: 52 | M58: 0.8 | O58: 2.2 | V58: X-axis labels | W58: =IF(W54,LEFT(" ",MAX(0,8-0.5*LEN(F6)))&F6&LEFT(" ",MAX(0,8-0.5*LEN(F6)))," ") -> Expt'l | X58: =IF(W55,IF(I6=""," ",I6)," ") -> Control | Y58: Difference | AB58: Range | AC58: =IF(W65-W66=0,1,W65-W66) -> 48 | AE58: Disp difference | AG58: Bar
E59: 53 | H59: 53 | M59: 0.8 | O59: 2.2 | V59: Dot Means | W59: =IF(AND($N$17<>"",$Y$55=1,W54),$N$17,NA()) -> 47.76923077 | X59: =IF(AND($P$17<>"",$Y$55=1,W55),$P$17,NA()) -> 60.22222222 | AB59: Powerof10 | AC59: =POWER(10,INT(LOG10(AC58))) -> 10 | AE59: =IF(AND(Y53,AG60),2.7,NA()) -> 2.7 | AF59: =AF56 -> 60.22222222 | AG59: =IF(Y56=1,W72,W82) -> 12.23274262
E60: 54 | H60: 54 | M60: 0.8 | O60: 2.2 | V60: Col Means | W60: =IF(AND($N$17<>"",$Y$55=2,W54),$N$17,NA()) ->  | X60: =IF(AND($P$17<>"",$Y$55=2,W55),$P$17,NA()) ->  | AB60: Estnoints | AC60: =ROUNDUP(AC58/AC59,0) -> 5 | AF60: Disp all diff stuff | AG60: =AND(N17<>"",P17<>"",W54,W55) -> TRUE
E61: 55 | H61: 55 | M61: 0.8 | O61: 2.2 | V61: CI bars | W61: =IF(AND($N$17<>"",$Y$53,W54),$N$17,NA()) -> 47.76923077 | X61: =IF(AND($P$17<>"",$Y$53,W55),$P$17,NA()) -> 60.22222222 | AB61: divisor | AC61: =CHOOSE(AC60,10,5,5,2,2,2,2,1,1,1) -> 2
E62: 56 | H62: 56 | M62: 0.8 | O62: 2.2 | V62: Bar widths | W62: =N20 -> 8.844029503 | X62: =P20 -> 8.962301691 | AB62: intsize | AC62: =AC59/AC61 -> 5
E63: 57 | H63: 57 | M63: 0.8 | O63: 2.2 | V63: Overlap | W63: =IF(AND($Y$53,$Y$54,$N$20<>"",$P$20<>"",W54,W55),MIN($N$17+$N$20,$P$17+$P$20),NA()) ->  | X63: =IF(AND($Y$53,$Y$54,$N$20<>"",$P$20<>"",W54,W55),MIN($N$17+$N$20,$P$17+$P$20),NA()) ->  | AB63: For diff axis | AC63: labels | AD63: y | AE63: x | AF63: y disp
E64: 58 | H64: 58 | M64: 0.8 | O64: 2.2 | W64: =IF(AND($Y$53,$Y$54,$N$20<>"",$P$20<>"",W54,W55),MAX($N$17-$N$20,$P$17-$P$20),NA()) ->  | X64: =IF(AND($Y$53,$Y$54,$N$20<>"",$P$20<>"",W54,W55),MAX($N$17-$N$20,$P$17-$P$20),NA()) ->  | AB64: 10 | AC64: =$AC$62*AB64 -> 50 | AD64: =$N$17+$AC$62*AB64 -> 97.76923077 | AE64: =IF(AG60,3.1,NA()) -> 3.1 | AF64: =IF(AND(AD64<=$W$65,AD64>=$W$66),AD64,NA()) -> 
E65: 59 | H65: 59 | M65: 0.8 | O65: 2.2 | V65: Max y needed | W65: =MAX(F7:F106,I7:I106,N22,P22) -> 77 | X65: =MAX(F7:F106,I7:I106,N22,P22) -> 77 | AB65: 9 | AC65: 45 | AD65: 92.76923077 | AE65: =IF($AG$60,AE64,NA()) -> 3.1
E66: 60 | H66: 60 | M66: 0.8 | O66: 2.2 | V66: Min y needed | W66: =MIN(F7:F106,I7:I106,N21,P21) -> 29 | X66: =MIN(F7:F106,I7:I106,N21,P21) -> 29 | AB66: 8 | AC66: 40 | AD66: 87.76923077 | AE66: =IF($AG$60,AE65,NA()) -> 3.1
E67: 61 | H67: 61 | M67: 0.8 | O67: 2.2 | X67: (Invisible points to keep y axis stable) | AB67: 7 | AC67: 35 | AD67: 82.76923077 | AE67: 3.1
E68: 62 | H68: 62 | M68: 0.8 | O68: 2.2 | W68: y axis label | AB68: 6 | AC68: 30 | AD68: 77.76923077 | AE68: 3.1
E69: 63 | H69: 63 | M69: 0.8 | O69: 2.2 | W69: ="Dependent variable "&IF(G7="","","("&G7&")")&"." -> Dependent variable (cm). | AB69: 5 | AC69: 25 | AD69: 72.76923077 | AE69: 3.1 | AF69: 72.76923077
E70: 64 | H70: 64 | M70: 0.8 | O70: 2.2 | V70: Pooled s | W70: =IF(AND(N18<>"",P18<>""),SQRT((N18*N18*(None-1)+P18*P18*(Ntwo-1))/(None+Ntwo-2)),"") -> 13.52379985 | X70: =None+Ntwo-2 -> 20 | Y70: df | AB70: 4 | AC70: 20 | AD70: 67.76923077 | AE70: 3.1 | AF70: 67.76923077
E71: 65 | H71: 65 | M71: 0.8 | O71: 2.2 | V71: SE | W71: =W70*SQRT(1/None+1/Ntwo) -> 5.864313028 | X71: =TINV((1-P10/100),X70) -> 2.085963447 | Y71: tcrit C | AB71: 3 | AC71: 15 | AD71: 62.76923077 | AE71: 3.1 | AF71: 62.76923077
E72: 66 | H72: 66 | M72: 0.8 | O72: 2.2 | V72: Bar | W72: =X71*W71 -> 12.23274262 | AB72: 2 | AC72: 10 | AD72: 57.76923077 | AE72: 3.1 | AF72: 57.76923077
E73: 67 | H73: 67 | M73: 0.8 | O73: 2.2 | V73: For Welch-Satterthwaite | AB73: 1 | AC73: 5 | AD73: 52.76923077 | AE73: 3.1 | AF73: 52.76923077
E74: 68 | H74: 68 | M74: 0.8 | O74: 2.2 | V74: For WS SE | W74: =N18^2/None+P18^2/Ntwo -> 31.58126963 | AB74: 0 | AC74: 0 | AD74: 47.76923077 | AE74: 3.1 | AF74: 47.76923077
E75: 69 | H75: 69 | M75: 0.8 | O75: 2.2 | V75: WS SE | W75: =SQRT(W74) -> 5.619721491 | AB75: -1 | AC75: -5 | AD75: 42.76923077 | AE75: 3.1 | AF75: 42.76923077
E76: 70 | H76: 70 | M76: 0.8 | O76: 2.2 | V76: WS t | W76: =(P17-N17)/W75 -> 2.215944593 | AB76: -2 | AC76: -10 | AD76: 37.76923077 | AE76: 3.1 | AF76: 37.76923077
E77: 71 | H77: 71 | M77: 0.8 | O77: 2.2 | V77: WS df | W77: =W74^2/(N18^4/(None^2*(None-1))+P18^4/(Ntwo^2*(Ntwo-1))) -> 19.50196919 | AB77: -3 | AC77: -15 | AD77: 32.76923077 | AE77: 3.1 | AF77: 32.76923077
E78: 72 | H78: 72 | M78: 0.8 | O78: 2.2 | V78: WS p rddown | W78: =TDIST(ABS(W76),ROUNDDOWN(W77,0),2) -> 0.03910192173 | X78: =TINV((1-P10/100),ROUNDDOWN(W77,0)) -> 2.093024054 | Y78: tcrit C rddn | AB78: -4 | AC78: -20 | AD78: 27.76923077 | AE78: 3.1
E79: 73 | H79: 73 | M79: 0.8 | O79: 2.2 | V79: WS p rdup | W79: =TDIST(ABS(W76),ROUNDUP(W77,0),2) -> 0.03845679418 | X79: =TINV((1-P10/100),ROUNDUP(W77,0)) -> 2.085963447 | Y79: tcrit C rdup | AB79: -5 | AC79: -25 | AD79: 22.76923077 | AE79: 3.1
E80: 74 | H80: 74 | M80: 0.8 | O80: 2.2 | V80: WS interp frac | W80: =W77-ROUNDDOWN(W77,0) -> 0.5019691914 | AB80: -6 | AC80: -30 | AD80: 17.76923077 | AE80: 3.1
E81: 75 | H81: 75 | M81: 0.8 | O81: 2.2 | V81: WS p | W81: =W79*$W$80+W78*(1-$W$80) -> 0.03877808758 | X81: =X79*$W$80+X78*(1-$W$80) -> 2.089479847 | Y81: tcrit C | AB81: -7 | AC81: -35 | AD81: 12.76923077 | AE81: 3.1
E82: 76 | H82: 76 | M82: 0.8 | O82: 2.2 | V82: Bar | W82: =X81*W75 -> 11.7422948 | AB82: -8 | AC82: -40 | AD82: 7.769230769 | AE82: 3.1
E83: 77 | H83: 77 | M83: 0.8 | O83: 2.2 | AB83: -9 | AC83: -45 | AD83: 2.769230769 | AE83: 3.1
E84: 78 | H84: 78 | M84: 0.8 | O84: 2.2 | AB84: -10 | AC84: -50 | AD84: -2.230769231 | AE84: 3.1
E85: 79 | H85: 79 | M85: 0.8 | N85: =IF(AND($W$56,NOT(F39=""),$W$54),F39,NA()) ->  | O85: 2.2 | P85: =IF(AND($W$56,NOT(I39=""),$W$55),I39,NA()) -> 
E86: 80 | H86: 80 | M86: 0.8 | O86: 2.2
E87: 81 | H87: 81 | M87: 0.8 | O87: 2.2
E88: 82 | H88: 82 | M88: 0.8 | O88: 2.2
E89: 83 | H89: 83 | M89: 0.8 | O89: 2.2
E90: 84 | H90: 84 | M90: 0.8 | O90: 2.2
E91: 85 | H91: 85 | M91: 0.8 | O91: 2.2
E92: 86 | H92: 86 | M92: 0.8 | O92: 2.2
E93: 87 | H93: 87 | M93: 0.8 | O93: 2.2
E94: 88 | H94: 88 | M94: 0.8 | O94: 2.2
E95: 89 | H95: 89 | M95: 0.8 | O95: 2.2
E96: 90 | H96: 90 | M96: 0.8 | O96: 2.2
E97: 91 | H97: 91 | M97: 0.8 | O97: 2.2
E98: 92 | H98: 92 | M98: 0.8 | O98: 2.2
E99: 93 | H99: 93 | M99: 0.8 | O99: 2.2
E100: 94 | H100: 94 | M100: 0.8 | O100: 2.2
E101: 95 | H101: 95 | M101: 0.8 | O101: 2.2
E102: 96 | H102: 96 | M102: 0.8 | O102: 2.2
E103: 97 | H103: 97 | M103: 0.8 | O103: 2.2
E104: 98 | H104: 98 | M104: 0.8 | O104: 2.2
E105: 99 | H105: 99 | M105: 0.8 | O105: 2.2
E106: 100 | H106: 100 | M106: 0.8 | O106: 2.2
E107: 101 | H107: 101 | M107: 0.8 | O107: 2.2
E108: 102 | H108: 102 | M108: 0.8 | O108: 2.2
E109: 103 | H109: 103 | M109: 0.8 | O109: 2.2
E110: 104 | H110: 104 | M110: 0.8 | O110: 2.2
E111: 105 | H111: 105 | M111: 0.8 | O111: 2.2
E112: 106 | H112: 106 | M112: 0.8 | O112: 2.2
E113: 107 | H113: 107 | M113: 0.8 | O113: 2.2
E114: 108 | H114: 108 | M114: 0.8 | O114: 2.2
E115: 109 | H115: 109 | M115: 0.8 | O115: 2.2
E116: 110 | H116: 110 | M116: 0.8 | O116: 2.2
E117: 111 | H117: 111 | M117: 0.8 | N117: =IF(AND($W$56,NOT(F71=""),$W$54),F71,NA()) ->  | O117: 2.2 | P117: =IF(AND($W$56,NOT(I71=""),$W$55),I71,NA()) -> 
E118: 112 | H118: 112 | M118: 0.8 | O118: 2.2
E119: 113 | H119: 113 | M119: 0.8 | O119: 2.2
E120: 114 | H120: 114 | M120: 0.8 | O120: 2.2
E121: 115 | H121: 115 | M121: 0.8 | O121: 2.2
E122: 116 | H122: 116 | M122: 0.8 | O122: 2.2
E123: 117 | H123: 117 | M123: 0.8 | O123: 2.2
E124: 118 | H124: 118 | M124: 0.8 | O124: 2.2
E125: 119 | H125: 119 | M125: 0.8 | O125: 2.2
E126: 120 | H126: 120 | M126: 0.8 | O126: 2.2
E127: 121 | H127: 121 | M127: 0.8 | O127: 2.2
E128: 122 | H128: 122 | M128: 0.8 | O128: 2.2
E129: 123 | H129: 123 | M129: 0.8 | O129: 2.2
E130: 124 | H130: 124 | M130: 0.8 | O130: 2.2
E131: 125 | H131: 125 | M131: 0.8 | O131: 2.2
E132: 126 | H132: 126 | M132: 0.8 | O132: 2.2
E133: 127 | H133: 127 | M133: 0.8 | O133: 2.2
E134: 128 | H134: 128 | M134: 0.8 | O134: 2.2
E135: 129 | H135: 129 | M135: 0.8 | O135: 2.2
E136: 130 | H136: 130 | M136: 0.8 | O136: 2.2
E137: 131 | H137: 131 | M137: 0.8 | O137: 2.2
E138: 132 | H138: 132 | M138: 0.8 | O138: 2.2
E139: 133 | H139: 133 | M139: 0.8 | O139: 2.2
E140: 134 | H140: 134 | M140: 0.8 | O140: 2.2
E141: 135 | H141: 135 | M141: 0.8 | O141: 2.2
E142: 136 | H142: 136 | M142: 0.8 | O142: 2.2
E143: 137 | H143: 137 | M143: 0.8 | O143: 2.2
E144: 138 | H144: 138 | M144: 0.8 | O144: 2.2
E145: 139 | H145: 139 | M145: 0.8 | O145: 2.2
E146: 140 | H146: 140 | M146: 0.8 | O146: 2.2
E147: 141 | H147: 141 | M147: 0.8 | O147: 2.2
E148: 142 | H148: 142 | M148: 0.8 | O148: 2.2
E149: 143 | H149: 143 | M149: 0.8 | N149: =IF(AND($W$56,NOT(F103=""),$W$54),F103,NA()) ->  | O149: 2.2 | P149: =IF(AND($W$56,NOT(I103=""),$W$55),I103,NA()) -> 
E150: 144 | H150: 144 | M150: 0.8 | N150: =IF(AND($W$56,NOT(F104=""),$W$54),F104,NA()) ->  | O150: 2.2 | P150: =IF(AND($W$56,NOT(I104=""),$W$55),I104,NA()) -> 
E151: 145 | H151: 145 | M151: 0.8 | N151: =IF(AND($W$56,NOT(F105=""),$W$54),F105,NA()) ->  | O151: 2.2 | P151: =IF(AND($W$56,NOT(I105=""),$W$55),I105,NA()) -> 
E152: 146 | H152: 146 | M152: 0.8 | N152: =IF(AND($W$56,NOT(F106=""),$W$54),F106,NA()) ->  | O152: 2.2 | P152: =IF(AND($W$56,NOT(I106=""),$W$55),I106,NA()) -> 
E153: 147 | H153: 147
E154: 148 | H154: 148
E155: 149 | H155: 149
E156: 150 | H156: 150
E157: 151 | H157: 151
E158: 152 | H158: 152
E159: 153 | H159: 153
E160: 154 | H160: 154
E161: 155 | H161: 155
E162: 156 | H162: 156
E163: 157 | H163: 157
E164: 158 | H164: 158
E165: 159 | H165: 159
E166: 160 | H166: 160
E167: 161 | H167: 161
E168: 162 | H168: 162
E169: 163 | H169: 163
E170: 164 | H170: 164
E171: 165 | H171: 165
E172: 166 | H172: 166
E173: 167 | H173: 167
E174: 168 | H174: 168
E175: 169 | H175: 169
E176: 170 | H176: 170
E177: 171 | H177: 171
E178: 172 | H178: 172
E179: 173 | H179: 173
E180: 174 | H180: 174
E181: 175 | H181: 175
E182: 176 | H182: 176
E183: 177 | H183: 177
E184: 178 | H184: 178
E185: 179 | H185: 179
E186: 180 | H186: 180
E187: 181 | H187: 181
E188: 182 | H188: 182
E189: 183 | H189: 183
E190: 184 | H190: 184
E191: 185 | H191: 185
E192: 186 | H192: 186
E193: 187 | H193: 187
E194: 188 | H194: 188
E195: 189 | H195: 189
E196: 190 | H196: 190
E197: 191 | H197: 191
E198: 192 | H198: 192
E199: 193 | H199: 193
E200: 194 | H200: 194
... 806 more rows

Sheet Simulate two
H1: Simulate Two | O1: 8 | Q1: Descriptive statistics | AW1: N1 | AX1: To debias | AY1: =EXP(GAMMALN(T12/2))/(SQRT(T12/2)*EXP(GAMMALN(T12/2-0.5))) -> 0.987003581
A2: 40 | B2: =I11 -> 40 | C2: Display? | D2: =AND(B3=A3,B4=A4,B2=A2,B5=A5,B6=A6,D3) -> TRUE | H2: Two independent groups design | P2: Group 1 | S2: Group 2 | AW2: 40 | AX2: pooled s | AY2: =IF(AND(D2),SQRT((P5*P5*(B2-1)+S5*S5*(N-1))/(B2+N-2)),"") -> 24.15125636
A3: 67 | B3: 67 | C3: In range? | D3: =AND(B4>=5,B4<=50,B3>=10,B3<=90,B5>=10,B5<=90,L11>=2,L11<=100,I11>=2,I11<=100,L21>=0,L21<=99.9) -> TRUE | H3: Take two samples | P3: =IF(P15="","",P15) -> Test | S3: =IF(S15="","",S15) -> Control | AW3: N2 | AX3: Speed | AY3: 20 | AZ3: =4*(20-AY3) -> 0
A4: 25 | B4: 25 | C4: ShowData | D4: FALSE | H4: Display means with CIs | O4: Mean M1 | P4: =IF(AND(D2),AVERAGE(P16:P115),"") -> 55.91096327 | Q4: M2 | S4: =IF(AND(D2),AVERAGE(S16:S115),"") -> 63.19422274 | T4: =IF($Q$16="","",$Q$16) -> cm | AD4: Cohen's d | AW4: 20 | AX4: Dot Means | AZ4: =IF(AND($D$14=1,$D$2,AY21),$P$4,NA()) -> 55.91096327 | BA4: =IF(AND($D$14=1,$D$2,AY22),$S$4,NA()) -> 63.19422274
A5: 57 | B5: 57 | C5: ShowDiff | D5: FALSE | O5: SD s1 | P5: =IF(AND(D2),STDEV(P16:P115),"") -> 24.29531591 | Q5: s2 | S5: =IF(AND(D2),STDEV(S16:S115),"") -> 23.85282951 | T5: =IF($Q$16="","",$Q$16) -> cm | AW5: C | AX5: Col Means | AZ5: =IF(AND($D$14=2,$D$2,AY21),$P$4,NA()) ->  | BA5: =IF(AND($D$14=2,$D$2,AY22),$S$4,NA()) -> 
A6: 20 | B6: =L11 -> 20 | C6: ShowOlap | D6: FALSE | H6: 1 | K6: 10 | L6: Speed | O6: MOE1 | P6: =IF(AND(D2),(P5/SQRT(A2))*TINV(1-L21/100,(A2-1)),"") -> 7.770018981 | Q6: MOE2 | S6: =IF(AND(D2),(S5/SQRT(A6))*TINV(1-L21/100,(A6-1)),"") -> 11.16346784 | T6: =IF($Q$16="","",$Q$16) -> cm | AC6: d | AD6: =IF(AND(D15,D2),(S4-P4)/AY2,"") ->  | AW6: 95 | AX6: CI bars | AZ6: =IF(AND($D$8,$D$2,AY21),$P$4,NA()) -> 55.91096327 | BA6: =IF(AND($D$8,$D$2,AY22),$S$4,NA()) -> 63.19422274
A7: 0.06098968468 | B7: =RAND() -> 0.8974025704 | C7: Display m | D7: FALSE | P7: Mean MOE | Q7: =IF(AND(D2),(P6+S6)/2,"") -> 9.466743413 | S7: =IF($Q$16="","",$Q$16) -> cm | AF7: CI for d | AX7: Bar widths | AZ7: =$P$6 -> 7.770018981 | BA7: =$S$6 -> 11.16346784
A8: 95 | B8: =L21 -> 95 | C8: Show CI | D8: TRUE | L8: =AY3 -> 20 | O8: 9 | P8: =IF(AND(D2),IF((MIN(P4+P6,S4+S6)-MAX(P4-P6,S4-S6))/Q7>=0,"Overlap","Gap"),"") -> Overlap | Q8: =IF(AND(D2),ABS((MIN(P4+P6,S4+S6)-MAX(P4-P6,S4-S6))/Q7),"") -> 1.230647843 | AC8: [ | AD8: =IF(AND(D16,D15,D2),C21*SQRT(1/I11+1/L11),"") ->  | AF8: , | AG8: =IF(AND(D16,D15,D2),D21*SQRT(1/I11+1/L11),"") ->  | AH8: ] | AP8: 11 | AX8: Diff | AY8: 1.5 | AZ8: =IF(AND($D$5,$D$2,AY21,AY22),$P$4,NA()) ->  | BA8: =IF(AND($D$5,$D$2,AY21,AY22),Q9,NA()) -> 
P9: Effect Size | Q9: =IF(AND(D2),S4-P4,"") -> 7.283259466 | S9: =IF($Q$16="","",$Q$16) -> cm | AQ9: Display d
F10: 3 | G10: Sample sizes | P10: sp | Q10: =IF(AND(D2),AY2,"") -> 24.15125636 | S10: =IF($Q$16="","",$Q$16) -> cm | AE10: MOEav | AG10: =IF(AND(D16,D15,D2),(AG8-AD8)/2,"") ->  | AQ10: and CI for d | AX10: PopMeans | AZ10: 0.7 | BA10: =IF(AND($D$7,AY21),B5,NA()) -> 
H11: N1 | I11: =AW2 -> 40 | K11: N2 | L11: =AW4 -> 20 | P11: Ind gps t | Q11: =IF(AND(D2),Q9/(AY2*SQRT(1/I11+1/L11)),"") -> 1.101172666 | S11: =IF($Q$16="","",$Q$16) -> cm | AZ11: 2.3 | BA11: =IF(AND($D$7,AY22),B3,NA()) -> 
P12: 2-tail p | Q12: =IF(AND(D2),TDIST(ABS(Q11),I11+L11-2,2),"") -> 0.2753705043 | S12: df | T12: =IF(AND(D2),I11+L11-2,"") -> 58 | AD12: Unbiased d | AX12: Pop Bars | AZ12: =B4 -> 25 | BA12: =B4 -> 25
F13: 4 | G13: Display information for: | AX13: Horizontals | AZ13: 0.3 | BA13: -0.3
B14: FALSE | C14: Dot-Col | D14: 1 | P14: Group 1 | Q14: 2 Type | S14: Group 2 | AC14: dunb | AD14: =IF(AD6<>"",AD6*$AY$1,"") -> 
A15: Reveal m | B15: TRUE | C15: Display d? | D15: FALSE | G15: Display data points | P15: Test | Q15: labels | S15: Control | AX15: Overlap | AZ15: =IF(AND($D$2,$D$6,$D$8,AY21,AY22),MIN(P4+P6,S4+S6),NA()) ->  | BA15: =IF(AND($D$2,$D$6,$D$8,AY21,AY22),MIN(P4+P6,S4+S6),NA()) -> 
A16: Same C? | B16: =(B8=A8) -> TRUE | C16: Calc CI d? | D16: =IF(AND(dispdst,B16,D2,AY21,AY22,AD6<>""),IF(ABS(AD6)<=10,TRUE, FALSE),FALSE) -> FALSE | F16: 5 | G16: Sample means | O16: 1 | P16: =IF(AND(V58<=$A$2,$D$2),W58,"") -> 63.74304985 | Q16: cm | R16: 1 | S16: =IF(AND(V58<=$A$6,$D$2),X58,"") -> 28.33703477 | T16: =IF($Q$16="","",$Q$16) -> cm | AZ16: =IF(AND($D$2,$D$6,$D$8,AY21,AY22),MAX(P4-P6,S4-S6),NA()) ->  | BA16: =IF(AND($D$2,$D$6,$D$8,AY21,AY22),MAX(P4-P6,S4-S6),NA()) -> 
B17: To calculate CIs on d | J17: Display sample means as | O17: 2 | P17: =IF(AND(V59<=$A$2,$D$2),W59,"") -> 34.85917265 | R17: 2 | S17: =IF(AND(V59<=$A$6,$D$2),X59,"") -> 75.93767 | AX17: Horizontals for diff b'n means
B18: targtailPs | C18: =1-D18 -> 0.975 | D18: =(100-L21)/200 -> 0.025 | O18: 3 | P18: 78.44109952 | R18: 3 | S18: 39.12083332 | AX18: 1.05 | AY18: =IF(AND($D$5,$D$2,AY21,AY22),$P$4,NA()) ->  | AZ18: 1.4 | BA18: =IF(AND($D$5,$D$2,AY21,AY22),$S$4,NA()) -> 
B19: tobezero | C19: =100000*(C18-C22) -> 7370.487245 | D19: =100000*(D18-D22) -> 2114.140611 | G19: Display difference between means | O19: 4 | P19: 15.65888255 | R19: 4 | S19: 84.36724392 | AX19: 1.6 | AY19: =IF(AND($D$5,$D$2,AY21,AY22),$P$4,NA()) ->  | AZ19: 1.95 | BA19: =IF(AND($D$5,$D$2,AY21,AY22),$S$4,NA()) -> 
B20: df | C20: =I11+L11-2 -> 58 | F20: 6 | G20: Confidence Intervals | O20: 5 | P20: 41.2275434 | R20: 5 | S20: 33.32187918
B21: NCP limits | C21: -0.1992092307 | D21: 3.774564388 | K21: C | L21: =IF(AW6<100,AW6,99+(AW6-99)/10) -> 95 | O21: 6 | P21: 67.86687141 | R21: 6 | S21: 54.89895228 | AX21: Group 1? | AY21: TRUE
B22: nct | C22: =nct(Q11,C21,C20) -> 0.9012951276 | D22: =nct(Q11,D21,C20) -> 0.003858593889 | O22: 7 | P22: 52.47551296 | R22: 7 | S22: 81.54555889 | AX22: Group 2? | AY22: TRUE
B23: approx CI | C23: =Q9-TINV(1-L21/100,C20)*AY2*SQRT(1/I11+1/L11) -> -5.956288036 | D23: =Q9+TINV(1-L21/100,C20)*AY2*SQRT(1/I11+1/L11) -> 20.52280697 | I23: Display CI overlap | O23: 8 | P23: 105.1630714 | R23: 8 | S23: 75.57060014
B24: equiv d | C24: =C23/AY2 -> -0.2466243556 | D24: =D23/AY2 -> 0.8497614643 | F24: 7 | G24: Two populations | O24: 9 | P24: 14.71364633 | R24: 9 | S24: 101.6581585 | AP24: 12 | AQ24: Power | AY24: Sigma labels | AZ24: =$AZ$10-AY26 -> 0.63 | BA24: =BA10+AY25*B4 -> 
B25: equiv ncp | C25: =C24/SQRT(1/I11+1/L11) -> -0.9005448185 | D25: =D24/SQRT(1/I11+1/L11) -> 3.10289015 | O25: 10 | P25: 22.04356812 | R25: 10 | S25: 69.21185638 | AY25: 0.6 | AZ25: =$AZ$11+AY26 -> 2.37 | BA25: =BA11+AY25*B4 -> 
O26: 11 | P26: 32.90514768 | R26: 11 | S26: 48.6444618 | AQ26: Display power | AY26: 0.07
G27: Means | H27: m1 | I27: =IF(B15,B5,"") -> 57 | K27: m2 | L27: =IF(B15,B3,"") -> 67 | O27: 12 | P27: 7.256867341 | R27: 12 | S27: 78.9258101 | AY27: Poplabels | AZ27: =$AZ$10-AY29 -> 0.6 | BA27: =BA10 -> 
O28: 13 | P28: 45.31805398 | R28: 13 | S28: 76.37276099 | AZ28: =$AZ$11+AY29 -> 2.4 | BA28: =BA11 -> 
I29: SD s | J29: =IF($B$15,B4,"") -> 25 | M29: Effect size | O29: 14 | P29: 70.38104425 | R29: 14 | S29: 18.69137766 | AY29: 0.1
L30: d | M30: =IF($B$15,(L27-I27)/J29,"") -> 0.4 | O30: 15 | P30: 71.47079118 | R30: 15 | S30: 35.03945256
G31: Display population means ±SD | O31: 16 | P31: 54.956349 | R31: 16 | S31: 92.11189 | AX31: Power calculations | AZ31: FALSE | BA31: Display power?
F32: 13 | G32: Power | O32: 17 | P32: 51.14866979 | R32: 17 | S32: 89.81061687 | AX32: 1/sqrtN | AY32: =SQRT(1/I11+1/L11) -> 0.2738612788 | BB32: post hoc
G33: Two-tail | H33: a | I33: =1-L21/100 -> 0.05 | M33: Power | O33: 18 | P33: 66.8538529 | R33: 18 | S33: 74.92477649 | AX33: z1 or D | AY33: =M30/AY32 -> 1.460593487 | BB33: =AD14/AY32 -> 
L34: Using s and z. | M34: =IF(B15,AY35+AY36,"") -> 0.3090716641 | O34: 19 | P34: 35.54831255 | R34: 19 | S34: 44.65196736 | AX34: zcrit | AY34: =NORMSINV(1-I33/2) -> 1.959963985 | AZ34: tcrit | BA34: =TINV(I33,T12) -> 2.001717484
L35: Don't use s, so use t. | M35: =IF(AND(B15,AD6<>""),BA35+BA36,"") ->  | O35: 20 | P35: 57.39163709 | R35: 20 | S35: 60.74155359 | AX35: rhtailpower | AY35: =1-NORMSDIST(AY34-AY33) -> 0.3087591995 | BA35: =1-nct(BA34,AY33,T12) -> 0.3003067094 | BB35: =1-nct(BA34,BB33,T12) -> 
G36: Show post hoc power | O36: 21 | P36: 41.15835239 | R36: 21 | AX36: lhtailpower | AY36: =NORMSDIST(-AY34-AY33) -> 0.0003124646497 | BA36: =nct(-BA34,AY33,T12) -> 0.0003408928778 | BB36: =nct(-BA34,BB33,T12) -> 
L37: =IF(AZ37,"Post hoc power. Don't use! ","") ->  | M37: =IF(AND(AZ37,B15,AD6<>""),BB35+BB36,"") ->  | O37: 22 | P37: 80.25132333 | R37: 22 | AY37: Show post hoc power? | AZ37: FALSE
O38: 23 | P38: 45.12503311 | R38: 23
O39: 24 | P39: 70.96679907 | R39: 24
O40: 25 | P40: 32.86903564 | R40: 25
O41: 26 | P41: 80.32353504 | R41: 26
O42: 27 | P42: 63.13966513 | R42: 27
O43: 28 | P43: 54.78582622 | R43: 28
O44: 29 | P44: 51.40198588 | R44: 29
O45: 30 | P45: 91.62620915 | R45: 30
O46: 31 | P46: 58.70345907 | R46: 31
O47: 32 | P47: 50.1261565 | R47: 32
O48: 33 | P48: 112.4385139 | R48: 33
O49: 34 | P49: 98.70584515 | R49: 34
O50: 35 | P50: 75.37028193 | R50: 35
O51: 36 | P51: 78.30950826 | R51: 36
O52: 37 | P52: 41.7393843 | R52: 37
O53: 38 | P53: 44.56046312 | R53: 38
O54: 39 | P54: 46.56465445 | R54: 39
O55: 40 | P55: 28.84935535 | R55: 40 | W55: y axis label | Y55: X-axis labels | AA55: =IF(AY21,IF(P15=""," ",P15)," ") -> Test | AB55: =IF(AY22,IF(S15="","",S15),"") -> Control
O56: 41 | R56: 41 | W56: ="Dependent variable "&IF(Q16="","","("&Q16&")")&"." -> Dependent variable (cm).
O57: 42 | R57: 42 | V57: Index | W57: Data1 | X57: Data2 | Z57: Display1 | AB57: Display2 | AC57: RanData1 | AD57: RanData2
O58: 43 | R58: 43 | V58: 1 | W58: =$A$5+$A$4*NORMSINV(AC58) -> 63.74304985 | X58: =$A$3+$A$4*NORMSINV(AD58) -> 28.33703477 | Y58: 0.8 | Z58: =IF(AND(V58<=$A$2,$D$4,$D$2,$AY$21),W58,NA()) ->  | AA58: 2.2 | AB58: =IF(AND(V58<=$A$6,$D$4,$D$2,$AY$22),X58,NA()) ->  | AC58: =MOD(AD157*10000013,1) -> 0.6063129306 | AD58: =A7 -> 0.06098968468
O59: 44 | R59: 44 | V59: 2 | W59: 34.85917265 | X59: 75.93767 | Y59: 0.8 | AA59: 2.2 | AC59: =MOD(AC58*10000013,1) -> 0.1879076362 | AD59: =MOD(AD58*10000013,1) -> 0.6396437817
O60: 45 | R60: 45 | V60: 3 | W60: 78.44109952 | X60: 39.12083332 | Y60: 0.8 | AA60: 2.2 | AC60: 0.8044554591 | AD60: 0.1323895035
O61: 46 | R61: 46 | V61: 4 | W61: 15.65888255 | X61: 84.36724392 | Y61: 0.8 | AA61: 2.2 | AC61: 0.04909986258 | AD61: 0.7563751256
O62: 47 | R62: 47 | V62: 5 | W62: 41.2275434 | X62: 33.32187918 | Y62: 0.8 | AA62: 2.2 | AC62: 0.2640535235 | AD62: 0.08897001576
O63: 48 | R63: 48 | V63: 6 | W63: 67.86687141 | X63: 54.89895228 | Y63: 0.8 | AA63: 2.2 | AC63: 0.6681007743 | AD63: 0.3141780635
O64: 49 | R64: 49 | V64: 7 | W64: 52.47551296 | X64: 81.54555889 | Y64: 0.8 | AA64: 2.2 | AC64: 0.4281918406 | AD64: 0.7196568279
O65: 50 | R65: 50 | V65: 8 | W65: 105.1630714 | X65: 75.57060014 | Y65: 0.8 | AA65: 2.2 | AC65: 0.9729804397 | AD65: 0.6341345673
O66: 51 | R66: 51 | V66: 9 | W66: 14.71364633 | X66: 101.6581585 | Y66: 0.8 | AA66: 2.2 | AC66: 0.04537504911 | AD66: 0.9171763612
O67: 52 | R67: 52 | V67: 10 | W67: 22.04356812 | X67: 69.21185638 | Y67: 0.8 | AA67: 2.2 | AC67: 0.08101791143 | AD67: 0.5352501273
O68: 53 | R68: 53 | V68: 11 | W68: 32.90514768 | X68: 48.6444618 | Y68: 0.8 | AA68: 2.2 | AC68: 0.1675745845 | AD68: 0.2314068675
O69: 54 | R69: 54 | V69: 12 | W69: 7.256867341 | X69: 78.9258101 | Y69: 0.8 | AA69: 2.2 | AC69: 0.02331060171 | AD69: 0.6833304763
O70: 55 | R70: 55 | V70: 13 | W70: 45.31805398 | X70: 76.37276099 | Y70: 0.8 | AA70: 2.2 | AC70: 0.3201505542 | AD70: 0.6461364627
O71: 56 | R71: 56 | V71: 14 | W71: 70.38104425 | X71: 18.69137766 | Y71: 0.8 | AA71: 2.2 | AC71: 0.703758657 | AD71: 0.0266584754
O72: 57 | R72: 57 | V72: 15 | W72: 71.47079118 | X72: 35.03945256 | Y72: 0.8 | AA72: 2.2 | AC72: 0.7186486125 | AD72: 0.1005503535
O73: 58 | R73: 58 | V73: 16 | W73: 54.956349 | X73: 92.11189 | Y73: 0.8 | AA73: 2.2 | AC73: 0.4674243331 | AD73: 0.8424252868
O74: 59 | R74: 59 | V74: 17 | W74: 51.14866979 | X74: 89.81061687 | Y74: 0.8 | AA74: 2.2 | AC74: 0.4074718356 | AD74: 0.8192273974
O75: 60 | R75: 60 | V75: 18 | W75: 66.8538529 | X75: 74.92477649 | Y75: 0.8 | AA75: 2.2 | AC75: 0.6532663703 | AD75: 0.6243748069
O76: 61 | R76: 61 | V76: 19 | W76: 35.54831255 | X76: 44.65196736 | Y76: 0.8 | AA76: 2.2 | AC76: 0.1954275966 | AD76: 0.1856819987
O77: 62 | R77: 62 | V77: 20 | W77: 57.39163709 | X77: 60.74155359 | Y77: 0.8 | AA77: 2.2 | AC77: 0.5062493682 | AD77: 0.4011630416
O78: 63 | R78: 63 | V78: 21 | W78: 41.15835239 | X78: 75.36496063 | Y78: 0.8 | AA78: 2.2 | AC78: 0.2631494403 | AD78: 0.6310359836
O79: 64 | R79: 64 | V79: 22 | W79: 80.25132333 | X79: 22.96710426 | Y79: 0.8 | AA79: 2.2 | AC79: 0.8238281608 | AD79: 0.03909248114
O80: 65 | R80: 65 | V80: 23 | W80: 45.12503311 | X80: 55.27714444 | Y80: 0.8 | AA80: 2.2 | AC80: 0.3173939586 | AD80: 0.319565475
O81: 66 | P81: =IF(AND(V123<=$A$2,$D$2),W123,"") ->  | R81: 66 | S81: =IF(AND(V123<=$A$6,$D$2),X123,"") ->  | V81: 24 | W81: 70.96679907 | X81: 99.64966976 | Y81: 0.8 | AA81: 2.2 | AC81: 0.7118071914 | AD81: 0.9042214751
O82: 67 | R82: 67 | V82: 25 | W82: 32.86903564 | X82: 67.38370264 | Y82: 0.8 | AA82: 2.2 | AC82: 0.1672126651 | AD82: 0.5061227679
O83: 68 | R83: 68 | V83: 26 | W83: 80.32353504 | X83: 50.82752121 | Y83: 0.8 | AA83: 2.2 | AC83: 0.8245748878 | AD83: 0.2588486075
O84: 69 | R84: 69 | V84: 27 | W84: 63.13966513 | X84: 63.25322552 | Y84: 0.8 | AA84: 2.2 | AC84: 0.5969988704 | AD84: 0.4404332042
O85: 70 | R85: 70 | V85: 28 | W85: 54.78582622 | X85: 85.25549439 | Y85: 0.8 | AA85: 2.2 | AC85: 0.464713037 | AD85: 0.7673720717
O86: 71 | R86: 71 | V86: 29 | W86: 51.40198588 | X86: 79.6283079 | Y86: 0.8 | AA86: 2.2 | AC86: 0.4114095569 | AD86: 0.6932670474
O87: 72 | R87: 72 | V87: 30 | W87: 91.62620915 | X87: 66.15535912 | Y87: 0.8 | AA87: 2.2 | AC87: 0.9169811606 | AD87: 0.4865240455
O88: 73 | R88: 73 | V88: 31 | W88: 58.70345907 | X88: 86.26149115 | Y88: 0.8 | AA88: 2.2 | AC88: 0.5271622539 | AD88: 0.7794863582
O89: 74 | R89: 74 | V89: 32 | W89: 50.1261565 | X89: 81.19981958 | Y89: 0.8 | AA89: 2.2 | AC89: 0.3916758895 | AD89: 0.7149800658
O90: 75 | R90: 75 | V90: 33 | W90: =$A$5+$A$4*NORMSINV(AC90) -> 112.4385139 | X90: =$A$3+$A$4*NORMSINV(AD90) -> 108.8581863 | Y90: 0.8 | Z90: =IF(AND(V90<=$A$2,$D$4,$D$2,$AY$21),W90,NA()) ->  | AA90: 2.2 | AB90: =IF(AND(V90<=$A$6,$D$4,$D$2,$AY$22),X90,NA()) ->  | AC90: 0.9867069125 | AD90: 0.9529668689
O91: 76 | R91: 76 | V91: 34 | W91: 98.70584515 | X91: 31.42074384 | Y91: 0.8 | AA91: 2.2 | AC91: =MOD(AC90*10000013,1) -> 0.9523653388 | AD91: =MOD(AD90*10000013,1) -> 0.07734340429
O92: 77 | R92: 77 | V92: 35 | W92: 75.37028193 | X92: 25.48449105 | Y92: 0.8 | AA92: 2.2 | AC92: 0.7687727809 | AD92: 0.04839485884
O93: 78 | R93: 78 | V93: 36 | W93: 78.30950826 | X93: 47.48377158 | Y93: 0.8 | AA93: 2.2 | AC93: 0.8029984832 | AD93: 0.2175044417
O94: 79 | R94: 79 | V94: 37 | W94: 41.7393843 | X94: 49.73743035 | Y94: 0.8 | AA94: 2.2 | AC94: 0.2707902789 | AD94: 0.2449390292
O95: 80 | R95: 80 | V95: 38 | W95: 44.56046312 | X95: 65.51865902 | Y95: 0.8 | AA95: 2.2 | AC95: 0.3093895316 | AD95: 0.4763750434
O96: 81 | R96: 81 | V96: 39 | W96: 46.56465445 | X96: 75.08457363 | Y96: 0.8 | AA96: 2.2 | AC96: 0.3381878734 | AD96: 0.6267973781
O97: 82 | R97: 82 | V97: 40 | W97: 28.84935535 | X97: 103.7092144 | Y97: 0.8 | AA97: 2.2 | AC97: 0.1300773025 | AD97: 0.9289979339
O98: 83 | R98: 83 | V98: 41 | W98: 71.24283522 | X98: 61.67215338 | Y98: 0.8 | AA98: 2.2 | AC98: 0.7155639529 | AD98: 0.4156190753
O99: 84 | R99: 84 | V99: 42 | W99: 81.00866505 | X99: 41.72738772 | Y99: 0.8 | AA99: 2.2 | AC99: 0.8315595984 | AD99: 0.1560310721
O100: 85 | R100: 85 | V100: 43 | W100: 77.57391853 | X100: 83.84661796 | Y100: 0.8 | AA100: 2.2 | AC100: 0.7947337031 | AD100: 0.7498013377
O101: 86 | R101: 86 | V101: 44 | W101: 48.2322247 | X101: 38.1934881 | Y101: 0.8 | AA101: 2.2 | AC101: 0.3629025817 | AD101: 0.1246070266
O102: 87 | R102: 87 | V102: 45 | W102: 59.17416574 | X102: 97.09432087 | Y102: 0.8 | AA102: 2.2 | AC102: 0.5346509814 | AD102: 0.885661304
O103: 88 | R103: 88 | V103: 46 | W103: 75.03962343 | X103: 70.36698693 | Y103: 0.8 | AA103: 2.2 | AC103: 0.7647251487 | AD103: 0.5535673499
O104: 89 | R104: 89 | V104: 47 | W104: 52.47636345 | X104: 79.78631466 | Y104: 0.8 | AA104: 2.2 | AC104: 0.4282051921 | AD104: 0.6954829097
O105: 90 | R105: 90 | V105: 48 | W105: 56.22020598 | X105: 39.77443437 | Y105: 0.8 | AA105: 2.2 | AC105: 0.4875583053 | AD105: 0.1380719543
O106: 91 | R106: 91 | V106: 49 | W106: 50.0752024 | X106: 56.51341591 | Y106: 0.8 | AA106: 2.2 | AC106: 0.3908931613 | AD106: 0.3374387622
O107: 92 | R107: 92 | V107: 50 | W107: 69.72183676 | X107: 7.422200886 | Y107: 0.8 | AA107: 2.2 | AC107: 0.6945795417 | AD107: 0.00858348608
O108: 93 | R108: 93 | V108: 51 | W108: 53.62879906 | X108: 114.9273544 | Y108: 0.8 | AA108: 2.2 | AC108: 0.4463660121 | AD108: 0.9723870158
O109: 94 | R109: 94 | V109: 52 | W109: 92.76406742 | X109: 87.97155697 | Y109: 0.8 | AA109: 2.2 | AC109: 0.9237222075 | AD109: 0.7992267013
O110: 95 | R110: 95 | V110: 53 | W110: 22.50937037 | X110: 60.83075854 | Y110: 0.8 | AA110: 2.2 | AC110: 0.08385103941 | AD110: 0.4025432467
O111: 96 | R111: 96 | V111: 54 | W111: 56.00710715 | X111: 80.14762121 | Y111: 0.8 | AA111: 2.2 | AC111: 0.4841598868 | AD111: 0.70052284
O112: 97 | R112: 97 | V112: 55 | W112: 32.38889578 | X112: 67.44039525 | Y112: 0.8 | AA112: 2.2 | AC112: 0.162448585 | AD112: 0.507027328
O113: 98 | R113: 98 | V113: 56 | W113: 101.409781 | X113: 95.33763969 | Y113: 0.8 | AA113: 2.2 | AC113: 0.9621657729 | AD113: 0.871499002
O114: 99 | R114: 99 | V114: 57 | W114: 39.12495072 | X114: 57.31873215 | Y114: 0.8 | AA114: 2.2 | AC114: 0.2373039126 | AD114: 0.3492853045
O115: 100 | R115: 100 | V115: 58 | W115: 36.95609878 | X115: 72.44275366 | Y115: 0.8 | AA115: 2.2 | AC115: 0.2113470435 | AD115: 0.5861725211
V116: 59 | W116: 34.36757973 | X116: 90.99144524 | Y116: 0.8 | AA116: 2.2 | AC116: 0.1826540828 | AD116: 0.8313862681
V117: 60 | W117: 36.16009073 | X117: 66.33631357 | Y117: 0.8 | AA117: 2.2 | AC117: 0.2022542357 | AD117: 0.4894103408
V118: 61 | W118: 112.4699962 | X118: 85.48716659 | Y118: 0.8 | AA118: 2.2 | AC118: 0.9867498279 | AD118: 0.7701942325
V119: 62 | W119: 25.84774227 | X119: 56.49456954 | Y119: 0.8 | AA119: 2.2 | AC119: 0.1063656211 | AD119: 0.3371633887
V120: 63 | W120: 62.92376399 | X120: 51.7110418 | Y120: 0.8 | AA120: 2.2 | AC120: 0.5936524272 | AD120: 0.2704150081
V121: 64 | W121: 114.6516972 | X121: 73.08007652 | Y121: 0.8 | AA121: 2.2 | AC121: 0.9894465804 | AD121: 0.5960759521
V122: 65 | W122: =$A$5+$A$4*NORMSINV(AC122) -> 67.78461189 | X122: =$A$3+$A$4*NORMSINV(AD122) -> 51.64322092 | Y122: 0.8 | Z122: =IF(AND(V122<=$A$2,$D$4,$D$2,$AY$21),W122,NA()) ->  | AA122: 2.2 | AB122: =IF(AND(V122<=$A$6,$D$4,$D$2,$AY$22),X122,NA()) ->  | AC122: 0.666905582 | AD122: 0.2695180774
V123: 66 | W123: 56.32839219 | X123: 52.24065622 | Y123: 0.8 | AA123: 2.2 | AC123: =MOD(AC122*10000013,1) -> 0.4892839789 | AD123: =MOD(AD122*10000013,1) -> 0.2774700522
V124: 67 | W124: 31.09798705 | X124: 38.78501947 | Y124: 0.8 | AA124: 2.2 | AC124: 0.1500822902 | AD124: 0.1295334697
V125: 68 | W125: 83.2124666 | X125: 59.40924498 | Y125: 0.8 | AA125: 2.2 | AC125: 0.8527955413 | AD125: 0.3807048202
V126: 69 | W126: 56.95028863 | X126: 41.16663135 | Y126: 0.8 | AA126: 2.2 | AC126: 0.4992067218 | AD126: 0.1507236362
V127: 70 | W127: 70.65343303 | X127: 55.3711697 | Y127: 0.8 | AA127: 2.2 | AC127: 0.7075142264 | AD127: 0.320910871
V128: 71 | W128: 54.61830717 | X128: 96.6425914 | Y128: 0.8 | AA128: 2.2 | AC128: 0.4620510936 | AD128: 0.8821303248
V129: 72 | W129: 96.39143343 | X129: 81.28233994 | Y129: 0.8 | AA129: 2.2 | AC129: 0.9424476027 | AD129: 0.7160996795
V130: 73 | W130: 42.37750483 | X130: 35.52240979 | Y130: 0.8 | AA130: 2.2 | AC130: 0.2793075442 | AD130: 0.1039964557
V131: 74 | W131: 20.71104117 | X131: 100.3118796 | Y131: 0.8 | AA131: 2.2 | AC131: 0.07331222296 | AD131: 0.9086479545
V132: 75 | W132: 34.36577904 | X132: 57.84198939 | Y132: 0.8 | AA132: 2.2 | AC132: 0.1826350093 | AD132: 0.3570629954
V133: 76 | W133: 54.93865949 | X133: 73.08530895 | Y133: 0.8 | AA133: 2.2 | AC133: 0.4671429992 | AD133: 0.5961570144
V134: 77 | W134: 19.06465009 | X134: 98.16676287 | Y134: 0.8 | AA134: 2.2 | AC134: 0.06458109617 | AD134: 0.8937408328
V135: 78 | W135: 78.15483585 | X135: 107.3386801 | Y135: 0.8 | AA135: 2.2 | AC135: 0.8012775779 | AD135: 0.9466871619
V136: 79 | W136: 35.54390787 | X136: 103.1939544 | Y136: 0.8 | AA136: 2.2 | AC136: 0.1953789592 | AD136: 0.9261576533
V137: 80 | W137: 29.04206335 | X137: 71.62382559 | Y137: 0.8 | AA137: 2.2 | AC137: 0.1317157149 | AD137: 0.5733670592
V138: 81 | W138: 84.19057057 | X138: 24.89714866 | Y138: 0.8 | AA138: 2.2 | AC138: 0.8616191745 | AD138: 0.04607981443
V139: 82 | W139: 97.14786231 | X139: 83.34487864 | Y139: 0.8 | AA139: 2.2 | AC139: 0.9458536506 | AD139: 0.7433781028
V140: 83 | W140: 78.20140065 | X140: 79.51752533 | Y140: 0.8 | AA140: 2.2 | AC140: 0.8017966151 | AD140: 0.6917092204
V141: 84 | W141: 61.70202895 | X141: 45.62845213 | Y141: 0.8 | AA141: 2.2 | AC141: 0.5745934844 | AD141: 0.1963137984
V142: 85 | W142: 44.86753865 | X142: 69.28138659 | Y142: 0.8 | AA142: 2.2 | AC142: 0.313732326 | AD142: 0.5363551974
V143: 86 | W143: 46.60837312 | X143: 107.3910512 | Y143: 0.8 | AA143: 2.2 | AC143: 0.3388275504 | AD143: 0.9469141364
V144: 87 | W144: 90.34577858 | X144: 78.27334497 | Y144: 0.8 | AA144: 2.2 | AC144: 0.908870399 | AD144: 0.6739813685
V145: 88 | W145: 78.51744904 | X145: 63.67994874 | Y145: 0.8 | AA145: 2.2 | AC145: 0.805297792 | AD145: 0.4471749663
V146: 89 | W146: 49.91596111 | X146: 65.53450869 | Y146: 0.8 | AA146: 2.2 | AC146: 0.3884498477 | AD146: 0.4766275287
V147: 90 | W147: 58.68259894 | X147: 65.92384621 | Y147: 0.8 | AA147: 2.2 | AC147: 0.5268301368 | AD147: 0.4828323722
V148: 91 | W148: 37.40267789 | X148: 142.3244967 | Y148: 0.8 | AA148: 2.2 | AC148: 0.2165514827 | AD148: 0.9987065196
V149: 92 | W149: 66.09148863 | X149: 44.04165298 | Y149: 0.8 | AA149: 2.2 | AC149: 0.641943872 | AD149: 0.1792220473
V150: 93 | W150: 19.15135363 | X150: 88.32551908 | Y150: 0.8 | AA150: 2.2 | AC150: 0.06501978636 | AD150: 0.803176105
V151: 94 | W151: 70.74968696 | X151: 66.46815799 | Y151: 0.8 | AA151: 2.2 | AC151: 0.708836019 | AD151: 0.4915136695
V152: 95 | W152: 51.00610506 | X152: 32.62824512 | Y152: 0.8 | AA152: 2.2 | AC152: 0.405259788 | AD152: 0.08458584547
V153: 96 | W153: 30.9537602 | X153: 70.41460556 | Y153: 0.8 | AA153: 2.2 | AC153: 0.1487407088 | AD153: 0.5543202758
V154: 97 | W154: 6.604279254 | X154: 111.9776281 | Y154: 0.8 | AA154: 2.2 | AC154: 0.02190893888 | AD154: 0.9639989734
V155: 98 | W155: 68.25130206 | X155: 51.35191843 | Y155: 0.8 | AA155: 2.2 | AC155: 0.6736635566 | AD155: 0.2656826377
V156: 99 | W156: 45.5435806 | X156: 90.93222212 | Y156: 0.8 | AA156: 2.2 | AC156: 0.3233839869 | AD156: 0.830789268
V157: 100 | W157: 20.74314528 | X157: 65.77305428 | Y157: 0.8 | AA157: 2.2 | AC157: 0.07349103689 | AD157: 0.4804286361

Sheet Data paired
G1: Data Paired | V1: =$U$1 -> 0 | W1: 0 | X1: 0 | Y1: 0 | Z1: 0 | AA1: 0 | AB1: 0
G2: Enter your own matched-pairs data | P2: 8 | U2: =$U$1 -> 0 | X2: MeansOK? | Y2: =AND(M29<>"",P29<>"") -> TRUE | Z2: Horizontals | AB2: =$U$1 -> 0
B3: Disp d, CI? | C3: FALSE | G3: Display mean of differences, with CI | U3: 0 | V3: Highlight 1 | W3: TRUE | X3: SDs OK? | Y3: =AND(M30<>"",P30<>"") -> TRUE | Z3: 4.1 | AA3: =IF(AND(N18<>"",$Y$2),M29+N18,NA()) -> 451.25 | AB3: 0
U4: 0 | V4: Highlight 3 | W4: FALSE | X4: C OK? | Y4: =AND(Q11>=0,Q11<=99.9) -> TRUE | Z4: 4.6 | AA4: =IF(AND(N18<>"",$Y$2),M29+N18,NA()) -> 451.25 | AB4: 0
A5: sum G1 | B5: 3561 | C5: =SUM(F8:F1007) -> 3561 | E5: 1 | J5: 3 Type | K5: 4 | L5: Display | U5: 0 | V5: Highlight 5 | W5: FALSE | X5: ShowData | Y5: TRUE | Z5: 3 | AA5: =IF(AND(N18<>"",$Y$2),M29+N18,NA()) -> 451.25 | AB5: 0
A6: sum G2 | B6: 3610 | C6: =SUM(G8:G1007) -> 3610 | F6: Measure 1 | G6: Measure 2 | I6: Differences | J6: units | U6: 0 | V6: Highlight 7 | W6: FALSE | X6: Diffs | Y6: TRUE | Z6: 4.1 | AA6: =IF(AND(N18<>"",$Y$2),M29+N18,NA()) -> 451.25 | AB6: 0
A7: sumsq G1 | B7: 1586633 | C7: =SUMSQ(F8:F1007) -> 1586633 | E7: 2 Labels | F7: Pretest | G7: Posttest | I7: Highlight | J7: ms | U7: 0 | X7: ShowCIdiffs | Y7: TRUE | Z7: 1 | AA7: =IF(AND(N18<>"",$Y$2),M29,NA()) -> 445.125 | AB7: 0
A8: sumsq G2 | B8: 1630090 | C8: =SUMSQ(G8:G1007) -> 1630090 | E8: Pair No. 1 | F8: 441 | G8: 443 | I8: =IF(AND(F8<>"",G8<>""),G8-F8,"") -> 2 | U8: 0 | V8: Dot-Col | W8: 1 | X8: ShowCImeas | Y8: TRUE | Z8: 4.6 | AA8: =IF(AND(N18<>"",$Y$2),M29,NA()) -> 445.125 | AB8: 0 | AL8: 9
A9: C | B9: 95 | C9: =Q11 -> 95 | E9: 2 | F9: 462 | G9: 461 | I9: -1 | K9: 5 | L9: Confidence Intervals | U9: 0 | V9: Measure 1 | W9: Measure 2 | X9: Diff | Z9: Horiz line at zero | AB9: 0 | AM9: Display d
A10: N | B10: 8 | C10: =N17 -> 8 | E10: 3 | F10: 445 | G10: 441 | I10: -4 | U10: 0 | V10: Dot Means | X10: 1 | Y10: =IF(AND($Y$2,$W$8=1),$M$29,NA()) -> 445.125 | Z10: =IF(OR(AA18,AND(Y17<AA11*AA17,Y18>(-AA11)*AA17)),0,NA()) ->  | AA10: =IF(OR(AA18,AND(Y17<AA11*AA17,Y18>(-AA11)*AA17)),0,NA()) ->  | AB10: 0 | AM10: and CI for d
B11: Calc CI on d? | C11: =IF(AND(Q23<>"",N35<>"",ABS(N38<=2),Q11=95),AND(Q23<=200,ABS(N35)<=5,Q23>=5,B5=C5,B6=C6,B7=C7,B8=C8,B9=C9,B10=C10),FALSE) -> TRUE | E11: 4 | F11: 446 | G11: 459 | I11: 13 | K11: Display CI on measures | P11: C | Q11: =IF(AH63<100,AH63,99+(AH63-99)/10) -> 95 | U11: 0 | X11: 3 | Y11: =IF(AND($Y$2,$W$8=1),$P$29,NA()) -> 451.25 | Z11: multiple | AA11: 5 | AB11: 0
B12: est of sigma | C12: =IF(Y3,SQRT((M30^2+P30^2)/2),"") -> 13.68099568 | E12: 5 | F12: 426 | G12: 441 | I12: 15 | U12: 0 | V12: CI bars, measures | X12: 1 | Y12: =IF(AND($Y$8,$Y$3),$M$29,NA()) -> 445.125 | Z12: hor axis bar | AA12: 5.1 | AB12: 0
A13: To calculate CIs on d | E13: 6 | F13: 459 | G13: 464 | I13: 5 | U13: 0 | X13: 3 | Y13: =IF(AND($Y$8,$Y$3),$P$29,NA()) -> 451.25 | AB13: 0
A14: targtailPs | B14: =1-C14 -> 0.975 | C14: =(100-Q11)/200 -> 0.025 | E14: 7 | F14: 459 | G14: 466 | I14: 7 | U14: 0 | V14: Bar widths | X14: =$M$31 -> 12.41176365 | Y14: =$P$31 -> 10.3723405 | AB14: 0
A15: tobezero | B15: =100000*(B14-B18) -> 6.692657539e-05 | C15: =100000*(C14-C18) -> 0.0003398262144 | E15: 8 | F15: 423 | G15: 435 | I15: 12 | K15: 6 | L15: Statistics for differences | U15: 0 | V15: ="Dependent variable "&IF(J7="","","("&J7&")")&"." -> Dependent variable (ms). | AB15: 0
A16: df | B16: =IF(Y3,Q23,"") -> 7 | E16: 9 | O16: Differences | U16: 0 | V16: Mean Diff | W16: 4.1 | X16: =IF(AND(N18<>"",$Y$2),P29,NA()) -> 451.25 | Y16: Diff bars | Z16: =IF(AND($Y$7,N20<>"",$Y$3),N20,NA()) -> 5.765124834 | AB16: 0
A17: NCP limits | B17: 0.1054573993 | C17: 4.798487721 | E17: 10 | M17: N | N17: =COUNT(I8:I1007) -> 8 | U17: 0 | V17: Points for | W17: Max | X17: 0.8 | Y17: =IF(AND(M31<>"",P31<>"",N20<>""),MAX(F8:F107,G8:G107,M29+M31,P29+P31,P29+N20),MAX(F8:F107,G8:G107)) -> 466 | Z17: Range | AA17: =Y17-Y18 -> 43 | AB17: 0
A18: nct | B18: =nct(N23,B17,B16) -> 0.9749999993 | C18: =nct(N23,C17,B16) -> 0.0249999966 | E18: 11 | M18: Mdiff | N18: =IF(N17>0,AVERAGE(I8:I1007),"") -> 6.125 | P18: =IF($J$7<>"",$J$7,"") -> ms | U18: 0 | V18: stable y | W18: Min | X18: 0.8 | Y18: =IF(AND(M31<>"",P31<>"",N20<>""),MIN(F8:F107,G8:G107,M29-M31,P29-P31,P29-N20),MIN(F8:F107,G8:G107)) -> 423 | Z18: Zero? | AA18: =AND(Y17=0,Y18=0) -> FALSE | AB18: 0
A19: approx CI | B19: =N18-N20 -> 0.3598751663 | C19: =N18+N20 -> 11.89012483 | E19: 12 | M19: sdiff | N19: =IF(N17>1,STDEV(I8:I1007),"") -> 6.895909761 | P19: =IF($J$7<>"",$J$7,"") -> ms | U19: 0 | V19: =IF(AND($Y$2,$W$8=2),$M$29,NA()) ->  | W19: =NA() ->  | X19: =IF(AND($Y$2,$W$8=2),$P$29,NA()) ->  | Y19: =NA() ->  | Z19: =NA() ->  | AB19: 0
A20: equiv d | B20: =B19/C12 -> 0.02630474965 | C20: =C19/C12 -> 0.8690979158 | E20: 13 | M20: MOEdiff | N20: =IF(N17>1,(N19/SQRT(N17))*TINV(1-$Q$11/100,(N17-1)),"") -> 5.765124834 | P20: =IF($J$7<>"",$J$7,"") -> ms | U20: 0 | V20: Powerof10 | W20: =POWER(10,INT(LOG10(AA17))) -> 10 | X20: Divisor | Y20: =CHOOSE(W21,10,5,5,2,2,2,2,1,1,1) -> 2 | AB20: 0
A21: equiv ncp | B21: =B20*$C$12*SQRT($N$17)/$N$19 -> 0.1476064388 | C21: =C20*$C$12*SQRT($N$17)/$N$19 -> 4.876854942 | E21: 14 | M21: CI [ | N21: =IF(N20<>"",N18-N20,"") -> 0.3598751663 | O21: , | P21: =IF(N20<>"",N18+N20,"") -> 11.89012483 | Q21: ] | S21: =IF($H$6<>"",$H$6,"") ->  | U21: 0 | V21: Estnoints | W21: =ROUNDUP(AA17/W20,0) -> 5 | X21: Intsize | Y21: =W20/Y20 -> 5 | AB21: 0
E22: 15 | M22: ES | N22: =N18 -> 6.125 | P22: =IF($J$7<>"",$J$7,"") -> ms | U22: 0 | W22: x for diff axis | X22: 4.6 | AB22: 0
E23: 16 | M23: Paired t | N23: =IF(AND(Y3,N19>0),N18/(N19/SQRT(N17)),"") -> 2.51223069 | P23: df | Q23: =IF(Y3,N17-1,"") -> 7 | U23: 0 | W23: x for data pts | X23: =1+V24 -> 1.4 | AB23: 0
E24: 17 | M24: Two-tailed p | N24: =IF(AND(Y3,N19>0),TDIST(ABS(N23),Q23,2),"") -> 0.04026534705 | U24: 0 | V24: 0.4 | X24: =3-V24 -> 2.6 | AB24: 0
E25: 18 | U25: 0 | AB25: 0
E26: 19 | K26: 7 | L26: Statistics for two measures | U26: 0 | AB26: 0
E27: 20 | M27: Measure 1 | P27: Measure 2 | U27: 0 | AB27: 0
E28: 21 | M28: =IF(F7="","",F7) -> Pretest | P28: =IF(G7="","",G7) -> Posttest | U28: 0 | AB28: 0
E29: 22 | L29: Means M1 | M29: =IF(AND(N17>0,COUNT(F8:F1007)=N17),AVERAGE(F8:F1007),"") -> 445.125 | O29: M2 | P29: =IF(AND(N17>0,COUNT(G8:G1007)=N17),AVERAGE(G8:G1007),"") -> 451.25 | Q29: =IF($J$7<>"",$J$7,"") -> ms | U29: 0 | AB29: 0
E30: 23 | L30: SDs s1 | M30: =IF(AND(N17>1,COUNT(F8:F1007)=N17),STDEV(F8:F1007),"") -> 14.84623569 | O30: s2 | P30: =IF(AND(N17>1,COUNT(G8:G1007)=N17),STDEV(G8:G1007),"") -> 12.40679537 | Q30: =IF($J$7<>"",$J$7,"") -> ms | U30: 0 | AB30: 0
E31: 24 | L31: MOE1 | M31: =IF(AND(N17>1,COUNT(F8:F1007)=N17),(M30/SQRT(N17))*TINV(1-Q11/100,(N17-1)),"") -> 12.41176365 | O31: MOE2 | P31: =IF(AND(N17>1,COUNT(G8:G1007)=N17),(P30/SQRT(N17))*TINV(1-$Q$11/100,(N17-1)),"") -> 10.3723405 | Q31: =IF($J$7<>"",$J$7,"") -> ms | U31: 0 | AB31: 0
E32: 25 | M32: Correlation | N32: =IF(AND(N17>1,M30>0,P30>0,Y3),CORREL(F8:F1007,G8:G1007),"") -> 0.8870683755 | U32: 0 | AB32: 0
E33: 26 | U33: 0 | AB33: 0
E34: 27 | K34: Cohen's d | M34: sav | N34: =IF(AND(Y3,N17>1),C12,"") -> 13.68099568 | O34: =IF(AND(dispddt,N18<>"",P18<>"",Z56=1),O25/X70,"") ->  | P34: =IF($J$7<>"",$J$7,"") -> ms | R34: CI for d | U34: 0 | AB34: 0
E35: 28 | M35: d | N35: =IF(AND(Y3,N17>1),N18/C12,"") -> 0.4477013327 | P35: [ | Q35: =IF(C11,cidpl*N19/(C12*SQRT(N17)),"") -> 0.01879342467 | R35: , | S35: =IF(C11,cidpu*N19/(C12*SQRT(N17)),"") -> 0.8551321962 | T35: ] | U35: 0 | AB35: 0
E36: 29 | K36: 10 | U36: 0 | AB36: 0
E37: 30 | K37: Unbiased d | Q37: MOEav | S37: =IF(C11,(S35-Q35)/2,"") -> 0.4181693858
E38: 31 | M38: dunb | N38: =IF(AND(Q23>1,N35<>""),N35*$U$62,"") -> 0.3976496255
E39: 32
E40: 33
E41: 34
E42: 35
E43: 36
E44: 37
E45: 38
E46: 39
E47: 40
E48: 41
E49: 42
E50: 43
E51: 44
E52: 45
E53: 46
E54: 47
E55: 48
E56: 49
E57: 50
E58: 51
E59: 52
E60: 53
E61: 54
E62: 55 | K62: ToEsts | P62: Display data pairs | T62: To debias | U62: =EXP(GAMMALN(Q23/2))/(SQRT(Q23/2)*EXP(GAMMALN(Q23/2-0.5))) -> 0.8882029077 | W62: for pink | Z62: for highlighting | AC62: For diff axis | AD62: labels | AE62: y | AF62: x | AG62: y disp | AH62: for C
E63: 56 | K63: =IF(I8<>"",(F8+G8)/2,"") -> 442 | P63: =$X$23 -> 1.4 | Q63: =IF(AND(F8<>"",$Y$5,$Y$2),F8,NA()) -> 441 | W63: =$V$9 -> Measure 1 | X63: =$W$9 -> Measure 2 | Z63: =$V$9 -> Measure 1 | AA63: =$W$9 -> Measure 2 | AC63: 10 | AD63: =$Y$21*AC63 -> 50 | AE63: =$M$29+$Y$21*AC63 -> 495.125 | AF63: =IF($Y$2,$X$22,NA()) -> 4.6 | AG63: =IF(AND($Y$2,AE63<=$Y$17+$Y$21,AE63>=$Y$18-$Y$21),AE63,NA()) ->  | AH63: 95
E64: 57 | K64: 461.5 | M64: Disp1 | N64: Disp2 | P64: =$X$24 -> 2.6 | Q64: =IF(AND(G8<>"",$Y$5,$Y$2),G8,NA()) -> 443 | V64: DisplayDiff | W64: Display1 | X64: Disp2 | Y64: DisplayDiff | Z64: Display1 | AA64: Disp2 | AC64: 9 | AD64: 45 | AE64: 490.125 | AF64: 4.6
E65: 58 | K65: 443 | P65: =$X$23 -> 1.4 | Q65: =IF(AND(F9<>"",$Y$5,$Y$2),F9,NA()) -> 462 | T65: 1 | U65: 3.9 | V65: =IF(AND(I8<>"",$Y$6,$Y$2),$M$29+I8,NA()) -> 447.125 | Y65: =IF(AND(I8<>"",$W$3,$Y$2,$Y$5,$Y$6),$M$29+I8,NA()) -> 447.125 | Z65: =$X$23 -> 1.4 | AA65: =IF(AND(F8<>"",$W$3,$Y$2,$Y$5,$Y$6),F8,NA()) -> 441 | AC65: 8 | AD65: 40 | AE65: 485.125 | AF65: 4.6
E66: 59 | K66: 452.5 | P66: =$X$24 -> 2.6 | Q66: =IF(AND(G9<>"",$Y$5,$Y$2),G9,NA()) -> 461 | T66: 2 | U66: 3.9 | V66: 444.125 | Z66: =$X$24 -> 2.6 | AA66: =IF(AND(F8<>"",$W$3,$Y$2,$Y$5,$Y$6),G8,NA()) -> 443 | AC66: 7 | AD66: 35 | AE66: 480.125 | AF66: 4.6
E67: 60 | K67: 433.5 | P67: =$X$23 -> 1.4 | Q67: =IF(AND(F10<>"",$Y$5,$Y$2),F10,NA()) -> 445 | T67: 3 | U67: 3.9 | V67: 441.125 | Y67: =IF(AND(I10<>"",$W$4,$Y$2,$Y$5,$Y$6),$M$29+I10,NA()) ->  | Z67: =$X$23 -> 1.4 | AA67: =IF(AND(F10<>"",$W$4,$Y$2,$Y$5,$Y$6),F10,NA()) ->  | AC67: 6 | AD67: 30 | AE67: 475.125 | AF67: 4.6
E68: 61 | K68: 461.5 | P68: =$X$24 -> 2.6 | Q68: =IF(AND(G10<>"",$Y$5,$Y$2),G10,NA()) -> 441 | T68: 4 | U68: 3.9 | V68: 458.125 | Z68: =$X$24 -> 2.6 | AA68: =IF(AND(F10<>"",$W$4,$Y$2,$Y$5,$Y$6),G10,NA()) ->  | AC68: 5 | AD68: 25 | AE68: 470.125 | AF68: 4.6 | AG68: 470.125
E69: 62 | K69: 462.5 | P69: =$X$23 -> 1.4 | Q69: =IF(AND(F11<>"",$Y$5,$Y$2),F11,NA()) -> 446 | T69: 5 | U69: 3.9 | V69: 460.125 | Y69: =IF(AND(I12<>"",$W$5,$Y$2,$Y$5,$Y$6),$M$29+I12,NA()) ->  | Z69: =$X$23 -> 1.4 | AA69: =IF(AND(F12<>"",$W$5,$Y$2,$Y$5,$Y$6),F12,NA()) ->  | AC69: 4 | AD69: 20 | AE69: 465.125 | AF69: 4.6 | AG69: 465.125
E70: 63 | K70: 429 | P70: =$X$24 -> 2.6 | Q70: =IF(AND(G11<>"",$Y$5,$Y$2),G11,NA()) -> 459 | T70: 6 | U70: 3.9 | V70: 450.125 | Z70: =$X$24 -> 2.6 | AA70: =IF(AND(F12<>"",$W$5,$Y$2,$Y$5,$Y$6),G12,NA()) ->  | AC70: 3 | AD70: 15 | AE70: 460.125 | AF70: 4.6 | AG70: 460.125
E71: 64 | P71: =$X$23 -> 1.4 | Q71: =IF(AND(F12<>"",$Y$5,$Y$2),F12,NA()) -> 426 | T71: 7 | U71: 3.9 | V71: 452.125 | Y71: =IF(AND(I14<>"",$W$6,$Y$2,$Y$5,$Y$6),$M$29+I14,NA()) ->  | Z71: =$X$23 -> 1.4 | AA71: =IF(AND(F14<>"",$W$6,$Y$2,$Y$5,$Y$6),F14,NA()) ->  | AC71: 2 | AD71: 10 | AE71: 455.125 | AF71: 4.6 | AG71: 455.125
E72: 65 | I72: =IF(AND(F72<>"",G72<>""),G72-F72,"") ->  | P72: =$X$24 -> 2.6 | Q72: =IF(AND(G12<>"",$Y$5,$Y$2),G12,NA()) -> 441 | T72: 8 | U72: 3.9 | V72: 457.125 | Z72: =$X$24 -> 2.6 | AA72: =IF(AND(F14<>"",$W$6,$Y$2,$Y$5,$Y$6),G14,NA()) ->  | AC72: 1 | AD72: 5 | AE72: 450.125 | AF72: 4.6 | AG72: 450.125
E73: 66 | P73: =$X$23 -> 1.4 | Q73: =IF(AND(F13<>"",$Y$5,$Y$2),F13,NA()) -> 459 | T73: 9 | U73: 3.9 | AC73: 0 | AD73: 0 | AE73: 445.125 | AF73: 4.6 | AG73: 445.125
E74: 67 | P74: =$X$24 -> 2.6 | Q74: =IF(AND(G13<>"",$Y$5,$Y$2),G13,NA()) -> 464 | T74: 10 | U74: 3.9 | AC74: -1 | AD74: -5 | AE74: 440.125 | AF74: 4.6 | AG74: 440.125
E75: 68 | P75: =$X$23 -> 1.4 | Q75: =IF(AND(F14<>"",$Y$5,$Y$2),F14,NA()) -> 459 | U75: 3.9 | AC75: -2 | AD75: -10 | AE75: 435.125 | AF75: 4.6 | AG75: 435.125
E76: 69 | P76: =$X$24 -> 2.6 | Q76: =IF(AND(G14<>"",$Y$5,$Y$2),G14,NA()) -> 466 | U76: 3.9 | AC76: -3 | AD76: -15 | AE76: 430.125 | AF76: 4.6 | AG76: 430.125
E77: 70 | P77: =$X$23 -> 1.4 | Q77: =IF(AND(F15<>"",$Y$5,$Y$2),F15,NA()) -> 423 | U77: 3.9 | AC77: -4 | AD77: -20 | AE77: 425.125 | AF77: 4.6 | AG77: 425.125
E78: 71 | P78: =$X$24 -> 2.6 | Q78: =IF(AND(G15<>"",$Y$5,$Y$2),G15,NA()) -> 435 | U78: 3.9 | AC78: -5 | AD78: -25 | AE78: 420.125 | AF78: 4.6 | AG78: 420.125
E79: 72 | P79: =$X$23 -> 1.4 | Q79: =IF(AND(F16<>"",$Y$5,$Y$2),F16,NA()) ->  | U79: 3.9 | AC79: -6 | AD79: -30 | AE79: 415.125 | AF79: 4.6
E80: 73 | P80: =$X$24 -> 2.6 | Q80: =IF(AND(G16<>"",$Y$5,$Y$2),G16,NA()) ->  | U80: 3.9 | AC80: -7 | AD80: -35 | AE80: 410.125 | AF80: 4.6
E81: 74 | P81: =$X$23 -> 1.4 | Q81: =IF(AND(F17<>"",$Y$5,$Y$2),F17,NA()) ->  | U81: 3.9 | AC81: -8 | AD81: -40 | AE81: 405.125 | AF81: 4.6
E82: 75 | P82: =$X$24 -> 2.6 | Q82: =IF(AND(G17<>"",$Y$5,$Y$2),G17,NA()) ->  | U82: 3.9 | AC82: -9 | AD82: -45 | AE82: 400.125 | AF82: 4.6
E83: 76 | P83: =$X$23 -> 1.4 | Q83: =IF(AND(F18<>"",$Y$5,$Y$2),F18,NA()) ->  | U83: 3.9 | AC83: -10 | AD83: -50 | AE83: 395.125 | AF83: 4.6
E84: 77 | P84: =$X$24 -> 2.6 | Q84: =IF(AND(G18<>"",$Y$5,$Y$2),G18,NA()) ->  | U84: 3.9
E85: 78 | P85: =$X$23 -> 1.4 | Q85: =IF(AND(F19<>"",$Y$5,$Y$2),F19,NA()) ->  | U85: 3.9
E86: 79 | P86: =$X$24 -> 2.6 | Q86: =IF(AND(G19<>"",$Y$5,$Y$2),G19,NA()) ->  | U86: 3.9
E87: 80 | P87: =$X$23 -> 1.4 | Q87: =IF(AND(F20<>"",$Y$5,$Y$2),F20,NA()) ->  | U87: 3.9
E88: 81 | P88: =$X$24 -> 2.6 | Q88: =IF(AND(G20<>"",$Y$5,$Y$2),G20,NA()) ->  | U88: 3.9
E89: 82 | P89: =$X$23 -> 1.4 | Q89: =IF(AND(F21<>"",$Y$5,$Y$2),F21,NA()) ->  | U89: 3.9
E90: 83 | P90: =$X$24 -> 2.6 | Q90: =IF(AND(G21<>"",$Y$5,$Y$2),G21,NA()) ->  | U90: 3.9
E91: 84 | P91: =$X$23 -> 1.4 | Q91: =IF(AND(F22<>"",$Y$5,$Y$2),F22,NA()) ->  | U91: 3.9
E92: 85 | P92: =$X$24 -> 2.6 | Q92: =IF(AND(G22<>"",$Y$5,$Y$2),G22,NA()) ->  | U92: 3.9
E93: 86 | P93: =$X$23 -> 1.4 | Q93: =IF(AND(F23<>"",$Y$5,$Y$2),F23,NA()) ->  | U93: 3.9
E94: 87 | P94: =$X$24 -> 2.6 | Q94: =IF(AND(G23<>"",$Y$5,$Y$2),G23,NA()) ->  | U94: 3.9
E95: 88 | P95: =$X$23 -> 1.4 | Q95: =IF(AND(F24<>"",$Y$5,$Y$2),F24,NA()) ->  | U95: 3.9
E96: 89 | P96: =$X$24 -> 2.6 | Q96: =IF(AND(G24<>"",$Y$5,$Y$2),G24,NA()) ->  | U96: 3.9
E97: 90 | P97: =$X$23 -> 1.4 | Q97: =IF(AND(F25<>"",$Y$5,$Y$2),F25,NA()) ->  | U97: 3.9 | V97: =IF(AND(I40<>"",$Y$6,$Y$2),$M$29+I40,NA()) -> 
E98: 91 | P98: =$X$24 -> 2.6 | Q98: =IF(AND(G25<>"",$Y$5,$Y$2),G25,NA()) ->  | U98: 3.9
E99: 92 | P99: =$X$23 -> 1.4 | Q99: =IF(AND(F26<>"",$Y$5,$Y$2),F26,NA()) ->  | U99: 3.9
E100: 93 | P100: =$X$24 -> 2.6 | Q100: =IF(AND(G26<>"",$Y$5,$Y$2),G26,NA()) ->  | U100: 3.9
E101: 94 | P101: =$X$23 -> 1.4 | Q101: =IF(AND(F27<>"",$Y$5,$Y$2),F27,NA()) ->  | U101: 3.9
E102: 95 | P102: =$X$24 -> 2.6 | Q102: =IF(AND(G27<>"",$Y$5,$Y$2),G27,NA()) ->  | U102: 3.9
E103: 96 | P103: =$X$23 -> 1.4 | Q103: =IF(AND(F28<>"",$Y$5,$Y$2),F28,NA()) ->  | U103: 3.9
E104: 97 | P104: =$X$24 -> 2.6 | Q104: =IF(AND(G28<>"",$Y$5,$Y$2),G28,NA()) ->  | U104: 3.9
E105: 98 | P105: =$X$23 -> 1.4 | Q105: =IF(AND(F29<>"",$Y$5,$Y$2),F29,NA()) ->  | U105: 3.9
E106: 99 | P106: =$X$24 -> 2.6 | Q106: =IF(AND(G29<>"",$Y$5,$Y$2),G29,NA()) ->  | U106: 3.9
E107: 100 | P107: =$X$23 -> 1.4 | Q107: =IF(AND(F30<>"",$Y$5,$Y$2),F30,NA()) ->  | U107: 3.9
E108: 101 | P108: =$X$24 -> 2.6 | Q108: =IF(AND(G30<>"",$Y$5,$Y$2),G30,NA()) ->  | U108: 3.9
E109: 102 | P109: =$X$23 -> 1.4 | Q109: =IF(AND(F31<>"",$Y$5,$Y$2),F31,NA()) ->  | U109: 3.9
E110: 103 | P110: =$X$24 -> 2.6 | Q110: =IF(AND(G31<>"",$Y$5,$Y$2),G31,NA()) ->  | U110: 3.9
E111: 104 | P111: =$X$23 -> 1.4 | Q111: =IF(AND(F32<>"",$Y$5,$Y$2),F32,NA()) ->  | U111: 3.9
E112: 105 | P112: =$X$24 -> 2.6 | Q112: =IF(AND(G32<>"",$Y$5,$Y$2),G32,NA()) ->  | U112: 3.9
E113: 106 | P113: =$X$23 -> 1.4 | Q113: =IF(AND(F33<>"",$Y$5,$Y$2),F33,NA()) ->  | U113: 3.9
E114: 107 | P114: =$X$24 -> 2.6 | Q114: =IF(AND(G33<>"",$Y$5,$Y$2),G33,NA()) ->  | U114: 3.9
E115: 108 | P115: =$X$23 -> 1.4 | Q115: =IF(AND(F34<>"",$Y$5,$Y$2),F34,NA()) ->  | U115: 3.9
E116: 109 | P116: =$X$24 -> 2.6 | Q116: =IF(AND(G34<>"",$Y$5,$Y$2),G34,NA()) ->  | U116: 3.9
E117: 110 | P117: =$X$23 -> 1.4 | Q117: =IF(AND(F35<>"",$Y$5,$Y$2),F35,NA()) ->  | U117: 3.9
E118: 111 | P118: =$X$24 -> 2.6 | Q118: =IF(AND(G35<>"",$Y$5,$Y$2),G35,NA()) ->  | U118: 3.9
E119: 112 | P119: =$X$23 -> 1.4 | Q119: =IF(AND(F36<>"",$Y$5,$Y$2),F36,NA()) ->  | U119: 3.9
E120: 113 | P120: =$X$24 -> 2.6 | Q120: =IF(AND(G36<>"",$Y$5,$Y$2),G36,NA()) ->  | U120: 3.9
E121: 114 | P121: =$X$23 -> 1.4 | Q121: =IF(AND(F37<>"",$Y$5,$Y$2),F37,NA()) ->  | U121: 3.9
E122: 115 | P122: =$X$24 -> 2.6 | Q122: =IF(AND(G37<>"",$Y$5,$Y$2),G37,NA()) ->  | U122: 3.9
E123: 116 | P123: =$X$23 -> 1.4 | Q123: =IF(AND(F38<>"",$Y$5,$Y$2),F38,NA()) ->  | U123: 3.9
E124: 117 | P124: =$X$24 -> 2.6 | Q124: =IF(AND(G38<>"",$Y$5,$Y$2),G38,NA()) ->  | U124: 3.9
E125: 118 | P125: =$X$23 -> 1.4 | Q125: =IF(AND(F39<>"",$Y$5,$Y$2),F39,NA()) ->  | U125: 3.9
E126: 119 | P126: =$X$24 -> 2.6 | Q126: =IF(AND(G39<>"",$Y$5,$Y$2),G39,NA()) ->  | U126: 3.9
E127: 120 | K127: =IF(I72<>"",(F72+G72)/2,"") ->  | P127: =$X$23 -> 1.4 | Q127: =IF(AND(F40<>"",$Y$5,$Y$2),F40,NA()) ->  | U127: 3.9
E128: 121 | P128: =$X$24 -> 2.6 | Q128: =IF(AND(G40<>"",$Y$5,$Y$2),G40,NA()) ->  | U128: 3.9
E129: 122 | P129: =$X$23 -> 1.4 | Q129: =IF(AND(F41<>"",$Y$5,$Y$2),F41,NA()) ->  | U129: 3.9 | V129: =IF(AND(I72<>"",$Y$6,$Y$2),$M$29+I72,NA()) -> 
E130: 123 | P130: =$X$24 -> 2.6 | Q130: =IF(AND(G41<>"",$Y$5,$Y$2),G41,NA()) ->  | U130: 3.9
E131: 124 | P131: =$X$23 -> 1.4 | Q131: =IF(AND(F42<>"",$Y$5,$Y$2),F42,NA()) ->  | U131: 3.9
E132: 125 | P132: =$X$24 -> 2.6 | Q132: =IF(AND(G42<>"",$Y$5,$Y$2),G42,NA()) ->  | U132: 3.9
E133: 126 | P133: =$X$23 -> 1.4 | Q133: =IF(AND(F43<>"",$Y$5,$Y$2),F43,NA()) ->  | U133: 3.9
E134: 127 | P134: =$X$24 -> 2.6 | Q134: =IF(AND(G43<>"",$Y$5,$Y$2),G43,NA()) ->  | U134: 3.9
E135: 128 | P135: =$X$23 -> 1.4 | Q135: =IF(AND(F44<>"",$Y$5,$Y$2),F44,NA()) ->  | U135: 3.9
E136: 129 | I136: =IF(AND(F136<>"",G136<>""),G136-F136,"") ->  | P136: =$X$24 -> 2.6 | Q136: =IF(AND(G44<>"",$Y$5,$Y$2),G44,NA()) ->  | U136: 3.9
E137: 130 | P137: =$X$23 -> 1.4 | Q137: =IF(AND(F45<>"",$Y$5,$Y$2),F45,NA()) ->  | U137: 3.9
E138: 131 | P138: =$X$24 -> 2.6 | Q138: =IF(AND(G45<>"",$Y$5,$Y$2),G45,NA()) ->  | U138: 3.9
E139: 132 | P139: =$X$23 -> 1.4 | Q139: =IF(AND(F46<>"",$Y$5,$Y$2),F46,NA()) ->  | U139: 3.9
E140: 133 | P140: =$X$24 -> 2.6 | Q140: =IF(AND(G46<>"",$Y$5,$Y$2),G46,NA()) ->  | U140: 3.9
E141: 134 | P141: =$X$23 -> 1.4 | Q141: =IF(AND(F47<>"",$Y$5,$Y$2),F47,NA()) ->  | U141: 3.9
E142: 135 | P142: =$X$24 -> 2.6 | Q142: =IF(AND(G47<>"",$Y$5,$Y$2),G47,NA()) ->  | U142: 3.9
E143: 136 | P143: =$X$23 -> 1.4 | Q143: =IF(AND(F48<>"",$Y$5,$Y$2),F48,NA()) ->  | U143: 3.9
E144: 137 | P144: =$X$24 -> 2.6 | Q144: =IF(AND(G48<>"",$Y$5,$Y$2),G48,NA()) ->  | U144: 3.9
E145: 138 | P145: =$X$23 -> 1.4 | Q145: =IF(AND(F49<>"",$Y$5,$Y$2),F49,NA()) ->  | U145: 3.9
E146: 139 | P146: =$X$24 -> 2.6 | Q146: =IF(AND(G49<>"",$Y$5,$Y$2),G49,NA()) ->  | U146: 3.9
E147: 140 | P147: =$X$23 -> 1.4 | Q147: =IF(AND(F50<>"",$Y$5,$Y$2),F50,NA()) ->  | U147: 3.9
E148: 141 | P148: =$X$24 -> 2.6 | Q148: =IF(AND(G50<>"",$Y$5,$Y$2),G50,NA()) ->  | U148: 3.9
E149: 142 | P149: =$X$23 -> 1.4 | Q149: =IF(AND(F51<>"",$Y$5,$Y$2),F51,NA()) ->  | U149: 3.9
E150: 143 | P150: =$X$24 -> 2.6 | Q150: =IF(AND(G51<>"",$Y$5,$Y$2),G51,NA()) ->  | U150: 3.9
E151: 144 | P151: =$X$23 -> 1.4 | Q151: =IF(AND(F52<>"",$Y$5,$Y$2),F52,NA()) ->  | U151: 3.9
E152: 145 | P152: =$X$24 -> 2.6 | Q152: =IF(AND(G52<>"",$Y$5,$Y$2),G52,NA()) ->  | U152: 3.9
E153: 146 | P153: =$X$23 -> 1.4 | Q153: =IF(AND(F53<>"",$Y$5,$Y$2),F53,NA()) ->  | U153: 3.9
E154: 147 | P154: =$X$24 -> 2.6 | Q154: =IF(AND(G53<>"",$Y$5,$Y$2),G53,NA()) ->  | U154: 3.9
E155: 148 | P155: =$X$23 -> 1.4 | Q155: =IF(AND(F54<>"",$Y$5,$Y$2),F54,NA()) ->  | U155: 3.9
E156: 149 | P156: =$X$24 -> 2.6 | Q156: =IF(AND(G54<>"",$Y$5,$Y$2),G54,NA()) ->  | U156: 3.9
E157: 150 | P157: =$X$23 -> 1.4 | Q157: =IF(AND(F55<>"",$Y$5,$Y$2),F55,NA()) ->  | U157: 3.9
E158: 151 | P158: =$X$24 -> 2.6 | Q158: =IF(AND(G55<>"",$Y$5,$Y$2),G55,NA()) ->  | U158: 3.9
E159: 152 | P159: =$X$23 -> 1.4 | Q159: =IF(AND(F56<>"",$Y$5,$Y$2),F56,NA()) ->  | U159: 3.9
E160: 153 | P160: =$X$24 -> 2.6 | Q160: =IF(AND(G56<>"",$Y$5,$Y$2),G56,NA()) ->  | U160: 3.9
E161: 154 | P161: =$X$23 -> 1.4 | Q161: =IF(AND(F57<>"",$Y$5,$Y$2),F57,NA()) ->  | U161: 3.9 | V161: =IF(AND(I104<>"",$Y$6,$Y$2),$M$29+I104,NA()) -> 
E162: 155 | P162: =$X$24 -> 2.6 | Q162: =IF(AND(G57<>"",$Y$5,$Y$2),G57,NA()) ->  | U162: 3.9 | V162: =IF(AND(I105<>"",$Y$6,$Y$2),$M$29+I105,NA()) -> 
E163: 156 | P163: =$X$23 -> 1.4 | Q163: =IF(AND(F58<>"",$Y$5,$Y$2),F58,NA()) ->  | U163: 3.9 | V163: =IF(AND(I106<>"",$Y$6,$Y$2),$M$29+I106,NA()) -> 
E164: 157 | P164: =$X$24 -> 2.6 | Q164: =IF(AND(G58<>"",$Y$5,$Y$2),G58,NA()) ->  | U164: 3.9 | V164: =IF(AND(I107<>"",$Y$6,$Y$2),$M$29+I107,NA()) -> 
E165: 158 | P165: =$X$23 -> 1.4 | Q165: =IF(AND(F59<>"",$Y$5,$Y$2),F59,NA()) -> 
E166: 159 | P166: =$X$24 -> 2.6 | Q166: =IF(AND(G59<>"",$Y$5,$Y$2),G59,NA()) -> 
E167: 160 | P167: =$X$23 -> 1.4 | Q167: =IF(AND(F60<>"",$Y$5,$Y$2),F60,NA()) -> 
E168: 161 | P168: =$X$24 -> 2.6 | Q168: =IF(AND(G60<>"",$Y$5,$Y$2),G60,NA()) -> 
E169: 162 | P169: =$X$23 -> 1.4 | Q169: =IF(AND(F61<>"",$Y$5,$Y$2),F61,NA()) -> 
E170: 163 | P170: =$X$24 -> 2.6 | Q170: =IF(AND(G61<>"",$Y$5,$Y$2),G61,NA()) -> 
E171: 164 | P171: =$X$23 -> 1.4 | Q171: =IF(AND(F62<>"",$Y$5,$Y$2),F62,NA()) -> 
E172: 165 | P172: =$X$24 -> 2.6 | Q172: =IF(AND(G62<>"",$Y$5,$Y$2),G62,NA()) -> 
E173: 166 | P173: =$X$23 -> 1.4 | Q173: =IF(AND(F63<>"",$Y$5,$Y$2),F63,NA()) -> 
E174: 167 | P174: =$X$24 -> 2.6 | Q174: =IF(AND(G63<>"",$Y$5,$Y$2),G63,NA()) -> 
E175: 168 | P175: =$X$23 -> 1.4 | Q175: =IF(AND(F64<>"",$Y$5,$Y$2),F64,NA()) -> 
E176: 169 | P176: =$X$24 -> 2.6 | Q176: =IF(AND(G64<>"",$Y$5,$Y$2),G64,NA()) -> 
E177: 170 | P177: =$X$23 -> 1.4 | Q177: =IF(AND(F65<>"",$Y$5,$Y$2),F65,NA()) -> 
E178: 171 | P178: =$X$24 -> 2.6 | Q178: =IF(AND(G65<>"",$Y$5,$Y$2),G65,NA()) -> 
E179: 172 | P179: =$X$23 -> 1.4 | Q179: =IF(AND(F66<>"",$Y$5,$Y$2),F66,NA()) -> 
E180: 173 | P180: =$X$24 -> 2.6 | Q180: =IF(AND(G66<>"",$Y$5,$Y$2),G66,NA()) -> 
E181: 174 | P181: =$X$23 -> 1.4 | Q181: =IF(AND(F67<>"",$Y$5,$Y$2),F67,NA()) -> 
E182: 175 | P182: =$X$24 -> 2.6 | Q182: =IF(AND(G67<>"",$Y$5,$Y$2),G67,NA()) -> 
E183: 176 | P183: =$X$23 -> 1.4 | Q183: =IF(AND(F68<>"",$Y$5,$Y$2),F68,NA()) -> 
E184: 177 | P184: =$X$24 -> 2.6 | Q184: =IF(AND(G68<>"",$Y$5,$Y$2),G68,NA()) -> 
E185: 178 | P185: =$X$23 -> 1.4 | Q185: =IF(AND(F69<>"",$Y$5,$Y$2),F69,NA()) -> 
E186: 179 | P186: =$X$24 -> 2.6 | Q186: =IF(AND(G69<>"",$Y$5,$Y$2),G69,NA()) -> 
E187: 180 | P187: =$X$23 -> 1.4 | Q187: =IF(AND(F70<>"",$Y$5,$Y$2),F70,NA()) -> 
E188: 181 | P188: =$X$24 -> 2.6 | Q188: =IF(AND(G70<>"",$Y$5,$Y$2),G70,NA()) -> 
E189: 182 | P189: =$X$23 -> 1.4 | Q189: =IF(AND(F71<>"",$Y$5,$Y$2),F71,NA()) -> 
E190: 183 | P190: =$X$24 -> 2.6 | Q190: =IF(AND(G71<>"",$Y$5,$Y$2),G71,NA()) -> 
E191: 184 | K191: =IF(I136<>"",(F136+G136)/2,"") ->  | P191: =$X$23 -> 1.4 | Q191: =IF(AND(F72<>"",$Y$5,$Y$2),F72,NA()) -> 
E192: 185 | P192: =$X$24 -> 2.6 | Q192: =IF(AND(G72<>"",$Y$5,$Y$2),G72,NA()) -> 
E193: 186 | P193: =$X$23 -> 1.4 | Q193: =IF(AND(F73<>"",$Y$5,$Y$2),F73,NA()) -> 
E194: 187 | P194: =$X$24 -> 2.6 | Q194: =IF(AND(G73<>"",$Y$5,$Y$2),G73,NA()) -> 
E195: 188 | P195: =$X$23 -> 1.4 | Q195: =IF(AND(F74<>"",$Y$5,$Y$2),F74,NA()) -> 
E196: 189 | P196: =$X$24 -> 2.6 | Q196: =IF(AND(G74<>"",$Y$5,$Y$2),G74,NA()) -> 
E197: 190 | P197: =$X$23 -> 1.4 | Q197: =IF(AND(F75<>"",$Y$5,$Y$2),F75,NA()) -> 
E198: 191 | P198: =$X$24 -> 2.6 | Q198: =IF(AND(G75<>"",$Y$5,$Y$2),G75,NA()) -> 
E199: 192 | P199: =$X$23 -> 1.4 | Q199: =IF(AND(F76<>"",$Y$5,$Y$2),F76,NA()) -> 
E200: 193 | I200: =IF(AND(F200<>"",G200<>""),G200-F200,"") ->  | P200: =$X$24 -> 2.6 | Q200: =IF(AND(G76<>"",$Y$5,$Y$2),G76,NA()) -> 
... 808 more rows

Sheet Simulate paired
A1: Display? | B1: =AND(D3=C3,D4=C4,D2=C2,D5=C5,D6=C6,B2) -> TRUE | H1: Simulate Paired | R1: 9 Descriptive statistics
A2: In range? | B2: =AND(D4>=0,D4<=50,D3>=0,D3<=100,D5>=0,D5<=100,D6>=0,D6<=50,L11>=2,L11<=100,M21>=0,M21<=99.9,AA13>=-1,AA13<=1) -> TRUE | C2: 8 | D2: =L11 -> 8 | H2: Matched pairs, or repeated-measure design | Q2: Measure 1 | R2: Measure 2 | X2: =($M$21+$D$3+$D$4+$D$6+$L$11+$D$5)/100000 -> 0.00218 | AD2: Speed
A3: DispData | B3: FALSE | C3: 51 | D3: 51 | H3: Take a sample of data pairs | Q3: =IF(Q12="","",Q12) -> Pretest | R3: =IF(R12="","",R12) -> Posttest | T3: 10 Differences | X3: 0.00218 | Z3: Highlight 1 | AA3: FALSE | AD3: 20
A4: DispMnDiff | B4: FALSE | C4: 13 | D4: 13 | H4: Display mean of differences, with CI | P4: Means M1, M2 | Q4: =IF(B1,AVERAGE(Q13:Q112),"") -> 54.96399232 | R4: =IF($B$1,AVERAGE(R13:R112),"") -> 58.17809362 | S4: Mdiff | T4: =IF($B$1,AVERAGE(T13:T112),"") -> 3.214101299 | U4: =IF($U$12="","",$U$12) -> cm | X4: 0.00218 | Z4: Highlight 3 | AA4: FALSE | AD4: =4*(20-AD3) -> 0 | AG4: Cohen's d
A5: DispCIdiffs | B5: TRUE | C5: 45 | D5: 45 | P5: SDs s1, s2 | Q5: =IF(B1,STDEV(Q13:Q112),"") -> 16.60141992 | R5: =IF($B$1,STDEV(R13:R112),"") -> 15.09153113 | S5: sdiff | T5: =IF($B$1,STDEV(T13:T112),"") -> 5.797405841 | U5: =IF(U12="","",U12) -> cm | X5: 0.00218 | Z5: Highlight 5 | AA5: FALSE
A6: Display m | B6: FALSE | C6: 6 | D6: 6 | H6: 1 | K6: 12 | L6: Speed | P6: MOE1, MOE2 | Q6: =IF(B1,(Q5/SQRT(C2))*TINV(1-M21/100,(C2-1)),"") -> 13.87913438 | R6: =IF($B$1,(R5/SQRT($C$2))*TINV(1-$M$21/100,($C$2-1)),"") -> 12.61683576 | S6: MOEdiff | T6: =IF($B$1,(T5/SQRT($C$2))*TINV(1-$M$21/100,($C$2-1)),"") -> 4.846752575 | U6: =IF(U12="","",U12) -> cm | X6: 0.00218 | Z6: Highlight 7 | AA6: FALSE | AF6: sav | AG6: =IF(AND(D12,B1),D13,"") ->  | AI6: =IF($U$12="","",$U$12) -> cm
A7: ShowCImeas | B7: TRUE | C7: 0.467078822 | D7: =RAND() -> 0.2499608782 | P7: Correlation | Q7: =IF(B1,CORREL(Q13:Q112,R13:R112),"") -> 0.9374749648 | S7: ES | T7: =IF($B$1,T4,"") -> 3.214101299 | U7: =IF(U12="","",U12) -> cm | X7: 0.00218 | Z7: x for diffs | AA7: 3.7
A8: Reveal m | B8: TRUE | C8: 95 | D8: =M21 -> 95 | L8: =AD3 -> 20 | S8: Paired t | T8: =IF($B$1,T4/(T5/SQRT(L11))) -> 1.568089512 | U8: df | V8: =IF(B1,L11-1,"") -> 7 | X8: 0.00218 | AF8: d | AG8: =IF(AND(D12,B1),T4/D13,"") ->  | AR8: 13
A9: Dot-Col | B9: 1 | S9: Two-tailed p | T9: =IF(B1,TDIST(ABS(T8),V8,2),"") -> 0.1608470441 | X9: 0.00218 | Z9: Measure 1 | AA9: Measure 2 | AI9: CI for d | AS9: Display d
A10: Same C? | B10: =(D8=C8) -> TRUE | F10: 4 | G10: Sample size | U10: 3 Type | X10: 0.00218 | Z10: FALSE | AA10: Diffs;DotM | AB10: 0.5 | AC10: =IF(AND($B$1,$B$9=1),$Q$4,NA()) -> 54.96399232 | AF10: [ | AG10: =IF(AND(D14,D12,B1),C19*T5/(D13*SQRT(L11)),"") ->  | AI10: , | AJ10: =IF(AND(D14,D12,B1),D19*T5/(D13*SQRT(L11)),"") ->  | AK10: ] | AS10: and CI for d
C11: calcswitchpair | D11: FALSE | J11: Number of pairs | K11: N | L11: =AQ62 -> 8 | Q11: Measure 1 | R11: Measure 2 | T11: 11 Differences | U11: units | X11: 0.00218 | AB11: 2.5 | AC11: =IF(AND($B$1,$B$9=1),$R$4,NA()) -> 58.17809362
C12: Display d? | D12: FALSE | O12: 2 | P12: Labels | Q12: Pretest | R12: Posttest | S12: Highlight | U12: cm | X12: 0.00218 | Z12: CI bars, measures | AB12: 0.5 | AC12: =IF(AND($B$7,$B$1),$Q$4,NA()) -> 54.96399232 | AH12: MOEav | AJ12: =IF(AND(D14,D12,B1),(AJ10-AG10)/2,"") -> 
C13: est of sigma | D13: =IF(B1,SQRT((Q5^2+R5^2)/2),"") -> 15.86444854 | F13: 5 | G13: Display | P13: Pair No. 1 | Q13: =IF(AND(X63<=$C$2,$B$1),Y63,"") -> 73.31342128 | R13: =IF(AND(X63<=$C$2,$B$1),Z63,"") -> 78.81773106 | T13: =IF(AND(X63<=$C$2,$B$1),R13-Q13,"") -> 5.504309775 | X13: 0.00218 | Z13: Pop corr'n | AA13: =1-D6*D6/(2*D4*D4) -> 0.8934911243 | AB13: 2.5 | AC13: =IF(AND($B$7,$B$1),$R$4,NA()) -> 58.17809362
C14: Display CI for d? | D14: =IF(AND(B10,dispdsp,L11>5,AG8<>"",M21=95),IF(ABS(AG16)<=2,TRUE,FALSE),FALSE) -> FALSE | I14: Display differences | P14: 2 | Q14: 61.4607703 | R14: 64.17508532 | T14: 2.714315017 | X14: 0.00218 | Z14: Bar widths | AB14: =$Q$6 -> 13.87913438 | AC14: =$R$6 -> 12.61683576 | AG14: Unbiased d
B15: To calculate CIs on d | G15: Display data pairs | P15: 3 | Q15: 64.95046665 | R15: 63.43112287 | T15: -1.519343779 | X15: 0.00218 | Z15: Diff | AA15: =IF(AND($B$4,$B$1),$T$4,NA()) ->  | AB15: 0.55 | AC15: =IF(AND($B$4,$B$1),$Q$4,NA()) -> 
B16: targtailPs | C16: =1-D16 -> 0.975 | D16: =(100-M21)/200 -> 0.025 | F16: 6 | G16: Sample means | P16: 4 | Q16: 53.048165 | R16: 57.87878014 | T16: 4.830615138 | X16: 0.00218 | Z16: 1.5 | AA16: =IF(AND($B$4,$B$1),$Q$4,NA()) ->  | AB16: 1.7 | AC16: =IF(AND($B$4,$B$1),$Q$4,NA()) ->  | AF16: dunb | AG16: =IF(AND(V8>1,AG8<>""),AG8*$AE$60,"") -> 
B17: tobezero | C17: =100000*(C16-C20) -> 20038.45523 | D17: =100000*(D16-D20) -> 2497.379664 | J17: Display sample means as | P17: 5 | Q17: 63.26790728 | R17: 69.90915664 | T17: 6.641249362 | X17: 0.00218 | Z17: PopMeans | AB17: 0.29 | AC17: =IF($B$6,D5,NA()) -> 
B18: df | C18: =L11-1 -> 7 | P18: 6 | Q18: 24.41300727 | R18: 38.02795874 | T18: 13.61495147 | X18: 0.00218 | Z18: 1.3 | AA18: =IF(AND($B$4,$B$1),$R$4,NA()) ->  | AB18: 2.7 | AC18: =IF($B$6,D3,NA()) -> 
B19: NCP limits | C19: 0.6966631366 | D19: 5.929719799 | G19: Display difference between means | P19: 7 | Q19: 35.70609 | R19: 34.4982847 | T19: -1.207805291 | X19: 0.00218 | Z19: 2.45 | AA19: =IF(AND($B$4,$B$1),$R$4,NA()) ->  | AB19: =AA7+0.4 -> 4.1 | AC19: =IF(AND($B$1,$B$6),Q4+D3-D5,NA()) -> 
B20: nct | C20: =nct(T8,C19,C18) -> 0.7746154477 | D20: =nct(T8,D19,C18) -> 2.620335546e-05 | F20: 7 | G20: Confidence Intervals | P20: 8 | Q20: 63.55211075 | R20: 58.68662945 | T20: -4.8654813 | X20: 0.00218 | Z20: Pop Bars | AA20: =D4 -> 13 | AB20: =D4 -> 13 | AC20: =D6 -> 6
B21: approx CI | C21: =T4-T6 -> -1.632651276 | D21: =T4+T6 -> 8.060853873 | G21: Display CI on measures | L21: C | M21: =IF(AQ64<100,AQ64,99+(AQ64-99)/10) -> 95 | P21: 9 | X21: 0.00218 | Z21: PopHoriz'ls | AA21: 0.21 | AB21: 0 | AC21: 0.5
B22: equiv d | C22: =C21/D13 -> -0.1029125766 | D22: =D21/D13 -> 0.5081080413 | H22: Display CI on differences | P22: 10 | X22: 0.00218 | Z22: PopHoriz'ls | AA22: 0 | AB22: 0.2 | AC22: 0.2
B23: equiv ncp | C23: =C22*$D$13*SQRT($L$11)/$T$5 -> -0.7965347399 | D23: =D22*$D$13*SQRT($L$11)/$T$5 -> 3.932713763 | P23: 11 | X23: 0.00218 | Z23: Mean Diff | AA23: =AA7+0.2 -> 3.9 | AB23: =IF(T4<>"",Q4+T4,NA()) -> 58.17809362 | AC23: Diff bars | AD23: =IF(AND($B$5,T6<>""),T6,NA()) -> 4.846752575 | AR23: 14 | AS23: Power
F24: 8 | G24: Populations of measures, and differences | P24: 12 | X24: 0.00218 | Z24: Horizontals | AB24: 4.6 | AC24: =IF($Q$4="",NA(),IF(AND($Q$4+AD24>4,$Q$4+AD24<110),$Q$4+AD24,NA())) -> 94.96399232 | AD24: 40
P25: 13 | X25: 0.00218 | Z25: =AA23 -> 3.9 | AA25: =IF(T4<>"",Q4+T4,NA()) -> 58.17809362 | AB25: 4.6 | AC25: 84.96399232 | AD25: 30 | AS25: Display power
P26: 14 | X26: 0.00218 | Z26: 4.6 | AA26: =IF(T4<>"",Q4+T4,NA()) -> 58.17809362 | AB26: 4.6 | AC26: 74.96399232 | AD26: 20
H27: Means m1 | I27: =IF($B$8,D5,"") -> 45 | K27: m2 | L27: =IF($B$8,D3,"") -> 51 | P27: 15 | X27: 0.00218 | Z27: 2.5 | AA27: =IF(T4<>"",Q4+T4,NA()) -> 58.17809362 | AB27: 4.6 | AC27: 64.96399232 | AD27: 10
P28: 16 | X28: 0.00218 | Z28: =Z25 -> 3.9 | AA28: =IF(T4<>"",Q4+T4,NA()) -> 58.17809362 | AB28: 4.6 | AC28: 54.96399232 | AD28: 0
I29: SD s | J29: =IF($B$8,D4,"") -> 13 | L29: sdiff | M29: =IF($B$8,D6,"") -> 6 | P29: 17 | X29: 0.00218 | Z29: 0.55 | AA29: =IF(Q4<>"",Q4,NA()) -> 54.96399232 | AB29: 4.6 | AC29: 44.96399232 | AD29: -10
P30: 18 | X30: 0.00218 | Z30: 4.6 | AA30: =IF(Q4<>"",Q4,NA()) -> 54.96399232 | AB30: 4.6 | AC30: 34.96399232 | AD30: -20
I31: Correlation | J31: =IF($B$8,AA13,"") -> 0.8934911243 | M31: Effect size | P31: 19 | X31: 0.00218 | AB31: 4.6 | AC31: 24.96399232 | AD31: -30
L32: d | M32: =IF($B$8,(L27-I27)/J29,"") -> 0.4615384615 | P32: 20 | X32: 0.00218 | AB32: 4.6 | AC32: 14.96399232 | AD32: -40
G33: Display population means ±SD | P33: 21 | X33: 0.00218 | Z33: =IF(AND($B$1,$B$9=2),$Q$4,NA()) ->  | AA33: =NA() ->  | AB33: =IF(AND($B$1,$B$9=2),$R$4,NA()) ->  | AC33: =NA() ->  | AD33: =NA() -> 
F34: 15 | G34: Power | P34: 22 | X34: 0.00218 | Z34: for sigma | AA34: 0.14 | AB34: =AC17+Z36*D4 ->  | AC34: 0.14 | AD34: =AC17-1.5 -> 
G35: Two-tail | H35: a | I35: =1-M21/100 -> 0.05 | M35: Power | P35: 23 | X35: 0.00218 | Z35: labels | AA35: 2.83 | AB35: =AC18+Z36*D4 ->  | AC35: 2.9 | AD35: =AC18-1.5 -> 
L36: Using s and z. | M36: =IF(B8,AT65+AT66,"") -> 0.8074304194 | P36: 24 | X36: 0.00218 | Z36: 0.6 | AA36: 4.33 | AB36: =AC19+Z36*D6 ->  | AC36: 4.37 | AD36: =AC19-1 -> 
L37: Don't use s, so use t. | M37: =IF(AND(B8,AG16<>""),AV65+AV66,"") ->  | P37: 25
G38: Show post hoc power | P38: 26
L39: =IF(AU67,"Post hoc power. Don't use! ","") ->  | M39: =IF(AND(AU67,B8,AG16<>""),AW65+AW66,"") ->  | P39: 27
P40: 28
P41: 29
P42: 30
P43: 31
P44: 32
P45: 33 | Q45: =IF(AND(X95<=$C$2,$B$1),Y95,"") ->  | R45: =IF(AND(X95<=$C$2,$B$1),Z95,"") ->  | T45: =IF(AND(X95<=$C$2,$B$1),R45-Q45,"") -> 
P46: 34
P47: 35
P48: 36
P49: 37
P50: 38
P51: 39
P52: 40
P53: 41
P54: 42
P55: 43
P56: 44
P57: 45
P58: 46
P59: 47
P60: 48 | Z60: Meas labels | AA60: =IF(Q12="","",Q12) -> Pretest | AB60: =IF(R12="","",R12) -> Posttest | AD60: To debias | AE60: =EXP(GAMMALN(V8/2))/(SQRT(V8/2)*EXP(GAMMALN(V8/2-0.5))) -> 0.8882029077 | AL60: for pink | AO60: for highlighting
P61: 49 | Z61: ="Dependent variable "&IF(U12="","","("&U12&")")&"." -> Dependent variable (cm). | AL61: =$Z$9 -> Measure 1 | AM61: =$AA$9 -> Measure 2 | AO61: =$Z$9 -> Measure 1 | AP61: =$AA$9 -> Measure 2 | AQ61: N | AS61: Power calculations | AU61: FALSE | AV61: Display power?
P62: 50 | X62: Index | Y62: Data1 | Z62: Data2 | AA62: Display1 | AB62: Display2 | AC62: RanData1 | AD62: RanData2 | AE62: DataMidPt | AF62: To est. s | AG62: Half Diff | AI62: Diff | AK62: DisplayDiff | AL62: Display1 | AM62: Display2 | AN62: DisplayDiff | AO62: Display1 | AP62: Display2 | AQ62: 8 | AS62: sqrtN | AT62: =SQRT(L11) -> 2.828427125 | AW62: post hoc
P63: 51 | X63: 1 | Y63: =AE63-AG63 -> 73.31342128 | Z63: =AE63+AG63 -> 78.81773106 | AA63: =IF(AND(X63<=$C$2,$B$3,$B$1),Y63,NA()) ->  | AB63: =IF(AND(X63<=$C$2,$B$3,$B$1),Z63,NA()) ->  | AC63: =MOD(AD162*10000013,1) -> 0.9867491052 | AD63: =C7 -> 0.467078822 | AE63: =($C$5+(($C$3-$C$5)/2))+SQRT($C$4*$C$4-($C$6*$C$6/4))*NORMSINV(AC63) -> 76.06557617 | AF63: =IF(X63<=$C$2,AE63,"") -> 76.06557617 | AG63: =(($C$3-$C$5)+$C$6*NORMSINV(AD63))/2 -> 2.752154888 | AI63: =Z63-Y63 -> 5.504309775 | AJ63: =AA7 -> 3.7 | AK63: =IF(AND(X63<=$C$2,$Z$10,$B$1),$Q$4+AI63,NA()) ->  | AL63: =IF(AND(X63<=$C$2,$Z$10,$B$1,$B$3),Y63,NA()) ->  | AM63: =IF(AND(X63<=$C$2,$Z$10,$B$1,$B$3),Z63,NA()) ->  | AN63: =IF(AND(X63<=$C$2,$AA$3,$B$1),$Q$4+AI63,NA()) ->  | AO63: =IF(AND(X63<=$C$2,$AA$3,$B$1),Y63,NA()) ->  | AP63: =IF(AND(X63<=$C$2,$AA$3,$B$1),Z63,NA()) ->  | AQ63: for C | AS63: z1 or D | AT63: =((L27-I27)/M29)*AT62 -> 2.828427125 | AW63: =AG16*AT62*SQRT(1/(2*(1-Q7))) -> 
P64: 52 | X64: 2 | Y64: 61.4607703 | Z64: 64.17508532 | AC64: =MOD(AC63*10000013,1) -> 0.8792930469 | AD64: =MOD(AD63*10000013,1) -> 0.2919784309 | AE64: 62.81792781 | AF64: 62.81792781 | AG64: 1.357157509 | AI64: 2.714315017 | AJ64: =AJ63 -> 3.7 | AQ64: 95 | AS64: zcrit | AT64: =NORMSINV(1-I35/2) -> 1.959963985 | AU64: tcrit | AV64: =TINV(I35,V8) -> 2.364624252
P65: 53 | X65: 3 | Y65: 64.95046665 | Z65: 63.43112287 | AC65: 0.8997265026 | AD65: 0.1050621057 | AE65: 64.19079476 | AF65: 64.19079476 | AG65: -0.7596718895 | AI65: -1.519343779 | AJ65: =AJ64 -> 3.7 | AN65: =IF(AND(X65<=$C$2,$AA$4,$B$1),$Q$4+AI65,NA()) ->  | AO65: =IF(AND(X65<=$C$2,$AA$4,$B$1),Y65,NA()) ->  | AP65: =IF(AND(X65<=$C$2,$AA$4,$B$1),Z65,NA()) ->  | AS65: rhtailpower | AT65: =1-NORMSDIST(AT64-AT63) -> 0.8074295788 | AV65: =1-nct(AV64,AT63,V8) -> 0.6808301496 | AW65: =1-nct(AV64,AW63,V8) -> 
P66: 54 | X66: 4 | Y66: 53.048165 | Z66: 57.87878014 | AC66: 0.7224178538 | AD66: 0.4227366047 | AE66: 55.46347257 | AF66: 55.46347257 | AG66: 2.415307569 | AI66: 4.830615138 | AJ66: 3.7 | AS66: lhtailpower | AT66: =NORMSDIST(-AT64-AT63) -> 8.40618736e-07 | AV66: =nct(-AV64,AT63,V8) -> 3.808657215e-06 | AW66: =nct(-AV64,AW63,V8) -> 
P67: 55 | X67: 5 | Y67: 63.26790728 | Z67: 69.90915664 | AC67: 0.9291585013 | AD67: 0.5425558845 | AE67: 66.58853196 | AF67: 66.58853196 | AG67: 3.320624681 | AI67: 6.641249362 | AJ67: 3.7 | AN67: =IF(AND(X67<=$C$2,$AA$5,$B$1),$Q$4+AI67,NA()) ->  | AO67: =IF(AND(X67<=$C$2,$AA$5,$B$1),Y67,NA()) ->  | AP67: =IF(AND(X67<=$C$2,$AA$5,$B$1),Z67,NA()) ->  | AT67: Show post hoc power? | AU67: FALSE
P68: 56 | X68: 6 | Y68: 24.41300727 | Z68: 38.02795874 | AC68: 0.09233089536 | AD68: 0.8978077443 | AE68: 31.220483 | AF68: 31.220483 | AG68: 6.807475734 | AI68: 13.61495147 | AJ68: 3.7
P69: 57 | X69: 7 | Y69: 35.70609 | Z69: 34.4982847 | AC69: 0.1539444849 | AD69: 0.1148172542 | AE69: 35.10218735 | AF69: 35.10218735 | AG69: -0.6039026456 | AI69: -1.207805291 | AJ69: 3.7 | AN69: =IF(AND(X69<=$C$2,$AA$6,$B$1),$Q$4+AI69,NA()) ->  | AO69: =IF(AND(X69<=$C$2,$AA$6,$B$1),Y69,NA()) ->  | AP69: =IF(AND(X69<=$C$2,$AA$6,$B$1),Z69,NA()) -> 
P70: 58 | X70: 8 | Y70: 63.55211075 | Z70: 58.68662945 | AC70: 0.8501733765 | AD70: 0.03507711738 | AE70: 61.1193701 | AF70: 61.1193701 | AG70: -2.43274065 | AI70: -4.8654813 | AJ70: 3.7
P71: 59 | X71: 9 | Y71: 55.45282672 | Z71: 63.44136192 | AC71: 0.8172599599 | AD71: 0.6298373267 | AE71: 59.44709432 | AG71: 3.9942676 | AI71: 7.9885352 | AJ71: 3.7
P72: 60 | X72: 10 | Y72: 35.70581632 | Z72: 41.02667395 | AC72: 0.2231448516 | AD72: 0.454939805 | AE72: 38.36624513 | AG72: 2.660428813 | AI72: 5.320857626 | AJ72: 3.7
P73: 61 | X73: 11 | Y73: 36.95868678 | Z73: 53.74806143 | AC73: 0.4171327278 | AD73: 0.9639296457 | AE73: 45.3533741 | AG73: 8.394687325 | AI73: 16.78937465 | AJ73: 3.7
P74: 62 | X74: 12 | Y74: 44.86397373 | Z74: 64.45655119 | AC74: 0.7007434592 | AD74: 0.9882568344 | AE74: 54.66026246 | AG74: 9.796288728 | AI74: 19.59257746 | AJ74: 3.7
P75: 63 | X75: 13 | Y75: 54.29482924 | Z75: 55.06741396 | AC75: 0.701315932 | AD75: 0.1918126866 | AE75: 54.6811216 | AG75: 0.386292363 | AI75: 0.7725847261 | AJ75: 3.7
P76: 64 | X76: 14 | Y76: 44.06687958 | Z76: 47.91270007 | AC76: 0.4368655309 | AD76: 0.359786354 | AE76: 45.98978983 | AG76: 1.922910246 | AI76: 3.845820492 | AJ76: 3.7
P77: 65 | Q77: =IF(AND(X127<=$C$2,$B$1),Y127,"") ->  | R77: =IF(AND(X127<=$C$2,$B$1),Z127,"") ->  | T77: =IF(AND(X127<=$C$2,$B$1),R77-Q77,"") ->  | X77: 15 | Y77: 76.03145792 | Z77: 77.34290146 | AC77: 0.9883329794 | AD77: 0.2172759697 | AE77: 76.68717969 | AG77: 0.6557217716 | AI77: 1.311443543 | AJ77: 3.7
P78: 66 | X78: 16 | Y78: 49.44537974 | Z78: 55.76781978 | AC78: 0.6421395764 | AD78: 0.5214288458 | AE78: 52.60659976 | AG78: 3.161220019 | AI78: 6.322440038 | AJ78: 3.7
P79: 67 | X79: 17 | Y79: 31.74041522 | Z79: 33.44067202 | AC79: 0.1115693375 | AD79: 0.236803107 | AE79: 32.59054362 | AG79: 0.8501284001 | AI79: 1.7002568 | AJ79: 3.7
P80: 68 | X80: 18 | Y80: 59.99861749 | Z80: 59.73031141 | AC80: 0.8258696422 | AD80: 0.1480767354 | AE80: 59.86446445 | AG80: -0.1341530411 | AI80: -0.2683060821 | AJ80: 3.7
P81: 69 | X81: 19 | Y81: 34.08575393 | Z81: 36.57741113 | AC81: 0.1582862064 | AD81: 0.2793667242 | AE81: 35.33158253 | AG81: 1.2458286 | AI81: 2.491657201 | AJ81: 3.7
P82: 70 | X82: 20 | Y82: 26.82873518 | Z82: 39.69303017 | AC82: 0.1219630465 | AD82: 0.8736983761 | AE82: 33.26088268 | AG82: 6.432147497 | AI82: 12.86429499 | AJ82: 3.7
P83: 71 | X83: 21 | Y83: 27.78267974 | Z83: 26.71082406 | AC83: 0.05043106526 | AD83: 0.1192702577 | AE83: 27.2467519 | AG83: -0.5359278424 | AI83: -1.071855685 | AJ83: 3.7
P84: 72 | X84: 22 | Y84: 42.08555297 | Z84: 41.24233341 | AC84: 0.3082174882 | AD84: 0.1270314083 | AE84: 41.66394319 | AG84: -0.421609779 | AI84: -0.8432195579 | AJ84: 3.7
P85: 73 | X85: 23 | Y85: 58.58140795 | Z85: 68.32952775 | AC85: 0.8891200945 | AD85: 0.733911626 | AE85: 63.45546785 | AG85: 4.874059899 | AI85: 9.748119798 | AJ85: 3.7
P86: 74 | X86: 24 | Y86: 42.56758509 | Z86: 53.64437814 | AC86: 0.5033425316 | AD86: 0.8012604937 | AE86: 48.10598161 | AG86: 5.538396529 | AI86: 11.07679306 | AJ86: 3.7
P87: 75 | X87: 25 | Y87: 59.77512197 | Z87: 63.51727092 | AC87: 0.8596674725 | AD87: 0.3533437774 | AE87: 61.64619645 | AG87: 1.871074475 | AI87: 3.74214895 | AJ87: 3.7
P88: 76 | X88: 26 | Y88: 62.30839327 | Z88: 66.27040349 | AC88: 0.9010904655 | AD88: 0.3670544252 | AE88: 64.28939838 | AG88: 1.981005112 | AI88: 3.962010224 | AJ88: 3.7
P89: 77 | X89: 27 | Y89: 46.72857574 | Z89: 40.81154335 | AC89: 0.3690365478 | AD89: 0.02350711077 | AE89: 43.77005955 | AG89: -2.958516195 | AI89: -5.91703239 | AJ89: 3.7
P90: 78 | X90: 28 | Y90: 38.12878232 | Z90: 42.81497622 | AC90: 0.2758715376 | AD90: 0.4133376107 | AE90: 40.47187927 | AG90: 2.343096948 | AI90: 4.686193896 | AJ90: 3.7
P91: 79 | X91: 29 | Y91: 67.68529494 | Z91: 73.38450556 | AC91: 0.9625878856 | AD91: 0.4800087735 | AE91: 70.53490025 | AG91: 2.849605308 | AI91: 5.699210617 | AJ91: 3.7
P92: 80 | X92: 30 | Y92: 34.88780607 | Z92: 52.66518853 | AC92: 0.3692285642 | AD92: 0.9751709327 | AE92: 43.7764973 | AG92: 8.888691229 | AI92: 17.77738246 | AJ92: 3.7
P93: 81 | X93: 31 | Y93: 51.03149661 | Z93: 41.27743034 | AC93: 0.4419991896 | AD93: 0.004323832691 | AE93: 46.15446347 | AG93: -4.877033138 | AI93: -9.754066276 | AJ93: 3.7
P94: 82 | X94: 32 | Y94: 50.4784058 | Z94: 54.69457817 | AC94: 0.6415459141 | AD94: 0.3831169829 | AE94: 52.58649198 | AG94: 2.108086183 | AI94: 4.216172366 | AJ94: 3.7
P95: 83 | X95: 33 | Y95: =AE95-AG95 -> 41.77882834 | Z95: =AE95+AG95 -> 53.03059899 | AA95: =IF(AND(X95<=$C$2,$B$3,$B$1),Y95,NA()) ->  | AB95: =IF(AND(X95<=$C$2,$B$3,$B$1),Z95,NA()) ->  | AC95: 0.4812320992 | AD95: 0.8092933223 | AE95: =($C$5+(($C$3-$C$5)/2))+SQRT($C$4*$C$4-($C$6*$C$6/4))*NORMSINV(AC95) -> 47.40471367 | AF95: =IF(X95<=$C$2,AE95,"") ->  | AG95: =(($C$3-$C$5)+$C$6*NORMSINV(AD95))/2 -> 5.625885323 | AI95: =Z95-Y95 -> 11.25177065 | AJ95: 3.7 | AK95: =IF(AND(X95<=$C$2,$Z$10,$B$1),$Q$4+AI95,NA()) ->  | AL95: =IF(AND(X95<=$C$2,$Z$10,$B$1,$B$3),Y95,NA()) ->  | AM95: =IF(AND(X95<=$C$2,$Z$10,$B$1,$B$3),Z95,NA()) -> 
P96: 84 | X96: 34 | Y96: 34.44103276 | Z96: 44.36541598 | AC96: =MOD(AC95*10000013,1) -> 0.2483678684 | AD96: =MOD(AD95*10000013,1) -> 0.7434646711 | AE96: 39.40322437 | AG96: 4.962191608 | AI96: 9.924383216 | AJ96: 3.7
P97: 85 | X97: 35 | Y97: 63.09948157 | Z97: 67.20020726 | AC97: 0.9124208614 | AD97: 0.3757941648 | AE97: 65.14984442 | AG97: 2.050362846 | AI97: 4.100725691 | AJ97: 3.7
P98: 86 | X98: 36 | Y98: 43.97546186 | Z98: 50.48272844 | AC98: 0.4757013544 | AD98: 0.53368821 | AE98: 47.22909515 | AG98: 3.253633287 | AI98: 6.507266573 | AJ98: 3.7
P99: 87 | X99: 37 | Y99: 58.03945261 | Z99: 53.35343375 | AC99: 0.7285578772 | AD99: 0.03745596856 | AE99: 55.69644318 | AG99: -2.343009432 | AI99: -4.686018864 | AJ99: 3.7
P100: 88 | X100: 38 | Y100: 39.04775301 | Z100: 39.38212427 | AC100: 0.2436780557 | AD100: 0.1725154743 | AE100: 39.21493864 | AG100: 0.1671856328 | AI100: 0.3343712656 | AJ100: 3.7
P101: 89 | X101: 39 | Y101: 46.02127199 | Z101: 65.08971002 | AC101: 0.724851124 | AD101: 0.985299699 | AE101: 55.55549101 | AG101: 9.534219015 | AI101: 19.06843803 | AJ101: 3.7
P102: 90 | X102: 40 | Y102: 47.8053742 | Z102: 58.8332906 | AC102: 0.6629508957 | AD102: 0.7989807352 | AE102: 53.3193324 | AG102: 5.513958197 | AI102: 11.02791639 | AJ102: 3.7
P103: 91 | X103: 41 | Y103: 45.49007284 | Z103: 55.33486439 | AC103: 0.575628452 | AD103: 0.7391732261 | AE103: 50.41246861 | AG103: 4.922395776 | AI103: 9.844791552 | AJ103: 3.7
P104: 92 | X104: 42 | Y104: 7.134557721 | Z104: 19.88827685 | AC104: 0.003199897707 | AD104: 0.86983677 | AE104: 13.51141729 | AG104: 6.376859567 | AI104: 12.75371913 | AJ104: 3.7
P105: 93 | X105: 43 | Y105: 25.9087111 | Z105: 17.41624904 | AC105: 0.01866375655 | AD105: 0.007858745754 | AE105: 21.66248007 | AG105: -4.246231026 | AI105: -8.492462051 | AJ105: 3.7
P106: 94 | X106: 44 | Y106: 55.5667158 | Z106: 62.46798818 | AC106: 0.8081224188 | AD106: 0.5597013459 | AE106: 59.01735199 | AG106: 3.450636192 | AI106: 6.901272383 | AJ106: 3.7
P107: 95 | X107: 45 | Y107: 49.52716138 | Z107: 59.29019932 | AC107: 0.6938000247 | AD107: 0.7347270772 | AE107: 54.40868035 | AG107: 4.881518973 | AI107: 9.763037946 | AJ107: 3.7
P108: 96 | X108: 46 | Y108: 38.4811221 | Z108: 41.73039689 | AC108: 0.2662827596 | AD108: 0.3233130798 | AE108: 40.10575949 | AG108: 1.624637399 | AI108: 3.249274797 | AJ108: 3.7
P109: 97 | Q109: =IF(AND(X159<=$C$2,$B$1),Y159,"") ->  | R109: =IF(AND(X159<=$C$2,$B$1),Z159,"") ->  | T109: =IF(AND(X159<=$C$2,$B$1),R109-Q109,"") ->  | X109: 47 | Y109: 34.5430653 | Z109: 21.63765093 | AC109: 0.05774425715 | AD109: 0.0008138343692 | AE109: 28.09035811 | AG109: -6.452707185 | AI109: -12.90541437 | AJ109: 3.7
P110: 98 | Q110: =IF(AND(X160<=$C$2,$B$1),Y160,"") ->  | R110: =IF(AND(X160<=$C$2,$B$1),Z160,"") ->  | T110: =IF(AND(X160<=$C$2,$B$1),R110-Q110,"") ->  | X110: 48 | Y110: 40.28303499 | Z110: 44.04015617 | AC110: 0.3221961483 | AD110: 0.3542716727 | AE110: 42.16159558 | AG110: 1.87856059 | AI110: 3.757121181 | AJ110: 3.7
P111: 99 | Q111: =IF(AND(X161<=$C$2,$B$1),Y161,"") ->  | R111: =IF(AND(X161<=$C$2,$B$1),Z161,"") ->  | T111: =IF(AND(X161<=$C$2,$B$1),R111-Q111,"") ->  | X111: 49 | Y111: 51.9328761 | Z111: 55.32967345 | AC111: 0.6719092652 | AD111: 0.3321924731 | AE111: 53.63127478 | AG111: 1.698398676 | AI111: 3.396797352 | AJ111: 3.7
P112: 100 | Q112: =IF(AND(X162<=$C$2,$B$1),Y162,"") ->  | R112: =IF(AND(X162<=$C$2,$B$1),Z162,"") ->  | T112: =IF(AND(X162<=$C$2,$B$1),R112-Q112,"") ->  | X112: 50 | Y112: 46.31371523 | Z112: 42.42344459 | AC112: 0.3870221004 | AD112: 0.04963751882 | AE112: 44.36857991 | AG112: -1.945135317 | AI112: -3.890270634 | AJ112: 3.7
X113: 51 | Y113: 19.20541485 | Z113: 31.01440963 | AC113: 0.03517734259 | AD113: 0.8335192129 | AE113: 25.10991224 | AG113: 5.904497388 | AI113: 11.80899478 | AJ113: 3.7
X114: 52 | Y114: 54.6428748 | Z114: 71.49619452 | AC114: 0.8832421526 | AD114: 0.9647656903 | AE114: 63.06953466 | AG114: 8.426659861 | AI114: 16.85331972 | AJ114: 3.7
X115: 53 | Y115: 15.20654609 | Z115: 20.37102383 | AC115: 0.008460812271 | AD115: 0.4446248338 | AE115: 17.78878496 | AG115: 2.58223887 | AI115: 5.16447774 | AJ115: 3.7
X116: 54 | Y116: 39.32516699 | Z116: 38.20728713 | AC116: 0.2326969728 | AD116: 0.1177492961 | AE116: 38.76622706 | AG116: -0.5589399301 | AI116: -1.11787986 | AJ116: 3.7
X117: 55 | Y117: 53.70881818 | Z117: 59.58891839 | AC117: 0.7529344484 | AD117: 0.4920283481 | AE117: 56.64886828 | AG117: 2.940050106 | AI117: 5.880100213 | AJ117: 3.7
X118: 56 | Y118: 33.84558916 | Z118: 46.8313431 | AC118: 0.2723578438 | AD118: 0.877847217 | AE118: 40.33846613 | AG118: 6.492876974 | AI118: 12.98575395 | AJ118: 3.7
X119: 57 | Y119: 70.05302351 | Z119: 77.29890319 | AC119: 0.9788147733 | AD119: 0.5822475478 | AE119: 73.67596335 | AG119: 3.622939844 | AI119: 7.245879687 | AJ119: 3.7
X120: 58 | Y120: 48.65630745 | Z120: 44.62485835 | AC120: 0.4572075233 | AD120: 0.04727121443 | AE120: 46.6405829 | AG120: -2.01572455 | AI120: -4.0314491 | AJ120: 3.7
X121: 59 | Y121: 31.14750671 | Z121: 41.36183546 | AC121: 0.1765612289 | AD121: 0.7587814257 | AE121: 36.25467109 | AG121: 5.107164376 | AI121: 10.21432875 | AJ121: 3.7
X122: 60 | Y122: 51.21735791 | Z122: 50.18861139 | AC122: 0.5846054778 | AD122: 0.120707415 | AE122: 50.70298465 | AG122: -0.5143732565 | AI122: -1.028746513 | AJ122: 3.7
X123: 61 | Y123: 39.30330341 | Z123: 48.79392839 | AC123: 0.3773742244 | AD123: 0.7196394727 | AE123: 44.0486159 | AG123: 4.74531249 | AI123: 9.490624981 | AJ123: 3.7
X124: 62 | Y124: 36.03984083 | Z124: 33.68728487 | AC124: 0.1495124921 | AD124: 0.0819471702 | AE124: 34.86356285 | AG124: -1.176277983 | AI124: -2.352555965 | AJ124: 3.7
X125: 63 | Y125: 56.75501973 | Z125: 67.13478302 | AC125: 0.8648650572 | AD125: 0.7672928497 | AE125: 61.94490137 | AG125: 5.189881642 | AI125: 10.37976328 | AJ125: 3.7
X126: 64 | Y126: 56.54791788 | Z126: 62.12649253 | AC126: 0.814949654 | AD126: 0.4720022902 | AE126: 59.3372052 | AG126: 2.789287323 | AI126: 5.578574646 | AJ126: 3.7
X127: 65 | Y127: =AE127-AG127 -> 36.35995393 | Z127: =AE127+AG127 -> 31.7080268 | AA127: =IF(AND(X127<=$C$2,$B$3,$B$1),Y127,NA()) ->  | AB127: =IF(AND(X127<=$C$2,$B$3,$B$1),Z127,NA()) ->  | AC127: 0.1347727105 | AD127: 0.03792243451 | AE127: =($C$5+(($C$3-$C$5)/2))+SQRT($C$4*$C$4-($C$6*$C$6/4))*NORMSINV(AC127) -> 34.03399037 | AF127: =IF(X127<=$C$2,AE127,"") ->  | AG127: =(($C$3-$C$5)+$C$6*NORMSINV(AD127))/2 -> -2.325963561 | AI127: =Z127-Y127 -> -4.651927122 | AJ127: 3.7 | AK127: =IF(AND(X127<=$C$2,$Z$10,$B$1),$Q$4+AI127,NA()) ->  | AL127: =IF(AND(X127<=$C$2,$Z$10,$B$1,$B$3),Y127,NA()) ->  | AM127: =IF(AND(X127<=$C$2,$Z$10,$B$1,$B$3),Z127,NA()) -> 
X128: 66 | Y128: 55.53976176 | Z128: 67.45933824 | AC128: =MOD(AC127*10000013,1) -> 0.8570667133 | AD128: =MOD(AD127*10000013,1) -> 0.8380796537 | AE128: 61.49955 | AG128: 5.95978824 | AI128: 11.91957648 | AJ128: 3.7
X129: 67 | Y129: 37.9388772 | Z129: 42.90870849 | AC129: 0.2746025249 | AD129: 0.4318387434 | AE129: 40.42379284 | AG129: 2.484915648 | AI129: 4.969831297 | AJ129: =AJ128 -> 3.7
X130: 68 | Y130: 61.5397992 | Z130: 57.53978954 | AC130: 0.8191948161 | AD130: 0.04779019207 | AE130: 59.53979437 | AG130: -2.000004831 | AI130: -4.000009663 | AJ130: 3.7
X131: 69 | Y131: 55.79145262 | Z131: 62.42351894 | AC131: 0.8100617453 | AD131: 0.5419487283 | AE131: 59.10748578 | AG131: 3.31603316 | AI131: 6.63206632 | AJ131: 3.7
X132: 70 | Y132: 73.54378347 | Z132: 76.87058448 | AC132: 0.9842586145 | AD132: 0.3279672489 | AE132: 75.20718398 | AG132: 1.663400504 | AI132: 3.326801008 | AJ132: 3.7
X133: 71 | Y133: 62.64048895 | Z133: 72.72800993 | AC133: 0.9401669428 | AD133: 0.7521444485 | AE133: 67.68424944 | AG133: 5.043760489 | AI133: 10.08752098 | AJ133: 3.7
X134: 72 | Y134: 51.77857673 | Z134: 53.9640698 | AC134: 0.6499227509 | AD134: 0.262469314 | AE134: 52.87132326 | AG134: 1.092746533 | AI134: 2.185493066 | AJ134: 3.7
X135: 73 | Y135: 66.44664504 | Z135: 73.2383532 | AC135: 0.9578983113 | AD135: 0.5524886176 | AE135: 69.84249912 | AG135: 3.395854078 | AI135: 6.791708157 | AJ135: 3.7
X136: 74 | Y136: 48.18606095 | Z136: 52.00869854 | AC136: 0.5658477172 | AD136: 0.3583421335 | AE136: 50.09737974 | AG136: 1.911318795 | AI136: 3.82263759 | AJ136: 3.7
X137: 75 | Y137: 38.5143541 | Z137: 59.28021234 | AC137: 0.52827584 | AD137: 0.9930720255 | AE137: 48.89728322 | AG137: 10.38292912 | AI137: 20.76585824 | AJ137: 3.7
X138: 76 | Y138: 40.07569636 | Z138: 40.22412523 | AC138: 0.2674300894 | AD138: 0.1647151932 | AE138: 40.14991079 | AG138: 0.0742144336 | AI138: 0.1484288672 | AJ138: 3.7
X139: 77 | Y139: 45.17927635 | Z139: 42.47447872 | AC139: 0.3707323596 | AD139: 0.07341783494 | AE139: 43.82687754 | AG139: -1.352398813 | AI139: -2.704797626 | AJ139: 3.7
X140: 78 | Y140: 43.83770424 | Z140: 46.75682047 | AC140: 0.4154021367 | AD140: 0.303807579 | AE140: 45.29726235 | AG140: 1.459558115 | AI140: 2.919116229 | AJ140: 3.7
X141: 79 | Y141: 52.32485161 | Z141: 62.17212787 | AC141: 0.7676584646 | AD141: 0.7393077537 | AE141: 57.24848974 | AG141: 4.923638132 | AI141: 9.847276264 | AJ141: 3.7
X142: 80 | Y142: 52.18244535 | Z142: 51.92299588 | AC142: 0.6256658062 | AD142: 0.1484182104 | AE142: 52.05272061 | AG142: -0.1297247366 | AI142: -0.2594494732 | AJ142: 3.7
X143: 81 | Y143: 39.65095065 | Z143: 34.69335301 | AC143: 0.1959943101 | AD143: 0.03390508145 | AE143: 37.17215183 | AG143: -2.478798819 | AI143: -4.957597638 | AJ143: 3.7
X144: 82 | Y144: 51.80476711 | Z144: 53.85688635 | AC144: 0.648736082 | AD144: 0.2552754506 | AE144: 52.83082673 | AG144: 1.02605962 | AI144: 2.05211924 | AJ144: 3.7
X145: 83 | Y145: 33.81237514 | Z145: 45.42106621 | AC145: 0.2537432835 | AD145: 0.8250496313 | AE145: 39.61672068 | AG145: 5.804345536 | AI145: 11.60869107 | AJ145: 3.7
X146: 84 | Y146: 36.24080048 | Z146: 31.63930032 | AC146: 0.1331687197 | AD146: 0.03862109035 | AE146: 33.9400504 | AG146: -2.300750084 | AI146: -4.601500167 | AJ146: 3.7
X147: 85 | Y147: 64.22378891 | Z147: 68.79051216 | AC147: 0.9282825515 | AD147: 0.4055995271 | AE147: 66.50715054 | AG147: 2.283361624 | AI147: 4.566723248 | AJ147: 3.7
X148: 86 | Y148: 47.30274116 | Z148: 53.95681609 | AC148: 0.5823473558 | AD148: 0.5434037074 | AE148: 50.62977863 | AG148: 3.327037465 | AI148: 6.65407493 | AJ148: 3.7
X149: 87 | Y149: 33.91138971 | Z149: 33.3941793 | AC149: 0.1283454821 | AD149: 0.1386948749 | AE149: 33.65278451 | AG149: -0.2586052049 | AI149: -0.5172104097 | AJ149: 3.7
X150: 88 | Y150: 44.25573163 | Z150: 51.04695103 | AC150: 0.4890049919 | AD150: 0.5524564013 | AE150: 47.65134133 | AG150: 3.395609698 | AI150: 6.791219397 | AJ150: 3.7
X151: 89 | Y151: 40.0784087 | Z151: 40.91674945 | AC151: 0.2765509412 | AD151: 0.1948183104 | AE151: 40.49757907 | AG151: 0.4191703756 | AI151: 0.8383407512 | AJ151: 3.7
X152: 90 | Y152: 12.77108973 | Z152: 20.87433997 | AC152: 0.006854854524 | AD152: 0.6370339021 | AE152: 16.82271485 | AG152: 4.05162512 | AI152: 8.10325024 | AJ152: 3.7
X153: 91 | Y153: 50.89524915 | Z153: 53.79237827 | AC153: 0.6343544647 | AD153: 0.3025274202 | AE153: 52.34381371 | AG153: 1.448564562 | AI153: 2.897129123 | AJ153: 3.7
X154: 92 | Y154: 64.07487217 | Z154: 63.45881918 | AC154: 0.8937056288 | AD154: 0.1350840554 | AE154: 63.76684567 | AG154: -0.3080264949 | AI154: -0.6160529899 | AJ154: 3.7
X155: 93 | Y155: 63.16497883 | Z155: 66.18535267 | AC155: 0.9062963054 | AD155: 0.309734039 | AE155: 64.67516575 | AG155: 1.51018692 | AI155: 3.020373841 | AJ155: 3.7
X156: 94 | Y156: 57.97549105 | Z156: 62.71233659 | AC156: 0.8354360685 | AD156: 0.4166286811 | AE156: 60.34391382 | AG156: 2.368422773 | AI156: 4.736845545 | AJ156: 3.7
X157: 95 | Y157: 48.68553936 | Z157: 50.20102698 | AC157: 0.5454213545 | AD157: 0.2274054214 | AE157: 49.44328317 | AG157: 0.7577438099 | AI157: 1.51548762 | AJ157: 3.7
X158: 96 | Y158: 52.22744599 | Z158: 52.51734614 | AC158: 0.6352039799 | AD158: 0.1706288084 | AE158: 52.37239607 | AG158: 0.1449500737 | AI158: 0.2899001475 | AJ158: 3.7
X159: 97 | Y159: 26.53150034 | Z159: 29.42922889 | AC159: 0.05674593896 | AD159: 0.3025622889 | AE159: 27.98036462 | AF159: =IF(X159<=$C$2,AE159,"") ->  | AG159: 1.448864277 | AI159: 2.897728555 | AJ159: 3.7
X160: 98 | Y160: 27.81016692 | Z160: 39.36460328 | AC160: 0.1272645816 | AD160: 0.8227092847 | AE160: 33.5873851 | AF160: =IF(X160<=$C$2,AE160,"") ->  | AG160: 5.777218179 | AI160: 11.55443636 | AJ160: 3.7
X161: 99 | Y161: 43.74864375 | Z161: 50.38827265 | AC161: 0.4706464931 | AD161: 0.5424487516 | AE161: 47.0684582 | AF161: =IF(X161<=$C$2,AE161,"") ->  | AG161: 3.319814452 | AI161: 6.639628904 | AJ161: 3.7
X162: 100 | Y162: 23.6514504 | Z162: 30.68095522 | AC162: 0.0497732386 | AD162: 0.5681177601 | AE162: 27.16620281 | AF162: =IF(X162<=$C$2,AE162,"") ->  | AG162: 3.514752409 | AI162: 7.029504819 | AJ162: 3.7
